Workbook

Sheet TR
B3: Service | C3: Matin | E3: Soir
B4: Capcli | C4: 0.3541666667 | D4: 0.5 | E4: 0.5625 | F4: 0.7083333333
B5: CB | C5: 08:00:00 | D5: 12:00:00 | E5: 14:00:00 | F5: 17:36:00
B6: CC | C6: 00:00:00 | D6: 00:00:00 | E6: 00:00:00 | F6: 00:00:00
B7: CC-CP | C7: 00:00:00 | D7: 00:00:00 | E7: 00:00:00 | F7: 00:00:00
B8: CC | C8: 00:00:00 | D8: 00:00:00 | E8: 00:00:00 | F8: 00:00:00
B9: CC | C9: 00:00:00 | D9: 00:00:00 | E9: 00:00:00 | F9: 00:00:00
B10: CC | C10: 00:00:00 | D10: 00:00:00 | E10: 00:00:00 | F10: 00:00:00
B11: CCpayé | C11: 0.3333333333 | D11: 0.5 | E11: 0.5833333333 | F11: 0.7333333333
B12: CH | C12: 00:00:00 | D12: 00:00:00 | E12: 00:00:00 | F12: 00:00:00
B13: CH-CP | C13: 00:00:00 | D13: 00:00:00 | E13: 00:00:00 | F13: 00:00:00
B14: CH | C14: 00:00:00 | D14: 00:00:00 | E14: 00:00:00 | F14: 00:00:00
B15: CH | C15: 00:00:00 | D15: 00:00:00 | E15: 00:00:00 | F15: 00:00:00
B16: CH | C16: 00:00:00 | D16: 00:00:00 | E16: 00:00:00 | F16: 00:00:00
B17: CHpayé | C17: 0.3333333333 | D17: 0.5 | E17: 0.5833333333 | F17: 0.7333333333
B18: Congex | C18: 08:00:00 | D18: 12:00:00 | E18: 14:00:00 | F18: 17:36:00
B19: CP | C19: 00:00:00 | D19: 00:00:00 | E19: 00:00:00 | F19: 00:00:00
B20: Férié | C20: 00:00:00 | D20: 00:00:00 | E20: 00:00:00 | F20: 00:00:00
B21: FériéCC | C21: 0 | D21: 0 | E21: 0 | F21: 0
B22: FériéCH | C22: 0 | D22: 0 | E22: 0 | F22: 0
B23: FériéRT | C23: 0 | D23: 0 | E23: 0 | F23: 0
B24: FOCO | C24: 08:00:00 | D24: 12:00:00 | E24: 14:00:00 | F24: 17:36:00
B25: JourAR | C25: 08:00:00 | D25: 12:00:00 | E25: 14:00:00 | F25: 17:36:00
B26: JourDu | C26: 08:00:00 | D26: 12:00:00 | E26: 14:00:00 | F26: 17:36:00
B27: Maladie | C27: 00:00:00 | D27: 00:00:00 | E27: 00:00:00 | F27: 00:00:00
B28: MaladieP | C28: 08:00:00 | D28: 12:00:00 | E28: 14:00:00 | F28: 17:36:00
B29: RE | C29: 08:00:00 | D29: 12:00:00 | E29: 14:00:00 | F29: 17:36:00
B30: RP | C30: 08:00:00 | D30: 12:00:00 | E30: 14:00:00 | F30: 17:36:00
B31: RT | C31: 00:00:00 | D31: 00:00:00 | E31: 00:00:00 | F31: 00:00:00
B32: RT-CP | C32: 00:00:00 | D32: 00:00:00 | E32: 00:00:00 | F32: 00:00:00
B33: RTN | C33: 00:00:00 | D33: 00:00:00 | E33: 00:00:00 | F33: 00:00:00
B34: RTA | C34: 00:00:00 | D34: 00:00:00 | E34: 00:00:00 | F34: 00:00:00
B35: RT | C35: 00:00:00 | D35: 00:00:00 | E35: 00:00:00 | F35: 00:00:00
B36: RTpayé | C36: 0.3333333333 | D36: 0.5 | E36: 0.5833333333 | F36: 0.7333333333
B37: 10RE | C37: 0.3333333333 | D37: 0.5 | E37: 0.5833333333 | F37: 0.7333333333
B38: 20RE | C38: 0.3333333333 | D38: 0.5 | E38: 0.5833333333 | F38: 0.7333333333
B39: 50RE | C39: 0.3333333333 | D39: 0.5 | E39: 0.5833333333 | F39: 0.7333333333
B40: YCP | C40: 00:00:00 | D40: 00:00:00 | E40: 00:00:00 | F40: 00:00:00
B42: 201-1 | C42: 09:28:00 | D42: 13:04:00 | E42: 15:19:00 | F42: 20:04:00
B43: 302-1 | C43: 06:41:00 | D43: 10:56:00 | E43: 13:42:00 | F43: 17:09:00
B44: s302-1 | C44: 07:33:00 | D44: 11:27:00 | E44: 12:49:00 | F44: 16:29:00
B45: 703-1 | C45: 04:52:00 | D45: 12:36:00
B46: 710-1 | C46: 06:14:00 | D46: 14:03:00
B47: 713-1 | C47: 06:33:00 | D47: 13:47:00
B48: 806-1 | E48: 12:32:00 | F48: 20:12:00
B49: v808-1 | E49: 12:24:00 | F49: 20:13:00
B50: s811-1 | E50: 13:04:00 | F50: 20:56:00
B51: v814-1 | E51: 13:54:00 | F51: 21:35:00
B52: 202-2 | C52: 11:18:00 | D52: 13:44:00 | E52: 16:32:00 | F52: 22:15:00
B53: 302-2 | C53: 06:13:00 | D53: 10:23:00 | E53: 12:17:00 | F53: 16:23:00
B54: s817-2 | E54: 12:00:00 | F54: 18:31:00
B55: v818-2 | E55: 12:09:00 | F55: 19:50:00
B56: v819-2 | E56: 12:37:00 | F56: 18:53:00
B57: 903-2 | E57: 15:07:00 | F57: 22:39:00
B58: v903-2 | E58: 17:11:00 | F58: 00:54:00
B59: d610-3 | E59: 0.50625 | F59: 0.8333333333
B60: 724-3 | C60: 0.1729166667 | D60: 0.4986111111
B61: 725-3 | C61: 04:24:00 | D61: 12:19:00
B62: 726-3 | C62: 05:12:00 | D62: 12:49:00
B63: 729-3 | C63: 05:48:00 | D63: 13:31:00
B64: v733-3 | C64: 06:18:00 | D64: 14:03:00
B65: 826-3 | E65: 12:06:00 | F65: 19:48:00
B66: v832-3 | E66: 14:14:00 | F66: 22:13:00
B67: s835-3 | E67: 12:57:00 | F67: 20:43:00
B68: d904-3 | E68: 16:42:00 | F68: 22:43:00
B69: 906-3 | E69: 16:01:00 | F69: 22:42:00
B70: d910-3 | E70: 17:06:00 | F70: 23:14:00
B71: 735-4 | C71: 04:56:00 | D71: 12:27:00
B72: v735-4 | C72: 04:56:00 | D72: 12:32:00
B73: 833-4 | E73: 12:31:00 | F73: 20:21:00
B74: 834-4 | E74: 13:15:00 | F74: 20:50:00
B75: 835-4 | E75: 14:08:00 | F75: 21:28:00
B76: s837-4 | E76: 12:21:00 | F76: 20:06:00
B77: s838-4 | E77: 12:21:00 | F77: 20:15:00
B78: 103-5 | C78: 06:35:00 | D78: 09:00:00 | E78: 12:57:00 | F78: 18:34:00
B79: v108-5 | C79: 06:35:00 | D79: 09:00:00 | E79: 12:15:00 | F79: 17:42:00
B80: d613-5 | E80: 12:23:00 | F80: 20:09:00
B81: d614-5 | E81: 12:40:00 | F81: 20:07:00
B82: s725-5 | C82: 05:05:00 | D82: 12:53:00
B83: v736-5 | C83: 04:43:00 | D83: 12:43:00
B84: 738-5 | C84: 04:55:00 | D84: 12:51:00
B85: 739-5 | C85: 05:23:00 | D85: 12:50:00
B86: v739-5 | C86: 05:51:00 | D86: 13:36:00
B87: 837-5 | E87: 13:04:00 | F87: 20:58:00
B88: 838-5 | E88: 13:09:00 | F88: 19:49:00
B89: s841-5 | E89: 01:55:00 | F89: 19:27:00
B90: 907-5 | E90: 15:51:00 | F90: 23:00:00
B91: 753-6 | C91: 06:15:00 | D91: 14:03:00
B92: v108-7 | C92: 06:15:00 | D92: 09:23:00 | E92: 13:29:00 | F92: 18:21:00
B93: v112-7 | C93: 07:03:00 | D93: 09:03:00 | E93: 14:57:00 | F93: 20:00:00
B94: 744-7 | C94: 05:55:00 | D94: 13:47:00
B95: 746-7 | C95: 06:48:00 | D95: 14:02:00
B96: v843-7 | E96: 15:23:00 | F96: 21:29:00
B97: s848-7 | E97: 12:19:00 | F97: 20:18:00
B98: 107-8 | C98: 06:30:00 | D98: 09:42:00 | E98: 14:21:00 | F98: 19:06:00
B99: 108-8 | C99: 06:58:00 | D99: 10:07:00 | E99: 14:47:00 | F99: 19:55:00
B100: v113-8 | C100: 06:30:00 | D100: 09:42:00 | E100: 14:08:00 | F100: 19:23:00
B101: v114-8 | C101: 06:58:00 | D101: 10:07:00 | E101: 14:47:00 | F101: 19:55:00
B102: v307-8 | C102: 05:40:00 | D102: 08:58:00 | E102: 11:55:00 | F102: 16:31:00
B103: 749-8 | C103: 05:25:00 | D103: 13:06:00
B104: v747-9 | C104: 06:02:00 | D104: 13:54:00
B105: s733-11 | C105: 06:00:00 | D105: 13:29:00
B106: s734-11 | C106: 06:10:00 | D106: 13:20:00
B107: 754-11 | C107: 05:21:00 | D107: 13:17:00
B108: 756-11 | C108: 06:00:00 | D108: 13:49:00
B109: 849-11 | E109: 12:36:00 | F109: 20:34:00
B110: s856-11 | E110: 13:49:00 | F110: 21:40:00
B111: s735-12 | C111: 06:23:00 | D111: 13:33:00
B112: v752-12 | C112: 05:54:00 | D112: 13:40:00
B113: 852-12 | E113: 13:28:00 | F113: 21:18:00
B114: 114-15 | C114: 07:22:00 | D114: 10:23:00 | E114: 14:54:00 | F114: 20:16:00
B115: 761-15 | C115: 05:45:00 | D115: 13:06:00
B116: 762-15 | C116: 05:52:00 | D116: 13:39:00
B117: 857-15 | E117: 12:49:00 | F117: 20:17:00
B118: s106-18 | C118: 09:16:00 | D118: 13:44:00 | E118: 18:21:00 | F118: 21:49:00
B119: v311-18 | C119: 06:00:00 | D119: 10:08:00 | E119: 11:47:00 | F119: 15:25:00
B120: s743-18 | C120: 05:55:00 | D120: 12:49:00
B121: 772-18 | C121: 05:06:00 | D121: 12:27:00
B122: 773-18 | C122: 05:55:00 | D122: 13:43:00
B123: 866-18 | E123: 11:38:00 | F123: 19:12:00
B124: s866-18 | E124: 13:00:00 | F124: 19:19:00
B125: 772-21 | C125: 05:58:00 | D125: 13:40:00
B126: 773-21 | C126: 06:18:00 | D126: 14:04:00
B127: 870-21 | E127: 13:05:00 | F127: 20:50:00
B128: 871-21 | E128: 13:19:00 | F128: 21:15:00
B129: s874-21 | E129: 13:03:00 | F129: 21:00:00
B130: v874-25 | E130: 12:16:00 | F130: 20:16:00
B131: 876-25 | E131: 12:40:00 | F131: 20:31:00
B132: 117-36 | C132: 06:41:00 | D132: 09:21:00 | E132: 14:27:00 | F132: 19:23:00
B133: 787-73 | C133: 04:36:00 | D133: 12:36:00
B134: RP-701 | C134: 04:20:00 | D134: 11:56:00
B135: RP-801 | E135: 11:52:00 | F135: 19:28:00
B136: 811-1h | E136: 13:20:00 | F136: 21:20:00
B137: 820-2h | E137: 12:24:00 | F137: 20:22:00
B138: v853-15h | E138: 12:56:00 | F138: 20:50:00
B139: s870-18n | E139: 12:25:00 | F139: 20:08:00
B140: 876-25 | E140: 12:09:00 | F140: 20:31:00
B141: 838-4 | E141: 12:55:00 | F141: 20:50:00
B142: 505-3nf | C142: 07:28:00 | D142: 13:39:00
B143: 304-15n | C143: 05:45:00 | D143: 09:48:00 | E143: 11:52:00 | F143: 16:18:00
B144: 843-8n | E144: 13:30:00 | F144: 20:50:00
B145: 106-12 | C145: 10:25:00 | D145: 13:43:00 | E145: 16:23:00 | F145: 21:27:00
B146: d904-1n | E146: 17:49:00 | F146: 23:49:00
B147: 812-1 | E147: 13:15:00 | F147: 20:29:00
B148: 757-12 | C148: 05:54:00 | D148: 13:40:00
B149: 777-73 | C149: 04:36:00 | D149: 12:36:00
B150: 113-15 | C150: 07:15:00 | D150: 08:32:00 | E150: 14:22:00 | F150: 20:08:00
B151: 870-18 | E151: 14:27:00 | F151: 22:18:00
B152: 825-3 | C152: 11:45:00 | D152: 19:19:00
B153: 869-18 | E153: 14:08:00 | F153: 22:01:00
B154: v866-18 | E154: 14:08:00 | F154: 22:01:00
B155: 745-7 | C155: 06:15:00 | D155: 14:04:00
B156: 709-1 | C156: 06:04:00 | D156: 14:04:00
B157: 748-7 | C157: 06:56:00 | D157: 13:28:00
B158: 308-18 | C158: 06:00:00 | D158: 10:08:00 | E158: 11:47:00 | F158: 15:25:00
B159: d618-18 | E159: 12:56:00 | F159: 20:27:00
B160: 840-5 | E160: 14:11:00 | F160: 21:41:00
B161: 304-15 | C161: 05:45:00 | D161: 09:48:00 | E161: 11:52:00 | F161: 16:18:00
B162: 763-21h | C162: 06:18:00 | D162: 13:49:00
B163: 755-11 | C163: 05:30:00 | D163: 13:30:00
B164: s844-5 | E164: 12:43:00 | F164: 20:39:00
B165: 820-2 | E165: 12:41:00 | F165: 20:04:00
B166: v759-18h | C166: 04:51:00 | D166: 12:26:00
B167: 302-3h | C167: 06:00:00 | D167: 10:11:00 | E167: 11:43:00 | F167: 15:05:00
B168: 400-1h | E168: 14:31:00 | F168: 1.0375
B169: FOTLBJ3 | C169: 07:30:00 | D169: 11:30:00 | E169: 12:30:00 | F169: 16:21:00
B170: FOTLBN1 | E170: 15:30:00 | F170: 23:06:00
B171: FOTLBN0 | E171: 15:00:00 | F171: 22:36:00
B172: FOTLBJ6 | C172: 08:40:00 | D172: 12:30:00 | E172: 13:30:00 | F172: 17:16:00
B173: FOTLBM4 | C173: 05:45:00 | D173: 13:21:00
B174: FTLBJ9 | C174: 08:00:00 | D174: 11:50:00 | E174: 13:00:00 | F174: 16:46:00
B175: FOHTJ07 | C175: 08:00:00 | D175: 11:50:00 | E175: 13:00:00 | F175: 16:46:00
B176: FOHTM03f | C176: 05:45:00 | D176: 13:21:00
B177: FOTHM07 | C177: 08:00:00 | D177: 11:50:00 | E177: 13:00:00 | F177: 16:46:00
B178: FOTLBM3 | C178: 05:45:00 | D178: 12:51:00
B179: FOTLBM2 | C179: 05:30:00 | D179: 13:36:00
B180: 905-b | E180: 17:32:00 | F180: 1.057638889
B181: 806-b | E181: 12:57:00 | F181: 20:45:00
B182: 808-a | E182: 12:59:00 | F182: 20:11:00
B183: 607 | E183: 13:19:00 | F183: 20:42:00
B184: 815-1p | E184: 14:47:00 | F184: 22:25:00
B185: 813-ap | E185: 13:27:00 | F185: 20:56:00
B186: 109-7p | C186: 07:33:00 | D186: 09:41:00
B187: v841-5p | E187: 14:06:00 | F187: 21:50:00
B188: 803-1p | E188: 11:46:00 | F188: 19:21:00
B189: 902-ap | E189: 16:20:00 | F189: 1.0125
B190: 106-21 | C190: 10:25:00 | D190: 13:43:00 | E190: 16:23:00 | F190: 21:27:00
B191: v777-73 | C191: 04:36:00 | D191: 12:36:00
B192: s106-21 | C192: 10:25 | D192: 13:43:00
B193: v759-18p | C193: 04:51:00 | D193: 12:26:00
B194: s808-a | E194: 12:59:00 | F194: 20:11:00
B195: d607-a | E195: 13:19:00 | F195: 20:42:00
B196: s872-18p | E196: 13:07:00 | F196: 20:52:00
B197: v841-5 | E197: 14:06:00 | F197: 21:50:00
B198: 902-a | E198: 16:20:00 | F198: 1.0125
B199: 809-1p | E199: 12:25:00 | F199: 20:16:00
B200: v864-21p | E200: 13:28:00 | F200: 21:18:00
B201: s719-3p | C201: 05:49:00 | D201: 13:36:00
B202: 801-rh | E202: 13:30:00 | F202: 21:06:00
B203: 805-a | E203: 12:03:00 | F203: 20:02:00
... 56 more rows

Sheet Janvier
B1: JANVIER
T2: TOTAL
B3: Date | C3: Services | D3: Obs. | E3: MATIN | G3: Temps | H3: APRES MIDI | J3: Temps | K3: Prime nuit | L3: PJ1 | M3: PJ2 | N3: Dimanche | O3: Férié | P3: ChècDej | Q3: PrimAmp | R3: H Supp | S3: Ampli | T3: Heures | U3: Centièmes | V3: Kéolis | W3: Écart
B4: 2018-01-01 | C4: 505-3nf | D4: HE | E4: =IFERROR(VLOOKUP(C4,TR!$B$2:$F$633,2,0),"") -> 07:28:00 | F4: =IFERROR(VLOOKUP(C4,TR!$B$2:$F$633,3,0),"") -> 13:39:00 | G4: =IF(ISERROR(F4-E4),0,F4-E4) -> 06:11:00 | H4: =IFERROR(VLOOKUP(C4,TR!$B$2:$F$633,4,0),"") -> 00:00:00 | I4: =IFERROR(VLOOKUP(C4,TR!$B$2:$F$633,5,0),"") -> 00:00:00 | J4: =IF(ISERROR(I4-H4),0,(I4-H4)) -> 00:00:00 | K4: =IF(COUNTA(E4:F4,H4:I4)=5,1,IF(AND(E4<"5:00"*1,E4>"2:00"*1),1,IF(AND(I4>="22:01"*1,I4<="26:01"*1),1,IF(AND(I4<="22:00"*1,SUM(I4,R4)>="22:01"*1),1,"")))) ->  | L4: =IF(AND(F4>="13:15"*1,H4<""),1,IF(AND(H4>="11:00"*1,H4<="12:15"*1),1,IF(AND(F4<="13:15"*1,SUM(F4,R4)>="13:15"*1),1,""))) -> 1 | M4: =IF(AND(I4>="19:30"*1,1,I4>"21:30"*1,C4<>""),1,IF(AND(I4<="21:30"*1,SUM(I4,R4)>="21:30"*1),1,"")) ->  | N4: =IF(AND(LEFT(C4,1)="d",AND(N3<>1)),1,IF(AND(LEFT(C4,1)="s",I4>="24:01"*1),1,IF(AND(I4<>"",I4<="23:59"*1,SUM(I4,R4)>="24:01"*1),1,""))) ->  | O4: =IF(AND(I4>"24:00"*1,ISNUMBER(FIND("f",C5))),1,IF(AND(OR(ISNUMBER(FIND("FériéCC",C4)),ISNUMBER(FIND("FériéCH",C4)),ISNUMBER(FIND("f",C4)))),1,"")) -> 1 | P4: =IF(AND(L4="",M4=""),IF(OR(SUMPRODUCT(N(ISNUMBER(FIND({"s";"d";"f"},C4))))>0,G4+J4<0,AND(G4>0,J4>0,I4>"20:30"*1),AND(I4<="20:30"*1,SUM(I4,R4)>="20:31"*1)),1,""),"") ->  | Q4: =IF(OR(AND(G4>0,AND(J4=0)),OR(G4=0,AND(J4>0)),OR(G4+J4>0)),IF(S4="","",IF(R4+S4>="13:01"*1,1,""))) ->  | S4: =IF(G4=0,IF(J4=0,"",I4-H4),IF(J4=0,F4-E4,I4-E4)) -> 06:11:00 | T4: =IF(ISERROR((F4-E4)+(I4-H4)),0,(F4-E4)+(I4-H4)) -> 0.2576388889 | U4: =T4*24 -> 6.183333333 | V4: 0 | W4: =IF(U4-V4=0,"0,00",U4-V4) -> 6.183333333
B5: 2018-01-02 | C5: 304-15n | E5: =IFERROR(VLOOKUP(C5,TR!$B$2:$F$633,2,0),"") -> 05:45:00 | F5: =IFERROR(VLOOKUP(C5,TR!$B$2:$F$633,3,0),"") -> 09:48:00 | G5: =IF(ISERROR(F5-E5),0,F5-E5) -> 04:03:00 | H5: =IFERROR(VLOOKUP(C5,TR!$B$2:$F$633,4,0),"") -> 11:52:00 | I5: =IFERROR(VLOOKUP(C5,TR!$B$2:$F$633,5,0),"") -> 16:18:00 | J5: =IF(ISERROR(I5-H5),0,(I5-H5)) -> 04:26:00 | L5: 1 | O5: =IF(AND(I5>"24:00"*1,ISNUMBER(FIND("f",C6))),1,IF(AND(OR(ISNUMBER(FIND("FériéCC",C5)),ISNUMBER(FIND("FériéCH",C5)),ISNUMBER(FIND("f",C5)))),1,"")) ->  | P5: =IF(AND(L5="",M5=""),IF(OR(SUMPRODUCT(N(ISNUMBER(FIND({"s";"d";"f"},C5))))>0,G5+J5<0,AND(G5>0,J5>0,I5>"20:30"*1),AND(I5<="20:30"*1,SUM(I5,R5)>="20:31"*1)),1,""),"") ->  | Q5: =IF(OR(AND(G5>0,AND(J5=0)),OR(G5=0,AND(J5>0)),OR(G5+J5>0)),IF(S5="","",IF(R5+S5>="13:01"*1,1,""))) ->  | S5: 10:33:00 | T5: =IF(ISERROR((F5-E5)+(I5-H5)),0,(F5-E5)+(I5-H5)) -> 0.3534722222 | U5: =T5*24 -> 8.483333333 | V5: 8 | W5: =IF(U5-V5=0,"0,00",U5-V5) -> 0.4833333333
B6: 2018-01-03 | C6: RT | E6: =IFERROR(VLOOKUP(C6,TR!$B$2:$F$633,2,0),"") -> 00:00:00 | F6: =IFERROR(VLOOKUP(C6,TR!$B$2:$F$633,3,0),"") -> 00:00:00 | G6: 00:00:00 | H6: =IFERROR(VLOOKUP(C6,TR!$B$2:$F$633,4,0),"") -> 00:00:00 | I6: =IFERROR(VLOOKUP(C6,TR!$B$2:$F$633,5,0),"") -> 00:00:00 | J6: 00:00:00 | P6: =IF(AND(L6="",M6=""),IF(OR(SUMPRODUCT(N(ISNUMBER(FIND({"s";"d";"f"},C6))))>0,G6+J6<0,AND(G6>0,J6>0,I6>"20:30"*1),AND(I6<="20:30"*1,SUM(I6,R6)>="20:31"*1)),1,""),"") ->  | T6: 0 | U6: =T6*24 -> 0 | V6: 0 | W6: 0,00
B7: 2018-01-04 | C7: 843-8n | E7: =IFERROR(VLOOKUP(C7,TR!$B$2:$F$633,2,0),"") -> 00:00:00 | F7: =IFERROR(VLOOKUP(C7,TR!$B$2:$F$633,3,0),"") -> 00:00:00 | G7: 00:00:00 | H7: =IFERROR(VLOOKUP(C7,TR!$B$2:$F$633,4,0),"") -> 13:30:00 | I7: =IFERROR(VLOOKUP(C7,TR!$B$2:$F$633,5,0),"") -> 20:50:00 | J7: 07:20:00 | P7: =IF(AND(L7="",M7=""),IF(OR(SUMPRODUCT(N(ISNUMBER(FIND({"s";"d";"f"},C7))))>0,G7+J7<0,AND(G7>0,J7>0,I7>"20:30"*1),AND(I7<="20:30"*1,SUM(I7,R7)>="20:31"*1)),1,""),"") ->  | S7: 07:20:00 | T7: 0.3055555556 | U7: =T7*24 -> 7.333333333 | V7: 7.97 | W7: -0.6366666667
B8: 2018-01-05 | C8: CH | E8: =IFERROR(VLOOKUP(C8,TR!$B$2:$F$633,2,0),"") -> 00:00:00 | F8: =IFERROR(VLOOKUP(C8,TR!$B$2:$F$633,3,0),"") -> 00:00:00 | G8: 00:00:00 | H8: =IFERROR(VLOOKUP(C8,TR!$B$2:$F$633,4,0),"") -> 00:00:00 | I8: =IFERROR(VLOOKUP(C8,TR!$B$2:$F$633,5,0),"") -> 00:00:00 | J8: 00:00:00 | P8: =IF(AND(L8="",M8=""),IF(OR(SUMPRODUCT(N(ISNUMBER(FIND({"s";"d";"f"},C8))))>0,G8+J8<0,AND(G8>0,J8>0,I8>"20:30"*1),AND(I8<="20:30"*1,SUM(I8,R8)>="20:31"*1)),1,""),"") ->  | T8: 0 | U8: 0 | V8: 7.9 | W8: -7.9
B9: 2018-01-06 | C9: s870-18n | E9: =IFERROR(VLOOKUP(C9,TR!$B$2:$F$633,2,0),"") -> 00:00:00 | F9: =IFERROR(VLOOKUP(C9,TR!$B$2:$F$633,3,0),"") -> 00:00:00 | G9: 00:00:00 | H9: =IFERROR(VLOOKUP(C9,TR!$B$2:$F$633,4,0),"") -> 12:25:00 | I9: =IFERROR(VLOOKUP(C9,TR!$B$2:$F$633,5,0),"") -> 20:08:00 | J9: 07:43:00 | P9: =IF(AND(L9="",M9=""),IF(OR(SUMPRODUCT(N(ISNUMBER(FIND({"s";"d";"f"},C9))))>0,G9+J9<0,AND(G9>0,J9>0,I9>"20:30"*1),AND(I9<="20:30"*1,SUM(I9,R9)>="20:31"*1)),1,""),"") -> 1 | S9: 07:43:00 | T9: 0.3215277778 | U9: 7.716666667 | V9: 7.72 | W9: -0.003333333333
B10: 2018-01-07 | C10: d904-1n | E10: =IFERROR(VLOOKUP(C10,TR!$B$2:$F$633,2,0),"") -> 00:00:00 | F10: =IFERROR(VLOOKUP(C10,TR!$B$2:$F$633,3,0),"") -> 00:00:00 | G10: 00:00:00 | H10: =IFERROR(VLOOKUP(C10,TR!$B$2:$F$633,4,0),"") -> 17:49:00 | I10: =IFERROR(VLOOKUP(C10,TR!$B$2:$F$633,5,0),"") -> 23:49:00 | J10: 06:00:00 | K10: 1 | M10: 1 | N10: 1 | P10: =IF(AND(L10="",M10=""),IF(OR(SUMPRODUCT(N(ISNUMBER(FIND({"s";"d";"f"},C10))))>0,G10+J10<0,AND(G10>0,J10>0,I10>"20:30"*1),AND(I10<="20:30"*1,SUM(I10,R10)>="20:31"*1)),1,""),"") ->  | S10: 06:00:00 | T10: 0.25 | U10: 6 | V10: 0 | W10: 6
B11: 2018-01-08 | C11: 812-1 | E11: =IFERROR(VLOOKUP(C11,TR!$B$2:$F$633,2,0),"") -> 00:00:00 | F11: =IFERROR(VLOOKUP(C11,TR!$B$2:$F$633,3,0),"") -> 00:00:00 | G11: 00:00:00 | H11: =IFERROR(VLOOKUP(C11,TR!$B$2:$F$633,4,0),"") -> 13:15:00 | I11: =IFERROR(VLOOKUP(C11,TR!$B$2:$F$633,5,0),"") -> 20:29:00 | J11: 07:14:00 | P11: =IF(AND(L11="",M11=""),IF(OR(SUMPRODUCT(N(ISNUMBER(FIND({"s";"d";"f"},C11))))>0,G11+J11<0,AND(G11>0,J11>0,I11>"20:30"*1),AND(I11<="20:30"*1,SUM(I11,R11)>="20:31"*1)),1,""),"") ->  | S11: 07:14:00 | T11: 0.3013888889 | U11: 7.233333333 | V11: 7.85 | W11: -0.6166666667
B12: 2018-01-09 | C12: CC | E12: =IFERROR(VLOOKUP(C12,TR!$B$2:$F$633,2,0),"") -> 00:00:00 | F12: =IFERROR(VLOOKUP(C12,TR!$B$2:$F$633,3,0),"") -> 00:00:00 | G12: 00:00:00 | H12: =IFERROR(VLOOKUP(C12,TR!$B$2:$F$633,4,0),"") -> 00:00:00 | I12: =IFERROR(VLOOKUP(C12,TR!$B$2:$F$633,5,0),"") -> 00:00:00 | J12: 00:00:00 | P12: =IF(AND(L12="",M12=""),IF(OR(SUMPRODUCT(N(ISNUMBER(FIND({"s";"d";"f"},C12))))>0,G12+J12<0,AND(G12>0,J12>0,I12>"20:30"*1),AND(I12<="20:30"*1,SUM(I12,R12)>="20:31"*1)),1,""),"") ->  | T12: 0 | U12: 0 | V12: 8.35 | W12: -8.35
B13: 2018-01-10 | C13: CC | D13: RDU | E13: =IFERROR(VLOOKUP(C13,TR!$B$2:$F$633,2,0),"") -> 00:00:00 | F13: =IFERROR(VLOOKUP(C13,TR!$B$2:$F$633,3,0),"") -> 00:00:00 | G13: 00:00:00 | H13: =IFERROR(VLOOKUP(C13,TR!$B$2:$F$633,4,0),"") -> 00:00:00 | I13: =IFERROR(VLOOKUP(C13,TR!$B$2:$F$633,5,0),"") -> 00:00:00 | J13: 00:00:00 | P13: =IF(AND(L13="",M13=""),IF(OR(SUMPRODUCT(N(ISNUMBER(FIND({"s";"d";"f"},C13))))>0,G13+J13<0,AND(G13>0,J13>0,I13>"20:30"*1),AND(I13<="20:30"*1,SUM(I13,R13)>="20:31"*1)),1,""),"") ->  | T13: 0 | U13: 0 | V13: 7.92 | W13: -7.92
B14: 2018-01-11 | C14: 757-12 | E14: =IFERROR(VLOOKUP(C14,TR!$B$2:$F$633,2,0),"") -> 05:54:00 | F14: =IFERROR(VLOOKUP(C14,TR!$B$2:$F$633,3,0),"") -> 13:40:00 | G14: 07:46:00 | H14: =IFERROR(VLOOKUP(C14,TR!$B$2:$F$633,4,0),"") -> 00:00:00 | I14: =IFERROR(VLOOKUP(C14,TR!$B$2:$F$633,5,0),"") -> 00:00:00 | J14: 00:00:00 | L14: 1 | P14: =IF(AND(L14="",M14=""),IF(OR(SUMPRODUCT(N(ISNUMBER(FIND({"s";"d";"f"},C14))))>0,G14+J14<0,AND(G14>0,J14>0,I14>"20:30"*1),AND(I14<="20:30"*1,SUM(I14,R14)>="20:31"*1)),1,""),"") ->  | S14: 07:46:00 | T14: 0.3236111111 | U14: 7.766666667 | V14: 6.67 | W14: 1.096666667
B15: 2018-01-12 | C15: 777-73 | E15: =IFERROR(VLOOKUP(C15,TR!$B$2:$F$633,2,0),"") -> 04:36:00 | F15: =IFERROR(VLOOKUP(C15,TR!$B$2:$F$633,3,0),"") -> 12:36:00 | G15: 08:00:00 | H15: =IFERROR(VLOOKUP(C15,TR!$B$2:$F$633,4,0),"") -> 00:00:00 | I15: =IFERROR(VLOOKUP(C15,TR!$B$2:$F$633,5,0),"") -> 00:00:00 | J15: 00:00:00 | K15: 1 | P15: =IF(AND(L15="",M15=""),IF(OR(SUMPRODUCT(N(ISNUMBER(FIND({"s";"d";"f"},C15))))>0,G15+J15<0,AND(G15>0,J15>0,I15>"20:30"*1),AND(I15<="20:30"*1,SUM(I15,R15)>="20:31"*1)),1,""),"") ->  | S15: 08:00:00 | T15: 0.3333333333 | U15: 8 | V15: 7.68 | W15: 0.32
B16: 2018-01-13 | C16: CC | E16: =IFERROR(VLOOKUP(C16,TR!$B$2:$F$633,2,0),"") -> 00:00:00 | F16: =IFERROR(VLOOKUP(C16,TR!$B$2:$F$633,3,0),"") -> 00:00:00 | G16: 00:00:00 | H16: =IFERROR(VLOOKUP(C16,TR!$B$2:$F$633,4,0),"") -> 00:00:00 | I16: =IFERROR(VLOOKUP(C16,TR!$B$2:$F$633,5,0),"") -> 00:00:00 | J16: 00:00:00 | P16: =IF(AND(L16="",M16=""),IF(OR(SUMPRODUCT(N(ISNUMBER(FIND({"s";"d";"f"},C16))))>0,G16+J16<0,AND(G16>0,J16>0,I16>"20:30"*1),AND(I16<="20:30"*1,SUM(I16,R16)>="20:31"*1)),1,""),"") ->  | T16: 0 | U16: 0 | V16: 0 | W16: 0,00
B17: 2018-01-14 | C17: CH | E17: =IFERROR(VLOOKUP(C17,TR!$B$2:$F$633,2,0),"") -> 00:00:00 | F17: =IFERROR(VLOOKUP(C17,TR!$B$2:$F$633,3,0),"") -> 00:00:00 | G17: 00:00:00 | H17: =IFERROR(VLOOKUP(C17,TR!$B$2:$F$633,4,0),"") -> 00:00:00 | I17: =IFERROR(VLOOKUP(C17,TR!$B$2:$F$633,5,0),"") -> 00:00:00 | J17: 00:00:00 | P17: =IF(AND(L17="",M17=""),IF(OR(SUMPRODUCT(N(ISNUMBER(FIND({"s";"d";"f"},C17))))>0,G17+J17<0,AND(G17>0,J17>0,I17>"20:30"*1),AND(I17<="20:30"*1,SUM(I17,R17)>="20:31"*1)),1,""),"") ->  | T17: 0 | U17: 0 | V17: 0 | W17: 0,00
B18: 2018-01-15 | C18: 113-15 | E18: =IFERROR(VLOOKUP(C18,TR!$B$2:$F$633,2,0),"") -> 07:15:00 | F18: =IFERROR(VLOOKUP(C18,TR!$B$2:$F$633,3,0),"") -> 08:32:00 | G18: 01:17:00 | H18: =IFERROR(VLOOKUP(C18,TR!$B$2:$F$633,4,0),"") -> 14:22:00 | I18: =IFERROR(VLOOKUP(C18,TR!$B$2:$F$633,5,0),"") -> 20:08:00 | J18: 05:46:00 | P18: =IF(AND(L18="",M18=""),IF(OR(SUMPRODUCT(N(ISNUMBER(FIND({"s";"d";"f"},C18))))>0,G18+J18<0,AND(G18>0,J18>0,I18>"20:30"*1),AND(I18<="20:30"*1,SUM(I18,R18)>="20:31"*1)),1,""),"") ->  | S18: 12:53:00 | T18: =IF(ISERROR((F18-E18)+(I18-H18)),0,(F18-E18)+(I18-H18)) -> 0.29375 | U18: 7.05 | V18: 0 | W18: 7.05
B19: 2018-01-16 | C19: 870-18 | E19: =IFERROR(VLOOKUP(C19,TR!$B$2:$F$633,2,0),"") -> 00:00:00 | F19: =IFERROR(VLOOKUP(C19,TR!$B$2:$F$633,3,0),"") -> 00:00:00 | G19: 00:00:00 | H19: =IFERROR(VLOOKUP(C19,TR!$B$2:$F$633,4,0),"") -> 14:27:00 | I19: =IFERROR(VLOOKUP(C19,TR!$B$2:$F$633,5,0),"") -> 22:18:00 | J19: 07:51:00 | K19: 1 | M19: 1 | P19: =IF(AND(L19="",M19=""),IF(OR(SUMPRODUCT(N(ISNUMBER(FIND({"s";"d";"f"},C19))))>0,G19+J19<0,AND(G19>0,J19>0,I19>"20:30"*1),AND(I19<="20:30"*1,SUM(I19,R19)>="20:31"*1)),1,""),"") ->  | S19: 07:51:00 | T19: 0.3270833333 | U19: 7.85 | V19: 0 | W19: 7.85
B20: 2018-01-17 | C20: 825-3 | E20: =IFERROR(VLOOKUP(C20,TR!$B$2:$F$633,2,0),"") -> 11:45:00 | F20: =IFERROR(VLOOKUP(C20,TR!$B$2:$F$633,3,0),"") -> 19:19:00 | G20: 07:34:00 | H20: =IFERROR(VLOOKUP(C20,TR!$B$2:$F$633,4,0),"") -> 00:00:00 | I20: =IFERROR(VLOOKUP(C20,TR!$B$2:$F$633,5,0),"") -> 00:00:00 | J20: 00:00:00 | L20: 1 | P20: =IF(AND(L20="",M20=""),IF(OR(SUMPRODUCT(N(ISNUMBER(FIND({"s";"d";"f"},C20))))>0,G20+J20<0,AND(G20>0,J20>0,I20>"20:30"*1),AND(I20<="20:30"*1,SUM(I20,R20)>="20:31"*1)),1,""),"") ->  | S20: 07:34:00 | T20: 0.3152777778 | U20: 7.566666667 | V20: 7.82 | W20: -0.2533333333
B21: 2018-01-18 | C21: 869-18 | E21: =IFERROR(VLOOKUP(C21,TR!$B$2:$F$633,2,0),"") -> 00:00:00 | F21: =IFERROR(VLOOKUP(C21,TR!$B$2:$F$633,3,0),"") -> 00:00:00 | G21: 00:00:00 | H21: =IFERROR(VLOOKUP(C21,TR!$B$2:$F$633,4,0),"") -> 14:08:00 | I21: =IFERROR(VLOOKUP(C21,TR!$B$2:$F$633,5,0),"") -> 22:01:00 | J21: 07:53:00 | K21: 1 | M21: 1 | P21: =IF(AND(L21="",M21=""),IF(OR(SUMPRODUCT(N(ISNUMBER(FIND({"s";"d";"f"},C21))))>0,G21+J21<0,AND(G21>0,J21>0,I21>"20:30"*1),AND(I21<="20:30"*1,SUM(I21,R21)>="20:31"*1)),1,""),"") ->  | S21: 07:53:00 | T21: 0.3284722222 | U21: 7.883333333 | V21: 7.52 | W21: 0.3633333333
B22: 2018-01-19 | C22: v866-18 | E22: =IFERROR(VLOOKUP(C22,TR!$B$2:$F$633,2,0),"") -> 00:00:00 | F22: =IFERROR(VLOOKUP(C22,TR!$B$2:$F$633,3,0),"") -> 00:00:00 | G22: 00:00:00 | H22: =IFERROR(VLOOKUP(C22,TR!$B$2:$F$633,4,0),"") -> 14:08:00 | I22: =IFERROR(VLOOKUP(C22,TR!$B$2:$F$633,5,0),"") -> 22:01:00 | J22: 07:53:00 | K22: 1 | M22: 1 | P22: =IF(AND(L22="",M22=""),IF(OR(SUMPRODUCT(N(ISNUMBER(FIND({"s";"d";"f"},C22))))>0,G22+J22<0,AND(G22>0,J22>0,I22>"20:30"*1),AND(I22<="20:30"*1,SUM(I22,R22)>="20:31"*1)),1,""),"") ->  | S22: 07:53:00 | T22: 0.3284722222 | U22: 7.883333333 | V22: 7.65 | W22: 0.2333333333
B23: 2018-01-20 | C23: CC | E23: =IFERROR(VLOOKUP(C23,TR!$B$2:$F$633,2,0),"") -> 00:00:00 | F23: =IFERROR(VLOOKUP(C23,TR!$B$2:$F$633,3,0),"") -> 00:00:00 | G23: 00:00:00 | H23: =IFERROR(VLOOKUP(C23,TR!$B$2:$F$633,4,0),"") -> 00:00:00 | I23: =IFERROR(VLOOKUP(C23,TR!$B$2:$F$633,5,0),"") -> 00:00:00 | J23: 00:00:00 | P23: =IF(AND(L23="",M23=""),IF(OR(SUMPRODUCT(N(ISNUMBER(FIND({"s";"d";"f"},C23))))>0,G23+J23<0,AND(G23>0,J23>0,I23>"20:30"*1),AND(I23<="20:30"*1,SUM(I23,R23)>="20:31"*1)),1,""),"") ->  | T23: 0 | U23: 0 | V23: 7.8 | W23: -7.8
B24: 2018-01-21 | C24: CH | E24: =IFERROR(VLOOKUP(C24,TR!$B$2:$F$633,2,0),"") -> 00:00:00 | F24: =IFERROR(VLOOKUP(C24,TR!$B$2:$F$633,3,0),"") -> 00:00:00 | G24: 00:00:00 | H24: =IFERROR(VLOOKUP(C24,TR!$B$2:$F$633,4,0),"") -> 00:00:00 | I24: =IFERROR(VLOOKUP(C24,TR!$B$2:$F$633,5,0),"") -> 00:00:00 | J24: 00:00:00 | P24: =IF(AND(L24="",M24=""),IF(OR(SUMPRODUCT(N(ISNUMBER(FIND({"s";"d";"f"},C24))))>0,G24+J24<0,AND(G24>0,J24>0,I24>"20:30"*1),AND(I24<="20:30"*1,SUM(I24,R24)>="20:31"*1)),1,""),"") ->  | T24: 0 | U24: 0 | V24: 0 | W24: 0,00
B25: 2018-01-22 | C25: 745-7 | E25: =IFERROR(VLOOKUP(C25,TR!$B$2:$F$633,2,0),"") -> 06:15:00 | F25: =IFERROR(VLOOKUP(C25,TR!$B$2:$F$633,3,0),"") -> 14:04:00 | G25: 07:49:00 | H25: =IFERROR(VLOOKUP(C25,TR!$B$2:$F$633,4,0),"") -> 00:00:00 | I25: =IFERROR(VLOOKUP(C25,TR!$B$2:$F$633,5,0),"") -> 00:00:00 | J25: 00:00:00 | L25: 1 | P25: =IF(AND(L25="",M25=""),IF(OR(SUMPRODUCT(N(ISNUMBER(FIND({"s";"d";"f"},C25))))>0,G25+J25<0,AND(G25>0,J25>0,I25>"20:30"*1),AND(I25<="20:30"*1,SUM(I25,R25)>="20:31"*1)),1,""),"") ->  | S25: 07:49:00 | T25: 0.3256944444 | U25: 7.816666667 | V25: 7.32 | W25: 0.4966666667
B26: 2018-01-23 | C26: 709-1 | E26: =IFERROR(VLOOKUP(C26,TR!$B$2:$F$633,2,0),"") -> 06:04:00 | F26: =IFERROR(VLOOKUP(C26,TR!$B$2:$F$633,3,0),"") -> 14:04:00 | G26: 08:00:00 | H26: =IFERROR(VLOOKUP(C26,TR!$B$2:$F$633,4,0),"") -> 00:00:00 | I26: =IFERROR(VLOOKUP(C26,TR!$B$2:$F$633,5,0),"") -> 00:00:00 | J26: 00:00:00 | L26: 1 | P26: =IF(AND(L26="",M26=""),IF(OR(SUMPRODUCT(N(ISNUMBER(FIND({"s";"d";"f"},C26))))>0,G26+J26<0,AND(G26>0,J26>0,I26>"20:30"*1),AND(I26<="20:30"*1,SUM(I26,R26)>="20:31"*1)),1,""),"") ->  | S26: 08:00:00 | T26: 0.3333333333 | U26: 8 | V26: 7.33 | W26: 0.67
B27: 2018-01-24 | C27: 748-7 | E27: =IFERROR(VLOOKUP(C27,TR!$B$2:$F$633,2,0),"") -> 06:56:00 | F27: =IFERROR(VLOOKUP(C27,TR!$B$2:$F$633,3,0),"") -> 13:28:00 | G27: 06:32:00 | H27: =IFERROR(VLOOKUP(C27,TR!$B$2:$F$633,4,0),"") -> 00:00:00 | I27: =IFERROR(VLOOKUP(C27,TR!$B$2:$F$633,5,0),"") -> 00:00:00 | J27: 00:00:00 | L27: 1 | P27: =IF(AND(L27="",M27=""),IF(OR(SUMPRODUCT(N(ISNUMBER(FIND({"s";"d";"f"},C27))))>0,G27+J27<0,AND(G27>0,J27>0,I27>"20:30"*1),AND(I27<="20:30"*1,SUM(I27,R27)>="20:31"*1)),1,""),"") ->  | S27: 06:32:00 | T27: 0.2722222222 | U27: 6.533333333 | V27: 7.57 | W27: -1.036666667
B28: 2018-01-25 | C28: 308-18 | E28: =IFERROR(VLOOKUP(C28,TR!$B$2:$F$633,2,0),"") -> 06:00:00 | F28: =IFERROR(VLOOKUP(C28,TR!$B$2:$F$633,3,0),"") -> 10:08:00 | G28: 04:08:00 | H28: =IFERROR(VLOOKUP(C28,TR!$B$2:$F$633,4,0),"") -> 11:47:00 | I28: =IFERROR(VLOOKUP(C28,TR!$B$2:$F$633,5,0),"") -> 15:25:00 | J28: 03:38:00 | L28: 1 | P28: =IF(AND(L28="",M28=""),IF(OR(SUMPRODUCT(N(ISNUMBER(FIND({"s";"d";"f"},C28))))>0,G28+J28<0,AND(G28>0,J28>0,I28>"20:30"*1),AND(I28<="20:30"*1,SUM(I28,R28)>="20:31"*1)),1,""),"") ->  | S28: 09:25:00 | T28: 0.3236111111 | U28: 7.766666667 | V28: 0 | W28: 7.766666667
B29: 2018-01-26 | C29: RT | E29: =IFERROR(VLOOKUP(C29,TR!$B$2:$F$633,2,0),"") -> 00:00:00 | F29: =IFERROR(VLOOKUP(C29,TR!$B$2:$F$633,3,0),"") -> 00:00:00 | G29: 00:00:00 | H29: =IFERROR(VLOOKUP(C29,TR!$B$2:$F$633,4,0),"") -> 00:00:00 | I29: =IFERROR(VLOOKUP(C29,TR!$B$2:$F$633,5,0),"") -> 00:00:00 | J29: 00:00:00 | P29: =IF(AND(L29="",M29=""),IF(OR(SUMPRODUCT(N(ISNUMBER(FIND({"s";"d";"f"},C29))))>0,G29+J29<0,AND(G29>0,J29>0,I29>"20:30"*1),AND(I29<="20:30"*1,SUM(I29,R29)>="20:31"*1)),1,""),"") ->  | T29: 0 | U29: 0 | V29: 8 | W29: -8
B30: 2018-01-27 | C30: CC | E30: =IFERROR(VLOOKUP(C30,TR!$B$2:$F$633,2,0),"") -> 00:00:00 | F30: =IFERROR(VLOOKUP(C30,TR!$B$2:$F$633,3,0),"") -> 00:00:00 | G30: 00:00:00 | H30: =IFERROR(VLOOKUP(C30,TR!$B$2:$F$633,4,0),"") -> 00:00:00 | I30: =IFERROR(VLOOKUP(C30,TR!$B$2:$F$633,5,0),"") -> 00:00:00 | J30: 00:00:00 | P30: =IF(AND(L30="",M30=""),IF(OR(SUMPRODUCT(N(ISNUMBER(FIND({"s";"d";"f"},C30))))>0,G30+J30<0,AND(G30>0,J30>0,I30>"20:30"*1),AND(I30<="20:30"*1,SUM(I30,R30)>="20:31"*1)),1,""),"") ->  | T30: 0 | U30: 0 | V30: 7.83 | W30: -7.83
B31: 2018-01-28 | C31: CH | E31: =IFERROR(VLOOKUP(C31,TR!$B$2:$F$633,2,0),"") -> 00:00:00 | F31: =IFERROR(VLOOKUP(C31,TR!$B$2:$F$633,3,0),"") -> 00:00:00 | G31: 00:00:00 | H31: =IFERROR(VLOOKUP(C31,TR!$B$2:$F$633,4,0),"") -> 00:00:00 | I31: =IFERROR(VLOOKUP(C31,TR!$B$2:$F$633,5,0),"") -> 00:00:00 | J31: 00:00:00 | P31: =IF(AND(L31="",M31=""),IF(OR(SUMPRODUCT(N(ISNUMBER(FIND({"s";"d";"f"},C31))))>0,G31+J31<0,AND(G31>0,J31>0,I31>"20:30"*1),AND(I31<="20:30"*1,SUM(I31,R31)>="20:31"*1)),1,""),"") ->  | T31: 0 | U31: 0 | V31: 0 | W31: 0,00
B32: 2018-01-29 | C32: CC | E32: =IFERROR(VLOOKUP(C32,TR!$B$2:$F$633,2,0),"") -> 00:00:00 | F32: =IFERROR(VLOOKUP(C32,TR!$B$2:$F$633,3,0),"") -> 00:00:00 | G32: 00:00:00 | H32: =IFERROR(VLOOKUP(C32,TR!$B$2:$F$633,4,0),"") -> 00:00:00 | I32: =IFERROR(VLOOKUP(C32,TR!$B$2:$F$633,5,0),"") -> 00:00:00 | J32: 00:00:00 | P32: =IF(AND(L32="",M32=""),IF(OR(SUMPRODUCT(N(ISNUMBER(FIND({"s";"d";"f"},C32))))>0,G32+J32<0,AND(G32>0,J32>0,I32>"20:30"*1),AND(I32<="20:30"*1,SUM(I32,R32)>="20:31"*1)),1,""),"") ->  | T32: 0 | U32: 0 | V32: 7.23 | W32: -7.23
B33: 2018-01-30 | C33: CP | E33: =IFERROR(VLOOKUP(C33,TR!$B$2:$F$633,2,0),"") -> 00:00:00 | F33: =IFERROR(VLOOKUP(C33,TR!$B$2:$F$633,3,0),"") -> 00:00:00 | G33: 00:00:00 | H33: =IFERROR(VLOOKUP(C33,TR!$B$2:$F$633,4,0),"") -> 00:00:00 | I33: =IFERROR(VLOOKUP(C33,TR!$B$2:$F$633,5,0),"") -> 00:00:00 | J33: 00:00:00 | P33: =IF(AND(L33="",M33=""),IF(OR(SUMPRODUCT(N(ISNUMBER(FIND({"s";"d";"f"},C33))))>0,G33+J33<0,AND(G33>0,J33>0,I33>"20:30"*1),AND(I33<="20:30"*1,SUM(I33,R33)>="20:31"*1)),1,""),"") ->  | T33: 0 | U33: 0 | V33: 7.6 | W33: -7.6
B34: 2018-01-31 | C34: CP | E34: =IFERROR(VLOOKUP(C34,TR!$B$2:$F$633,2,0),"") -> 00:00:00 | F34: =IFERROR(VLOOKUP(C34,TR!$B$2:$F$633,3,0),"") -> 00:00:00 | G34: 00:00:00 | H34: =IFERROR(VLOOKUP(C34,TR!$B$2:$F$633,4,0),"") -> 00:00:00 | I34: =IFERROR(VLOOKUP(C34,TR!$B$2:$F$633,5,0),"") -> 00:00:00 | J34: 00:00:00 | P34: =IF(AND(L34="",M34=""),IF(OR(SUMPRODUCT(N(ISNUMBER(FIND({"s";"d";"f"},C34))))>0,G34+J34<0,AND(G34>0,J34>0,I34>"20:30"*1),AND(I34<="20:30"*1,SUM(I34,R34)>="20:31"*1)),1,""),"") ->  | T34: 0 | U34: 0 | V34: 8 | W34: -8
B36: Jours travaillés | C36: =COUNTIF(C4:C23,"<>")-(COUNTIF(C4:C23,"CH*")+COUNTIF(C4:C23,"RT*")+COUNTIF(C4:C23,"CC*")+COUNTIF(C4:C23,"Mal*")+COUNTIF(C4:C23,"Férié*")+COUNTIF(C4:C23,"CP*")) -> 13 | I36: Du 21 au 20 | K36: =SUM([1]Décembre!$K$24:$K$34,K4:K23) -> 5 | L36: =SUM([1]Décembre!$L$24:$L$34,L4:L23) -> 5 | M36: =SUM([1]Décembre!$M$24:$M$34,M4:M23) -> 4 | N36: =SUM([1]Décembre!$N$24:$N$34,N4:N23) -> 2 | O36: =SUM([1]Décembre!$O$24:$O$34,O4:O23) -> 1 | P36: =SUM([1]Décembre!$P$24:$P$34,P4:P23) -> 1 | Q36: =SUM([1]Décembre!$Q$24:$Q$34,Q4:Q23) -> 0 | R36: =SUM([1]Décembre!$R$24:$R$34,R4:R23) -> 0 | T36: =SUM(T4:T23) -> 4.039583333 | U36: =SUM(U4:U34) -> 127.0666667 | V36: =SUM(V4:V34) -> 161.73
B37: CP | C37: =COUNTIF(C4:C23,"CP") -> 0 | K37: =(I39*2)*K36 -> 88.528 | L37: =Recap!H35*L36 -> 35.7 | M37: =Recap!H35*M36 -> 28.56 | N37: =(I39*5)*N36 -> 88.528 | O37: =(Recap!H33)*O36 -> 102.469 | P37: =7.5*P36 -> 7.5 | Q37: =(I39*1.5)*Q36 -> 0 | R37: =R36*24 -> 0
B38: CH | C38: =COUNTIF(C4:C23,"CH") -> 2 | I38: VP | T38: Horaire mensuel | V38: 6.175 | W38: =V38*24 -> 148.2
B39: RT | C39: =COUNTIF(C4:C23,"RT") -> 1 | I39: 8.8528
B40: CC | C40: =COUNTIF(C4:C23,"CC") -> 4 | T40: Différence | V40: =IF(V38>T36,"-","")&TEXT(ABS(T36-V38),"[h]:mm") -> -51:15 | W40: =(T36-V38)*24 -> -51.25
B41: Férié | C41: =COUNTIF(C24:C34,"Férié") -> 0
B42: Férié CC-CH-RT | C42: =(COUNTIF(C4:C23,"FériéCC")+COUNTIF(C4:C23,"FériéCH")+(COUNTIF(C4:C23,"FériéRT"))) -> 0 | R42: Heures réelles | T42: =SUM(T4:T34) -> 5.294444444
T43: =T42*24 -> 127.0666667 | W43: =(T42-V38)*24 -> -21.13333333
F45: NOTES

Sheet Février
B1: FÉVRIER
T2: TOTAL
B3: Date | C3: Services | D3: Obs. | E3: MATIN | G3: Temps | H3: APRES MIDI | J3: Temps | K3: Prime nuit | L3: PJ1 | M3: PJ2 | N3: Dimanche | O3: Férié | P3: ChècDej | Q3: PrimAmp | R3: H Supp | S3: Ampli | T3: Heures | U3: Centièmes | V3: Kéolis | W3: Écart
B4: 2018-02-01 | C4: CP | E4: =IFERROR(VLOOKUP(C4,TR!$B$2:$F$633,2,0),"") -> 00:00:00 | F4: =IFERROR(VLOOKUP(C4,TR!$B$2:$F$633,3,0),"") -> 00:00:00 | G4: =IF(ISERROR(F4-E4),0,F4-E4) -> 00:00:00 | H4: =IFERROR(VLOOKUP(C4,TR!$B$2:$F$633,4,0),"") -> 00:00:00 | I4: =IFERROR(VLOOKUP(C4,TR!$B$2:$F$633,5,0),"") -> 00:00:00 | J4: =IF(ISERROR(I4-H4),0,(I4-H4)) -> 00:00:00 | K4: =IF(COUNTA(E4:F4,H4:I4)=5,1,IF(AND(E4<"5:00"*1,E4>"2:00"*1),1,IF(AND(I4>="22:01"*1,I4<="26:01"*1),1,IF(AND(I4<="22:00"*1,SUM(I4,R4)>="22:01"*1),1,"")))) ->  | L4: =IF(AND(F4>="13:15"*1,H4<""),1,IF(AND(H4>="11:00"*1,H4<="12:15"*1),1,IF(AND(F4<="13:15"*1,SUM(F4,R4)>="13:15"*1),1,""))) ->  | M4: =IF(AND(I4>="19:30"*1,1,I4>"21:30"*1,C4<>""),1,IF(AND(I4<="21:30"*1,SUM(I4,R4)>="21:30"*1),1,"")) ->  | N4: =IF(AND(LEFT(C4,1)="d",AND(Janvier!N34<>1)),1,IF(AND(LEFT(C4,1)="s",I4>="24:01"*1),1,IF(AND(I4<>"",I4<="23:59"*1,SUM(I4,R4)>="24:01"*1),1,""))) ->  | O4: =IF(AND(I4>"24:00"*1,ISNUMBER(FIND("f",C5))),1,IF(AND(OR(ISNUMBER(FIND("FériéCC",C4)),ISNUMBER(FIND("FériéCH",C4)),ISNUMBER(FIND("f",C4)))),1,"")) ->  | P4: =IF(AND(L4="",M4=""),IF(OR(SUMPRODUCT(N(ISNUMBER(FIND({"s";"d";"f"},C4))))>0,G4+J4<0,AND(G4>0,J4>0,I4>"20:30"*1),AND(I4<="20:30"*1,SUM(I4,R4)>="20:31"*1)),1,""),"") ->  | Q4: =IF(OR(AND(G4>0,AND(J4=0)),OR(G4=0,AND(J4>0)),OR(G4+J4>0)),IF(S4="","",IF(R4+S4>="13:01"*1,1,""))) ->  | S4: =IF(G4=0,IF(J4=0,"",I4-H4),IF(J4=0,F4-E4,I4-E4)) ->  | T4: =IF(ISERROR((F4-E4)+(I4-H4)),0,(F4-E4)+(I4-H4)) -> 0 | U4: =T4*24 -> 0 | W4: =IF(U4-V4=0,"0,00",U4-V4) -> 0,00
B5: 2018-02-02 | C5: CP | E5: =IFERROR(VLOOKUP(C5,TR!$B$2:$F$633,2,0),"") -> 00:00:00 | F5: =IFERROR(VLOOKUP(C5,TR!$B$2:$F$633,3,0),"") -> 00:00:00 | G5: =IF(ISERROR(F5-E5),0,F5-E5) -> 00:00:00 | H5: =IFERROR(VLOOKUP(C5,TR!$B$2:$F$633,4,0),"") -> 00:00:00 | I5: =IFERROR(VLOOKUP(C5,TR!$B$2:$F$633,5,0),"") -> 00:00:00 | J5: =IF(ISERROR(I5-H5),0,(I5-H5)) -> 00:00:00 | N5: =IF(AND(LEFT(C5,1)="d",AND(N4<>1)),1,IF(AND(LEFT(C5,1)="s",I5>="24:01"*1),1,IF(AND(I5<>"",I5<="23:59"*1,SUM(I5,R5)>="24:01"*1),1,""))) ->  | O5: =IF(AND(I5>"24:00"*1,ISNUMBER(FIND("f",C6))),1,IF(AND(OR(ISNUMBER(FIND("FériéCC",C5)),ISNUMBER(FIND("FériéCH",C5)),ISNUMBER(FIND("f",C5)))),1,"")) ->  | P5: =IF(AND(L5="",M5=""),IF(OR(SUMPRODUCT(N(ISNUMBER(FIND({"s";"d";"f"},C5))))>0,G5+J5<0,AND(G5>0,J5>0,I5>"20:30"*1),AND(I5<="20:30"*1,SUM(I5,R5)>="20:31"*1)),1,""),"") ->  | Q5: =IF(OR(AND(G5>0,AND(J5=0)),OR(G5=0,AND(J5>0)),OR(G5+J5>0)),IF(S5="","",IF(R5+S5>="13:01"*1,1,""))) ->  | T5: 0 | U5: =T5*24 -> 0 | W5: =IF(U5-V5=0,"0,00",U5-V5) -> 0,00
B6: 2018-02-03 | C6: CP | E6: =IFERROR(VLOOKUP(C6,TR!$B$2:$F$633,2,0),"") -> 00:00:00 | F6: =IFERROR(VLOOKUP(C6,TR!$B$2:$F$633,3,0),"") -> 00:00:00 | G6: 00:00:00 | H6: =IFERROR(VLOOKUP(C6,TR!$B$2:$F$633,4,0),"") -> 00:00:00 | I6: =IFERROR(VLOOKUP(C6,TR!$B$2:$F$633,5,0),"") -> 00:00:00 | J6: 00:00:00 | O6: =IF(AND(I6>"24:00"*1,ISNUMBER(FIND("f",C7))),1,IF(AND(OR(ISNUMBER(FIND("FériéCC",C6)),ISNUMBER(FIND("FériéCH",C6)),ISNUMBER(FIND("f",C6)))),1,"")) ->  | P6: =IF(AND(L6="",M6=""),IF(OR(SUMPRODUCT(N(ISNUMBER(FIND({"s";"d";"f"},C6))))>0,G6+J6<0,AND(G6>0,J6>0,I6>"20:30"*1),AND(I6<="20:30"*1,SUM(I6,R6)>="20:31"*1)),1,""),"") ->  | T6: 0 | U6: =T6*24 -> 0 | W6: 0,00
B7: 2018-02-04 | C7: CH | E7: =IFERROR(VLOOKUP(C7,TR!$B$2:$F$633,2,0),"") -> 00:00:00 | F7: =IFERROR(VLOOKUP(C7,TR!$B$2:$F$633,3,0),"") -> 00:00:00 | G7: 00:00:00 | H7: =IFERROR(VLOOKUP(C7,TR!$B$2:$F$633,4,0),"") -> 00:00:00 | I7: =IFERROR(VLOOKUP(C7,TR!$B$2:$F$633,5,0),"") -> 00:00:00 | J7: 00:00:00 | P7: =IF(AND(L7="",M7=""),IF(OR(SUMPRODUCT(N(ISNUMBER(FIND({"s";"d";"f"},C7))))>0,G7+J7<0,AND(G7>0,J7>0,I7>"20:30"*1),AND(I7<="20:30"*1,SUM(I7,R7)>="20:31"*1)),1,""),"") ->  | T7: 0 | U7: =T7*24 -> 0 | W7: 0,00
B8: 2018-02-05 | C8: Capcli | E8: =IFERROR(VLOOKUP(C8,TR!$B$2:$F$633,2,0),"") -> 08:30:00 | F8: =IFERROR(VLOOKUP(C8,TR!$B$2:$F$633,3,0),"") -> 12:00:00 | G8: 03:30:00 | H8: =IFERROR(VLOOKUP(C8,TR!$B$2:$F$633,4,0),"") -> 13:30:00 | I8: =IFERROR(VLOOKUP(C8,TR!$B$2:$F$633,5,0),"") -> 17:00:00 | J8: 03:30:00 | P8: =IF(AND(L8="",M8=""),IF(OR(SUMPRODUCT(N(ISNUMBER(FIND({"s";"d";"f"},C8))))>0,G8+J8<0,AND(G8>0,J8>0,I8>"20:30"*1),AND(I8<="20:30"*1,SUM(I8,R8)>="20:31"*1)),1,""),"") ->  | S8: 08:30:00 | T8: 0.2916666667 | U8: 7 | W8: 7
B9: 2018-02-06 | C9: Capcli | E9: =IFERROR(VLOOKUP(C9,TR!$B$2:$F$633,2,0),"") -> 08:30:00 | F9: =IFERROR(VLOOKUP(C9,TR!$B$2:$F$633,3,0),"") -> 12:00:00 | G9: 03:30:00 | H9: =IFERROR(VLOOKUP(C9,TR!$B$2:$F$633,4,0),"") -> 13:30:00 | I9: =IFERROR(VLOOKUP(C9,TR!$B$2:$F$633,5,0),"") -> 17:00:00 | J9: 03:30:00 | P9: =IF(AND(L9="",M9=""),IF(OR(SUMPRODUCT(N(ISNUMBER(FIND({"s";"d";"f"},C9))))>0,G9+J9<0,AND(G9>0,J9>0,I9>"20:30"*1),AND(I9<="20:30"*1,SUM(I9,R9)>="20:31"*1)),1,""),"") ->  | S9: 08:30:00 | T9: 0.2916666667 | U9: 7 | W9: 7
B10: 2018-02-07 | C10: CC | D10: NNP | E10: =IFERROR(VLOOKUP(C10,TR!$B$2:$F$633,2,0),"") -> 00:00:00 | F10: =IFERROR(VLOOKUP(C10,TR!$B$2:$F$633,3,0),"") -> 00:00:00 | G10: 00:00:00 | H10: =IFERROR(VLOOKUP(C10,TR!$B$2:$F$633,4,0),"") -> 00:00:00 | I10: =IFERROR(VLOOKUP(C10,TR!$B$2:$F$633,5,0),"") -> 00:00:00 | J10: 00:00:00 | P10: =IF(AND(L10="",M10=""),IF(OR(SUMPRODUCT(N(ISNUMBER(FIND({"s";"d";"f"},C10))))>0,G10+J10<0,AND(G10>0,J10>0,I10>"20:30"*1),AND(I10<="20:30"*1,SUM(I10,R10)>="20:31"*1)),1,""),"") ->  | T10: 0 | U10: 0 | W10: 0,00
B11: 2018-02-08 | C11: RTN | E11: =IFERROR(VLOOKUP(C11,TR!$B$2:$F$633,2,0),"") -> 00:00:00 | F11: =IFERROR(VLOOKUP(C11,TR!$B$2:$F$633,3,0),"") -> 00:00:00 | G11: 00:00:00 | H11: =IFERROR(VLOOKUP(C11,TR!$B$2:$F$633,4,0),"") -> 00:00:00 | I11: =IFERROR(VLOOKUP(C11,TR!$B$2:$F$633,5,0),"") -> 00:00:00 | J11: 00:00:00 | P11: =IF(AND(L11="",M11=""),IF(OR(SUMPRODUCT(N(ISNUMBER(FIND({"s";"d";"f"},C11))))>0,G11+J11<0,AND(G11>0,J11>0,I11>"20:30"*1),AND(I11<="20:30"*1,SUM(I11,R11)>="20:31"*1)),1,""),"") ->  | T11: 0 | U11: 0 | W11: 0,00
B12: 2018-02-09 | C12: RTN | E12: =IFERROR(VLOOKUP(C12,TR!$B$2:$F$633,2,0),"") -> 00:00:00 | F12: =IFERROR(VLOOKUP(C12,TR!$B$2:$F$633,3,0),"") -> 00:00:00 | G12: 00:00:00 | H12: =IFERROR(VLOOKUP(C12,TR!$B$2:$F$633,4,0),"") -> 00:00:00 | I12: =IFERROR(VLOOKUP(C12,TR!$B$2:$F$633,5,0),"") -> 00:00:00 | J12: 00:00:00 | P12: =IF(AND(L12="",M12=""),IF(OR(SUMPRODUCT(N(ISNUMBER(FIND({"s";"d";"f"},C12))))>0,G12+J12<0,AND(G12>0,J12>0,I12>"20:30"*1),AND(I12<="20:30"*1,SUM(I12,R12)>="20:31"*1)),1,""),"") ->  | T12: 0 | U12: 0 | W12: 0,00
B13: 2018-02-10 | C13: CC | E13: =IFERROR(VLOOKUP(C13,TR!$B$2:$F$633,2,0),"") -> 00:00:00 | F13: =IFERROR(VLOOKUP(C13,TR!$B$2:$F$633,3,0),"") -> 00:00:00 | G13: 00:00:00 | H13: =IFERROR(VLOOKUP(C13,TR!$B$2:$F$633,4,0),"") -> 00:00:00 | I13: =IFERROR(VLOOKUP(C13,TR!$B$2:$F$633,5,0),"") -> 00:00:00 | J13: 00:00:00 | P13: =IF(AND(L13="",M13=""),IF(OR(SUMPRODUCT(N(ISNUMBER(FIND({"s";"d";"f"},C13))))>0,G13+J13<0,AND(G13>0,J13>0,I13>"20:30"*1),AND(I13<="20:30"*1,SUM(I13,R13)>="20:31"*1)),1,""),"") ->  | T13: 0 | U13: 0 | W13: 0,00
B14: 2018-02-11 | C14: CH | E14: =IFERROR(VLOOKUP(C14,TR!$B$2:$F$633,2,0),"") -> 00:00:00 | F14: =IFERROR(VLOOKUP(C14,TR!$B$2:$F$633,3,0),"") -> 00:00:00 | G14: 00:00:00 | H14: =IFERROR(VLOOKUP(C14,TR!$B$2:$F$633,4,0),"") -> 00:00:00 | I14: =IFERROR(VLOOKUP(C14,TR!$B$2:$F$633,5,0),"") -> 00:00:00 | J14: 00:00:00 | P14: =IF(AND(L14="",M14=""),IF(OR(SUMPRODUCT(N(ISNUMBER(FIND({"s";"d";"f"},C14))))>0,G14+J14<0,AND(G14>0,J14>0,I14>"20:30"*1),AND(I14<="20:30"*1,SUM(I14,R14)>="20:31"*1)),1,""),"") ->  | T14: 0 | U14: 0 | W14: 0,00
B15: 2018-02-12 | C15: 308-18 | E15: =IFERROR(VLOOKUP(C15,TR!$B$2:$F$633,2,0),"") -> 06:00:00 | F15: =IFERROR(VLOOKUP(C15,TR!$B$2:$F$633,3,0),"") -> 10:08:00 | G15: 04:08:00 | H15: =IFERROR(VLOOKUP(C15,TR!$B$2:$F$633,4,0),"") -> 11:47:00 | I15: =IFERROR(VLOOKUP(C15,TR!$B$2:$F$633,5,0),"") -> 15:25:00 | J15: 03:38:00 | L15: 1 | P15: =IF(AND(L15="",M15=""),IF(OR(SUMPRODUCT(N(ISNUMBER(FIND({"s";"d";"f"},C15))))>0,G15+J15<0,AND(G15>0,J15>0,I15>"20:30"*1),AND(I15<="20:30"*1,SUM(I15,R15)>="20:31"*1)),1,""),"") ->  | S15: 09:25:00 | T15: 0.3236111111 | U15: 7.766666667 | W15: 7.766666667
B16: 2018-02-13 | C16: 755-11 | E16: =IFERROR(VLOOKUP(C16,TR!$B$2:$F$633,2,0),"") -> 05:30:00 | F16: =IFERROR(VLOOKUP(C16,TR!$B$2:$F$633,3,0),"") -> 13:30:00 | G16: 08:00:00 | H16: =IFERROR(VLOOKUP(C16,TR!$B$2:$F$633,4,0),"") -> 00:00:00 | I16: =IFERROR(VLOOKUP(C16,TR!$B$2:$F$633,5,0),"") -> 00:00:00 | J16: 00:00:00 | L16: 1 | P16: =IF(AND(L16="",M16=""),IF(OR(SUMPRODUCT(N(ISNUMBER(FIND({"s";"d";"f"},C16))))>0,G16+J16<0,AND(G16>0,J16>0,I16>"20:30"*1),AND(I16<="20:30"*1,SUM(I16,R16)>="20:31"*1)),1,""),"") ->  | S16: 08:00:00 | T16: 0.3333333333 | U16: 8 | W16: 8
B17: 2018-02-14 | C17: CC | E17: =IFERROR(VLOOKUP(C17,TR!$B$2:$F$633,2,0),"") -> 00:00:00 | F17: =IFERROR(VLOOKUP(C17,TR!$B$2:$F$633,3,0),"") -> 00:00:00 | G17: 00:00:00 | H17: =IFERROR(VLOOKUP(C17,TR!$B$2:$F$633,4,0),"") -> 00:00:00 | I17: =IFERROR(VLOOKUP(C17,TR!$B$2:$F$633,5,0),"") -> 00:00:00 | J17: 00:00:00 | P17: =IF(AND(L17="",M17=""),IF(OR(SUMPRODUCT(N(ISNUMBER(FIND({"s";"d";"f"},C17))))>0,G17+J17<0,AND(G17>0,J17>0,I17>"20:30"*1),AND(I17<="20:30"*1,SUM(I17,R17)>="20:31"*1)),1,""),"") ->  | T17: 0 | U17: 0 | W17: 0,00
B18: 2018-02-15 | C18: CH | E18: =IFERROR(VLOOKUP(C18,TR!$B$2:$F$633,2,0),"") -> 00:00:00 | F18: =IFERROR(VLOOKUP(C18,TR!$B$2:$F$633,3,0),"") -> 00:00:00 | G18: 00:00:00 | H18: =IFERROR(VLOOKUP(C18,TR!$B$2:$F$633,4,0),"") -> 00:00:00 | I18: =IFERROR(VLOOKUP(C18,TR!$B$2:$F$633,5,0),"") -> 00:00:00 | J18: 00:00:00 | P18: =IF(AND(L18="",M18=""),IF(OR(SUMPRODUCT(N(ISNUMBER(FIND({"s";"d";"f"},C18))))>0,G18+J18<0,AND(G18>0,J18>0,I18>"20:30"*1),AND(I18<="20:30"*1,SUM(I18,R18)>="20:31"*1)),1,""),"") ->  | T18: 0 | U18: 0 | W18: 0,00
B19: 2018-02-16 | C19: RT | E19: =IFERROR(VLOOKUP(C19,TR!$B$2:$F$633,2,0),"") -> 00:00:00 | F19: =IFERROR(VLOOKUP(C19,TR!$B$2:$F$633,3,0),"") -> 00:00:00 | G19: 00:00:00 | H19: =IFERROR(VLOOKUP(C19,TR!$B$2:$F$633,4,0),"") -> 00:00:00 | I19: =IFERROR(VLOOKUP(C19,TR!$B$2:$F$633,5,0),"") -> 00:00:00 | J19: 00:00:00 | P19: =IF(AND(L19="",M19=""),IF(OR(SUMPRODUCT(N(ISNUMBER(FIND({"s";"d";"f"},C19))))>0,G19+J19<0,AND(G19>0,J19>0,I19>"20:30"*1),AND(I19<="20:30"*1,SUM(I19,R19)>="20:31"*1)),1,""),"") ->  | T19: 0 | U19: 0 | W19: 0,00
B20: 2018-02-17 | C20: s844-5 | E20: =IFERROR(VLOOKUP(C20,TR!$B$2:$F$633,2,0),"") -> 00:00:00 | F20: =IFERROR(VLOOKUP(C20,TR!$B$2:$F$633,3,0),"") -> 00:00:00 | G20: 00:00:00 | H20: =IFERROR(VLOOKUP(C20,TR!$B$2:$F$633,4,0),"") -> 12:43:00 | I20: =IFERROR(VLOOKUP(C20,TR!$B$2:$F$633,5,0),"") -> 20:39:00 | J20: 07:56:00 | P20: =IF(AND(L20="",M20=""),IF(OR(SUMPRODUCT(N(ISNUMBER(FIND({"s";"d";"f"},C20))))>0,G20+J20<0,AND(G20>0,J20>0,I20>"20:30"*1),AND(I20<="20:30"*1,SUM(I20,R20)>="20:31"*1)),1,""),"") -> 1 | S20: 07:56:00 | T20: 0.3305555556 | U20: 7.933333333 | W20: 7.933333333
B21: 2018-02-18 | C21: d618-18 | E21: =IFERROR(VLOOKUP(C21,TR!$B$2:$F$633,2,0),"") -> 00:00:00 | F21: =IFERROR(VLOOKUP(C21,TR!$B$2:$F$633,3,0),"") -> 00:00:00 | G21: 00:00:00 | H21: =IFERROR(VLOOKUP(C21,TR!$B$2:$F$633,4,0),"") -> 12:56:00 | I21: =IFERROR(VLOOKUP(C21,TR!$B$2:$F$633,5,0),"") -> 20:27:00 | J21: 07:31:00 | N21: 1 | P21: =IF(AND(L21="",M21=""),IF(OR(SUMPRODUCT(N(ISNUMBER(FIND({"s";"d";"f"},C21))))>0,G21+J21<0,AND(G21>0,J21>0,I21>"20:30"*1),AND(I21<="20:30"*1,SUM(I21,R21)>="20:31"*1)),1,""),"") -> 1 | S21: 07:31:00 | T21: 0.3131944444 | U21: 7.516666667 | W21: 7.516666667
B22: 2018-02-19 | C22: 820-2 | E22: =IFERROR(VLOOKUP(C22,TR!$B$2:$F$633,2,0),"") -> 00:00:00 | F22: =IFERROR(VLOOKUP(C22,TR!$B$2:$F$633,3,0),"") -> 00:00:00 | G22: 00:00:00 | H22: =IFERROR(VLOOKUP(C22,TR!$B$2:$F$633,4,0),"") -> 12:41:00 | I22: =IFERROR(VLOOKUP(C22,TR!$B$2:$F$633,5,0),"") -> 20:04:00 | J22: 07:23:00 | P22: =IF(AND(L22="",M22=""),IF(OR(SUMPRODUCT(N(ISNUMBER(FIND({"s";"d";"f"},C22))))>0,G22+J22<0,AND(G22>0,J22>0,I22>"20:30"*1),AND(I22<="20:30"*1,SUM(I22,R22)>="20:31"*1)),1,""),"") ->  | S22: 07:23:00 | T22: 0.3076388889 | U22: 7.383333333 | W22: 7.383333333
B23: 2018-02-20 | C23: 840-5 | E23: =IFERROR(VLOOKUP(C23,TR!$B$2:$F$633,2,0),"") -> 00:00:00 | F23: =IFERROR(VLOOKUP(C23,TR!$B$2:$F$633,3,0),"") -> 00:00:00 | G23: 00:00:00 | H23: =IFERROR(VLOOKUP(C23,TR!$B$2:$F$633,4,0),"") -> 14:11:00 | I23: =IFERROR(VLOOKUP(C23,TR!$B$2:$F$633,5,0),"") -> 21:41:00 | J23: 07:30:00 | M23: 1 | P23: =IF(AND(L23="",M23=""),IF(OR(SUMPRODUCT(N(ISNUMBER(FIND({"s";"d";"f"},C23))))>0,G23+J23<0,AND(G23>0,J23>0,I23>"20:30"*1),AND(I23<="20:30"*1,SUM(I23,R23)>="20:31"*1)),1,""),"") ->  | S23: 07:30:00 | T23: 0.3125 | U23: 7.5 | W23: 7.5
B24: 2018-02-21 | C24: CC | E24: =IFERROR(VLOOKUP(C24,TR!$B$2:$F$633,2,0),"") -> 00:00:00 | F24: =IFERROR(VLOOKUP(C24,TR!$B$2:$F$633,3,0),"") -> 00:00:00 | G24: 00:00:00 | H24: =IFERROR(VLOOKUP(C24,TR!$B$2:$F$633,4,0),"") -> 00:00:00 | I24: =IFERROR(VLOOKUP(C24,TR!$B$2:$F$633,5,0),"") -> 00:00:00 | J24: 00:00:00 | P24: =IF(AND(L24="",M24=""),IF(OR(SUMPRODUCT(N(ISNUMBER(FIND({"s";"d";"f"},C24))))>0,G24+J24<0,AND(G24>0,J24>0,I24>"20:30"*1),AND(I24<="20:30"*1,SUM(I24,R24)>="20:31"*1)),1,""),"") ->  | T24: 0 | U24: 0 | W24: 0,00
B25: 2018-02-22 | C25: CP | E25: =IFERROR(VLOOKUP(C25,TR!$B$2:$F$633,2,0),"") -> 00:00:00 | F25: =IFERROR(VLOOKUP(C25,TR!$B$2:$F$633,3,0),"") -> 00:00:00 | G25: 00:00:00 | H25: =IFERROR(VLOOKUP(C25,TR!$B$2:$F$633,4,0),"") -> 00:00:00 | I25: =IFERROR(VLOOKUP(C25,TR!$B$2:$F$633,5,0),"") -> 00:00:00 | J25: 00:00:00 | P25: =IF(AND(L25="",M25=""),IF(OR(SUMPRODUCT(N(ISNUMBER(FIND({"s";"d";"f"},C25))))>0,G25+J25<0,AND(G25>0,J25>0,I25>"20:30"*1),AND(I25<="20:30"*1,SUM(I25,R25)>="20:31"*1)),1,""),"") ->  | T25: 0 | U25: 0 | W25: 0,00
B26: 2018-02-23 | C26: CP | E26: =IFERROR(VLOOKUP(C26,TR!$B$2:$F$633,2,0),"") -> 00:00:00 | F26: =IFERROR(VLOOKUP(C26,TR!$B$2:$F$633,3,0),"") -> 00:00:00 | G26: 00:00:00 | H26: =IFERROR(VLOOKUP(C26,TR!$B$2:$F$633,4,0),"") -> 00:00:00 | I26: =IFERROR(VLOOKUP(C26,TR!$B$2:$F$633,5,0),"") -> 00:00:00 | J26: 00:00:00 | P26: =IF(AND(L26="",M26=""),IF(OR(SUMPRODUCT(N(ISNUMBER(FIND({"s";"d";"f"},C26))))>0,G26+J26<0,AND(G26>0,J26>0,I26>"20:30"*1),AND(I26<="20:30"*1,SUM(I26,R26)>="20:31"*1)),1,""),"") ->  | T26: 0 | U26: 0 | W26: 0,00
B27: 2018-02-24 | E27: =IFERROR(VLOOKUP(C27,TR!$B$2:$F$633,2,0),"") ->  | F27: =IFERROR(VLOOKUP(C27,TR!$B$2:$F$633,3,0),"") ->  | G27: 00:00:00 | H27: =IFERROR(VLOOKUP(C27,TR!$B$2:$F$633,4,0),"") ->  | I27: =IFERROR(VLOOKUP(C27,TR!$B$2:$F$633,5,0),"") ->  | J27: 00:00:00 | P27: =IF(AND(L27="",M27=""),IF(OR(SUMPRODUCT(N(ISNUMBER(FIND({"s";"d";"f"},C27))))>0,G27+J27<0,AND(G27>0,J27>0,I27>"20:30"*1),AND(I27<="20:30"*1,SUM(I27,R27)>="20:31"*1)),1,""),"") ->  | T27: 0 | U27: 0 | W27: 0,00
B28: 2018-02-25 | C28: CH | E28: =IFERROR(VLOOKUP(C28,TR!$B$2:$F$633,2,0),"") -> 00:00:00 | F28: =IFERROR(VLOOKUP(C28,TR!$B$2:$F$633,3,0),"") -> 00:00:00 | G28: 00:00:00 | H28: =IFERROR(VLOOKUP(C28,TR!$B$2:$F$633,4,0),"") -> 00:00:00 | I28: =IFERROR(VLOOKUP(C28,TR!$B$2:$F$633,5,0),"") -> 00:00:00 | J28: 00:00:00 | P28: =IF(AND(L28="",M28=""),IF(OR(SUMPRODUCT(N(ISNUMBER(FIND({"s";"d";"f"},C28))))>0,G28+J28<0,AND(G28>0,J28>0,I28>"20:30"*1),AND(I28<="20:30"*1,SUM(I28,R28)>="20:31"*1)),1,""),"") ->  | T28: 0 | U28: 0 | W28: 0,00
B29: 2018-02-26 | E29: =IFERROR(VLOOKUP(C29,TR!$B$2:$F$633,2,0),"") ->  | F29: =IFERROR(VLOOKUP(C29,TR!$B$2:$F$633,3,0),"") ->  | G29: 00:00:00 | H29: =IFERROR(VLOOKUP(C29,TR!$B$2:$F$633,4,0),"") ->  | I29: =IFERROR(VLOOKUP(C29,TR!$B$2:$F$633,5,0),"") ->  | J29: 00:00:00 | P29: =IF(AND(L29="",M29=""),IF(OR(SUMPRODUCT(N(ISNUMBER(FIND({"s";"d";"f"},C29))))>0,G29+J29<0,AND(G29>0,J29>0,I29>"20:30"*1),AND(I29<="20:30"*1,SUM(I29,R29)>="20:31"*1)),1,""),"") ->  | T29: 0 | U29: 0 | W29: 0,00
B30: 2018-02-27 | C30: 304-15 | E30: =IFERROR(VLOOKUP(C30,TR!$B$2:$F$633,2,0),"") -> 05:45:00 | F30: =IFERROR(VLOOKUP(C30,TR!$B$2:$F$633,3,0),"") -> 09:48:00 | G30: 04:03:00 | H30: =IFERROR(VLOOKUP(C30,TR!$B$2:$F$633,4,0),"") -> 11:52:00 | I30: =IFERROR(VLOOKUP(C30,TR!$B$2:$F$633,5,0),"") -> 16:18:00 | J30: 04:26:00 | L30: 1 | P30: =IF(AND(L30="",M30=""),IF(OR(SUMPRODUCT(N(ISNUMBER(FIND({"s";"d";"f"},C30))))>0,G30+J30<0,AND(G30>0,J30>0,I30>"20:30"*1),AND(I30<="20:30"*1,SUM(I30,R30)>="20:31"*1)),1,""),"") ->  | S30: 10:33:00 | T30: 0.3534722222 | U30: 8.483333333 | W30: 8.483333333
B31: 2018-02-28 | C31: 763-21 | E31: =IFERROR(VLOOKUP(C31,TR!$B$2:$F$633,2,0),"") ->  | F31: =IFERROR(VLOOKUP(C31,TR!$B$2:$F$633,3,0),"") ->  | G31: 00:00:00 | H31: =IFERROR(VLOOKUP(C31,TR!$B$2:$F$633,4,0),"") ->  | I31: =IFERROR(VLOOKUP(C31,TR!$B$2:$F$633,5,0),"") ->  | J31: 00:00:00 | M31: 1 | P31: =IF(AND(L31="",M31=""),IF(OR(SUMPRODUCT(N(ISNUMBER(FIND({"s";"d";"f"},C31))))>0,G31+J31<0,AND(G31>0,J31>0,I31>"20:30"*1),AND(I31<="20:30"*1,SUM(I31,R31)>="20:31"*1)),1,""),"") ->  | T31: 0 | U31: 0 | W31: 0,00
E32: =IFERROR(VLOOKUP(C32,TR!$B$2:$F$633,2,0),"") ->  | F32: =IFERROR(VLOOKUP(C32,TR!$B$2:$F$633,3,0),"") ->  | G32: 00:00:00 | H32: =IFERROR(VLOOKUP(C32,TR!$B$2:$F$633,4,0),"") ->  | I32: =IFERROR(VLOOKUP(C32,TR!$B$2:$F$633,5,0),"") ->  | J32: 00:00:00 | P32: =IF(AND(L32="",M32=""),IF(OR(SUMPRODUCT(N(ISNUMBER(FIND({"s";"d";"f"},C32))))>0,G32+J32<0,AND(G32>0,J32>0,I32>"20:30"*1),AND(I32<="20:30"*1,SUM(I32,R32)>="20:31"*1)),1,""),"") ->  | T32: 0 | U32: 0 | W32: 0,00
E33: =IFERROR(VLOOKUP(C33,TR!$B$2:$F$633,2,0),"") ->  | F33: =IFERROR(VLOOKUP(C33,TR!$B$2:$F$633,3,0),"") ->  | G33: 00:00:00 | H33: =IFERROR(VLOOKUP(C33,TR!$B$2:$F$633,4,0),"") ->  | I33: =IFERROR(VLOOKUP(C33,TR!$B$2:$F$633,5,0),"") ->  | J33: 00:00:00 | P33: =IF(AND(L33="",M33=""),IF(OR(SUMPRODUCT(N(ISNUMBER(FIND({"s";"d";"f"},C33))))>0,G33+J33<0,AND(G33>0,J33>0,I33>"20:30"*1),AND(I33<="20:30"*1,SUM(I33,R33)>="20:31"*1)),1,""),"") ->  | W33: 0,00
E34: =IFERROR(VLOOKUP(C34,TR!$B$2:$F$633,2,0),"") ->  | F34: =IFERROR(VLOOKUP(C34,TR!$B$2:$F$633,3,0),"") ->  | G34: 00:00:00 | H34: =IFERROR(VLOOKUP(C34,TR!$B$2:$F$633,4,0),"") ->  | I34: =IFERROR(VLOOKUP(C34,TR!$B$2:$F$633,5,0),"") ->  | J34: 00:00:00 | P34: =IF(AND(L34="",M34=""),IF(OR(SUMPRODUCT(N(ISNUMBER(FIND({"s";"d";"f"},C34))))>0,G34+J34<0,AND(G34>0,J34>0,I34>"20:30"*1),AND(I34<="20:30"*1,SUM(I34,R34)>="20:31"*1)),1,""),"") ->  | W34: 0,00
B36: Jours travaillés | C36: =(COUNTIF(Janvier!C24:C34,"<>")+COUNTIF(Février!C4:C23,"<>"))-(COUNTIF(Janvier!C24:C34,"CC*")+COUNTIF(Février!C4:C23,"CC*"))-(COUNTIF(Janvier!C24:C34,"CH*")+COUNTIF(Février!C4:C23,"CH*"))-(COUNTIF(Janvier!C24:C34,"RT*")+COUNTIF(Février!C4:C23,"RT*"))-(COUNTIF(Janvier!C24:C34,"Férié*")+COUNTIF(Février!C4:C23,"Férié*"))-(COUNTIF(Janvier!C24:C34,"Mal*")+COUNTIF(Février!C4:C23,"Mal*"))-(COUNTIF(Janvier!C24:C34,"CP*")+COUNTIF(Février!C4:C23,"CP*")) -> 12 | I36: Du 21 au 20 | K36: =SUM(Janvier!$K$24:$K$34,K4:K23) -> 0 | L36: =SUM(Janvier!$L$24:$L$34,L4:L23) -> 6 | M36: =SUM(Janvier!$M$24:$M$34,M4:M23) -> 1 | N36: =SUM(Janvier!$N$24:$N$34,N4:N23) -> 1 | O36: =SUM(Janvier!$O$24:$O$34,O4:O23) -> 0 | P36: =SUM(Janvier!$P$24:$P$34,P4:P23) -> 2 | Q36: =SUM(Janvier!$Q$24:$Q$34,Q4:Q23) -> 0 | R36: =SUM(Janvier!$R$24:$R$34,R4:R23) -> 00:00:00 | T36: =SUM(Janvier!T24:T34)+SUM(Février!T4:T23) -> 3.759027778 | U36: =SUM(U4:U34) -> 68.58333333 | V36: =SUM(V4:V34) -> 0
B37: CP | C37: =(COUNTIF(Janvier!C24:C34,"CP")+COUNTIF(Février!C4:C23,"CP")) -> 5 | K37: =(I39*2)*K36 -> 0 | L37: =Recap!H35*L36 -> 42.84 | M37: =Recap!H35*M36 -> 7.14 | N37: =(I39*5)*N36 -> 44.264 | O37: =(Recap!H33)*O36 -> 0 | P37: =7.5*P36 -> 15 | Q37: =(I39*1.5)*Q36 -> 0 | R37: =R36*24 -> 0
B38: CH | C38: =(COUNTIF(Janvier!C24:C34,"CH")+COUNTIF(Février!C4:C23,"CH")) -> 5 | I38: VP | T38: Horaire mensuel | V38: 6.175 | W38: =V38*24 -> 148.2
B39: RT | C39: =(COUNTIF(Janvier!C24:C34,"RT")+COUNTIF(Février!C4:C23,"RT")) -> 2 | I39: 8.8528
B40: CC | C40: =(COUNTIF(Janvier!C24:C34,"CC")+COUNTIF(Février!C4:C23,"CC")) -> 5 | T40: Différence | V40: =IF(V38>T36,"-","")&TEXT(ABS(T36-V38),"[h]:mm") -> -57:59 | W40: =(T36-V38)*24 -> -57.98333333
B41: Férié | C41: =(COUNTIF(Janvier!C24:C34,"Férié")+COUNTIF(Février!C4:C23,"Férié")) -> 0
B42: Férié CC-CH-RT | C42: =(COUNTIF(Janvier!C24:C34,"FériéCC")+COUNTIF(Février!C4:C23,"FériéCC")+COUNTIF(Janvier!C24:C34,"FériéCH")+COUNTIF(Février!C4:C23,"FériéCH")+COUNTIF(Janvier!C24:C34,"FériéRT")+COUNTIF(Février!C4:C23,"FériéRT")) -> 0 | R42: Heures réelles | T42: =SUM(T4:T34) -> 2.857638889
T43: =T42*24 -> 68.58333333 | W43: =(T42-V38)*24 -> -79.61666667
F45: NOTES

Sheet Mars
B1: MARS
T2: TOTAL
B3: Date | C3: Services | D3: Obs. | E3: MATIN | G3: Temps | H3: APRES MIDI | J3: Temps | K3: Prime nuit | L3: PJ1 | M3: PJ2 | N3: Dimanche | O3: Férié | P3: ChècDej | Q3: PrimAmp | R3: H Supp | S3: Ampli | T3: Heures | U3: Centièmes | V3: Kéolis | W3: Écart
B4: 2018-03-01 | C4: 763-21h | D4: CC | E4: =IFERROR(VLOOKUP(C4,TR!$B$2:$F$633,2,0),"") -> 06:18:00 | F4: =IFERROR(VLOOKUP(C4,TR!$B$2:$F$633,3,0),"") -> 13:49:00 | G4: =IF(ISERROR(F4-E4),0,F4-E4) -> 07:31:00 | H4: =IFERROR(VLOOKUP(C4,TR!$B$2:$F$633,4,0),"") -> 00:00:00 | I4: =IFERROR(VLOOKUP(C4,TR!$B$2:$F$633,5,0),"") -> 00:00:00 | J4: =IF(ISERROR(I4-H4),0,(I4-H4)) -> 00:00:00 | K4: =IF(COUNTA(E4:F4,H4:I4)=5,1,IF(AND(E4<"5:00"*1,E4>"2:00"*1),1,IF(AND(I4>="22:01"*1,I4<="26:01"*1),1,IF(AND(I4<="22:00"*1,SUM(I4,R4)>="22:01"*1),1,"")))) ->  | L4: =IF(AND(F4>="13:15"*1,H4<""),1,IF(AND(H4>="11:00"*1,H4<="12:15"*1),1,IF(AND(F4<="13:15"*1,SUM(F4,R4)>="13:15"*1),1,""))) -> 1 | M4: =IF(AND(I4>="19:30"*1,1,I4>"21:30"*1,C4<>""),1,IF(AND(I4<="21:30"*1,SUM(I4,R4)>="21:30"*1),1,"")) ->  | N4: =IF(AND(LEFT(C4,1)="d",AND(Février!N31<>1)),1,IF(AND(LEFT(C4,1)="s",I4>="24:01"*1),1,IF(AND(I4<>"",I4<="23:59"*1,SUM(I4,R4)>="24:01"*1),1,""))) ->  | O4: =IF(AND(I4>"24:00"*1,ISNUMBER(FIND("f",C5))),1,IF(AND(OR(ISNUMBER(FIND("FériéCC",C4)),ISNUMBER(FIND("FériéCH",C4)),ISNUMBER(FIND("f",C4)))),1,"")) ->  | P4: =IF(AND(L4="",M4=""),IF(OR(SUMPRODUCT(N(ISNUMBER(FIND({"s";"d";"f"},C4))))>0,G4+J4<0,AND(G4>0,J4>0,I4>"20:30"*1),AND(I4<="20:30"*1,SUM(I4,R4)>="20:31"*1)),1,""),"") ->  | Q4: =IF(OR(AND(G4>0,AND(J4=0)),OR(G4=0,AND(J4>0)),OR(G4+J4>0)),IF(S4="","",IF(R4+S4>="13:01"*1,1,""))) ->  | S4: =IF(G4=0,IF(J4=0,"",I4-H4),IF(J4=0,F4-E4,I4-E4)) -> 07:31:00 | T4: =IF(ISERROR((F4-E4)+(I4-H4)),0,(F4-E4)+(I4-H4)) -> 0.3131944444 | U4: =T4*24 -> 7.516666667 | V4: 7.6 | W4: =IF(U4-V4=0,"0,00",U4-V4) -> -0.08333333333
B5: 2018-03-02 | C5: v759-18h | E5: =IFERROR(VLOOKUP(C5,TR!$B$2:$F$633,2,0),"") -> 04:51:00 | F5: =IFERROR(VLOOKUP(C5,TR!$B$2:$F$633,3,0),"") -> 12:26:00 | G5: =IF(ISERROR(F5-E5),0,F5-E5) -> 07:35:00 | H5: =IFERROR(VLOOKUP(C5,TR!$B$2:$F$633,4,0),"") -> 00:00:00 | I5: =IFERROR(VLOOKUP(C5,TR!$B$2:$F$633,5,0),"") -> 00:00:00 | J5: =IF(ISERROR(I5-H5),0,(I5-H5)) -> 00:00:00 | K5: 1 | N5: =IF(AND(LEFT(C5,1)="d",AND(N4<>1)),1,IF(AND(LEFT(C5,1)="s",I5>="24:01"*1),1,IF(AND(I5<>"",I5<="23:59"*1,SUM(I5,R5)>="24:01"*1),1,""))) ->  | P5: =IF(AND(L5="",M5=""),IF(OR(SUMPRODUCT(N(ISNUMBER(FIND({"s";"d";"f"},C5))))>0,G5+J5<0,AND(G5>0,J5>0,I5>"20:30"*1),AND(I5<="20:30"*1,SUM(I5,R5)>="20:31"*1)),1,""),"") ->  | Q5: =IF(OR(AND(G5>0,AND(J5=0)),OR(G5=0,AND(J5>0)),OR(G5+J5>0)),IF(S5="","",IF(R5+S5>="13:01"*1,1,""))) ->  | S5: 07:35:00 | T5: 0.3159722222 | U5: =T5*24 -> 7.583333333 | V5: 6.52 | W5: =IF(U5-V5=0,"0,00",U5-V5) -> 1.063333333
B6: 2018-03-03 | C6: CC | E6: =IFERROR(VLOOKUP(C6,TR!$B$2:$F$633,2,0),"") -> 00:00:00 | F6: =IFERROR(VLOOKUP(C6,TR!$B$2:$F$633,3,0),"") -> 00:00:00 | G6: 00:00:00 | H6: =IFERROR(VLOOKUP(C6,TR!$B$2:$F$633,4,0),"") -> 00:00:00 | I6: =IFERROR(VLOOKUP(C6,TR!$B$2:$F$633,5,0),"") -> 00:00:00 | J6: 00:00:00 | P6: =IF(AND(L6="",M6=""),IF(OR(SUMPRODUCT(N(ISNUMBER(FIND({"s";"d";"f"},C6))))>0,G6+J6<0,AND(G6>0,J6>0,I6>"20:30"*1),AND(I6<="20:30"*1,SUM(I6,R6)>="20:31"*1)),1,""),"") ->  | T6: 0 | U6: =T6*24 -> 0 | V6: 0 | W6: 0,00
B7: 2018-03-04 | C7: CH | E7: =IFERROR(VLOOKUP(C7,TR!$B$2:$F$633,2,0),"") -> 00:00:00 | F7: =IFERROR(VLOOKUP(C7,TR!$B$2:$F$633,3,0),"") -> 00:00:00 | G7: 00:00:00 | H7: =IFERROR(VLOOKUP(C7,TR!$B$2:$F$633,4,0),"") -> 00:00:00 | I7: =IFERROR(VLOOKUP(C7,TR!$B$2:$F$633,5,0),"") -> 00:00:00 | J7: 00:00:00 | P7: =IF(AND(L7="",M7=""),IF(OR(SUMPRODUCT(N(ISNUMBER(FIND({"s";"d";"f"},C7))))>0,G7+J7<0,AND(G7>0,J7>0,I7>"20:30"*1),AND(I7<="20:30"*1,SUM(I7,R7)>="20:31"*1)),1,""),"") ->  | T7: 0 | U7: =T7*24 -> 0 | V7: 0 | W7: 0,00
B8: 2018-03-05 | C8: 302-3h | E8: =IFERROR(VLOOKUP(C8,TR!$B$2:$F$633,2,0),"") -> 06:00:00 | F8: =IFERROR(VLOOKUP(C8,TR!$B$2:$F$633,3,0),"") -> 10:11:00 | G8: 04:11:00 | H8: =IFERROR(VLOOKUP(C8,TR!$B$2:$F$633,4,0),"") -> 11:43:00 | I8: =IFERROR(VLOOKUP(C8,TR!$B$2:$F$633,5,0),"") -> 15:05:00 | J8: 03:22:00 | L8: 1 | P8: =IF(AND(L8="",M8=""),IF(OR(SUMPRODUCT(N(ISNUMBER(FIND({"s";"d";"f"},C8))))>0,G8+J8<0,AND(G8>0,J8>0,I8>"20:30"*1),AND(I8<="20:30"*1,SUM(I8,R8)>="20:31"*1)),1,""),"") ->  | S8: 09:05:00 | T8: 0.3145833333 | U8: 7.55 | V8: 7.5 | W8: 0.05
B9: 2018-03-06 | C9: 302-3h | E9: =IFERROR(VLOOKUP(C9,TR!$B$2:$F$633,2,0),"") -> 06:00:00 | F9: =IFERROR(VLOOKUP(C9,TR!$B$2:$F$633,3,0),"") -> 10:11:00 | G9: 04:11:00 | H9: =IFERROR(VLOOKUP(C9,TR!$B$2:$F$633,4,0),"") -> 11:43:00 | I9: =IFERROR(VLOOKUP(C9,TR!$B$2:$F$633,5,0),"") -> 15:05:00 | J9: 03:22:00 | L9: 1 | P9: =IF(AND(L9="",M9=""),IF(OR(SUMPRODUCT(N(ISNUMBER(FIND({"s";"d";"f"},C9))))>0,G9+J9<0,AND(G9>0,J9>0,I9>"20:30"*1),AND(I9<="20:30"*1,SUM(I9,R9)>="20:31"*1)),1,""),"") ->  | S9: 09:05:00 | T9: 0.3145833333 | U9: 7.55 | V9: 7.9 | W9: -0.35
B10: 2018-03-07 | C10: RT | E10: =IFERROR(VLOOKUP(C10,TR!$B$2:$F$633,2,0),"") -> 00:00:00 | F10: =IFERROR(VLOOKUP(C10,TR!$B$2:$F$633,3,0),"") -> 00:00:00 | G10: 00:00:00 | H10: =IFERROR(VLOOKUP(C10,TR!$B$2:$F$633,4,0),"") -> 00:00:00 | I10: =IFERROR(VLOOKUP(C10,TR!$B$2:$F$633,5,0),"") -> 00:00:00 | J10: 00:00:00 | P10: =IF(AND(L10="",M10=""),IF(OR(SUMPRODUCT(N(ISNUMBER(FIND({"s";"d";"f"},C10))))>0,G10+J10<0,AND(G10>0,J10>0,I10>"20:30"*1),AND(I10<="20:30"*1,SUM(I10,R10)>="20:31"*1)),1,""),"") ->  | T10: 0 | U10: 0 | V10: 8.08 | W10: -8.08
B11: 2018-03-08 | C11: CC | E11: =IFERROR(VLOOKUP(C11,TR!$B$2:$F$633,2,0),"") -> 00:00:00 | F11: =IFERROR(VLOOKUP(C11,TR!$B$2:$F$633,3,0),"") -> 00:00:00 | G11: 00:00:00 | H11: =IFERROR(VLOOKUP(C11,TR!$B$2:$F$633,4,0),"") -> 00:00:00 | I11: =IFERROR(VLOOKUP(C11,TR!$B$2:$F$633,5,0),"") -> 00:00:00 | J11: 00:00:00 | P11: =IF(AND(L11="",M11=""),IF(OR(SUMPRODUCT(N(ISNUMBER(FIND({"s";"d";"f"},C11))))>0,G11+J11<0,AND(G11>0,J11>0,I11>"20:30"*1),AND(I11<="20:30"*1,SUM(I11,R11)>="20:31"*1)),1,""),"") ->  | T11: 0 | U11: 0 | V11: 0 | W11: 0,00
B12: 2018-03-09 | C12: CH | E12: =IFERROR(VLOOKUP(C12,TR!$B$2:$F$633,2,0),"") -> 00:00:00 | F12: =IFERROR(VLOOKUP(C12,TR!$B$2:$F$633,3,0),"") -> 00:00:00 | G12: 00:00:00 | H12: =IFERROR(VLOOKUP(C12,TR!$B$2:$F$633,4,0),"") -> 00:00:00 | I12: =IFERROR(VLOOKUP(C12,TR!$B$2:$F$633,5,0),"") -> 00:00:00 | J12: 00:00:00 | P12: =IF(AND(L12="",M12=""),IF(OR(SUMPRODUCT(N(ISNUMBER(FIND({"s";"d";"f"},C12))))>0,G12+J12<0,AND(G12>0,J12>0,I12>"20:30"*1),AND(I12<="20:30"*1,SUM(I12,R12)>="20:31"*1)),1,""),"") ->  | T12: 0 | U12: 0 | V12: 5.67 | W12: -5.67
B13: 2018-03-10 | C13: 400-1h | E13: =IFERROR(VLOOKUP(C13,TR!$B$2:$F$633,2,0),"") -> 00:00:00 | F13: =IFERROR(VLOOKUP(C13,TR!$B$2:$F$633,3,0),"") -> 00:00:00 | G13: 00:00:00 | H13: =IFERROR(VLOOKUP(C13,TR!$B$2:$F$633,4,0),"") -> 14:31:00 | I13: =IFERROR(VLOOKUP(C13,TR!$B$2:$F$633,5,0),"") -> 1.0375 | J13: 10:23:00 | K13: 1 | M13: 1 | P13: =IF(AND(L13="",M13=""),IF(OR(SUMPRODUCT(N(ISNUMBER(FIND({"s";"d";"f"},C13))))>0,G13+J13<0,AND(G13>0,J13>0,I13>"20:30"*1),AND(I13<="20:30"*1,SUM(I13,R13)>="20:31"*1)),1,""),"") ->  | S13: 10:23:00 | T13: 0.4326388889 | U13: 10.38333333 | V13: 7.1 | W13: 3.283333333
B14: 2018-03-11 | C14: RTA | E14: =IFERROR(VLOOKUP(C14,TR!$B$2:$F$633,2,0),"") -> 00:00:00 | F14: =IFERROR(VLOOKUP(C14,TR!$B$2:$F$633,3,0),"") -> 00:00:00 | G14: 00:00:00 | H14: =IFERROR(VLOOKUP(C14,TR!$B$2:$F$633,4,0),"") -> 00:00:00 | I14: =IFERROR(VLOOKUP(C14,TR!$B$2:$F$633,5,0),"") -> 00:00:00 | J14: 00:00:00 | P14: =IF(AND(L14="",M14=""),IF(OR(SUMPRODUCT(N(ISNUMBER(FIND({"s";"d";"f"},C14))))>0,G14+J14<0,AND(G14>0,J14>0,I14>"20:30"*1),AND(I14<="20:30"*1,SUM(I14,R14)>="20:31"*1)),1,""),"") ->  | T14: 0 | U14: 0 | V14: 0 | W14: 0,00
B15: 2018-03-12 | C15: FOTLBJ3 | E15: =IFERROR(VLOOKUP(C15,TR!$B$2:$F$633,2,0),"") -> 07:30:00 | F15: =IFERROR(VLOOKUP(C15,TR!$B$2:$F$633,3,0),"") -> 11:30:00 | G15: 04:00:00 | H15: =IFERROR(VLOOKUP(C15,TR!$B$2:$F$633,4,0),"") -> 12:30:00 | I15: =IFERROR(VLOOKUP(C15,TR!$B$2:$F$633,5,0),"") -> 16:21:00 | J15: 03:51:00 | P15: =IF(AND(L15="",M15=""),IF(OR(SUMPRODUCT(N(ISNUMBER(FIND({"s";"d";"f"},C15))))>0,G15+J15<0,AND(G15>0,J15>0,I15>"20:30"*1),AND(I15<="20:30"*1,SUM(I15,R15)>="20:31"*1)),1,""),"") ->  | S15: 08:51:00 | T15: 0.3270833333 | U15: 7.85 | V15: 7.35 | W15: 0.5
B16: 2018-03-13 | C16: FOTLBN1 | E16: =IFERROR(VLOOKUP(C16,TR!$B$2:$F$633,2,0),"") -> 00:00:00 | F16: =IFERROR(VLOOKUP(C16,TR!$B$2:$F$633,3,0),"") -> 00:00:00 | G16: 00:00:00 | H16: =IFERROR(VLOOKUP(C16,TR!$B$2:$F$633,4,0),"") -> 15:30:00 | I16: =IFERROR(VLOOKUP(C16,TR!$B$2:$F$633,5,0),"") -> 23:06:00 | J16: 07:36:00 | K16: 1 | M16: 1 | P16: =IF(AND(L16="",M16=""),IF(OR(SUMPRODUCT(N(ISNUMBER(FIND({"s";"d";"f"},C16))))>0,G16+J16<0,AND(G16>0,J16>0,I16>"20:30"*1),AND(I16<="20:30"*1,SUM(I16,R16)>="20:31"*1)),1,""),"") ->  | S16: 07:36:00 | T16: 0.3166666667 | U16: 7.6 | V16: 7.72 | W16: -0.12
B17: 2018-03-14 | C17: FOTLBN1 | E17: =IFERROR(VLOOKUP(C17,TR!$B$2:$F$633,2,0),"") -> 00:00:00 | F17: =IFERROR(VLOOKUP(C17,TR!$B$2:$F$633,3,0),"") -> 00:00:00 | G17: 00:00:00 | H17: =IFERROR(VLOOKUP(C17,TR!$B$2:$F$633,4,0),"") -> 15:30:00 | I17: =IFERROR(VLOOKUP(C17,TR!$B$2:$F$633,5,0),"") -> 23:06:00 | J17: 07:36:00 | K17: 1 | M17: 1 | P17: =IF(AND(L17="",M17=""),IF(OR(SUMPRODUCT(N(ISNUMBER(FIND({"s";"d";"f"},C17))))>0,G17+J17<0,AND(G17>0,J17>0,I17>"20:30"*1),AND(I17<="20:30"*1,SUM(I17,R17)>="20:31"*1)),1,""),"") ->  | S17: 07:36:00 | T17: 0.3166666667 | U17: 7.6 | V17: 0 | W17: 7.6
B18: 2018-03-15 | C18: FOTLBN1 | E18: =IFERROR(VLOOKUP(C18,TR!$B$2:$F$633,2,0),"") -> 00:00:00 | F18: =IFERROR(VLOOKUP(C18,TR!$B$2:$F$633,3,0),"") -> 00:00:00 | G18: 00:00:00 | H18: =IFERROR(VLOOKUP(C18,TR!$B$2:$F$633,4,0),"") -> 15:30:00 | I18: =IFERROR(VLOOKUP(C18,TR!$B$2:$F$633,5,0),"") -> 23:06:00 | J18: 07:36:00 | K18: 1 | M18: 1 | P18: =IF(AND(L18="",M18=""),IF(OR(SUMPRODUCT(N(ISNUMBER(FIND({"s";"d";"f"},C18))))>0,G18+J18<0,AND(G18>0,J18>0,I18>"20:30"*1),AND(I18<="20:30"*1,SUM(I18,R18)>="20:31"*1)),1,""),"") ->  | R18: 0.004166666667 | S18: 07:36:00 | T18: 0.3166666667 | U18: 7.6 | V18: 7.82 | W18: -0.22
B19: 2018-03-16 | C19: FOTLBN0 | E19: =IFERROR(VLOOKUP(C19,TR!$B$2:$F$633,2,0),"") -> 00:00:00 | F19: =IFERROR(VLOOKUP(C19,TR!$B$2:$F$633,3,0),"") -> 00:00:00 | G19: 00:00:00 | H19: =IFERROR(VLOOKUP(C19,TR!$B$2:$F$633,4,0),"") -> 15:00:00 | I19: =IFERROR(VLOOKUP(C19,TR!$B$2:$F$633,5,0),"") -> 22:36:00 | J19: 07:36:00 | K19: 1 | M19: 1 | P19: =IF(AND(L19="",M19=""),IF(OR(SUMPRODUCT(N(ISNUMBER(FIND({"s";"d";"f"},C19))))>0,G19+J19<0,AND(G19>0,J19>0,I19>"20:30"*1),AND(I19<="20:30"*1,SUM(I19,R19)>="20:31"*1)),1,""),"") ->  | S19: 07:36:00 | T19: 0.3166666667 | U19: 7.6 | V19: 8 | W19: -0.4
B20: 2018-03-17 | C20: CC | E20: =IFERROR(VLOOKUP(C20,TR!$B$2:$F$633,2,0),"") -> 00:00:00 | F20: =IFERROR(VLOOKUP(C20,TR!$B$2:$F$633,3,0),"") -> 00:00:00 | G20: 00:00:00 | H20: =IFERROR(VLOOKUP(C20,TR!$B$2:$F$633,4,0),"") -> 00:00:00 | I20: =IFERROR(VLOOKUP(C20,TR!$B$2:$F$633,5,0),"") -> 00:00:00 | J20: 00:00:00 | P20: =IF(AND(L20="",M20=""),IF(OR(SUMPRODUCT(N(ISNUMBER(FIND({"s";"d";"f"},C20))))>0,G20+J20<0,AND(G20>0,J20>0,I20>"20:30"*1),AND(I20<="20:30"*1,SUM(I20,R20)>="20:31"*1)),1,""),"") ->  | T20: 0 | U20: 0 | V20: 0 | W20: 0,00
B21: 2018-03-18 | C21: CH | E21: =IFERROR(VLOOKUP(C21,TR!$B$2:$F$633,2,0),"") -> 00:00:00 | F21: =IFERROR(VLOOKUP(C21,TR!$B$2:$F$633,3,0),"") -> 00:00:00 | G21: 00:00:00 | H21: =IFERROR(VLOOKUP(C21,TR!$B$2:$F$633,4,0),"") -> 00:00:00 | I21: =IFERROR(VLOOKUP(C21,TR!$B$2:$F$633,5,0),"") -> 00:00:00 | J21: 00:00:00 | P21: =IF(AND(L21="",M21=""),IF(OR(SUMPRODUCT(N(ISNUMBER(FIND({"s";"d";"f"},C21))))>0,G21+J21<0,AND(G21>0,J21>0,I21>"20:30"*1),AND(I21<="20:30"*1,SUM(I21,R21)>="20:31"*1)),1,""),"") ->  | T21: 0 | U21: 0 | V21: 0 | W21: 0,00
B22: 2018-03-19 | C22: CC | E22: =IFERROR(VLOOKUP(C22,TR!$B$2:$F$633,2,0),"") -> 00:00:00 | F22: =IFERROR(VLOOKUP(C22,TR!$B$2:$F$633,3,0),"") -> 00:00:00 | G22: 00:00:00 | H22: =IFERROR(VLOOKUP(C22,TR!$B$2:$F$633,4,0),"") -> 00:00:00 | I22: =IFERROR(VLOOKUP(C22,TR!$B$2:$F$633,5,0),"") -> 00:00:00 | J22: 00:00:00 | P22: =IF(AND(L22="",M22=""),IF(OR(SUMPRODUCT(N(ISNUMBER(FIND({"s";"d";"f"},C22))))>0,G22+J22<0,AND(G22>0,J22>0,I22>"20:30"*1),AND(I22<="20:30"*1,SUM(I22,R22)>="20:31"*1)),1,""),"") ->  | T22: 0 | U22: 0 | V22: 7.85 | W22: -7.85
B23: 2018-03-20 | C23: FOTLBN1 | E23: =IFERROR(VLOOKUP(C23,TR!$B$2:$F$633,2,0),"") -> 00:00:00 | F23: =IFERROR(VLOOKUP(C23,TR!$B$2:$F$633,3,0),"") -> 00:00:00 | G23: 00:00:00 | H23: =IFERROR(VLOOKUP(C23,TR!$B$2:$F$633,4,0),"") -> 15:30:00 | I23: =IFERROR(VLOOKUP(C23,TR!$B$2:$F$633,5,0),"") -> 23:06:00 | J23: 07:36:00 | K23: 1 | M23: 1 | P23: =IF(AND(L23="",M23=""),IF(OR(SUMPRODUCT(N(ISNUMBER(FIND({"s";"d";"f"},C23))))>0,G23+J23<0,AND(G23>0,J23>0,I23>"20:30"*1),AND(I23<="20:30"*1,SUM(I23,R23)>="20:31"*1)),1,""),"") ->  | S23: 07:36:00 | T23: 0.3166666667 | U23: 7.6 | V23: 8.15 | W23: -0.55
B24: 2018-03-21 | C24: FOTLBN1 | E24: =IFERROR(VLOOKUP(C24,TR!$B$2:$F$633,2,0),"") -> 00:00:00 | F24: =IFERROR(VLOOKUP(C24,TR!$B$2:$F$633,3,0),"") -> 00:00:00 | G24: 00:00:00 | H24: =IFERROR(VLOOKUP(C24,TR!$B$2:$F$633,4,0),"") -> 15:30:00 | I24: =IFERROR(VLOOKUP(C24,TR!$B$2:$F$633,5,0),"") -> 23:06:00 | J24: 07:36:00 | K24: 1 | M24: 1 | P24: =IF(AND(L24="",M24=""),IF(OR(SUMPRODUCT(N(ISNUMBER(FIND({"s";"d";"f"},C24))))>0,G24+J24<0,AND(G24>0,J24>0,I24>"20:30"*1),AND(I24<="20:30"*1,SUM(I24,R24)>="20:31"*1)),1,""),"") ->  | S24: 07:36:00 | T24: 0.3166666667 | U24: 7.6 | V24: 0 | W24: 7.6
B25: 2018-03-22 | C25: FOTLBN0 | E25: =IFERROR(VLOOKUP(C25,TR!$B$2:$F$633,2,0),"") -> 00:00:00 | F25: =IFERROR(VLOOKUP(C25,TR!$B$2:$F$633,3,0),"") -> 00:00:00 | G25: 00:00:00 | H25: =IFERROR(VLOOKUP(C25,TR!$B$2:$F$633,4,0),"") -> 15:00:00 | I25: =IFERROR(VLOOKUP(C25,TR!$B$2:$F$633,5,0),"") -> 22:36:00 | J25: 07:36:00 | K25: 1 | M25: 1 | P25: =IF(AND(L25="",M25=""),IF(OR(SUMPRODUCT(N(ISNUMBER(FIND({"s";"d";"f"},C25))))>0,G25+J25<0,AND(G25>0,J25>0,I25>"20:30"*1),AND(I25<="20:30"*1,SUM(I25,R25)>="20:31"*1)),1,""),"") ->  | S25: 07:36:00 | T25: 0.3166666667 | U25: 7.6 | V25: 0 | W25: 7.6
B26: 2018-03-23 | C26: FOTLBJ6 | E26: =IFERROR(VLOOKUP(C26,TR!$B$2:$F$633,2,0),"") -> 08:40:00 | F26: =IFERROR(VLOOKUP(C26,TR!$B$2:$F$633,3,0),"") -> 12:30:00 | G26: 03:50:00 | H26: =IFERROR(VLOOKUP(C26,TR!$B$2:$F$633,4,0),"") -> 13:30:00 | I26: =IFERROR(VLOOKUP(C26,TR!$B$2:$F$633,5,0),"") -> 17:16:00 | J26: 03:46:00 | P26: =IF(AND(L26="",M26=""),IF(OR(SUMPRODUCT(N(ISNUMBER(FIND({"s";"d";"f"},C26))))>0,G26+J26<0,AND(G26>0,J26>0,I26>"20:30"*1),AND(I26<="20:30"*1,SUM(I26,R26)>="20:31"*1)),1,""),"") ->  | S26: 08:36:00 | T26: 0.3166666667 | U26: 7.6 | V26: 0 | W26: 7.6
B27: 2018-03-24 | C27: FOTLBM4 | E27: =IFERROR(VLOOKUP(C27,TR!$B$2:$F$633,2,0),"") -> 05:45:00 | F27: =IFERROR(VLOOKUP(C27,TR!$B$2:$F$633,3,0),"") -> 13:21:00 | G27: 07:36:00 | H27: =IFERROR(VLOOKUP(C27,TR!$B$2:$F$633,4,0),"") -> 00:00:00 | I27: =IFERROR(VLOOKUP(C27,TR!$B$2:$F$633,5,0),"") -> 00:00:00 | J27: 00:00:00 | L27: 1 | P27: =IF(AND(L27="",M27=""),IF(OR(SUMPRODUCT(N(ISNUMBER(FIND({"s";"d";"f"},C27))))>0,G27+J27<0,AND(G27>0,J27>0,I27>"20:30"*1),AND(I27<="20:30"*1,SUM(I27,R27)>="20:31"*1)),1,""),"") ->  | S27: 07:36:00 | T27: 0.3166666667 | U27: 7.6 | V27: 6.52 | W27: 1.08
B28: 2018-03-25 | C28: CH | E28: =IFERROR(VLOOKUP(C28,TR!$B$2:$F$633,2,0),"") -> 00:00:00 | F28: =IFERROR(VLOOKUP(C28,TR!$B$2:$F$633,3,0),"") -> 00:00:00 | G28: 00:00:00 | H28: =IFERROR(VLOOKUP(C28,TR!$B$2:$F$633,4,0),"") -> 00:00:00 | I28: =IFERROR(VLOOKUP(C28,TR!$B$2:$F$633,5,0),"") -> 00:00:00 | J28: 00:00:00 | P28: =IF(AND(L28="",M28=""),IF(OR(SUMPRODUCT(N(ISNUMBER(FIND({"s";"d";"f"},C28))))>0,G28+J28<0,AND(G28>0,J28>0,I28>"20:30"*1),AND(I28<="20:30"*1,SUM(I28,R28)>="20:31"*1)),1,""),"") ->  | T28: 0 | U28: 0 | V28: 7.85 | W28: -7.85
B29: 2018-03-26 | C29: CC | E29: =IFERROR(VLOOKUP(C29,TR!$B$2:$F$633,2,0),"") -> 00:00:00 | F29: =IFERROR(VLOOKUP(C29,TR!$B$2:$F$633,3,0),"") -> 00:00:00 | G29: 00:00:00 | H29: =IFERROR(VLOOKUP(C29,TR!$B$2:$F$633,4,0),"") -> 00:00:00 | I29: =IFERROR(VLOOKUP(C29,TR!$B$2:$F$633,5,0),"") -> 00:00:00 | J29: 00:00:00 | P29: =IF(AND(L29="",M29=""),IF(OR(SUMPRODUCT(N(ISNUMBER(FIND({"s";"d";"f"},C29))))>0,G29+J29<0,AND(G29>0,J29>0,I29>"20:30"*1),AND(I29<="20:30"*1,SUM(I29,R29)>="20:31"*1)),1,""),"") ->  | T29: 0 | U29: 0 | V29: 7.6 | W29: -7.6
B30: 2018-03-27 | C30: FTLBJ9 | E30: =IFERROR(VLOOKUP(C30,TR!$B$2:$F$633,2,0),"") -> 08:00:00 | F30: =IFERROR(VLOOKUP(C30,TR!$B$2:$F$633,3,0),"") -> 11:50:00 | G30: 03:50:00 | H30: =IFERROR(VLOOKUP(C30,TR!$B$2:$F$633,4,0),"") -> 13:00:00 | I30: =IFERROR(VLOOKUP(C30,TR!$B$2:$F$633,5,0),"") -> 16:46:00 | J30: 03:46:00 | P30: =IF(AND(L30="",M30=""),IF(OR(SUMPRODUCT(N(ISNUMBER(FIND({"s";"d";"f"},C30))))>0,G30+J30<0,AND(G30>0,J30>0,I30>"20:30"*1),AND(I30<="20:30"*1,SUM(I30,R30)>="20:31"*1)),1,""),"") ->  | S30: 08:46:00 | T30: 0.3166666667 | U30: 7.6 | V30: 0 | W30: 7.6
B31: 2018-03-28 | C31: FTLBJ9 | E31: =IFERROR(VLOOKUP(C31,TR!$B$2:$F$633,2,0),"") -> 08:00:00 | F31: =IFERROR(VLOOKUP(C31,TR!$B$2:$F$633,3,0),"") -> 11:50:00 | G31: 03:50:00 | H31: =IFERROR(VLOOKUP(C31,TR!$B$2:$F$633,4,0),"") -> 13:00:00 | I31: =IFERROR(VLOOKUP(C31,TR!$B$2:$F$633,5,0),"") -> 16:46:00 | J31: 03:46:00 | P31: =IF(AND(L31="",M31=""),IF(OR(SUMPRODUCT(N(ISNUMBER(FIND({"s";"d";"f"},C31))))>0,G31+J31<0,AND(G31>0,J31>0,I31>"20:30"*1),AND(I31<="20:30"*1,SUM(I31,R31)>="20:31"*1)),1,""),"") ->  | S31: 08:46:00 | T31: 0.3166666667 | U31: 7.6 | V31: 5.6 | W31: 2
B32: 2018-03-29 | C32: FOHTM03 | E32: =IFERROR(VLOOKUP(C32,TR!$B$2:$F$633,2,0),"") ->  | F32: =IFERROR(VLOOKUP(C32,TR!$B$2:$F$633,3,0),"") ->  | G32: 00:00:00 | H32: =IFERROR(VLOOKUP(C32,TR!$B$2:$F$633,4,0),"") ->  | I32: =IFERROR(VLOOKUP(C32,TR!$B$2:$F$633,5,0),"") ->  | J32: 00:00:00 | M32: 1 | P32: =IF(AND(L32="",M32=""),IF(OR(SUMPRODUCT(N(ISNUMBER(FIND({"s";"d";"f"},C32))))>0,G32+J32<0,AND(G32>0,J32>0,I32>"20:30"*1),AND(I32<="20:30"*1,SUM(I32,R32)>="20:31"*1)),1,""),"") ->  | T32: 0 | U32: 0 | V32: 7.7 | W32: -7.7
B33: 2018-03-30 | C33: FOTHM07 | E33: =IFERROR(VLOOKUP(C33,TR!$B$2:$F$633,2,0),"") -> 08:00:00 | F33: =IFERROR(VLOOKUP(C33,TR!$B$2:$F$633,3,0),"") -> 11:50:00 | G33: 03:50:00 | H33: =IFERROR(VLOOKUP(C33,TR!$B$2:$F$633,4,0),"") -> 13:00:00 | I33: =IFERROR(VLOOKUP(C33,TR!$B$2:$F$633,5,0),"") -> 16:46:00 | J33: 03:46:00 | P33: =IF(AND(L33="",M33=""),IF(OR(SUMPRODUCT(N(ISNUMBER(FIND({"s";"d";"f"},C33))))>0,G33+J33<0,AND(G33>0,J33>0,I33>"20:30"*1),AND(I33<="20:30"*1,SUM(I33,R33)>="20:31"*1)),1,""),"") ->  | R33: 0.005555555556 | S33: 08:46:00 | T33: 0.3166666667 | U33: 7.6 | V33: 6.1 | W33: 1.5
B34: 2018-03-31 | C34: FOHTM03 | E34: =IFERROR(VLOOKUP(C34,TR!$B$2:$F$633,2,0),"") ->  | F34: =IFERROR(VLOOKUP(C34,TR!$B$2:$F$633,3,0),"") ->  | G34: 00:00:00 | H34: =IFERROR(VLOOKUP(C34,TR!$B$2:$F$633,4,0),"") ->  | I34: =IFERROR(VLOOKUP(C34,TR!$B$2:$F$633,5,0),"") ->  | J34: 00:00:00 | M34: 1 | P34: =IF(AND(L34="",M34=""),IF(OR(SUMPRODUCT(N(ISNUMBER(FIND({"s";"d";"f"},C34))))>0,G34+J34<0,AND(G34>0,J34>0,I34>"20:30"*1),AND(I34<="20:30"*1,SUM(I34,R34)>="20:31"*1)),1,""),"") ->  | T34: 0 | U34: 0 | V34: 7.53 | W34: -7.53
B36: Jours travaillés | C36: =(COUNTIF(Février!C24:C34,"<>")+COUNTIF(Mars!C4:C23,"<>"))-(COUNTIF(Février!C24:C34,"CC*")+COUNTIF(Mars!C4:C23,"CC*"))-(COUNTIF(Février!C24:C34,"CH*")+COUNTIF(Mars!C4:C23,"CH*"))-(COUNTIF(Février!C24:C34,"RT*")+COUNTIF(Mars!C4:C23,"RT*"))-(COUNTIF(Février!C24:C34,"Férié*")+COUNTIF(Mars!C4:C23,"Férié*"))-(COUNTIF(Février!C24:C34,"Mal*")+COUNTIF(Mars!C4:C23,"Mal*"))-(COUNTIF(Février!C24:C34,"CP*")+COUNTIF(Mars!C4:C23,"CP*")) -> 13 | H36: Du 21 au 20 | K36: =SUM(Février!$K$24:$K$34,K4:K23) -> 7 | L36: =SUM(Février!$L$24:$L$34,L4:L23) -> 4 | M36: =SUM(Février!$M$24:$M$34,M4:M23) -> 7 | N36: =SUM(Février!$N$24:$N$34,N4:N23) -> 0 | O36: =SUM(Février!$O$24:$O$34,O4:O23) -> 0 | P36: =SUM(Février!$P$24:$P$34,P4:P23) -> 0 | Q36: =SUM(Février!$Q$24:$Q$34,Q4:Q23) -> 0 | R36: =SUM(Février!$R$24:$R$34,R4:R23) -> 00:06:00 | T36: =SUM(Février!T24:T34)+SUM(Mars!T4:T23) -> 3.954861111 | U36: =SUM(U4:U34) -> 139.6333333 | V36: =SUM(V4:V34) -> 146.16
B37: CP | C37: =(COUNTIF(Février!C24:C34,"CP")+COUNTIF(Mars!C4:C23,"CP")) -> 2 | K37: =(I39*2)*K36 -> 123.9392 | L37: =Recap!H35*L36 -> 28.56 | M37: =Recap!H35*M36 -> 49.98 | N37: =(I39*5)*N36 -> 0 | O37: =(Recap!H33)*O36 -> 0 | P37: =7.5*P36 -> 0 | Q37: =(I39*1.5)*Q36 -> 0 | R37: =R36*24 -> 0.1
B38: CH | C38: =(COUNTIF(Février!C24:C34,"CH")+COUNTIF(Mars!C4:C23,"CH")) -> 4 | I38: VP | T38: Horaire mensuel | V38: 6.175 | W38: =V38*24 -> 148.2
B39: RT | C39: =(COUNTIF(Février!C24:C34,"RT")+COUNTIF(Mars!C4:C23,"RT")) -> 1 | I39: 8.8528
B40: CC | C40: =(COUNTIF(Février!C24:C34,"CC")+COUNTIF(Mars!C4:C23,"CC")) -> 5 | T40: Différence | V40: =IF(V38>T36,"-","")&TEXT(ABS(T36-V38),"[h]:mm") -> -53:17 | W40: =(T36-V38)*24 -> -53.28333333
B41: Férié | C41: =(COUNTIF(Février!C24:C34,"Férié")+COUNTIF(Mars!C4:C23,"Férié")) -> 0
B42: Férié CC-CH-RT | C42: =(COUNTIF(Février!C24:C34,"FériéCC")+COUNTIF(Mars!C4:C23,"FériéCC")+COUNTIF(Février!C24:C34,"FériéCH")+COUNTIF(Mars!C4:C23,"FériéCH")+COUNTIF(Février!C24:C34,"FériéRT")+COUNTIF(Mars!C4:C23,"FériéRT")) -> 0 | R42: Heures réelles | T42: =SUM(T4:T34) -> 5.818055556
T43: =T42*24 -> 139.6333333 | W43: =(T42-V38)*24 -> -8.566666667
F45: NOTES

Sheet Avril
B1: AVRIL
T2: TOTAL
B3: Date | C3: Services | D3: Obs. | E3: MATIN | G3: Temps | H3: APRES MIDI | J3: Temps | K3: Prime nuit | L3: PJ1 | M3: PJ2 | N3: Dimanche | O3: Férié | P3: ChècDej | Q3: PrimAmp | R3: H Supp | S3: Ampli | T3: Heures | U3: Centièmes | V3: Kéolis | W3: Écart
B4: 2018-04-01 | C4: CH | E4: =IFERROR(VLOOKUP(C4,TR!$B$2:$F$633,2,0),"") -> 00:00:00 | F4: =IFERROR(VLOOKUP(C4,TR!$B$2:$F$633,3,0),"") -> 00:00:00 | G4: =IF(ISERROR(F4-E4),0,F4-E4) -> 00:00:00 | H4: =IFERROR(VLOOKUP(C4,TR!$B$2:$F$633,4,0),"") -> 00:00:00 | I4: =IFERROR(VLOOKUP(C4,TR!$B$2:$F$633,5,0),"") -> 00:00:00 | J4: =IF(ISERROR(I4-H4),0,(I4-H4)) -> 00:00:00 | K4: =IF(COUNTA(E4:F4,H4:I4)=5,1,IF(AND(E4<"5:00"*1,E4>"2:00"*1),1,IF(AND(I4>="22:01"*1,I4<="26:01"*1),1,IF(AND(I4<="22:00"*1,SUM(I4,R4)>="22:01"*1),1,"")))) ->  | L4: =IF(AND(F4>="13:15"*1,H4<""),1,IF(AND(H4>="11:00"*1,H4<="12:15"*1),1,IF(AND(F4<="13:15"*1,SUM(F4,R4)>="13:15"*1),1,""))) ->  | M4: =IF(AND(I4>="19:30"*1,1,I4>"21:30"*1,C4<>""),1,IF(AND(I4<="21:30"*1,SUM(I4,R4)>="21:30"*1),1,"")) ->  | N4: =IF(AND(LEFT(C4,1)="d",AND(Mars!N34<>1)),1,IF(AND(LEFT(C4,1)="s",I4>="24:01"*1),1,IF(AND(I4<>"",I4<="23:59"*1,SUM(I4,R4)>="24:01"*1),1,""))) ->  | O4: =IF(AND(I4>"24:00"*1,ISNUMBER(FIND("f",C5))),1,IF(AND(OR(ISNUMBER(FIND("FériéCC",C4)),ISNUMBER(FIND("FériéCH",C4)),ISNUMBER(FIND("f",C4)))),1,"")) ->  | P4: =IF(AND(L4="",M4=""),IF(OR(SUMPRODUCT(N(ISNUMBER(FIND({"s";"d";"f"},C4))))>0,G4+J4<0,AND(G4>0,J4>0,I4>"20:30"*1),AND(I4<="20:30"*1,SUM(I4,R4)>="20:31"*1)),1,""),"") ->  | Q4: =IF(OR(AND(G4>0,AND(J4=0)),OR(G4=0,AND(J4>0)),OR(G4+J4>0)),IF(S4="","",IF(R4+S4>="13:01"*1,1,""))) ->  | S4: =IF(G4=0,IF(J4=0,"",I4-H4),IF(J4=0,F4-E4,I4-E4)) ->  | T4: =IF(ISERROR((F4-E4)+(I4-H4)),0,(F4-E4)+(I4-H4)) -> 0 | U4: =T4*24 -> 0 | W4: =IF(U4-V4=0,"0,00",U4-V4) -> 0,00
B5: 2018-04-02 | C5: FOHTM03f | E5: =IFERROR(VLOOKUP(C5,TR!$B$2:$F$633,2,0),"") -> 05:45:00 | F5: =IFERROR(VLOOKUP(C5,TR!$B$2:$F$633,3,0),"") -> 13:21:00 | G5: =IF(ISERROR(F5-E5),0,F5-E5) -> 07:36:00 | H5: =IFERROR(VLOOKUP(C5,TR!$B$2:$F$633,4,0),"") -> 00:00:00 | I5: =IFERROR(VLOOKUP(C5,TR!$B$2:$F$633,5,0),"") -> 00:00:00 | J5: =IF(ISERROR(I5-H5),0,(I5-H5)) -> 00:00:00 | L5: 1 | N5: =IF(AND(LEFT(C5,1)="d",AND(N4<>1)),1,IF(AND(LEFT(C5,1)="s",I5>="24:01"*1),1,IF(AND(I5<>"",I5<="23:59"*1,SUM(I5,R5)>="24:01"*1),1,""))) ->  | O5: 1 | P5: =IF(AND(L5="",M5=""),IF(OR(SUMPRODUCT(N(ISNUMBER(FIND({"s";"d";"f"},C5))))>0,G5+J5<0,AND(G5>0,J5>0,I5>"20:30"*1),AND(I5<="20:30"*1,SUM(I5,R5)>="20:31"*1)),1,""),"") ->  | Q5: =IF(OR(AND(G5>0,AND(J5=0)),OR(G5=0,AND(J5>0)),OR(G5+J5>0)),IF(S5="","",IF(R5+S5>="13:01"*1,1,""))) ->  | S5: 07:36:00 | T5: 0.3166666667 | U5: =T5*24 -> 7.6 | W5: =IF(U5-V5=0,"0,00",U5-V5) -> 7.6
B6: 2018-04-03 | C6: FOHTJ07 | E6: =IFERROR(VLOOKUP(C6,TR!$B$2:$F$633,2,0),"") -> 08:00:00 | F6: =IFERROR(VLOOKUP(C6,TR!$B$2:$F$633,3,0),"") -> 11:50:00 | G6: 03:50:00 | H6: =IFERROR(VLOOKUP(C6,TR!$B$2:$F$633,4,0),"") -> 13:00:00 | I6: =IFERROR(VLOOKUP(C6,TR!$B$2:$F$633,5,0),"") -> 16:46:00 | J6: 03:46:00 | P6: =IF(AND(L6="",M6=""),IF(OR(SUMPRODUCT(N(ISNUMBER(FIND({"s";"d";"f"},C6))))>0,G6+J6<0,AND(G6>0,J6>0,I6>"20:30"*1),AND(I6<="20:30"*1,SUM(I6,R6)>="20:31"*1)),1,""),"") ->  | S6: 08:46:00 | T6: 0.3166666667 | U6: =T6*24 -> 7.6 | W6: 7.6
B7: 2018-04-04 | C7: FOTLBM3 | E7: =IFERROR(VLOOKUP(C7,TR!$B$2:$F$633,2,0),"") -> 05:45:00 | F7: =IFERROR(VLOOKUP(C7,TR!$B$2:$F$633,3,0),"") -> 12:51:00 | G7: 07:06:00 | H7: =IFERROR(VLOOKUP(C7,TR!$B$2:$F$633,4,0),"") -> 00:00:00 | I7: =IFERROR(VLOOKUP(C7,TR!$B$2:$F$633,5,0),"") -> 00:00:00 | J7: 00:00:00 | P7: =IF(AND(L7="",M7=""),IF(OR(SUMPRODUCT(N(ISNUMBER(FIND({"s";"d";"f"},C7))))>0,G7+J7<0,AND(G7>0,J7>0,I7>"20:30"*1),AND(I7<="20:30"*1,SUM(I7,R7)>="20:31"*1)),1,""),"") ->  | S7: 07:06:00 | T7: 0.2958333333 | U7: =T7*24 -> 7.1 | W7: 7.1
B8: 2018-04-05 | C8: FOTLBM2 | E8: =IFERROR(VLOOKUP(C8,TR!$B$2:$F$633,2,0),"") -> 05:30:00 | F8: =IFERROR(VLOOKUP(C8,TR!$B$2:$F$633,3,0),"") -> 13:36:00 | G8: 08:06:00 | H8: =IFERROR(VLOOKUP(C8,TR!$B$2:$F$633,4,0),"") -> 00:00:00 | I8: =IFERROR(VLOOKUP(C8,TR!$B$2:$F$633,5,0),"") -> 00:00:00 | J8: 00:00:00 | L8: 1 | P8: =IF(AND(L8="",M8=""),IF(OR(SUMPRODUCT(N(ISNUMBER(FIND({"s";"d";"f"},C8))))>0,G8+J8<0,AND(G8>0,J8>0,I8>"20:30"*1),AND(I8<="20:30"*1,SUM(I8,R8)>="20:31"*1)),1,""),"") ->  | S8: 08:06:00 | T8: 0.3375 | U8: 8.1 | W8: 8.1
B9: 2018-04-06 | C9: FOTLBM2 | E9: =IFERROR(VLOOKUP(C9,TR!$B$2:$F$633,2,0),"") -> 05:30:00 | F9: =IFERROR(VLOOKUP(C9,TR!$B$2:$F$633,3,0),"") -> 13:36:00 | G9: 08:06:00 | H9: =IFERROR(VLOOKUP(C9,TR!$B$2:$F$633,4,0),"") -> 00:00:00 | I9: =IFERROR(VLOOKUP(C9,TR!$B$2:$F$633,5,0),"") -> 00:00:00 | J9: 00:00:00 | L9: 1 | P9: =IF(AND(L9="",M9=""),IF(OR(SUMPRODUCT(N(ISNUMBER(FIND({"s";"d";"f"},C9))))>0,G9+J9<0,AND(G9>0,J9>0,I9>"20:30"*1),AND(I9<="20:30"*1,SUM(I9,R9)>="20:31"*1)),1,""),"") ->  | S9: 08:06:00 | T9: 0.3375 | U9: 8.1 | W9: 8.1
B10: 2018-04-07 | C10: FOHTM03 | E10: =IFERROR(VLOOKUP(C10,TR!$B$2:$F$633,2,0),"") ->  | F10: =IFERROR(VLOOKUP(C10,TR!$B$2:$F$633,3,0),"") ->  | G10: 00:00:00 | H10: =IFERROR(VLOOKUP(C10,TR!$B$2:$F$633,4,0),"") ->  | I10: =IFERROR(VLOOKUP(C10,TR!$B$2:$F$633,5,0),"") ->  | J10: 00:00:00 | M10: 1 | P10: =IF(AND(L10="",M10=""),IF(OR(SUMPRODUCT(N(ISNUMBER(FIND({"s";"d";"f"},C10))))>0,G10+J10<0,AND(G10>0,J10>0,I10>"20:30"*1),AND(I10<="20:30"*1,SUM(I10,R10)>="20:31"*1)),1,""),"") ->  | T10: 0 | U10: 0 | W10: 0,00
B11: 2018-04-08 | C11: CC | E11: =IFERROR(VLOOKUP(C11,TR!$B$2:$F$633,2,0),"") -> 00:00:00 | F11: =IFERROR(VLOOKUP(C11,TR!$B$2:$F$633,3,0),"") -> 00:00:00 | G11: 00:00:00 | H11: =IFERROR(VLOOKUP(C11,TR!$B$2:$F$633,4,0),"") -> 00:00:00 | I11: =IFERROR(VLOOKUP(C11,TR!$B$2:$F$633,5,0),"") -> 00:00:00 | J11: 00:00:00 | P11: =IF(AND(L11="",M11=""),IF(OR(SUMPRODUCT(N(ISNUMBER(FIND({"s";"d";"f"},C11))))>0,G11+J11<0,AND(G11>0,J11>0,I11>"20:30"*1),AND(I11<="20:30"*1,SUM(I11,R11)>="20:31"*1)),1,""),"") ->  | T11: 0 | U11: 0 | W11: 0,00
B12: 2018-04-09 | C12: CH | E12: =IFERROR(VLOOKUP(C12,TR!$B$2:$F$633,2,0),"") -> 00:00:00 | F12: =IFERROR(VLOOKUP(C12,TR!$B$2:$F$633,3,0),"") -> 00:00:00 | G12: 00:00:00 | H12: =IFERROR(VLOOKUP(C12,TR!$B$2:$F$633,4,0),"") -> 00:00:00 | I12: =IFERROR(VLOOKUP(C12,TR!$B$2:$F$633,5,0),"") -> 00:00:00 | J12: 00:00:00 | P12: =IF(AND(L12="",M12=""),IF(OR(SUMPRODUCT(N(ISNUMBER(FIND({"s";"d";"f"},C12))))>0,G12+J12<0,AND(G12>0,J12>0,I12>"20:30"*1),AND(I12<="20:30"*1,SUM(I12,R12)>="20:31"*1)),1,""),"") ->  | T12: 0 | U12: 0 | W12: 0,00
B13: 2018-04-10 | C13: CP | E13: =IFERROR(VLOOKUP(C13,TR!$B$2:$F$633,2,0),"") -> 00:00:00 | F13: =IFERROR(VLOOKUP(C13,TR!$B$2:$F$633,3,0),"") -> 00:00:00 | G13: 00:00:00 | H13: =IFERROR(VLOOKUP(C13,TR!$B$2:$F$633,4,0),"") -> 00:00:00 | I13: =IFERROR(VLOOKUP(C13,TR!$B$2:$F$633,5,0),"") -> 00:00:00 | J13: 00:00:00 | P13: =IF(AND(L13="",M13=""),IF(OR(SUMPRODUCT(N(ISNUMBER(FIND({"s";"d";"f"},C13))))>0,G13+J13<0,AND(G13>0,J13>0,I13>"20:30"*1),AND(I13<="20:30"*1,SUM(I13,R13)>="20:31"*1)),1,""),"") ->  | T13: 0 | U13: 0 | W13: 0,00
B14: 2018-04-11 | C14: CP | E14: =IFERROR(VLOOKUP(C14,TR!$B$2:$F$633,2,0),"") -> 00:00:00 | F14: =IFERROR(VLOOKUP(C14,TR!$B$2:$F$633,3,0),"") -> 00:00:00 | G14: 00:00:00 | H14: =IFERROR(VLOOKUP(C14,TR!$B$2:$F$633,4,0),"") -> 00:00:00 | I14: =IFERROR(VLOOKUP(C14,TR!$B$2:$F$633,5,0),"") -> 00:00:00 | J14: 00:00:00 | P14: =IF(AND(L14="",M14=""),IF(OR(SUMPRODUCT(N(ISNUMBER(FIND({"s";"d";"f"},C14))))>0,G14+J14<0,AND(G14>0,J14>0,I14>"20:30"*1),AND(I14<="20:30"*1,SUM(I14,R14)>="20:31"*1)),1,""),"") ->  | T14: 0 | U14: 0 | W14: 0,00
B15: 2018-04-12 | C15: CP | E15: =IFERROR(VLOOKUP(C15,TR!$B$2:$F$633,2,0),"") -> 00:00:00 | F15: =IFERROR(VLOOKUP(C15,TR!$B$2:$F$633,3,0),"") -> 00:00:00 | G15: 00:00:00 | H15: =IFERROR(VLOOKUP(C15,TR!$B$2:$F$633,4,0),"") -> 00:00:00 | I15: =IFERROR(VLOOKUP(C15,TR!$B$2:$F$633,5,0),"") -> 00:00:00 | J15: 00:00:00 | P15: =IF(AND(L15="",M15=""),IF(OR(SUMPRODUCT(N(ISNUMBER(FIND({"s";"d";"f"},C15))))>0,G15+J15<0,AND(G15>0,J15>0,I15>"20:30"*1),AND(I15<="20:30"*1,SUM(I15,R15)>="20:31"*1)),1,""),"") ->  | T15: 0 | U15: 0 | W15: 0,00
B16: 2018-04-13 | C16: CP | E16: =IFERROR(VLOOKUP(C16,TR!$B$2:$F$633,2,0),"") -> 00:00:00 | F16: =IFERROR(VLOOKUP(C16,TR!$B$2:$F$633,3,0),"") -> 00:00:00 | G16: 00:00:00 | H16: =IFERROR(VLOOKUP(C16,TR!$B$2:$F$633,4,0),"") -> 00:00:00 | I16: =IFERROR(VLOOKUP(C16,TR!$B$2:$F$633,5,0),"") -> 00:00:00 | J16: 00:00:00 | P16: =IF(AND(L16="",M16=""),IF(OR(SUMPRODUCT(N(ISNUMBER(FIND({"s";"d";"f"},C16))))>0,G16+J16<0,AND(G16>0,J16>0,I16>"20:30"*1),AND(I16<="20:30"*1,SUM(I16,R16)>="20:31"*1)),1,""),"") ->  | T16: 0 | U16: 0 | W16: 0,00
B17: 2018-04-14 | C17: CC | E17: =IFERROR(VLOOKUP(C17,TR!$B$2:$F$633,2,0),"") -> 00:00:00 | F17: =IFERROR(VLOOKUP(C17,TR!$B$2:$F$633,3,0),"") -> 00:00:00 | G17: 00:00:00 | H17: =IFERROR(VLOOKUP(C17,TR!$B$2:$F$633,4,0),"") -> 00:00:00 | I17: =IFERROR(VLOOKUP(C17,TR!$B$2:$F$633,5,0),"") -> 00:00:00 | J17: 00:00:00 | P17: =IF(AND(L17="",M17=""),IF(OR(SUMPRODUCT(N(ISNUMBER(FIND({"s";"d";"f"},C17))))>0,G17+J17<0,AND(G17>0,J17>0,I17>"20:30"*1),AND(I17<="20:30"*1,SUM(I17,R17)>="20:31"*1)),1,""),"") ->  | T17: 0 | U17: 0 | W17: 0,00
B18: 2018-04-15 | C18: CH | E18: =IFERROR(VLOOKUP(C18,TR!$B$2:$F$633,2,0),"") -> 00:00:00 | F18: =IFERROR(VLOOKUP(C18,TR!$B$2:$F$633,3,0),"") -> 00:00:00 | G18: 00:00:00 | H18: =IFERROR(VLOOKUP(C18,TR!$B$2:$F$633,4,0),"") -> 00:00:00 | I18: =IFERROR(VLOOKUP(C18,TR!$B$2:$F$633,5,0),"") -> 00:00:00 | J18: 00:00:00 | P18: =IF(AND(L18="",M18=""),IF(OR(SUMPRODUCT(N(ISNUMBER(FIND({"s";"d";"f"},C18))))>0,G18+J18<0,AND(G18>0,J18>0,I18>"20:30"*1),AND(I18<="20:30"*1,SUM(I18,R18)>="20:31"*1)),1,""),"") ->  | T18: 0 | U18: 0 | W18: 0,00
B19: 2018-04-16 | C19: 905-b | E19: =IFERROR(VLOOKUP(C19,TR!$B$2:$F$633,2,0),"") -> 00:00:00 | F19: =IFERROR(VLOOKUP(C19,TR!$B$2:$F$633,3,0),"") -> 00:00:00 | G19: 00:00:00 | H19: =IFERROR(VLOOKUP(C19,TR!$B$2:$F$633,4,0),"") -> 17:32:00 | I19: =IFERROR(VLOOKUP(C19,TR!$B$2:$F$633,5,0),"") -> 1.057638889 | J19: 07:51:00 | K19: 1 | M19: 1 | P19: =IF(AND(L19="",M19=""),IF(OR(SUMPRODUCT(N(ISNUMBER(FIND({"s";"d";"f"},C19))))>0,G19+J19<0,AND(G19>0,J19>0,I19>"20:30"*1),AND(I19<="20:30"*1,SUM(I19,R19)>="20:31"*1)),1,""),"") ->  | R19: 0.008333333333 | S19: 07:51:00 | T19: 0.3270833333 | U19: 7.85 | W19: 7.85
B20: 2018-04-17 | C20: 806-b | E20: =IFERROR(VLOOKUP(C20,TR!$B$2:$F$633,2,0),"") -> 00:00:00 | F20: =IFERROR(VLOOKUP(C20,TR!$B$2:$F$633,3,0),"") -> 00:00:00 | G20: 00:00:00 | H20: =IFERROR(VLOOKUP(C20,TR!$B$2:$F$633,4,0),"") -> 12:57:00 | I20: =IFERROR(VLOOKUP(C20,TR!$B$2:$F$633,5,0),"") -> 20:45:00 | J20: 07:48:00 | P20: =IF(AND(L20="",M20=""),IF(OR(SUMPRODUCT(N(ISNUMBER(FIND({"s";"d";"f"},C20))))>0,G20+J20<0,AND(G20>0,J20>0,I20>"20:30"*1),AND(I20<="20:30"*1,SUM(I20,R20)>="20:31"*1)),1,""),"") ->  | S20: 07:48:00 | T20: 0.325 | U20: 7.8 | W20: 7.8
B21: 2018-04-18 | C21: CC | E21: =IFERROR(VLOOKUP(C21,TR!$B$2:$F$633,2,0),"") -> 00:00:00 | F21: =IFERROR(VLOOKUP(C21,TR!$B$2:$F$633,3,0),"") -> 00:00:00 | G21: 00:00:00 | H21: =IFERROR(VLOOKUP(C21,TR!$B$2:$F$633,4,0),"") -> 00:00:00 | I21: =IFERROR(VLOOKUP(C21,TR!$B$2:$F$633,5,0),"") -> 00:00:00 | J21: 00:00:00 | P21: =IF(AND(L21="",M21=""),IF(OR(SUMPRODUCT(N(ISNUMBER(FIND({"s";"d";"f"},C21))))>0,G21+J21<0,AND(G21>0,J21>0,I21>"20:30"*1),AND(I21<="20:30"*1,SUM(I21,R21)>="20:31"*1)),1,""),"") ->  | T21: 0 | U21: 0 | W21: 0,00
B22: 2018-04-19 | C22: CH | E22: =IFERROR(VLOOKUP(C22,TR!$B$2:$F$633,2,0),"") -> 00:00:00 | F22: =IFERROR(VLOOKUP(C22,TR!$B$2:$F$633,3,0),"") -> 00:00:00 | G22: 00:00:00 | H22: =IFERROR(VLOOKUP(C22,TR!$B$2:$F$633,4,0),"") -> 00:00:00 | I22: =IFERROR(VLOOKUP(C22,TR!$B$2:$F$633,5,0),"") -> 00:00:00 | J22: 00:00:00 | P22: =IF(AND(L22="",M22=""),IF(OR(SUMPRODUCT(N(ISNUMBER(FIND({"s";"d";"f"},C22))))>0,G22+J22<0,AND(G22>0,J22>0,I22>"20:30"*1),AND(I22<="20:30"*1,SUM(I22,R22)>="20:31"*1)),1,""),"") ->  | T22: 0 | U22: 0 | W22: 0,00
B23: 2018-04-20 | C23: CH | E23: =IFERROR(VLOOKUP(C23,TR!$B$2:$F$633,2,0),"") -> 00:00:00 | F23: =IFERROR(VLOOKUP(C23,TR!$B$2:$F$633,3,0),"") -> 00:00:00 | G23: 00:00:00 | H23: =IFERROR(VLOOKUP(C23,TR!$B$2:$F$633,4,0),"") -> 00:00:00 | I23: =IFERROR(VLOOKUP(C23,TR!$B$2:$F$633,5,0),"") -> 00:00:00 | J23: 00:00:00 | P23: =IF(AND(L23="",M23=""),IF(OR(SUMPRODUCT(N(ISNUMBER(FIND({"s";"d";"f"},C23))))>0,G23+J23<0,AND(G23>0,J23>0,I23>"20:30"*1),AND(I23<="20:30"*1,SUM(I23,R23)>="20:31"*1)),1,""),"") ->  | T23: 0 | U23: 0 | W23: 0,00
B24: 2018-04-21 | C24: s808-a | E24: =IFERROR(VLOOKUP(C24,TR!$B$2:$F$633,2,0),"") -> 00:00:00 | F24: =IFERROR(VLOOKUP(C24,TR!$B$2:$F$633,3,0),"") -> 00:00:00 | G24: 00:00:00 | H24: =IFERROR(VLOOKUP(C24,TR!$B$2:$F$633,4,0),"") -> 12:59:00 | I24: =IFERROR(VLOOKUP(C24,TR!$B$2:$F$633,5,0),"") -> 20:11:00 | J24: 07:12:00 | P24: =IF(AND(L24="",M24=""),IF(OR(SUMPRODUCT(N(ISNUMBER(FIND({"s";"d";"f"},C24))))>0,G24+J24<0,AND(G24>0,J24>0,I24>"20:30"*1),AND(I24<="20:30"*1,SUM(I24,R24)>="20:31"*1)),1,""),"") -> 1 | S24: 07:12:00 | T24: 0.3 | U24: 7.2 | W24: 7.2
B25: 2018-04-22 | C25: d607-a | E25: =IFERROR(VLOOKUP(C25,TR!$B$2:$F$633,2,0),"") -> 00:00:00 | F25: =IFERROR(VLOOKUP(C25,TR!$B$2:$F$633,3,0),"") -> 00:00:00 | G25: 00:00:00 | H25: =IFERROR(VLOOKUP(C25,TR!$B$2:$F$633,4,0),"") -> 13:19:00 | I25: =IFERROR(VLOOKUP(C25,TR!$B$2:$F$633,5,0),"") -> 20:42:00 | J25: 07:23:00 | N25: 1 | P25: =IF(AND(L25="",M25=""),IF(OR(SUMPRODUCT(N(ISNUMBER(FIND({"s";"d";"f"},C25))))>0,G25+J25<0,AND(G25>0,J25>0,I25>"20:30"*1),AND(I25<="20:30"*1,SUM(I25,R25)>="20:31"*1)),1,""),"") -> 1 | S25: 07:23:00 | T25: 0.3076388889 | U25: 7.383333333 | W25: 7.383333333
B26: 2018-04-23 | C26: 815-1p | E26: =IFERROR(VLOOKUP(C26,TR!$B$2:$F$633,2,0),"") -> 00:00:00 | F26: =IFERROR(VLOOKUP(C26,TR!$B$2:$F$633,3,0),"") -> 00:00:00 | G26: 00:00:00 | H26: =IFERROR(VLOOKUP(C26,TR!$B$2:$F$633,4,0),"") -> 14:47:00 | I26: =IFERROR(VLOOKUP(C26,TR!$B$2:$F$633,5,0),"") -> 22:25:00 | J26: 07:38:00 | K26: 1 | M26: 1 | P26: =IF(AND(L26="",M26=""),IF(OR(SUMPRODUCT(N(ISNUMBER(FIND({"s";"d";"f"},C26))))>0,G26+J26<0,AND(G26>0,J26>0,I26>"20:30"*1),AND(I26<="20:30"*1,SUM(I26,R26)>="20:31"*1)),1,""),"") ->  | S26: 07:38:00 | T26: 0.3180555556 | U26: 7.633333333 | W26: 7.633333333
B27: 2018-04-24 | C27: 813-ap | E27: =IFERROR(VLOOKUP(C27,TR!$B$2:$F$633,2,0),"") -> 00:00:00 | F27: =IFERROR(VLOOKUP(C27,TR!$B$2:$F$633,3,0),"") -> 00:00:00 | G27: 00:00:00 | H27: =IFERROR(VLOOKUP(C27,TR!$B$2:$F$633,4,0),"") -> 13:27:00 | I27: =IFERROR(VLOOKUP(C27,TR!$B$2:$F$633,5,0),"") -> 20:56:00 | J27: 07:29:00 | P27: =IF(AND(L27="",M27=""),IF(OR(SUMPRODUCT(N(ISNUMBER(FIND({"s";"d";"f"},C27))))>0,G27+J27<0,AND(G27>0,J27>0,I27>"20:30"*1),AND(I27<="20:30"*1,SUM(I27,R27)>="20:31"*1)),1,""),"") ->  | S27: 07:29:00 | T27: 0.3118055556 | U27: 7.483333333 | W27: 7.483333333
B28: 2018-04-25 | C28: CC | E28: =IFERROR(VLOOKUP(C28,TR!$B$2:$F$633,2,0),"") -> 00:00:00 | F28: =IFERROR(VLOOKUP(C28,TR!$B$2:$F$633,3,0),"") -> 00:00:00 | G28: 00:00:00 | H28: =IFERROR(VLOOKUP(C28,TR!$B$2:$F$633,4,0),"") -> 00:00:00 | I28: =IFERROR(VLOOKUP(C28,TR!$B$2:$F$633,5,0),"") -> 00:00:00 | J28: 00:00:00 | P28: =IF(AND(L28="",M28=""),IF(OR(SUMPRODUCT(N(ISNUMBER(FIND({"s";"d";"f"},C28))))>0,G28+J28<0,AND(G28>0,J28>0,I28>"20:30"*1),AND(I28<="20:30"*1,SUM(I28,R28)>="20:31"*1)),1,""),"") ->  | T28: 0 | U28: 0 | W28: 0,00
B29: 2018-04-26 | C29: 109-7p | E29: =IFERROR(VLOOKUP(C29,TR!$B$2:$F$633,2,0),"") -> 07:33:00 | F29: =IFERROR(VLOOKUP(C29,TR!$B$2:$F$633,3,0),"") -> 09:41:00 | G29: 02:08:00 | H29: =IFERROR(VLOOKUP(C29,TR!$B$2:$F$633,4,0),"") -> 00:00:00 | I29: =IFERROR(VLOOKUP(C29,TR!$B$2:$F$633,5,0),"") -> 00:00:00 | J29: 00:00:00 | P29: =IF(AND(L29="",M29=""),IF(OR(SUMPRODUCT(N(ISNUMBER(FIND({"s";"d";"f"},C29))))>0,G29+J29<0,AND(G29>0,J29>0,I29>"20:30"*1),AND(I29<="20:30"*1,SUM(I29,R29)>="20:31"*1)),1,""),"") ->  | S29: 02:08:00 | T29: 0.08888888889 | U29: 2.133333333 | W29: 2.133333333
B30: 2018-04-27 | C30: v841-5p | E30: =IFERROR(VLOOKUP(C30,TR!$B$2:$F$633,2,0),"") -> 00:00:00 | F30: =IFERROR(VLOOKUP(C30,TR!$B$2:$F$633,3,0),"") -> 00:00:00 | G30: 00:00:00 | H30: =IFERROR(VLOOKUP(C30,TR!$B$2:$F$633,4,0),"") -> 14:06:00 | I30: =IFERROR(VLOOKUP(C30,TR!$B$2:$F$633,5,0),"") -> 21:50:00 | J30: 07:44:00 | M30: 1 | P30: =IF(AND(L30="",M30=""),IF(OR(SUMPRODUCT(N(ISNUMBER(FIND({"s";"d";"f"},C30))))>0,G30+J30<0,AND(G30>0,J30>0,I30>"20:30"*1),AND(I30<="20:30"*1,SUM(I30,R30)>="20:31"*1)),1,""),"") ->  | S30: 07:44:00 | T30: 0.3222222222 | U30: 7.733333333 | W30: 7.733333333
B31: 2018-04-28 | C31: s872-18p | E31: =IFERROR(VLOOKUP(C31,TR!$B$2:$F$633,2,0),"") -> 00:00:00 | F31: =IFERROR(VLOOKUP(C31,TR!$B$2:$F$633,3,0),"") -> 00:00:00 | G31: 00:00:00 | H31: =IFERROR(VLOOKUP(C31,TR!$B$2:$F$633,4,0),"") -> 13:07:00 | I31: =IFERROR(VLOOKUP(C31,TR!$B$2:$F$633,5,0),"") -> 20:52:00 | J31: 07:45:00 | P31: =IF(AND(L31="",M31=""),IF(OR(SUMPRODUCT(N(ISNUMBER(FIND({"s";"d";"f"},C31))))>0,G31+J31<0,AND(G31>0,J31>0,I31>"20:30"*1),AND(I31<="20:30"*1,SUM(I31,R31)>="20:31"*1)),1,""),"") -> 1 | S31: 07:45:00 | T31: 0.3229166667 | U31: 7.75 | W31: 7.75
B32: 2018-04-29 | C32: CH | E32: =IFERROR(VLOOKUP(C32,TR!$B$2:$F$633,2,0),"") -> 00:00:00 | F32: =IFERROR(VLOOKUP(C32,TR!$B$2:$F$633,3,0),"") -> 00:00:00 | G32: 00:00:00 | H32: =IFERROR(VLOOKUP(C32,TR!$B$2:$F$633,4,0),"") -> 00:00:00 | I32: =IFERROR(VLOOKUP(C32,TR!$B$2:$F$633,5,0),"") -> 00:00:00 | J32: 00:00:00 | P32: =IF(AND(L32="",M32=""),IF(OR(SUMPRODUCT(N(ISNUMBER(FIND({"s";"d";"f"},C32))))>0,G32+J32<0,AND(G32>0,J32>0,I32>"20:30"*1),AND(I32<="20:30"*1,SUM(I32,R32)>="20:31"*1)),1,""),"") ->  | T32: 0 | U32: 0 | W32: 0,00
B33: 2018-04-30 | C33: 803-1p | E33: =IFERROR(VLOOKUP(C33,TR!$B$2:$F$633,2,0),"") -> 00:00:00 | F33: =IFERROR(VLOOKUP(C33,TR!$B$2:$F$633,3,0),"") -> 00:00:00 | G33: 00:00:00 | H33: =IFERROR(VLOOKUP(C33,TR!$B$2:$F$633,4,0),"") -> 11:46:00 | I33: =IFERROR(VLOOKUP(C33,TR!$B$2:$F$633,5,0),"") -> 19:21:00 | J33: 07:35:00 | L33: 1 | P33: =IF(AND(L33="",M33=""),IF(OR(SUMPRODUCT(N(ISNUMBER(FIND({"s";"d";"f"},C33))))>0,G33+J33<0,AND(G33>0,J33>0,I33>"20:30"*1),AND(I33<="20:30"*1,SUM(I33,R33)>="20:31"*1)),1,""),"") ->  | S33: 07:35:00 | T33: 0.3159722222 | U33: 7.583333333 | W33: 7.583333333
E34: =IFERROR(VLOOKUP(C34,TR!$B$2:$F$633,2,0),"") ->  | F34: =IFERROR(VLOOKUP(C34,TR!$B$2:$F$633,3,0),"") ->  | H34: =IFERROR(VLOOKUP(C34,TR!$B$2:$F$633,4,0),"") ->  | I34: =IFERROR(VLOOKUP(C34,TR!$B$2:$F$633,5,0),"") ->  | P34: =IF(AND(L34="",M34=""),IF(OR(SUMPRODUCT(N(ISNUMBER(FIND({"s";"d";"f"},C34))))>0,G34+J34<0,AND(G34>0,J34>0,I34>"20:30"*1),AND(I34<="20:30"*1,SUM(I34,R34)>="20:31"*1)),1,""),"") ->  | W34: 0,00
B36: Jours travaillés | C36: =(COUNTIF(Mars!C24:C34,"<>")+COUNTIF(Avril!C4:C23,"<>"))-(COUNTIF(Mars!C24:C34,"CC*")+COUNTIF(Avril!C4:C23,"CC*"))-(COUNTIF(Mars!C24:C34,"CH*")+COUNTIF(Avril!C4:C23,"CH*"))-(COUNTIF(Mars!C24:C34,"RT*")+COUNTIF(Avril!C4:C23,"RT*"))-(COUNTIF(Mars!C24:C34,"Férié*")+COUNTIF(Avril!C4:C23,"Férié*"))-(COUNTIF(Mars!C24:C34,"Mal*")+COUNTIF(Avril!C4:C23,"Mal*"))-(COUNTIF(Mars!C24:C34,"CP*")+COUNTIF(Avril!C4:C23,"CP*")) -> 17 | I36: Du 21 au 20 | K36: =SUM(Mars!$K$24:$K$34,K4:K23) -> 3 | L36: =SUM(Mars!$L$24:$L$34,L4:L23) -> 4 | M36: =SUM(Mars!$M$24:$M$34,M4:M23) -> 6 | N36: =SUM(Mars!$N$24:$N$34,N4:N23) -> 0 | O36: =SUM(Mars!$O$24:$O$34,O4:O23) -> 1 | P36: =SUM(Mars!$P$24:$P$34,P4:P23) -> 0 | Q36: =SUM(Mars!$Q$24:$Q$34,Q4:Q23) -> 0 | R36: =SUM(Mars!$R$24:$R$34,R4:R23) -> 0.01388888889 | T36: =SUM(Mars!T24:T34)+SUM(Avril!T4:T23) -> 4.472916667 | U36: =SUM(U4:U34) -> 109.05 | V36: =SUM(V4:V34) -> 0
B37: CP | C37: =(COUNTIF(Mars!C24:C34,"CP")+COUNTIF(Avril!C4:C23,"CP")) -> 4 | K37: =(I39*2)*K36 -> 53.1168 | L37: =Recap!H35*L36 -> 28.56 | M37: =Recap!H35*M36 -> 42.84 | N37: =(I39*5)*N36 -> 0 | O37: =(Recap!H33)*O36 -> 102.469 | P37: =7.5*P36 -> 0 | Q37: =(I39*1.5)*Q36 -> 0 | R37: =R36*24 -> 0.3333333333
B38: CH | C38: =(COUNTIF(Mars!C24:C34,"CH")+COUNTIF(Avril!C4:C23,"CH")) -> 6 | I38: VP | T38: Horaire mensuel | V38: 6.175 | W38: =V38*24 -> 148.2
B39: RT | C39: =(COUNTIF(Mars!C24:C34,"RT")+COUNTIF(Avril!C4:C23,"RT")) -> 0 | I39: 8.8528
B40: CC | C40: =(COUNTIF(Mars!C24:C34,"CC")+COUNTIF(Avril!C4:C23,"CC")) -> 4 | T40: Différence | V40: =IF(V38>T36,"-","")&TEXT(ABS(T36-V38),"[h]:mm") -> -40:51 | W40: =(T36-V38)*24 -> -40.85
B41: Férié | C41: =(COUNTIF(Mars!C24:C34,"Férié")+COUNTIF(Avril!C4:C23,"Férié")) -> 0
B42: Férié CC-CH-RT | C42: =(COUNTIF(Mars!C24:C34,"FériéCC")+COUNTIF(Avril!C4:C23,"FériéCC")+(COUNTIF(Mars!C24:C34,"FériéCH")+COUNTIF(Avril!C4:C23,"FériéCH")+(COUNTIF(Mars!C24:C34,"FériéRT")+COUNTIF(Avril!C4:C23,"FériéRT")))) -> 0 | R42: Heures réelles | T42: =SUM(T4:T34) -> 4.54375
T43: =T42*24 -> 109.05 | W43: =(T42-V38)*24 -> -39.15
F45: NOTES

Sheet Mai
B1: MAI
T2: TOTAL
B3: Date | C3: Services | D3: Obs. | E3: MATIN | G3: Temps | H3: APRES MIDI | J3: Temps | K3: Prime nuit | L3: PJ1 | M3: PJ2 | N3: Dimanche | O3: Férié | P3: ChècDej | Q3: PrimAmp | R3: H Supp | S3: Ampli | T3: Heures | U3: Centièmes | V3: Kéolis | W3: Écart
B4: 2018-05-01 | C4: FériéCC | E4: =IFERROR(VLOOKUP(C4,TR!$B$2:$F$633,2,0),"") -> 00:00:00 | F4: =IFERROR(VLOOKUP(C4,TR!$B$2:$F$633,3,0),"") -> 00:00:00 | G4: =IF(ISERROR(F4-E4),0,F4-E4) -> 00:00:00 | H4: =IFERROR(VLOOKUP(C4,TR!$B$2:$F$633,4,0),"") -> 00:00:00 | I4: =IFERROR(VLOOKUP(C4,TR!$B$2:$F$633,5,0),"") -> 00:00:00 | J4: =IF(ISERROR(I4-H4),0,(I4-H4)) -> 00:00:00 | K4: =IF(COUNTA(E4:F4,H4:I4)=5,1,IF(AND(E4<"5:00"*1,E4>"2:00"*1),1,IF(AND(I4>="22:01"*1,I4<="26:01"*1),1,IF(AND(I4<="22:00"*1,SUM(I4,R4)>="22:01"*1),1,"")))) ->  | L4: =IF(AND(F4>="13:15"*1,H4<""),1,IF(AND(H4>="11:00"*1,H4<="12:15"*1),1,IF(AND(F4<="13:15"*1,SUM(F4,R4)>="13:15"*1),1,""))) ->  | M4: =IF(AND(I4>="19:30"*1,1,I4>"21:30"*1,C4<>""),1,IF(AND(I4<="21:30"*1,SUM(I4,R4)>="21:30"*1),1,"")) ->  | N4: =IF(AND(LEFT(C4,1)="d",AND(Avril!N33<>1)),1,IF(AND(LEFT(C4,1)="s",I4>="24:01"*1),1,IF(AND(I4<>"",I4<="23:59"*1,SUM(I4,R4)>="24:01"*1),1,""))) ->  | O4: =IF(AND(I4>"24:00"*1,ISNUMBER(FIND("f",C5))),1,IF(AND(OR(ISNUMBER(FIND("FériéCC",C4)),ISNUMBER(FIND("FériéCH",C4)),ISNUMBER(FIND("f",C4)))),1,"")) -> 1 | P4: =IF(AND(L4="",M4=""),IF(OR(SUMPRODUCT(N(ISNUMBER(FIND({"s";"d";"f"},C4))))>0,G4+J4<0,AND(G4>0,J4>0,I4>"20:30"*1),AND(I4<="20:30"*1,SUM(I4,R4)>="20:31"*1)),1,""),"") ->  | Q4: =IF(OR(AND(G4>0,AND(J4=0)),OR(G4=0,AND(J4>0)),OR(G4+J4>0)),IF(S4="","",IF(R4+S4>="13:01"*1,1,""))) ->  | S4: =IF(G4=0,IF(J4=0,"",I4-H4),IF(J4=0,F4-E4,I4-E4)) ->  | T4: =IF(ISERROR((F4-E4)+(I4-H4)),0,(F4-E4)+(I4-H4)) -> 0 | U4: =T4*24 -> 0 | W4: =IF(U4-V4=0,"0,00",U4-V4) -> 0,00
B5: 2018-05-02 | C5: 902-ap | E5: =IFERROR(VLOOKUP(C5,TR!$B$2:$F$633,2,0),"") -> 00:00:00 | F5: =IFERROR(VLOOKUP(C5,TR!$B$2:$F$633,3,0),"") -> 00:00:00 | G5: =IF(ISERROR(F5-E5),0,F5-E5) -> 00:00:00 | H5: =IFERROR(VLOOKUP(C5,TR!$B$2:$F$633,4,0),"") -> 16:20:00 | I5: =IFERROR(VLOOKUP(C5,TR!$B$2:$F$633,5,0),"") -> 1.0125 | J5: =IF(ISERROR(I5-H5),0,(I5-H5)) -> 07:58:00 | K5: 1 | M5: 1 | N5: =IF(AND(LEFT(C5,1)="d",AND(N4<>1)),1,IF(AND(LEFT(C5,1)="s",I5>="24:01"*1),1,IF(AND(I5<>"",I5<="23:59"*1,SUM(I5,R5)>="24:01"*1),1,""))) ->  | P5: =IF(AND(L5="",M5=""),IF(OR(SUMPRODUCT(N(ISNUMBER(FIND({"s";"d";"f"},C5))))>0,G5+J5<0,AND(G5>0,J5>0,I5>"20:30"*1),AND(I5<="20:30"*1,SUM(I5,R5)>="20:31"*1)),1,""),"") ->  | Q5: =IF(OR(AND(G5>0,AND(J5=0)),OR(G5=0,AND(J5>0)),OR(G5+J5>0)),IF(S5="","",IF(R5+S5>="13:01"*1,1,""))) ->  | S5: 07:58:00 | T5: 0.3319444444 | U5: =T5*24 -> 7.966666667 | W5: =IF(U5-V5=0,"0,00",U5-V5) -> 7.966666667
B6: 2018-05-03 | C6: 809-1p | E6: =IFERROR(VLOOKUP(C6,TR!$B$2:$F$633,2,0),"") -> 00:00:00 | F6: =IFERROR(VLOOKUP(C6,TR!$B$2:$F$633,3,0),"") -> 00:00:00 | G6: 00:00:00 | H6: =IFERROR(VLOOKUP(C6,TR!$B$2:$F$633,4,0),"") -> 12:25:00 | I6: =IFERROR(VLOOKUP(C6,TR!$B$2:$F$633,5,0),"") -> 20:16:00 | J6: 07:51:00 | P6: =IF(AND(L6="",M6=""),IF(OR(SUMPRODUCT(N(ISNUMBER(FIND({"s";"d";"f"},C6))))>0,G6+J6<0,AND(G6>0,J6>0,I6>"20:30"*1),AND(I6<="20:30"*1,SUM(I6,R6)>="20:31"*1)),1,""),"") ->  | S6: 07:51:00 | T6: 0.3270833333 | U6: =T6*24 -> 7.85 | W6: 7.85
B7: 2018-05-04 | C7: v864-21p | E7: =IFERROR(VLOOKUP(C7,TR!$B$2:$F$633,2,0),"") -> 00:00:00 | F7: =IFERROR(VLOOKUP(C7,TR!$B$2:$F$633,3,0),"") -> 00:00:00 | G7: 00:00:00 | H7: =IFERROR(VLOOKUP(C7,TR!$B$2:$F$633,4,0),"") -> 13:28:00 | I7: =IFERROR(VLOOKUP(C7,TR!$B$2:$F$633,5,0),"") -> 21:18:00 | J7: 07:50:00 | P7: =IF(AND(L7="",M7=""),IF(OR(SUMPRODUCT(N(ISNUMBER(FIND({"s";"d";"f"},C7))))>0,G7+J7<0,AND(G7>0,J7>0,I7>"20:30"*1),AND(I7<="20:30"*1,SUM(I7,R7)>="20:31"*1)),1,""),"") ->  | S7: 07:50:00 | T7: 0.3263888889 | U7: =T7*24 -> 7.833333333 | W7: 7.833333333
B8: 2018-05-05 | C8: CC | E8: =IFERROR(VLOOKUP(C8,TR!$B$2:$F$633,2,0),"") -> 00:00:00 | F8: =IFERROR(VLOOKUP(C8,TR!$B$2:$F$633,3,0),"") -> 00:00:00 | G8: 00:00:00 | H8: =IFERROR(VLOOKUP(C8,TR!$B$2:$F$633,4,0),"") -> 00:00:00 | I8: =IFERROR(VLOOKUP(C8,TR!$B$2:$F$633,5,0),"") -> 00:00:00 | J8: 00:00:00 | P8: =IF(AND(L8="",M8=""),IF(OR(SUMPRODUCT(N(ISNUMBER(FIND({"s";"d";"f"},C8))))>0,G8+J8<0,AND(G8>0,J8>0,I8>"20:30"*1),AND(I8<="20:30"*1,SUM(I8,R8)>="20:31"*1)),1,""),"") ->  | T8: 0 | U8: 0 | W8: 0,00
B9: 2018-05-06 | C9: FériéCC | E9: =IFERROR(VLOOKUP(C9,TR!$B$2:$F$633,2,0),"") -> 00:00:00 | F9: =IFERROR(VLOOKUP(C9,TR!$B$2:$F$633,3,0),"") -> 00:00:00 | G9: 00:00:00 | H9: =IFERROR(VLOOKUP(C9,TR!$B$2:$F$633,4,0),"") -> 00:00:00 | I9: =IFERROR(VLOOKUP(C9,TR!$B$2:$F$633,5,0),"") -> 00:00:00 | J9: 00:00:00 | O9: 1 | P9: =IF(AND(L9="",M9=""),IF(OR(SUMPRODUCT(N(ISNUMBER(FIND({"s";"d";"f"},C9))))>0,G9+J9<0,AND(G9>0,J9>0,I9>"20:30"*1),AND(I9<="20:30"*1,SUM(I9,R9)>="20:31"*1)),1,""),"") ->  | T9: 0 | U9: 0 | W9: 0,00
B10: 2018-05-07 | C10: RT | E10: =IFERROR(VLOOKUP(C10,TR!$B$2:$F$633,2,0),"") -> 00:00:00 | F10: =IFERROR(VLOOKUP(C10,TR!$B$2:$F$633,3,0),"") -> 00:00:00 | G10: 00:00:00 | H10: =IFERROR(VLOOKUP(C10,TR!$B$2:$F$633,4,0),"") -> 00:00:00 | I10: =IFERROR(VLOOKUP(C10,TR!$B$2:$F$633,5,0),"") -> 00:00:00 | J10: 00:00:00 | P10: =IF(AND(L10="",M10=""),IF(OR(SUMPRODUCT(N(ISNUMBER(FIND({"s";"d";"f"},C10))))>0,G10+J10<0,AND(G10>0,J10>0,I10>"20:30"*1),AND(I10<="20:30"*1,SUM(I10,R10)>="20:31"*1)),1,""),"") ->  | T10: 0 | U10: 0 | W10: 0,00
B11: 2018-05-08 | C11: CC | E11: =IFERROR(VLOOKUP(C11,TR!$B$2:$F$633,2,0),"") -> 00:00:00 | F11: =IFERROR(VLOOKUP(C11,TR!$B$2:$F$633,3,0),"") -> 00:00:00 | G11: 00:00:00 | H11: =IFERROR(VLOOKUP(C11,TR!$B$2:$F$633,4,0),"") -> 00:00:00 | I11: =IFERROR(VLOOKUP(C11,TR!$B$2:$F$633,5,0),"") -> 00:00:00 | J11: 00:00:00 | P11: =IF(AND(L11="",M11=""),IF(OR(SUMPRODUCT(N(ISNUMBER(FIND({"s";"d";"f"},C11))))>0,G11+J11<0,AND(G11>0,J11>0,I11>"20:30"*1),AND(I11<="20:30"*1,SUM(I11,R11)>="20:31"*1)),1,""),"") ->  | T11: 0 | U11: 0 | W11: 0,00
B12: 2018-05-09 | C12: 705-1p | E12: =IFERROR(VLOOKUP(C12,TR!$B$2:$F$633,2,0),"") -> 05:49:00 | F12: =IFERROR(VLOOKUP(C12,TR!$B$2:$F$633,3,0),"") -> 13:30:00 | G12: 07:41:00 | H12: =IFERROR(VLOOKUP(C12,TR!$B$2:$F$633,4,0),"") -> 00:00:00 | I12: =IFERROR(VLOOKUP(C12,TR!$B$2:$F$633,5,0),"") -> 00:00:00 | J12: 00:00:00 | L12: 1 | P12: =IF(AND(L12="",M12=""),IF(OR(SUMPRODUCT(N(ISNUMBER(FIND({"s";"d";"f"},C12))))>0,G12+J12<0,AND(G12>0,J12>0,I12>"20:30"*1),AND(I12<="20:30"*1,SUM(I12,R12)>="20:31"*1)),1,""),"") ->  | S12: 07:41:00 | T12: 0.3201388889 | U12: 7.683333333 | W12: 7.683333333
B13: 2018-05-10 | C13: Férié | E13: =IFERROR(VLOOKUP(C13,TR!$B$2:$F$633,2,0),"") -> 00:00:00 | F13: =IFERROR(VLOOKUP(C13,TR!$B$2:$F$633,3,0),"") -> 00:00:00 | G13: 00:00:00 | H13: =IFERROR(VLOOKUP(C13,TR!$B$2:$F$633,4,0),"") -> 00:00:00 | I13: =IFERROR(VLOOKUP(C13,TR!$B$2:$F$633,5,0),"") -> 00:00:00 | J13: 00:00:00 | P13: =IF(AND(L13="",M13=""),IF(OR(SUMPRODUCT(N(ISNUMBER(FIND({"s";"d";"f"},C13))))>0,G13+J13<0,AND(G13>0,J13>0,I13>"20:30"*1),AND(I13<="20:30"*1,SUM(I13,R13)>="20:31"*1)),1,""),"") ->  | T13: 0 | U13: 0 | W13: 0,00
B14: 2018-05-11 | C14: v759-18p | E14: =IFERROR(VLOOKUP(C14,TR!$B$2:$F$633,2,0),"") -> 04:51:00 | F14: =IFERROR(VLOOKUP(C14,TR!$B$2:$F$633,3,0),"") -> 12:26:00 | G14: 07:35:00 | H14: =IFERROR(VLOOKUP(C14,TR!$B$2:$F$633,4,0),"") -> 00:00:00 | I14: =IFERROR(VLOOKUP(C14,TR!$B$2:$F$633,5,0),"") -> 00:00:00 | J14: 00:00:00 | K14: 1 | P14: =IF(AND(L14="",M14=""),IF(OR(SUMPRODUCT(N(ISNUMBER(FIND({"s";"d";"f"},C14))))>0,G14+J14<0,AND(G14>0,J14>0,I14>"20:30"*1),AND(I14<="20:30"*1,SUM(I14,R14)>="20:31"*1)),1,""),"") ->  | S14: 07:35:00 | T14: 0.3159722222 | U14: 7.583333333 | W14: 7.583333333
B15: 2018-05-12 | C15: s719-3p | E15: =IFERROR(VLOOKUP(C15,TR!$B$2:$F$633,2,0),"") -> 05:49:00 | F15: =IFERROR(VLOOKUP(C15,TR!$B$2:$F$633,3,0),"") -> 13:36:00 | G15: 07:47:00 | H15: =IFERROR(VLOOKUP(C15,TR!$B$2:$F$633,4,0),"") -> 00:00:00 | I15: =IFERROR(VLOOKUP(C15,TR!$B$2:$F$633,5,0),"") -> 00:00:00 | J15: 00:00:00 | L15: 1 | P15: =IF(AND(L15="",M15=""),IF(OR(SUMPRODUCT(N(ISNUMBER(FIND({"s";"d";"f"},C15))))>0,G15+J15<0,AND(G15>0,J15>0,I15>"20:30"*1),AND(I15<="20:30"*1,SUM(I15,R15)>="20:31"*1)),1,""),"") ->  | S15: 07:47:00 | T15: 0.3243055556 | U15: 7.783333333 | W15: 7.783333333
B16: 2018-05-13 | C16: CH | E16: =IFERROR(VLOOKUP(C16,TR!$B$2:$F$633,2,0),"") -> 00:00:00 | F16: =IFERROR(VLOOKUP(C16,TR!$B$2:$F$633,3,0),"") -> 00:00:00 | G16: 00:00:00 | H16: =IFERROR(VLOOKUP(C16,TR!$B$2:$F$633,4,0),"") -> 00:00:00 | I16: =IFERROR(VLOOKUP(C16,TR!$B$2:$F$633,5,0),"") -> 00:00:00 | J16: 00:00:00 | P16: =IF(AND(L16="",M16=""),IF(OR(SUMPRODUCT(N(ISNUMBER(FIND({"s";"d";"f"},C16))))>0,G16+J16<0,AND(G16>0,J16>0,I16>"20:30"*1),AND(I16<="20:30"*1,SUM(I16,R16)>="20:31"*1)),1,""),"") ->  | T16: 0 | U16: 0 | W16: 0,00
B17: 2018-05-14 | C17: 801-rh | E17: =IFERROR(VLOOKUP(C17,TR!$B$2:$F$633,2,0),"") -> 00:00:00 | F17: =IFERROR(VLOOKUP(C17,TR!$B$2:$F$633,3,0),"") -> 00:00:00 | G17: 00:00:00 | H17: =IFERROR(VLOOKUP(C17,TR!$B$2:$F$633,4,0),"") -> 13:30:00 | I17: =IFERROR(VLOOKUP(C17,TR!$B$2:$F$633,5,0),"") -> 21:06:00 | J17: 07:36:00 | P17: =IF(AND(L17="",M17=""),IF(OR(SUMPRODUCT(N(ISNUMBER(FIND({"s";"d";"f"},C17))))>0,G17+J17<0,AND(G17>0,J17>0,I17>"20:30"*1),AND(I17<="20:30"*1,SUM(I17,R17)>="20:31"*1)),1,""),"") ->  | S17: 07:36:00 | T17: 0.3166666667 | U17: 7.6 | W17: 7.6
B18: 2018-05-15 | C18: 805-a | E18: =IFERROR(VLOOKUP(C18,TR!$B$2:$F$633,2,0),"") -> 00:00:00 | F18: =IFERROR(VLOOKUP(C18,TR!$B$2:$F$633,3,0),"") -> 00:00:00 | G18: 00:00:00 | H18: =IFERROR(VLOOKUP(C18,TR!$B$2:$F$633,4,0),"") -> 12:03:00 | I18: =IFERROR(VLOOKUP(C18,TR!$B$2:$F$633,5,0),"") -> 20:02:00 | J18: 07:59:00 | L18: 1 | P18: =IF(AND(L18="",M18=""),IF(OR(SUMPRODUCT(N(ISNUMBER(FIND({"s";"d";"f"},C18))))>0,G18+J18<0,AND(G18>0,J18>0,I18>"20:30"*1),AND(I18<="20:30"*1,SUM(I18,R18)>="20:31"*1)),1,""),"") ->  | S18: 07:59:00 | T18: 0.3326388889 | U18: 7.983333333 | W18: 7.983333333
B19: 2018-05-16 | C19: 808-b | E19: =IFERROR(VLOOKUP(C19,TR!$B$2:$F$633,2,0),"") -> 00:00:00 | F19: =IFERROR(VLOOKUP(C19,TR!$B$2:$F$633,3,0),"") -> 00:00:00 | G19: 00:00:00 | H19: =IFERROR(VLOOKUP(C19,TR!$B$2:$F$633,4,0),"") -> 14:23:00 | I19: =IFERROR(VLOOKUP(C19,TR!$B$2:$F$633,5,0),"") -> 21:54:00 | J19: 07:31:00 | K19: 1 | M19: 1 | P19: =IF(AND(L19="",M19=""),IF(OR(SUMPRODUCT(N(ISNUMBER(FIND({"s";"d";"f"},C19))))>0,G19+J19<0,AND(G19>0,J19>0,I19>"20:30"*1),AND(I19<="20:30"*1,SUM(I19,R19)>="20:31"*1)),1,""),"") ->  | R19: 0.01111111111 | S19: 07:31:00 | T19: 0.3131944444 | U19: 7.516666667 | W19: 7.516666667
B20: 2018-05-17 | C20: CC | E20: =IFERROR(VLOOKUP(C20,TR!$B$2:$F$633,2,0),"") -> 00:00:00 | F20: =IFERROR(VLOOKUP(C20,TR!$B$2:$F$633,3,0),"") -> 00:00:00 | G20: 00:00:00 | H20: =IFERROR(VLOOKUP(C20,TR!$B$2:$F$633,4,0),"") -> 00:00:00 | I20: =IFERROR(VLOOKUP(C20,TR!$B$2:$F$633,5,0),"") -> 00:00:00 | J20: 00:00:00 | P20: =IF(AND(L20="",M20=""),IF(OR(SUMPRODUCT(N(ISNUMBER(FIND({"s";"d";"f"},C20))))>0,G20+J20<0,AND(G20>0,J20>0,I20>"20:30"*1),AND(I20<="20:30"*1,SUM(I20,R20)>="20:31"*1)),1,""),"") ->  | T20: 0 | U20: 0 | W20: 0,00
B21: 2018-05-18 | C21: CC | E21: =IFERROR(VLOOKUP(C21,TR!$B$2:$F$633,2,0),"") -> 00:00:00 | F21: =IFERROR(VLOOKUP(C21,TR!$B$2:$F$633,3,0),"") -> 00:00:00 | G21: 00:00:00 | H21: =IFERROR(VLOOKUP(C21,TR!$B$2:$F$633,4,0),"") -> 00:00:00 | I21: =IFERROR(VLOOKUP(C21,TR!$B$2:$F$633,5,0),"") -> 00:00:00 | J21: 00:00:00 | P21: =IF(AND(L21="",M21=""),IF(OR(SUMPRODUCT(N(ISNUMBER(FIND({"s";"d";"f"},C21))))>0,G21+J21<0,AND(G21>0,J21>0,I21>"20:30"*1),AND(I21<="20:30"*1,SUM(I21,R21)>="20:31"*1)),1,""),"") ->  | T21: 0 | U21: 0 | W21: 0,00
B22: 2018-05-19 | C22: s864-15 | E22: =IFERROR(VLOOKUP(C22,TR!$B$2:$F$633,2,0),"") -> 00:00:00 | F22: =IFERROR(VLOOKUP(C22,TR!$B$2:$F$633,3,0),"") -> 00:00:00 | G22: 00:00:00 | H22: =IFERROR(VLOOKUP(C22,TR!$B$2:$F$633,4,0),"") -> 14:23:00 | I22: =IFERROR(VLOOKUP(C22,TR!$B$2:$F$633,5,0),"") -> 21:54:00 | J22: 07:31:00 | M22: 1 | P22: =IF(AND(L22="",M22=""),IF(OR(SUMPRODUCT(N(ISNUMBER(FIND({"s";"d";"f"},C22))))>0,G22+J22<0,AND(G22>0,J22>0,I22>"20:30"*1),AND(I22<="20:30"*1,SUM(I22,R22)>="20:31"*1)),1,""),"") ->  | S22: 07:31:00 | T22: 0.3131944444 | U22: 7.516666667 | W22: 7.516666667
B23: 2018-05-20 | C23: CH | E23: =IFERROR(VLOOKUP(C23,TR!$B$2:$F$633,2,0),"") -> 00:00:00 | F23: =IFERROR(VLOOKUP(C23,TR!$B$2:$F$633,3,0),"") -> 00:00:00 | G23: 00:00:00 | H23: =IFERROR(VLOOKUP(C23,TR!$B$2:$F$633,4,0),"") -> 00:00:00 | I23: =IFERROR(VLOOKUP(C23,TR!$B$2:$F$633,5,0),"") -> 00:00:00 | J23: 00:00:00 | P23: =IF(AND(L23="",M23=""),IF(OR(SUMPRODUCT(N(ISNUMBER(FIND({"s";"d";"f"},C23))))>0,G23+J23<0,AND(G23>0,J23>0,I23>"20:30"*1),AND(I23<="20:30"*1,SUM(I23,R23)>="20:31"*1)),1,""),"") ->  | T23: 0 | U23: 0 | W23: 0,00
B24: 2018-05-21 | C24: Férié | E24: =IFERROR(VLOOKUP(C24,TR!$B$2:$F$633,2,0),"") -> 00:00:00 | F24: =IFERROR(VLOOKUP(C24,TR!$B$2:$F$633,3,0),"") -> 00:00:00 | G24: 00:00:00 | H24: =IFERROR(VLOOKUP(C24,TR!$B$2:$F$633,4,0),"") -> 00:00:00 | I24: =IFERROR(VLOOKUP(C24,TR!$B$2:$F$633,5,0),"") -> 00:00:00 | J24: 00:00:00 | P24: =IF(AND(L24="",M24=""),IF(OR(SUMPRODUCT(N(ISNUMBER(FIND({"s";"d";"f"},C24))))>0,G24+J24<0,AND(G24>0,J24>0,I24>"20:30"*1),AND(I24<="20:30"*1,SUM(I24,R24)>="20:31"*1)),1,""),"") ->  | T24: 0 | U24: 0 | W24: 0,00
B25: 2018-05-22 | C25: 714-a | E25: =IFERROR(VLOOKUP(C25,TR!$B$2:$F$633,2,0),"") -> 06:35:00 | F25: =IFERROR(VLOOKUP(C25,TR!$B$2:$F$633,3,0),"") -> 14:02:00 | G25: 07:27:00 | H25: =IFERROR(VLOOKUP(C25,TR!$B$2:$F$633,4,0),"") -> 00:00:00 | I25: =IFERROR(VLOOKUP(C25,TR!$B$2:$F$633,5,0),"") -> 00:00:00 | J25: 00:00:00 | L25: 1 | P25: =IF(AND(L25="",M25=""),IF(OR(SUMPRODUCT(N(ISNUMBER(FIND({"s";"d";"f"},C25))))>0,G25+J25<0,AND(G25>0,J25>0,I25>"20:30"*1),AND(I25<="20:30"*1,SUM(I25,R25)>="20:31"*1)),1,""),"") ->  | S25: 07:27:00 | T25: 0.3104166667 | U25: 7.45 | W25: 7.45
B26: 2018-05-23 | C26: 708-a | E26: =IFERROR(VLOOKUP(C26,TR!$B$2:$F$633,2,0),"") -> 05:09:00 | F26: =IFERROR(VLOOKUP(C26,TR!$B$2:$F$633,3,0),"") -> 13:00:00 | G26: 07:51:00 | H26: =IFERROR(VLOOKUP(C26,TR!$B$2:$F$633,4,0),"") -> 00:00:00 | I26: =IFERROR(VLOOKUP(C26,TR!$B$2:$F$633,5,0),"") -> 00:00:00 | J26: 00:00:00 | P26: =IF(AND(L26="",M26=""),IF(OR(SUMPRODUCT(N(ISNUMBER(FIND({"s";"d";"f"},C26))))>0,G26+J26<0,AND(G26>0,J26>0,I26>"20:30"*1),AND(I26<="20:30"*1,SUM(I26,R26)>="20:31"*1)),1,""),"") ->  | S26: 07:51:00 | T26: 0.3270833333 | U26: 7.85 | W26: 7.85
B27: 2018-05-24 | C27: 746-7 | E27: =IFERROR(VLOOKUP(C27,TR!$B$2:$F$633,2,0),"") -> 06:48:00 | F27: =IFERROR(VLOOKUP(C27,TR!$B$2:$F$633,3,0),"") -> 14:02:00 | G27: 07:14:00 | H27: =IFERROR(VLOOKUP(C27,TR!$B$2:$F$633,4,0),"") -> 00:00:00 | I27: =IFERROR(VLOOKUP(C27,TR!$B$2:$F$633,5,0),"") -> 00:00:00 | J27: 00:00:00 | L27: 1 | P27: =IF(AND(L27="",M27=""),IF(OR(SUMPRODUCT(N(ISNUMBER(FIND({"s";"d";"f"},C27))))>0,G27+J27<0,AND(G27>0,J27>0,I27>"20:30"*1),AND(I27<="20:30"*1,SUM(I27,R27)>="20:31"*1)),1,""),"") ->  | S27: 07:14:00 | T27: 0.3013888889 | U27: 7.233333333 | W27: 7.233333333
B28: 2018-05-25 | C28: v723-2 | E28: =IFERROR(VLOOKUP(C28,TR!$B$2:$F$633,2,0),"") -> 05:54:00 | F28: =IFERROR(VLOOKUP(C28,TR!$B$2:$F$633,3,0),"") -> 13:20:00 | G28: 07:26:00 | H28: =IFERROR(VLOOKUP(C28,TR!$B$2:$F$633,4,0),"") -> 00:00:00 | I28: =IFERROR(VLOOKUP(C28,TR!$B$2:$F$633,5,0),"") -> 00:00:00 | J28: 00:00:00 | L28: 1 | P28: =IF(AND(L28="",M28=""),IF(OR(SUMPRODUCT(N(ISNUMBER(FIND({"s";"d";"f"},C28))))>0,G28+J28<0,AND(G28>0,J28>0,I28>"20:30"*1),AND(I28<="20:30"*1,SUM(I28,R28)>="20:31"*1)),1,""),"") ->  | S28: 07:26:00 | T28: 0.3097222222 | U28: 7.433333333 | W28: 7.433333333
B29: 2018-05-26 | C29: CC | E29: =IFERROR(VLOOKUP(C29,TR!$B$2:$F$633,2,0),"") -> 00:00:00 | F29: =IFERROR(VLOOKUP(C29,TR!$B$2:$F$633,3,0),"") -> 00:00:00 | G29: 00:00:00 | H29: =IFERROR(VLOOKUP(C29,TR!$B$2:$F$633,4,0),"") -> 00:00:00 | I29: =IFERROR(VLOOKUP(C29,TR!$B$2:$F$633,5,0),"") -> 00:00:00 | J29: 00:00:00 | P29: =IF(AND(L29="",M29=""),IF(OR(SUMPRODUCT(N(ISNUMBER(FIND({"s";"d";"f"},C29))))>0,G29+J29<0,AND(G29>0,J29>0,I29>"20:30"*1),AND(I29<="20:30"*1,SUM(I29,R29)>="20:31"*1)),1,""),"") ->  | T29: 0 | U29: 0 | W29: 0,00
B30: 2018-05-27 | C30: CH | E30: =IFERROR(VLOOKUP(C30,TR!$B$2:$F$633,2,0),"") -> 00:00:00 | F30: =IFERROR(VLOOKUP(C30,TR!$B$2:$F$633,3,0),"") -> 00:00:00 | G30: 00:00:00 | H30: =IFERROR(VLOOKUP(C30,TR!$B$2:$F$633,4,0),"") -> 00:00:00 | I30: =IFERROR(VLOOKUP(C30,TR!$B$2:$F$633,5,0),"") -> 00:00:00 | J30: 00:00:00 | P30: =IF(AND(L30="",M30=""),IF(OR(SUMPRODUCT(N(ISNUMBER(FIND({"s";"d";"f"},C30))))>0,G30+J30<0,AND(G30>0,J30>0,I30>"20:30"*1),AND(I30<="20:30"*1,SUM(I30,R30)>="20:31"*1)),1,""),"") ->  | T30: 0 | U30: 0 | W30: 0,00
B31: 2018-05-28 | C31: RT | E31: =IFERROR(VLOOKUP(C31,TR!$B$2:$F$633,2,0),"") -> 00:00:00 | F31: =IFERROR(VLOOKUP(C31,TR!$B$2:$F$633,3,0),"") -> 00:00:00 | G31: 00:00:00 | H31: =IFERROR(VLOOKUP(C31,TR!$B$2:$F$633,4,0),"") -> 00:00:00 | I31: =IFERROR(VLOOKUP(C31,TR!$B$2:$F$633,5,0),"") -> 00:00:00 | J31: 00:00:00 | P31: =IF(AND(L31="",M31=""),IF(OR(SUMPRODUCT(N(ISNUMBER(FIND({"s";"d";"f"},C31))))>0,G31+J31<0,AND(G31>0,J31>0,I31>"20:30"*1),AND(I31<="20:30"*1,SUM(I31,R31)>="20:31"*1)),1,""),"") ->  | T31: 0 | U31: 0 | W31: 0,00
B32: 2018-05-29 | C32: 104-3 | E32: =IFERROR(VLOOKUP(C32,TR!$B$2:$F$633,2,0),"") -> 09:10:00 | F32: =IFERROR(VLOOKUP(C32,TR!$B$2:$F$633,3,0),"") -> 13:07:00 | G32: 03:57:00 | H32: =IFERROR(VLOOKUP(C32,TR!$B$2:$F$633,4,0),"") -> 17:10:00 | I32: =IFERROR(VLOOKUP(C32,TR!$B$2:$F$633,5,0),"") -> 21:37:00 | J32: 04:27:00 | M32: 1 | P32: =IF(AND(L32="",M32=""),IF(OR(SUMPRODUCT(N(ISNUMBER(FIND({"s";"d";"f"},C32))))>0,G32+J32<0,AND(G32>0,J32>0,I32>"20:30"*1),AND(I32<="20:30"*1,SUM(I32,R32)>="20:31"*1)),1,""),"") ->  | S32: 12:27:00 | T32: 0.35 | U32: 8.4 | W32: 8.4
B33: 2018-05-30 | C33: 203-8 | E33: =IFERROR(VLOOKUP(C33,TR!$B$2:$F$633,2,0),"") -> 11:30:00 | F33: =IFERROR(VLOOKUP(C33,TR!$B$2:$F$633,3,0),"") -> 14:05:00 | G33: 02:35:00 | H33: =IFERROR(VLOOKUP(C33,TR!$B$2:$F$633,4,0),"") -> 15:32:00 | I33: =IFERROR(VLOOKUP(C33,TR!$B$2:$F$633,5,0),"") -> 21:30:00 | J33: 05:58:00 | L33: 1 | M33: 1 | P33: =IF(AND(L33="",M33=""),IF(OR(SUMPRODUCT(N(ISNUMBER(FIND({"s";"d";"f"},C33))))>0,G33+J33<0,AND(G33>0,J33>0,I33>"20:30"*1),AND(I33<="20:30"*1,SUM(I33,R33)>="20:31"*1)),1,""),"") ->  | S33: 10:00:00 | T33: 0.35625 | U33: 8.55 | W33: 8.55
B34: 2018-05-31 | C34: CC | E34: =IFERROR(VLOOKUP(C34,TR!$B$2:$F$633,2,0),"") -> 00:00:00 | F34: =IFERROR(VLOOKUP(C34,TR!$B$2:$F$633,3,0),"") -> 00:00:00 | G34: 00:00:00 | H34: =IFERROR(VLOOKUP(C34,TR!$B$2:$F$633,4,0),"") -> 00:00:00 | I34: =IFERROR(VLOOKUP(C34,TR!$B$2:$F$633,5,0),"") -> 00:00:00 | J34: 00:00:00 | P34: =IF(AND(L34="",M34=""),IF(OR(SUMPRODUCT(N(ISNUMBER(FIND({"s";"d";"f"},C34))))>0,G34+J34<0,AND(G34>0,J34>0,I34>"20:30"*1),AND(I34<="20:30"*1,SUM(I34,R34)>="20:31"*1)),1,""),"") ->  | T34: 0 | U34: 0 | W34: 0,00
B36: Jours travaillés | C36: =(COUNTIF(Avril!C24:C34,"<>")+COUNTIF(Mai!C4:C23,"<>"))-(COUNTIF(Avril!C24:C34,"CC*")+COUNTIF(Mai!C4:C23,"CC*"))-(COUNTIF(Mars!C24:C34,"CH*")+COUNTIF(Mai!C4:C23,"CH*"))-(COUNTIF(Avril!C24:C34,"RT*")+COUNTIF(Mai!C4:C23,"RT*"))-(COUNTIF(Avril!C24:C34,"Férié*")+COUNTIF(Mai!C4:C23,"Férié*"))-(COUNTIF(Avril!C24:C34,"Mal*")+COUNTIF(Mai!C4:C23,"Mal*"))-(COUNTIF(Avril!C24:C34,"CP*")+COUNTIF(Mai!C4:C23,"CP*")) -> 18 | I36: Du 21 au 20 | K36: =SUM(Avril!$K$24:$K$34,K4:K23) -> 4 | L36: =SUM(Avril!$L$24:$L$34,L4:L23) -> 4 | M36: =SUM(Avril!$M$24:$M$34,M4:M23) -> 5 | N36: =SUM(Avril!$N$24:$N$34,N4:N23) -> 1 | O36: =SUM(Avril!$O$24:$O$34,O4:O23) -> 2 | P36: =SUM(Avril!$P$24:$P$34,P4:P23) -> 3 | Q36: =SUM(Avril!$Q$24:$Q$34,Q4:Q23) -> 0 | R36: =SUM(Avril!$R$24:$R$34,R4:R23) -> 00:16:00 | T36: =SUM(Avril!T24:T34)+SUM(Mai!T4:T23) -> 5.509027778 | U36: =SUM(U4:U34) -> 124.2333333 | V36: =SUM(V4:V34) -> 0
B37: CP | C37: =(COUNTIF(Avril!C24:C34,"CP")+COUNTIF(Mai!C4:C23,"CP")) -> 0 | K37: =(I39*2)*K36 -> 70.8224 | L37: =Recap!H35*L36 -> 28.56 | M37: =Recap!H35*M36 -> 35.7 | N37: =(I39*5)*N36 -> 44.264 | O37: =(Recap!H33)*O36 -> 204.938 | P37: =7.5*P36 -> 22.5 | Q37: =(I39*1.5)*Q36 -> 0 | R37: =R36*24 -> 0.2666666667
B38: CH | C38: =(COUNTIF(Avril!C24:C34,"CH")+COUNTIF(Mai!C4:C23,"CH")) -> 3 | I38: VP | T38: Horaire mensuel | V38: 6.175 | W38: =V38*24 -> 148.2
B39: RT | C39: =(COUNTIF(Avril!C24:C34,"RT")+COUNTIF(Mai!C4:C23,"RT")) -> 1 | I39: 8.8528
B40: CC | C40: =(COUNTIF(Avril!C24:C34,"CC")+COUNTIF(Mai!C4:C23,"CC")) -> 5 | T40: Différence | V40: =IF(V38>T36,"-","")&TEXT(ABS(T36-V38),"[h]:mm") -> -15:59 | W40: =(T36-V38)*24 -> -15.98333333
B41: Férié | C41: =(COUNTIF(Avril!C24:C34,"Férié")+COUNTIF(Mai!C4:C23,"Férié")) -> 1
B42: Férié CC-CH-RT | C42: =(COUNTIF(Avril!C24:C34,"FériéCC")+COUNTIF(Mai!C4:C23,"FériéCC")+COUNTIF(Avril!C24:C34,"FériéCH")+COUNTIF(Mai!C4:C23,"FériéCH")+COUNTIF(Avril!C24:C34,"FériéRT")+COUNTIF(Mai!C4:C23,"FériéRT")) -> 2 | R42: Heures réelles | T42: =SUM(T4:T34) -> 5.176388889
T43: =T42*24 -> 124.2333333 | W43: =(T42-V38)*24 -> -23.96666667
F45: NOTES

Sheet Juin
B1: JUIN
T2: TOTAL
B3: Date | C3: Services | D3: Obs. | E3: MATIN | G3: Temps | H3: APRES MIDI | J3: Temps | K3: Prime nuit | L3: PJ1 | M3: PJ2 | N3: Dimanche | O3: Férié | P3: ChècDej | Q3: PrimAmp | R3: H Supp | S3: Ampli | T3: Heures | U3: Centièmes | V3: Kéolis | W3: Écart
B4: 2018-06-01 | C4: CH | E4: =IFERROR(VLOOKUP(C4,TR!$B$2:$F$633,2,0),"") -> 00:00:00 | F4: =IFERROR(VLOOKUP(C4,TR!$B$2:$F$633,3,0),"") -> 00:00:00 | G4: =IF(ISERROR(F4-E4),0,F4-E4) -> 00:00:00 | H4: =IFERROR(VLOOKUP(C4,TR!$B$2:$F$633,4,0),"") -> 00:00:00 | I4: =IFERROR(VLOOKUP(C4,TR!$B$2:$F$633,5,0),"") -> 00:00:00 | J4: =IF(ISERROR(I4-H4),0,(I4-H4)) -> 00:00:00 | K4: =IF(COUNTA(E4:F4,H4:I4)=5,1,IF(AND(E4<"5:00"*1,E4>"2:00"*1),1,IF(AND(I4>="22:01"*1,I4<="26:01"*1),1,IF(AND(I4<="22:00"*1,SUM(I4,R4)>="22:01"*1),1,"")))) ->  | L4: =IF(AND(F4>="13:15"*1,H4<""),1,IF(AND(H4>="11:00"*1,H4<="12:15"*1),1,IF(AND(F4<="13:15"*1,SUM(F4,R4)>="13:15"*1),1,""))) ->  | M4: =IF(AND(I4>="19:30"*1,1,I4>"21:30"*1,C4<>""),1,IF(AND(I4<="21:30"*1,SUM(I4,R4)>="21:30"*1),1,"")) ->  | N4: =IF(AND(LEFT(C4,1)="d",AND(Mai!N34<>1)),1,IF(AND(LEFT(C4,1)="s",I4>="24:01"*1),1,IF(AND(I4<>"",I4<="23:59"*1,SUM(I4,R4)>="24:01"*1),1,""))) ->  | O4: =IF(AND(I4>"24:00"*1,ISNUMBER(FIND("f",Mai!O34))),1,IF(AND(OR(ISNUMBER(FIND("FériéCC",C4)),ISNUMBER(FIND("FériéCH",C4)),ISNUMBER(FIND("f",C4)))),1,"")) ->  | P4: =IF(AND(L4="",M4=""),IF(OR(SUMPRODUCT(N(ISNUMBER(FIND({"s";"d";"f"},C4))))>0,G4+J4<0,AND(G4>0,J4>0,I4>"20:30"*1),AND(I4<="20:30"*1,SUM(I4,R4)>="20:31"*1)),1,""),"") ->  | Q4: =IF(OR(AND(G4>0,AND(J4=0)),OR(G4=0,AND(J4>0)),OR(G4+J4>0)),IF(S4="","",IF(R4+S4>="13:01"*1,1,""))) ->  | S4: =IF(G4=0,IF(J4=0,"",I4-H4),IF(J4=0,F4-E4,I4-E4)) ->  | T4: =IF(ISERROR((F4-E4)+(I4-H4)),0,(F4-E4)+(I4-H4)) -> 0 | U4: =T4*24 -> 0 | W4: =IF(U4-V4=0,"0,00",U4-V4) -> 0,00
B5: 2018-06-02 | C5: 905-b | E5: =IFERROR(VLOOKUP(C5,TR!$B$2:$F$633,2,0),"") -> 00:00:00 | F5: =IFERROR(VLOOKUP(C5,TR!$B$2:$F$633,3,0),"") -> 00:00:00 | G5: =IF(ISERROR(F5-E5),0,F5-E5) -> 00:00:00 | H5: =IFERROR(VLOOKUP(C5,TR!$B$2:$F$633,4,0),"") -> 17:32:00 | I5: =IFERROR(VLOOKUP(C5,TR!$B$2:$F$633,5,0),"") -> 1.057638889 | J5: =IF(ISERROR(I5-H5),0,(I5-H5)) -> 07:51:00 | K5: 1 | M5: 1 | N5: =IF(AND(LEFT(C5,1)="d",AND(N4<>1)),1,IF(AND(LEFT(C5,1)="s",I5>="24:01"*1),1,IF(AND(I5<>"",I5<="23:59"*1,SUM(I5,R5)>="24:01"*1),1,""))) ->  | O5: =IF(AND(I5>"24:00"*1,ISNUMBER(FIND("f",C6))),1,IF(AND(OR(ISNUMBER(FIND("FériéCC",C5)),ISNUMBER(FIND("FériéCH",C5)),ISNUMBER(FIND("f",C5)))),1,"")) ->  | P5: =IF(AND(L5="",M5=""),IF(OR(SUMPRODUCT(N(ISNUMBER(FIND({"s";"d";"f"},C5))))>0,G5+J5<0,AND(G5>0,J5>0,I5>"20:30"*1),AND(I5<="20:30"*1,SUM(I5,R5)>="20:31"*1)),1,""),"") ->  | Q5: =IF(OR(AND(G5>0,AND(J5=0)),OR(G5=0,AND(J5>0)),OR(G5+J5>0)),IF(S5="","",IF(R5+S5>="13:01"*1,1,""))) ->  | S5: 07:51:00 | T5: 0.3270833333 | U5: =T5*24 -> 7.85 | W5: =IF(U5-V5=0,"0,00",U5-V5) -> 7.85
B6: 2018-06-03 | C6: d905-a | E6: =IFERROR(VLOOKUP(C6,TR!$B$2:$F$633,2,0),"") -> 00:00:00 | F6: =IFERROR(VLOOKUP(C6,TR!$B$2:$F$633,3,0),"") -> 00:00:00 | G6: 00:00:00 | H6: =IFERROR(VLOOKUP(C6,TR!$B$2:$F$633,4,0),"") -> 18:04:00 | I6: =IFERROR(VLOOKUP(C6,TR!$B$2:$F$633,5,0),"") -> 1.068055556 | J6: 07:34:00 | K6: 1 | M6: 1 | N6: 1 | P6: =IF(AND(L6="",M6=""),IF(OR(SUMPRODUCT(N(ISNUMBER(FIND({"s";"d";"f"},C6))))>0,G6+J6<0,AND(G6>0,J6>0,I6>"20:30"*1),AND(I6<="20:30"*1,SUM(I6,R6)>="20:31"*1)),1,""),"") ->  | S6: 07:34:00 | T6: 0.3152777778 | U6: =T6*24 -> 7.566666667 | W6: 7.566666667
B7: 2018-06-04 | C7: 812-1 | E7: =IFERROR(VLOOKUP(C7,TR!$B$2:$F$633,2,0),"") -> 00:00:00 | F7: =IFERROR(VLOOKUP(C7,TR!$B$2:$F$633,3,0),"") -> 00:00:00 | G7: 00:00:00 | H7: =IFERROR(VLOOKUP(C7,TR!$B$2:$F$633,4,0),"") -> 13:15:00 | I7: =IFERROR(VLOOKUP(C7,TR!$B$2:$F$633,5,0),"") -> 20:29:00 | J7: 07:14:00 | P7: =IF(AND(L7="",M7=""),IF(OR(SUMPRODUCT(N(ISNUMBER(FIND({"s";"d";"f"},C7))))>0,G7+J7<0,AND(G7>0,J7>0,I7>"20:30"*1),AND(I7<="20:30"*1,SUM(I7,R7)>="20:31"*1)),1,""),"") ->  | S7: 07:14:00 | T7: 0.3013888889 | U7: =T7*24 -> 7.233333333 | W7: 7.233333333
B8: 2018-06-05 | C8: CC | E8: =IFERROR(VLOOKUP(C8,TR!$B$2:$F$633,2,0),"") -> 00:00:00 | F8: =IFERROR(VLOOKUP(C8,TR!$B$2:$F$633,3,0),"") -> 00:00:00 | G8: 00:00:00 | H8: =IFERROR(VLOOKUP(C8,TR!$B$2:$F$633,4,0),"") -> 00:00:00 | I8: =IFERROR(VLOOKUP(C8,TR!$B$2:$F$633,5,0),"") -> 00:00:00 | J8: 00:00:00 | P8: =IF(AND(L8="",M8=""),IF(OR(SUMPRODUCT(N(ISNUMBER(FIND({"s";"d";"f"},C8))))>0,G8+J8<0,AND(G8>0,J8>0,I8>"20:30"*1),AND(I8<="20:30"*1,SUM(I8,R8)>="20:31"*1)),1,""),"") ->  | T8: 0 | U8: 0 | W8: 0,00
B9: 2018-06-06 | C9: 712-1 | E9: =IFERROR(VLOOKUP(C9,TR!$B$2:$F$633,2,0),"") -> 06:33:00 | F9: =IFERROR(VLOOKUP(C9,TR!$B$2:$F$633,3,0),"") -> 13:38:00 | G9: 07:05:00 | H9: =IFERROR(VLOOKUP(C9,TR!$B$2:$F$633,4,0),"") -> 00:00:00 | I9: =IFERROR(VLOOKUP(C9,TR!$B$2:$F$633,5,0),"") -> 00:00:00 | J9: 00:00:00 | L9: 1 | P9: =IF(AND(L9="",M9=""),IF(OR(SUMPRODUCT(N(ISNUMBER(FIND({"s";"d";"f"},C9))))>0,G9+J9<0,AND(G9>0,J9>0,I9>"20:30"*1),AND(I9<="20:30"*1,SUM(I9,R9)>="20:31"*1)),1,""),"") ->  | S9: 07:05:00 | T9: 0.2951388889 | U9: 7.083333333 | W9: 7.083333333
B10: 2018-06-07 | C10: 711-a | E10: =IFERROR(VLOOKUP(C10,TR!$B$2:$F$633,2,0),"") -> 05:53:00 | F10: =IFERROR(VLOOKUP(C10,TR!$B$2:$F$633,3,0),"") -> 13:28:00 | G10: 07:35:00 | H10: =IFERROR(VLOOKUP(C10,TR!$B$2:$F$633,4,0),"") -> 00:00:00 | I10: =IFERROR(VLOOKUP(C10,TR!$B$2:$F$633,5,0),"") -> 00:00:00 | J10: 00:00:00 | L10: 1 | P10: =IF(AND(L10="",M10=""),IF(OR(SUMPRODUCT(N(ISNUMBER(FIND({"s";"d";"f"},C10))))>0,G10+J10<0,AND(G10>0,J10>0,I10>"20:30"*1),AND(I10<="20:30"*1,SUM(I10,R10)>="20:31"*1)),1,""),"") ->  | S10: 07:35:00 | T10: 0.3159722222 | U10: 7.583333333 | W10: 7.583333333
B11: 2018-06-08 | C11: RTN | E11: =IFERROR(VLOOKUP(C11,TR!$B$2:$F$633,2,0),"") -> 00:00:00 | F11: =IFERROR(VLOOKUP(C11,TR!$B$2:$F$633,3,0),"") -> 00:00:00 | G11: 00:00:00 | H11: =IFERROR(VLOOKUP(C11,TR!$B$2:$F$633,4,0),"") -> 00:00:00 | I11: =IFERROR(VLOOKUP(C11,TR!$B$2:$F$633,5,0),"") -> 00:00:00 | J11: 00:00:00 | P11: =IF(AND(L11="",M11=""),IF(OR(SUMPRODUCT(N(ISNUMBER(FIND({"s";"d";"f"},C11))))>0,G11+J11<0,AND(G11>0,J11>0,I11>"20:30"*1),AND(I11<="20:30"*1,SUM(I11,R11)>="20:31"*1)),1,""),"") ->  | T11: 0 | U11: 0 | W11: 0,00
B12: 2018-06-09 | C12: 302-b | E12: =IFERROR(VLOOKUP(C12,TR!$B$2:$F$633,2,0),"") -> 07:58:00 | F12: =IFERROR(VLOOKUP(C12,TR!$B$2:$F$633,3,0),"") -> 12:22:00 | G12: 04:24:00 | H12: =IFERROR(VLOOKUP(C12,TR!$B$2:$F$633,4,0),"") -> 13:17:00 | I12: =IFERROR(VLOOKUP(C12,TR!$B$2:$F$633,5,0),"") -> 17:04:00 | J12: 03:47:00 | P12: =IF(AND(L12="",M12=""),IF(OR(SUMPRODUCT(N(ISNUMBER(FIND({"s";"d";"f"},C12))))>0,G12+J12<0,AND(G12>0,J12>0,I12>"20:30"*1),AND(I12<="20:30"*1,SUM(I12,R12)>="20:31"*1)),1,""),"") ->  | S12: 09:06:00 | T12: 0.3409722222 | U12: 8.183333333 | W12: 8.183333333
B13: 2018-06-10 | C13: CH | E13: =IFERROR(VLOOKUP(C13,TR!$B$2:$F$633,2,0),"") -> 00:00:00 | F13: =IFERROR(VLOOKUP(C13,TR!$B$2:$F$633,3,0),"") -> 00:00:00 | G13: 00:00:00 | H13: =IFERROR(VLOOKUP(C13,TR!$B$2:$F$633,4,0),"") -> 00:00:00 | I13: =IFERROR(VLOOKUP(C13,TR!$B$2:$F$633,5,0),"") -> 00:00:00 | J13: 00:00:00 | P13: =IF(AND(L13="",M13=""),IF(OR(SUMPRODUCT(N(ISNUMBER(FIND({"s";"d";"f"},C13))))>0,G13+J13<0,AND(G13>0,J13>0,I13>"20:30"*1),AND(I13<="20:30"*1,SUM(I13,R13)>="20:31"*1)),1,""),"") ->  | T13: 0 | U13: 0 | W13: 0,00
B14: 2018-06-11 | C14: RTA | E14: =IFERROR(VLOOKUP(C14,TR!$B$2:$F$633,2,0),"") -> 00:00:00 | F14: =IFERROR(VLOOKUP(C14,TR!$B$2:$F$633,3,0),"") -> 00:00:00 | G14: 00:00:00 | H14: =IFERROR(VLOOKUP(C14,TR!$B$2:$F$633,4,0),"") -> 00:00:00 | I14: =IFERROR(VLOOKUP(C14,TR!$B$2:$F$633,5,0),"") -> 00:00:00 | J14: 00:00:00 | P14: =IF(AND(L14="",M14=""),IF(OR(SUMPRODUCT(N(ISNUMBER(FIND({"s";"d";"f"},C14))))>0,G14+J14<0,AND(G14>0,J14>0,I14>"20:30"*1),AND(I14<="20:30"*1,SUM(I14,R14)>="20:31"*1)),1,""),"") ->  | T14: 0 | U14: 0 | W14: 0,00
B15: 2018-06-12 | C15: 870-18 | E15: =IFERROR(VLOOKUP(C15,TR!$B$2:$F$633,2,0),"") -> 00:00:00 | F15: =IFERROR(VLOOKUP(C15,TR!$B$2:$F$633,3,0),"") -> 00:00:00 | G15: 00:00:00 | H15: =IFERROR(VLOOKUP(C15,TR!$B$2:$F$633,4,0),"") -> 14:27:00 | I15: =IFERROR(VLOOKUP(C15,TR!$B$2:$F$633,5,0),"") -> 22:18:00 | J15: 07:51:00 | K15: 1 | M15: =IF(AND(I15>="19:30"*1,1,I15>"21:30"*1,C15<>""),1,IF(AND(I15<="21:30"*1,SUM(I15,R15)>="21:30"*1),1,"")) -> 1 | P15: =IF(AND(L15="",M15=""),IF(OR(SUMPRODUCT(N(ISNUMBER(FIND({"s";"d";"f"},C15))))>0,G15+J15<0,AND(G15>0,J15>0,I15>"20:30"*1),AND(I15<="20:30"*1,SUM(I15,R15)>="20:31"*1)),1,""),"") ->  | S15: 07:51:00 | T15: 0.3270833333 | U15: 7.85 | W15: 7.85
B16: 2018-06-13 | C16: 809-a | E16: =IFERROR(VLOOKUP(C16,TR!$B$2:$F$633,2,0),"") -> 00:00:00 | F16: =IFERROR(VLOOKUP(C16,TR!$B$2:$F$633,3,0),"") -> 00:00:00 | G16: 00:00:00 | H16: =IFERROR(VLOOKUP(C16,TR!$B$2:$F$633,4,0),"") -> 13:12:00 | I16: =IFERROR(VLOOKUP(C16,TR!$B$2:$F$633,5,0),"") -> 21:07:00 | J16: 07:55:00 | P16: =IF(AND(L16="",M16=""),IF(OR(SUMPRODUCT(N(ISNUMBER(FIND({"s";"d";"f"},C16))))>0,G16+J16<0,AND(G16>0,J16>0,I16>"20:30"*1),AND(I16<="20:30"*1,SUM(I16,R16)>="20:31"*1)),1,""),"") ->  | S16: 07:55:00 | T16: 0.3298611111 | U16: 7.916666667 | W16: 7.916666667
B17: 2018-06-14 | C17: 869-18 2 | E17: =IFERROR(VLOOKUP(C17,TR!$B$2:$F$633,2,0),"") -> 00:00:00 | F17: =IFERROR(VLOOKUP(C17,TR!$B$2:$F$633,3,0),"") -> 00:00:00 | G17: 00:00:00 | H17: =IFERROR(VLOOKUP(C17,TR!$B$2:$F$633,4,0),"") -> 14:06:00 | I17: =IFERROR(VLOOKUP(C17,TR!$B$2:$F$633,5,0),"") -> 22:01:00 | J17: 07:55:00 | K17: 1 | M17: 1 | P17: =IF(AND(L17="",M17=""),IF(OR(SUMPRODUCT(N(ISNUMBER(FIND({"s";"d";"f"},C17))))>0,G17+J17<0,AND(G17>0,J17>0,I17>"20:30"*1),AND(I17<="20:30"*1,SUM(I17,R17)>="20:31"*1)),1,""),"") ->  | S17: 07:55:00 | T17: 0.3298611111 | U17: 7.916666667 | W17: 7.916666667
B18: 2018-06-15 | C18: 809-1 | E18: =IFERROR(VLOOKUP(C18,TR!$B$2:$F$633,2,0),"") -> 00:00:00 | F18: =IFERROR(VLOOKUP(C18,TR!$B$2:$F$633,3,0),"") -> 00:00:00 | G18: 00:00:00 | H18: =IFERROR(VLOOKUP(C18,TR!$B$2:$F$633,4,0),"") -> 12:38:00 | I18: =IFERROR(VLOOKUP(C18,TR!$B$2:$F$633,5,0),"") -> 19:57:00 | J18: 07:19:00 | M18: =IF(AND(I18>="19:30"*1,1,I18>"21:30"*1,C18<>""),1,IF(AND(I18<="21:30"*1,SUM(I18,R18)>="21:30"*1),1,"")) ->  | P18: =IF(AND(L18="",M18=""),IF(OR(SUMPRODUCT(N(ISNUMBER(FIND({"s";"d";"f"},C18))))>0,G18+J18<0,AND(G18>0,J18>0,I18>"20:30"*1),AND(I18<="20:30"*1,SUM(I18,R18)>="20:31"*1)),1,""),"") ->  | S18: 07:19:00 | T18: 0.3048611111 | U18: 7.316666667 | W18: 7.316666667
B19: 2018-06-16 | C19: CC | E19: =IFERROR(VLOOKUP(C19,TR!$B$2:$F$633,2,0),"") -> 00:00:00 | F19: =IFERROR(VLOOKUP(C19,TR!$B$2:$F$633,3,0),"") -> 00:00:00 | G19: 00:00:00 | H19: =IFERROR(VLOOKUP(C19,TR!$B$2:$F$633,4,0),"") -> 00:00:00 | I19: =IFERROR(VLOOKUP(C19,TR!$B$2:$F$633,5,0),"") -> 00:00:00 | J19: 00:00:00 | P19: =IF(AND(L19="",M19=""),IF(OR(SUMPRODUCT(N(ISNUMBER(FIND({"s";"d";"f"},C19))))>0,G19+J19<0,AND(G19>0,J19>0,I19>"20:30"*1),AND(I19<="20:30"*1,SUM(I19,R19)>="20:31"*1)),1,""),"") ->  | T19: 0 | U19: 0 | W19: 0,00
B20: 2018-06-17 | C20: CH | E20: =IFERROR(VLOOKUP(C20,TR!$B$2:$F$633,2,0),"") -> 00:00:00 | F20: =IFERROR(VLOOKUP(C20,TR!$B$2:$F$633,3,0),"") -> 00:00:00 | G20: 00:00:00 | H20: =IFERROR(VLOOKUP(C20,TR!$B$2:$F$633,4,0),"") -> 00:00:00 | I20: =IFERROR(VLOOKUP(C20,TR!$B$2:$F$633,5,0),"") -> 00:00:00 | J20: 00:00:00 | P20: =IF(AND(L20="",M20=""),IF(OR(SUMPRODUCT(N(ISNUMBER(FIND({"s";"d";"f"},C20))))>0,G20+J20<0,AND(G20>0,J20>0,I20>"20:30"*1),AND(I20<="20:30"*1,SUM(I20,R20)>="20:31"*1)),1,""),"") ->  | T20: 0 | U20: 0 | W20: 0,00
B21: 2018-06-18 | C21: CP | E21: =IFERROR(VLOOKUP(C21,TR!$B$2:$F$633,2,0),"") -> 00:00:00 | F21: =IFERROR(VLOOKUP(C21,TR!$B$2:$F$633,3,0),"") -> 00:00:00 | G21: 00:00:00 | H21: =IFERROR(VLOOKUP(C21,TR!$B$2:$F$633,4,0),"") -> 00:00:00 | I21: =IFERROR(VLOOKUP(C21,TR!$B$2:$F$633,5,0),"") -> 00:00:00 | J21: 00:00:00 | P21: =IF(AND(L21="",M21=""),IF(OR(SUMPRODUCT(N(ISNUMBER(FIND({"s";"d";"f"},C21))))>0,G21+J21<0,AND(G21>0,J21>0,I21>"20:30"*1),AND(I21<="20:30"*1,SUM(I21,R21)>="20:31"*1)),1,""),"") ->  | T21: 0 | U21: 0 | W21: 0,00
B22: 2018-06-19 | C22: CP | E22: =IFERROR(VLOOKUP(C22,TR!$B$2:$F$633,2,0),"") -> 00:00:00 | F22: =IFERROR(VLOOKUP(C22,TR!$B$2:$F$633,3,0),"") -> 00:00:00 | G22: 00:00:00 | H22: =IFERROR(VLOOKUP(C22,TR!$B$2:$F$633,4,0),"") -> 00:00:00 | I22: =IFERROR(VLOOKUP(C22,TR!$B$2:$F$633,5,0),"") -> 00:00:00 | J22: 00:00:00 | P22: =IF(AND(L22="",M22=""),IF(OR(SUMPRODUCT(N(ISNUMBER(FIND({"s";"d";"f"},C22))))>0,G22+J22<0,AND(G22>0,J22>0,I22>"20:30"*1),AND(I22<="20:30"*1,SUM(I22,R22)>="20:31"*1)),1,""),"") ->  | T22: 0 | U22: 0 | W22: 0,00
B23: 2018-06-20 | C23: CP | E23: =IFERROR(VLOOKUP(C23,TR!$B$2:$F$633,2,0),"") -> 00:00:00 | F23: =IFERROR(VLOOKUP(C23,TR!$B$2:$F$633,3,0),"") -> 00:00:00 | G23: 00:00:00 | H23: =IFERROR(VLOOKUP(C23,TR!$B$2:$F$633,4,0),"") -> 00:00:00 | I23: =IFERROR(VLOOKUP(C23,TR!$B$2:$F$633,5,0),"") -> 00:00:00 | J23: 00:00:00 | P23: =IF(AND(L23="",M23=""),IF(OR(SUMPRODUCT(N(ISNUMBER(FIND({"s";"d";"f"},C23))))>0,G23+J23<0,AND(G23>0,J23>0,I23>"20:30"*1),AND(I23<="20:30"*1,SUM(I23,R23)>="20:31"*1)),1,""),"") ->  | T23: 0 | U23: 0 | W23: 0,00
B24: 2018-06-21 | C24: CP | E24: =IFERROR(VLOOKUP(C24,TR!$B$2:$F$633,2,0),"") -> 00:00:00 | F24: =IFERROR(VLOOKUP(C24,TR!$B$2:$F$633,3,0),"") -> 00:00:00 | G24: 00:00:00 | H24: =IFERROR(VLOOKUP(C24,TR!$B$2:$F$633,4,0),"") -> 00:00:00 | I24: =IFERROR(VLOOKUP(C24,TR!$B$2:$F$633,5,0),"") -> 00:00:00 | J24: 00:00:00 | P24: =IF(AND(L24="",M24=""),IF(OR(SUMPRODUCT(N(ISNUMBER(FIND({"s";"d";"f"},C24))))>0,G24+J24<0,AND(G24>0,J24>0,I24>"20:30"*1),AND(I24<="20:30"*1,SUM(I24,R24)>="20:31"*1)),1,""),"") ->  | T24: 0 | U24: 0 | W24: 0,00
B25: 2018-06-22 | C25: CP | E25: =IFERROR(VLOOKUP(C25,TR!$B$2:$F$633,2,0),"") -> 00:00:00 | F25: =IFERROR(VLOOKUP(C25,TR!$B$2:$F$633,3,0),"") -> 00:00:00 | G25: 00:00:00 | H25: =IFERROR(VLOOKUP(C25,TR!$B$2:$F$633,4,0),"") -> 00:00:00 | I25: =IFERROR(VLOOKUP(C25,TR!$B$2:$F$633,5,0),"") -> 00:00:00 | J25: 00:00:00 | P25: =IF(AND(L25="",M25=""),IF(OR(SUMPRODUCT(N(ISNUMBER(FIND({"s";"d";"f"},C25))))>0,G25+J25<0,AND(G25>0,J25>0,I25>"20:30"*1),AND(I25<="20:30"*1,SUM(I25,R25)>="20:31"*1)),1,""),"") ->  | T25: 0 | U25: 0 | W25: 0,00
B26: 2018-06-23 | C26: CC | E26: =IFERROR(VLOOKUP(C26,TR!$B$2:$F$633,2,0),"") -> 00:00:00 | F26: =IFERROR(VLOOKUP(C26,TR!$B$2:$F$633,3,0),"") -> 00:00:00 | G26: 00:00:00 | H26: =IFERROR(VLOOKUP(C26,TR!$B$2:$F$633,4,0),"") -> 00:00:00 | I26: =IFERROR(VLOOKUP(C26,TR!$B$2:$F$633,5,0),"") -> 00:00:00 | J26: 00:00:00 | P26: =IF(AND(L26="",M26=""),IF(OR(SUMPRODUCT(N(ISNUMBER(FIND({"s";"d";"f"},C26))))>0,G26+J26<0,AND(G26>0,J26>0,I26>"20:30"*1),AND(I26<="20:30"*1,SUM(I26,R26)>="20:31"*1)),1,""),"") ->  | T26: 0 | U26: 0 | W26: 0,00
B27: 2018-06-24 | C27: CH | E27: =IFERROR(VLOOKUP(C27,TR!$B$2:$F$633,2,0),"") -> 00:00:00 | F27: =IFERROR(VLOOKUP(C27,TR!$B$2:$F$633,3,0),"") -> 00:00:00 | G27: 00:00:00 | H27: =IFERROR(VLOOKUP(C27,TR!$B$2:$F$633,4,0),"") -> 00:00:00 | I27: =IFERROR(VLOOKUP(C27,TR!$B$2:$F$633,5,0),"") -> 00:00:00 | J27: 00:00:00 | P27: =IF(AND(L27="",M27=""),IF(OR(SUMPRODUCT(N(ISNUMBER(FIND({"s";"d";"f"},C27))))>0,G27+J27<0,AND(G27>0,J27>0,I27>"20:30"*1),AND(I27<="20:30"*1,SUM(I27,R27)>="20:31"*1)),1,""),"") ->  | T27: 0 | U27: 0 | W27: 0,00
B28: 2018-06-25 | C28: CC | E28: =IFERROR(VLOOKUP(C28,TR!$B$2:$F$633,2,0),"") -> 00:00:00 | F28: =IFERROR(VLOOKUP(C28,TR!$B$2:$F$633,3,0),"") -> 00:00:00 | G28: 00:00:00 | H28: =IFERROR(VLOOKUP(C28,TR!$B$2:$F$633,4,0),"") -> 00:00:00 | I28: =IFERROR(VLOOKUP(C28,TR!$B$2:$F$633,5,0),"") -> 00:00:00 | J28: 00:00:00 | P28: =IF(AND(L28="",M28=""),IF(OR(SUMPRODUCT(N(ISNUMBER(FIND({"s";"d";"f"},C28))))>0,G28+J28<0,AND(G28>0,J28>0,I28>"20:30"*1),AND(I28<="20:30"*1,SUM(I28,R28)>="20:31"*1)),1,""),"") ->  | T28: 0 | U28: 0 | W28: 0,00
B29: 2018-06-26 | C29: CP | E29: =IFERROR(VLOOKUP(C29,TR!$B$2:$F$633,2,0),"") -> 00:00:00 | F29: =IFERROR(VLOOKUP(C29,TR!$B$2:$F$633,3,0),"") -> 00:00:00 | G29: 00:00:00 | H29: =IFERROR(VLOOKUP(C29,TR!$B$2:$F$633,4,0),"") -> 00:00:00 | I29: =IFERROR(VLOOKUP(C29,TR!$B$2:$F$633,5,0),"") -> 00:00:00 | J29: 00:00:00 | P29: =IF(AND(L29="",M29=""),IF(OR(SUMPRODUCT(N(ISNUMBER(FIND({"s";"d";"f"},C29))))>0,G29+J29<0,AND(G29>0,J29>0,I29>"20:30"*1),AND(I29<="20:30"*1,SUM(I29,R29)>="20:31"*1)),1,""),"") ->  | T29: 0 | U29: 0 | W29: 0,00
B30: 2018-06-27 | C30: CP | E30: =IFERROR(VLOOKUP(C30,TR!$B$2:$F$633,2,0),"") -> 00:00:00 | F30: =IFERROR(VLOOKUP(C30,TR!$B$2:$F$633,3,0),"") -> 00:00:00 | G30: 00:00:00 | H30: =IFERROR(VLOOKUP(C30,TR!$B$2:$F$633,4,0),"") -> 00:00:00 | I30: =IFERROR(VLOOKUP(C30,TR!$B$2:$F$633,5,0),"") -> 00:00:00 | J30: 00:00:00 | P30: =IF(AND(L30="",M30=""),IF(OR(SUMPRODUCT(N(ISNUMBER(FIND({"s";"d";"f"},C30))))>0,G30+J30<0,AND(G30>0,J30>0,I30>"20:30"*1),AND(I30<="20:30"*1,SUM(I30,R30)>="20:31"*1)),1,""),"") ->  | T30: 0 | U30: 0 | W30: 0,00
B31: 2018-06-28 | C31: CP | E31: =IFERROR(VLOOKUP(C31,TR!$B$2:$F$633,2,0),"") -> 00:00:00 | F31: =IFERROR(VLOOKUP(C31,TR!$B$2:$F$633,3,0),"") -> 00:00:00 | G31: 00:00:00 | H31: =IFERROR(VLOOKUP(C31,TR!$B$2:$F$633,4,0),"") -> 00:00:00 | I31: =IFERROR(VLOOKUP(C31,TR!$B$2:$F$633,5,0),"") -> 00:00:00 | J31: 00:00:00 | P31: =IF(AND(L31="",M31=""),IF(OR(SUMPRODUCT(N(ISNUMBER(FIND({"s";"d";"f"},C31))))>0,G31+J31<0,AND(G31>0,J31>0,I31>"20:30"*1),AND(I31<="20:30"*1,SUM(I31,R31)>="20:31"*1)),1,""),"") ->  | T31: 0 | U31: 0 | W31: 0,00
B32: 2018-06-29 | C32: CP | E32: =IFERROR(VLOOKUP(C32,TR!$B$2:$F$633,2,0),"") -> 00:00:00 | F32: =IFERROR(VLOOKUP(C32,TR!$B$2:$F$633,3,0),"") -> 00:00:00 | G32: 00:00:00 | H32: =IFERROR(VLOOKUP(C32,TR!$B$2:$F$633,4,0),"") -> 00:00:00 | I32: =IFERROR(VLOOKUP(C32,TR!$B$2:$F$633,5,0),"") -> 00:00:00 | J32: 00:00:00 | P32: =IF(AND(L32="",M32=""),IF(OR(SUMPRODUCT(N(ISNUMBER(FIND({"s";"d";"f"},C32))))>0,G32+J32<0,AND(G32>0,J32>0,I32>"20:30"*1),AND(I32<="20:30"*1,SUM(I32,R32)>="20:31"*1)),1,""),"") ->  | T32: 0 | U32: 0 | W32: 0,00
B33: 2018-06-30 | C33: CP | E33: =IFERROR(VLOOKUP(C33,TR!$B$2:$F$633,2,0),"") -> 00:00:00 | F33: =IFERROR(VLOOKUP(C33,TR!$B$2:$F$633,3,0),"") -> 00:00:00 | G33: 00:00:00 | H33: =IFERROR(VLOOKUP(C33,TR!$B$2:$F$633,4,0),"") -> 00:00:00 | I33: =IFERROR(VLOOKUP(C33,TR!$B$2:$F$633,5,0),"") -> 00:00:00 | J33: 00:00:00 | P33: =IF(AND(L33="",M33=""),IF(OR(SUMPRODUCT(N(ISNUMBER(FIND({"s";"d";"f"},C33))))>0,G33+J33<0,AND(G33>0,J33>0,I33>"20:30"*1),AND(I33<="20:30"*1,SUM(I33,R33)>="20:31"*1)),1,""),"") ->  | T33: 0 | U33: 0 | W33: 0,00
E34: =IFERROR(VLOOKUP(C34,TR!$B$2:$F$633,2,0),"") ->  | F34: =IFERROR(VLOOKUP(C34,TR!$B$2:$F$633,3,0),"") ->  | G34: 00:00:00 | H34: =IFERROR(VLOOKUP(C34,TR!$B$2:$F$633,4,0),"") ->  | I34: =IFERROR(VLOOKUP(C34,TR!$B$2:$F$633,5,0),"") ->  | J34: 00:00:00 | P34: =IF(AND(L34="",M34=""),IF(OR(SUMPRODUCT(N(ISNUMBER(FIND({"s";"d";"f"},C34))))>0,G34+J34<0,AND(G34>0,J34>0,I34>"20:30"*1),AND(I34<="20:30"*1,SUM(I34,R34)>="20:31"*1)),1,""),"") ->  | T34: 0 | U34: 0 | W34: 0,00
B36: Jours travaillés | C36: =(COUNTIF(Mai!C24:C34,"<>")+COUNTIF(Juin!C4:C23,"<>"))-(COUNTIF(Mai!C24:C34,"CC*")+COUNTIF(Juin!C4:C23,"CC*"))-(COUNTIF(Mai!C24:C34,"CH*")+COUNTIF(Juin!C4:C23,"CH*"))-(COUNTIF(Mai!C24:C34,"RT*")+COUNTIF(Juin!C4:C23,"RT*"))-(COUNTIF(Mai!C24:C34,"Férié*")+COUNTIF(Juin!C4:C23,"Férié*"))-(COUNTIF(Mai!C24:C34,"Mal*")+COUNTIF(Juin!C4:C23,"Mal*"))-(COUNTIF(Mai!C24:C34,"CP*")+COUNTIF(Juin!C4:C23,"CP*")) -> 16 | I36: Du 21 au 20 | K36: =SUM(Mai!$K$24:$K$34,K4:K23) -> 4 | L36: =SUM(Mai!$L$24:$L$34,L4:L23) -> 6 | M36: =SUM(Mai!$M$24:$M$34,M4:M23) -> 6 | N36: =SUM(Mai!$N$24:$N$34,N4:N23) -> 1 | O36: =SUM(Mai!$O$24:$O$34,O4:O23) -> 0 | P36: =SUM(Mai!$P$24:$P$34,P4:P23) -> 0 | Q36: =SUM(Mai!$Q$24:$Q$34,Q4:Q23) -> 0 | R36: =SUM(Mai!$R$24:$R$34,R4:R23) -> 0 | T36: =SUM(Mai!T24:T34)+SUM(Juin!T4:T23) -> 5.142361111 | U36: =SUM(U4:U34) -> 76.5 | V36: =SUM(V4:V34) -> 0
B37: CP | C37: =(COUNTIF(Mai!C24:C34,"CP")+COUNTIF(Juin!C4:C23,"CP")) -> 3 | K37: =(I39*2)*K36 -> 70.8224 | L37: =Recap!H35*L36 -> 42.84 | M37: =Recap!H35*M36 -> 42.84 | N37: =(I39*5)*N36 -> 44.264 | O37: =(Recap!H33)*O36 -> 0 | P37: =7.5*P36 -> 0 | Q37: =(I39*1.5)*Q36 -> 0 | R37: =R36*24 -> 0
B38: CH | C38: =(COUNTIF(Mai!C24:C34,"CH")+COUNTIF(Juin!C4:C23,"CH")) -> 4 | I38: VP | T38: Horaire mensuel | V38: 6.175 | W38: =V38*24 -> 148.2
B39: RT | C39: =(COUNTIF(Mai!C24:C34,"RT")+COUNTIF(Juin!C4:C23,"RT")) -> 1 | I39: 8.8528
B40: CC | C40: =(COUNTIF(Mai!C24:C34,"CC")+COUNTIF(Juin!C4:C23,"CC")) -> 4 | T40: Différence | V40: =IF(V38>T36,"-","")&TEXT(ABS(T36-V38),"[h]:mm") -> -24:47 | W40: =(T36-V38)*24 -> -24.78333333
B41: Férié | C41: =(COUNTIF(Mai!C24:C34,"Férié")+COUNTIF(Juin!C4:C23,"Férié")) -> 1
B42: Férié CC-CH | C42: =(COUNTIF(Mai!C24:C34,"FériéCC")+COUNTIF(Juin!C4:C23,"FériéCC")+(COUNTIF(Mai!C24:C34,"FériéCH")+COUNTIF(Juin!C4:C23,"FériéCH")+(COUNTIF(Mai!C24:C34,"FériéRT")+COUNTIF(Juin!C4:C23,"FériéRT")))) -> 0 | R42: Heures réelles | T42: =SUM(T4:T34) -> 3.1875
T43: =T42*24 -> 76.5 | W43: =(T42-V38)*24 -> -71.7
F45: NOTES

Sheet Juillet
B1: JUILLET
T2: TOTAL
B3: Date | C3: Services | D3: Obs. | E3: MATIN | G3: Temps | H3: APRES MIDI | J3: Temps | K3: Prime nuit | L3: PJ1 | M3: PJ2 | N3: Dimanche | O3: Férié | P3: ChècDej | Q3: PrimAmp | R3: H Supp | S3: Ampli | T3: Heures | U3: Centièmes | V3: Kéolis | W3: Écart
B4: 2018-07-01 | C4: CH | E4: =IFERROR(VLOOKUP(C4,TR!$B$2:$F$633,2,0),"") -> 00:00:00 | F4: =IFERROR(VLOOKUP(C4,TR!$B$2:$F$633,3,0),"") -> 00:00:00 | G4: =IF(ISERROR(F4-E4),0,F4-E4) -> 00:00:00 | H4: =IFERROR(VLOOKUP(C4,TR!$B$2:$F$633,4,0),"") -> 00:00:00 | I4: =IFERROR(VLOOKUP(C4,TR!$B$2:$F$633,5,0),"") -> 00:00:00 | J4: =IF(ISERROR(I4-H4),0,(I4-H4)) -> 00:00:00 | K4: =IF(COUNTA(E4:F4,H4:I4)=5,1,IF(AND(E4<"5:00"*1,E4>"2:00"*1),1,IF(AND(I4>="22:01"*1,I4<="26:01"*1),1,IF(AND(I4<="22:00"*1,SUM(I4,R4)>="22:01"*1),1,"")))) ->  | L4: =IF(AND(F4>="13:15"*1,H4<""),1,IF(AND(H4>="11:00"*1,H4<="12:15"*1),1,IF(AND(F4<="13:15"*1,SUM(F4,R4)>="13:15"*1),1,""))) ->  | M4: =IF(AND(I4>="19:30"*1,1,I4>"21:30"*1,C4<>""),1,IF(AND(I4<="21:30"*1,SUM(I4,R4)>="21:30"*1),1,"")) ->  | N4: =IF(AND(LEFT(C4,1)="d",AND(N3<>1)),1,IF(AND(LEFT(C4,1)="s",I4>="24:01"*1),1,IF(AND(I4<>"",I4<="23:59"*1,SUM(I4,R4)>="24:01"*1),1,""))) ->  | O4: =IF(AND(I4>"24:00"*1,ISNUMBER(FIND("f",C5))),1,IF(AND(OR(ISNUMBER(FIND("FériéCC",C4)),ISNUMBER(FIND("FériéCH",C4)),ISNUMBER(FIND("f",C4)))),1,"")) ->  | P4: =IF(AND(L4="",M4=""),IF(OR(SUMPRODUCT(N(ISNUMBER(FIND({"s";"d";"f"},C4))))>0,G4+J4<0,AND(G4>0,J4>0,I4>"20:30"*1),AND(I4<="20:30"*1,SUM(I4,R4)>="20:31"*1)),1,""),"") ->  | Q4: =IF(OR(AND(G4>0,AND(J4=0)),OR(G4=0,AND(J4>0)),OR(G4+J4>0)),IF(S4="","",IF(R4+S4>="13:01"*1,1,""))) ->  | S4: =IF(G4=0,IF(J4=0,"",I4-H4),IF(J4=0,F4-E4,I4-E4)) ->  | T4: =IF(ISERROR((F4-E4)+(I4-H4)),0,(F4-E4)+(I4-H4)) -> 0 | U4: =T4*24 -> 0 | W4: =IF(U4-V4=0,"0,00",U4-V4) -> 0,00
B5: 2018-07-02 | C5: 712-2 | E5: =IFERROR(VLOOKUP(C5,TR!$B$2:$F$633,2,0),"") -> 04:59:00 | F5: =IFERROR(VLOOKUP(C5,TR!$B$2:$F$633,3,0),"") -> 12:58:00 | G5: =IF(ISERROR(F5-E5),0,F5-E5) -> 07:59:00 | H5: =IFERROR(VLOOKUP(C5,TR!$B$2:$F$633,4,0),"") -> 00:00:00 | I5: =IFERROR(VLOOKUP(C5,TR!$B$2:$F$633,5,0),"") -> 00:00:00 | J5: =IF(ISERROR(I5-H5),0,(I5-H5)) -> 00:00:00 | K5: 1 | N5: =IF(AND(LEFT(C5,1)="d",AND(N4<>1)),1,IF(AND(LEFT(C5,1)="s",I5>="24:01"*1),1,IF(AND(I5<>"",I5<="23:59"*1,SUM(I5,R5)>="24:01"*1),1,""))) ->  | O5: =IF(AND(I5>"24:00"*1,ISNUMBER(FIND("f",C6))),1,IF(AND(OR(ISNUMBER(FIND("FériéCC",C5)),ISNUMBER(FIND("FériéCH",C5)),ISNUMBER(FIND("f",C5)))),1,"")) ->  | P5: =IF(AND(L5="",M5=""),IF(OR(SUMPRODUCT(N(ISNUMBER(FIND({"s";"d";"f"},C5))))>0,G5+J5<0,AND(G5>0,J5>0,I5>"20:30"*1),AND(I5<="20:30"*1,SUM(I5,R5)>="20:31"*1)),1,""),"") ->  | Q5: =IF(OR(AND(G5>0,AND(J5=0)),OR(G5=0,AND(J5>0)),OR(G5+J5>0)),IF(S5="","",IF(R5+S5>="13:01"*1,1,""))) ->  | S5: 07:59:00 | T5: 0.3326388889 | U5: =T5*24 -> 7.983333333 | W5: =IF(U5-V5=0,"0,00",U5-V5) -> 7.983333333
B6: 2018-07-03 | C6: 744-a | E6: =IFERROR(VLOOKUP(C6,TR!$B$2:$F$633,2,0),"") -> 05:09:00 | F6: =IFERROR(VLOOKUP(C6,TR!$B$2:$F$633,3,0),"") -> 12:39:00 | G6: 07:30:00 | H6: =IFERROR(VLOOKUP(C6,TR!$B$2:$F$633,4,0),"") -> 00:00:00 | I6: =IFERROR(VLOOKUP(C6,TR!$B$2:$F$633,5,0),"") -> 00:00:00 | J6: 00:00:00 | N6: =IF(AND(LEFT(C6,1)="d",AND(N5<>1)),1,IF(AND(LEFT(C6,1)="s",I6>="24:01"*1),1,IF(AND(I6<>"",I6<="23:59"*1,SUM(I6,R6)>="24:01"*1),1,""))) ->  | P6: =IF(AND(L6="",M6=""),IF(OR(SUMPRODUCT(N(ISNUMBER(FIND({"s";"d";"f"},C6))))>0,G6+J6<0,AND(G6>0,J6>0,I6>"20:30"*1),AND(I6<="20:30"*1,SUM(I6,R6)>="20:31"*1)),1,""),"") ->  | S6: 07:30:00 | T6: 0.3125 | U6: =T6*24 -> 7.5 | W6: 7.5
B7: 2018-07-04 | C7: Form | E7: =IFERROR(VLOOKUP(C7,TR!$B$2:$F$633,2,0),"") -> 05:46:00 | F7: =IFERROR(VLOOKUP(C7,TR!$B$2:$F$633,3,0),"") -> 13:31:00 | G7: 07:45:00 | H7: =IFERROR(VLOOKUP(C7,TR!$B$2:$F$633,4,0),"") -> 00:00:00 | I7: =IFERROR(VLOOKUP(C7,TR!$B$2:$F$633,5,0),"") -> 00:00:00 | J7: 00:00:00 | L7: 1 | P7: =IF(AND(L7="",M7=""),IF(OR(SUMPRODUCT(N(ISNUMBER(FIND({"s";"d";"f"},C7))))>0,G7+J7<0,AND(G7>0,J7>0,I7>"20:30"*1),AND(I7<="20:30"*1,SUM(I7,R7)>="20:31"*1)),1,""),"") ->  | S7: 07:45:00 | T7: 0.3229166667 | U7: =T7*24 -> 7.75 | W7: 7.75
B8: 2018-07-05 | C8: 304-4 | E8: =IFERROR(VLOOKUP(C8,TR!$B$2:$F$633,2,0),"") -> 05:41:00 | F8: =IFERROR(VLOOKUP(C8,TR!$B$2:$F$633,3,0),"") -> 11:35:00 | G8: 05:54:00 | H8: =IFERROR(VLOOKUP(C8,TR!$B$2:$F$633,4,0),"") -> 12:39:00 | I8: =IFERROR(VLOOKUP(C8,TR!$B$2:$F$633,5,0),"") -> 14:41:00 | J8: 02:02:00 | P8: =IF(AND(L8="",M8=""),IF(OR(SUMPRODUCT(N(ISNUMBER(FIND({"s";"d";"f"},C8))))>0,G8+J8<0,AND(G8>0,J8>0,I8>"20:30"*1),AND(I8<="20:30"*1,SUM(I8,R8)>="20:31"*1)),1,""),"") ->  | S8: 09:00:00 | T8: 0.3305555556 | U8: 7.933333333 | W8: 7.933333333
B9: 2018-07-06 | C9: v309-18 | E9: =IFERROR(VLOOKUP(C9,TR!$B$2:$F$633,2,0),"") -> 05:55:00 | F9: =IFERROR(VLOOKUP(C9,TR!$B$2:$F$633,3,0),"") -> 10:47:00 | G9: 04:52:00 | H9: =IFERROR(VLOOKUP(C9,TR!$B$2:$F$633,4,0),"") -> 12:02:00 | I9: =IFERROR(VLOOKUP(C9,TR!$B$2:$F$633,5,0),"") -> 15:30:00 | J9: 03:28:00 | L9: 1 | P9: =IF(AND(L9="",M9=""),IF(OR(SUMPRODUCT(N(ISNUMBER(FIND({"s";"d";"f"},C9))))>0,G9+J9<0,AND(G9>0,J9>0,I9>"20:30"*1),AND(I9<="20:30"*1,SUM(I9,R9)>="20:31"*1)),1,""),"") ->  | S9: 09:35:00 | T9: 0.3472222222 | U9: 8.333333333 | W9: 8.333333333
B10: 2018-07-07 | C10: CC | E10: =IFERROR(VLOOKUP(C10,TR!$B$2:$F$633,2,0),"") -> 00:00:00 | F10: =IFERROR(VLOOKUP(C10,TR!$B$2:$F$633,3,0),"") -> 00:00:00 | G10: 00:00:00 | H10: =IFERROR(VLOOKUP(C10,TR!$B$2:$F$633,4,0),"") -> 00:00:00 | I10: =IFERROR(VLOOKUP(C10,TR!$B$2:$F$633,5,0),"") -> 00:00:00 | J10: 00:00:00 | P10: =IF(AND(L10="",M10=""),IF(OR(SUMPRODUCT(N(ISNUMBER(FIND({"s";"d";"f"},C10))))>0,G10+J10<0,AND(G10>0,J10>0,I10>"20:30"*1),AND(I10<="20:30"*1,SUM(I10,R10)>="20:31"*1)),1,""),"") ->  | T10: 0 | U10: 0 | W10: 0,00
B11: 2018-07-08 | C11: CH | E11: =IFERROR(VLOOKUP(C11,TR!$B$2:$F$633,2,0),"") -> 00:00:00 | F11: =IFERROR(VLOOKUP(C11,TR!$B$2:$F$633,3,0),"") -> 00:00:00 | G11: 00:00:00 | H11: =IFERROR(VLOOKUP(C11,TR!$B$2:$F$633,4,0),"") -> 00:00:00 | I11: =IFERROR(VLOOKUP(C11,TR!$B$2:$F$633,5,0),"") -> 00:00:00 | J11: 00:00:00 | P11: =IF(AND(L11="",M11=""),IF(OR(SUMPRODUCT(N(ISNUMBER(FIND({"s";"d";"f"},C11))))>0,G11+J11<0,AND(G11>0,J11>0,I11>"20:30"*1),AND(I11<="20:30"*1,SUM(I11,R11)>="20:31"*1)),1,""),"") ->  | T11: 0 | U11: 0 | W11: 0,00
B12: 2018-07-09 | C12: 799-3e | E12: =IFERROR(VLOOKUP(C12,TR!$B$2:$F$633,2,0),"") -> 05:28:00 | F12: =IFERROR(VLOOKUP(C12,TR!$B$2:$F$633,3,0),"") -> 13:16:00 | G12: 07:48:00 | H12: =IFERROR(VLOOKUP(C12,TR!$B$2:$F$633,4,0),"") -> 00:00:00 | I12: =IFERROR(VLOOKUP(C12,TR!$B$2:$F$633,5,0),"") -> 00:00:00 | J12: 00:00:00 | L12: 1 | P12: =IF(AND(L12="",M12=""),IF(OR(SUMPRODUCT(N(ISNUMBER(FIND({"s";"d";"f"},C12))))>0,G12+J12<0,AND(G12>0,J12>0,I12>"20:30"*1),AND(I12<="20:30"*1,SUM(I12,R12)>="20:31"*1)),1,""),"") ->  | S12: 07:48:00 | T12: 0.325 | U12: 7.8 | W12: 7.8
B13: 2018-07-10 | C13: 799-3e | E13: =IFERROR(VLOOKUP(C13,TR!$B$2:$F$633,2,0),"") -> 05:28:00 | F13: =IFERROR(VLOOKUP(C13,TR!$B$2:$F$633,3,0),"") -> 13:16:00 | G13: 07:48:00 | H13: =IFERROR(VLOOKUP(C13,TR!$B$2:$F$633,4,0),"") -> 00:00:00 | I13: =IFERROR(VLOOKUP(C13,TR!$B$2:$F$633,5,0),"") -> 00:00:00 | J13: 00:00:00 | L13: 1 | P13: =IF(AND(L13="",M13=""),IF(OR(SUMPRODUCT(N(ISNUMBER(FIND({"s";"d";"f"},C13))))>0,G13+J13<0,AND(G13>0,J13>0,I13>"20:30"*1),AND(I13<="20:30"*1,SUM(I13,R13)>="20:31"*1)),1,""),"") ->  | S13: 07:48:00 | T13: 0.325 | U13: 7.8 | W13: 7.8
B14: 2018-07-11 | C14: RT | E14: =IFERROR(VLOOKUP(C14,TR!$B$2:$F$633,2,0),"") -> 00:00:00 | F14: =IFERROR(VLOOKUP(C14,TR!$B$2:$F$633,3,0),"") -> 00:00:00 | G14: 00:00:00 | H14: =IFERROR(VLOOKUP(C14,TR!$B$2:$F$633,4,0),"") -> 00:00:00 | I14: =IFERROR(VLOOKUP(C14,TR!$B$2:$F$633,5,0),"") -> 00:00:00 | J14: 00:00:00 | N14: =IF(AND(LEFT(C14,1)="d",AND(N13<>1)),1,IF(AND(LEFT(C14,1)="s",I14>="24:01"*1),1,IF(AND(I14<>"",I14<="23:59"*1,SUM(I14,R14)>="24:01"*1),1,""))) ->  | P14: =IF(AND(L14="",M14=""),IF(OR(SUMPRODUCT(N(ISNUMBER(FIND({"s";"d";"f"},C14))))>0,G14+J14<0,AND(G14>0,J14>0,I14>"20:30"*1),AND(I14<="20:30"*1,SUM(I14,R14)>="20:31"*1)),1,""),"") ->  | T14: 0 | U14: 0 | W14: 0,00
B15: 2018-07-12 | C15: CC | E15: =IFERROR(VLOOKUP(C15,TR!$B$2:$F$633,2,0),"") -> 00:00:00 | F15: =IFERROR(VLOOKUP(C15,TR!$B$2:$F$633,3,0),"") -> 00:00:00 | G15: 00:00:00 | H15: =IFERROR(VLOOKUP(C15,TR!$B$2:$F$633,4,0),"") -> 00:00:00 | I15: =IFERROR(VLOOKUP(C15,TR!$B$2:$F$633,5,0),"") -> 00:00:00 | J15: 00:00:00 | N15: =IF(OR(AND(LEFT(C15,1)="d",OR(E15>="0:00"*1,H15>"14:00"*1)),AND(LEFT(C15,1)="s",I15>="24:01"*1)),1,IF(AND(I15<>"",I15<="23:59"*1,SUM(I15,R15)>="24:01"*1),1,"")) ->  | P15: =IF(AND(L15="",M15=""),IF(OR(SUMPRODUCT(N(ISNUMBER(FIND({"s";"d";"f"},C15))))>0,G15+J15<0,AND(G15>0,J15>0,I15>"20:30"*1),AND(I15<="20:30"*1,SUM(I15,R15)>="20:31"*1)),1,""),"") ->  | T15: 0 | U15: 0 | W15: 0,00
B16: 2018-07-13 | C16: RT | E16: =IFERROR(VLOOKUP(C16,TR!$B$2:$F$633,2,0),"") -> 00:00:00 | F16: =IFERROR(VLOOKUP(C16,TR!$B$2:$F$633,3,0),"") -> 00:00:00 | G16: 00:00:00 | H16: =IFERROR(VLOOKUP(C16,TR!$B$2:$F$633,4,0),"") -> 00:00:00 | I16: =IFERROR(VLOOKUP(C16,TR!$B$2:$F$633,5,0),"") -> 00:00:00 | J16: 00:00:00 | N16: =IF(OR(AND(LEFT(C16,1)="d",OR(E16>="0:00"*1,H16>"14:00"*1)),AND(LEFT(C16,1)="s",I16>="24:01"*1)),1,IF(AND(I16<>"",I16<="23:59"*1,SUM(I16,R16)>="24:01"*1),1,"")) ->  | P16: =IF(AND(L16="",M16=""),IF(OR(SUMPRODUCT(N(ISNUMBER(FIND({"s";"d";"f"},C16))))>0,G16+J16<0,AND(G16>0,J16>0,I16>"20:30"*1),AND(I16<="20:30"*1,SUM(I16,R16)>="20:31"*1)),1,""),"") ->  | T16: 0 | U16: 0 | W16: 0,00
B17: 2018-07-14 | C17: s506-3e | E17: =IFERROR(VLOOKUP(C17,TR!$B$2:$F$633,2,0),"") -> 07:42:00 | F17: =IFERROR(VLOOKUP(C17,TR!$B$2:$F$633,3,0),"") -> 13:42:00 | G17: 06:00:00 | H17: =IFERROR(VLOOKUP(C17,TR!$B$2:$F$633,4,0),"") -> 00:00:00 | I17: =IFERROR(VLOOKUP(C17,TR!$B$2:$F$633,5,0),"") -> 00:00:00 | J17: 00:00:00 | L17: 1 | N17: =IF(OR(AND(LEFT(C17,1)="d",OR(E17>="0:00"*1,H17>"14:00"*1)),AND(LEFT(C17,1)="s",I17>="24:01"*1)),1,IF(AND(I17<>"",I17<="23:59"*1,SUM(I17,R17)>="24:01"*1),1,"")) ->  | P17: =IF(AND(L17="",M17=""),IF(OR(SUMPRODUCT(N(ISNUMBER(FIND({"s";"d";"f"},C17))))>0,G17+J17<0,AND(G17>0,J17>0,I17>"20:30"*1),AND(I17<="20:30"*1,SUM(I17,R17)>="20:31"*1)),1,""),"") ->  | S17: 06:00:00 | T17: 0.25 | U17: 6 | W17: 6
B18: 2018-07-15 | C18: d510-lae | E18: =IFERROR(VLOOKUP(C18,TR!$B$2:$F$633,2,0),"") -> 06:30:00 | F18: =IFERROR(VLOOKUP(C18,TR!$B$2:$F$633,3,0),"") -> 13:30:00 | G18: 07:00:00 | H18: =IFERROR(VLOOKUP(C18,TR!$B$2:$F$633,4,0),"") -> 00:00:00 | I18: =IFERROR(VLOOKUP(C18,TR!$B$2:$F$633,5,0),"") -> 00:00:00 | J18: 00:00:00 | L18: 1 | N18: =IF(OR(AND(LEFT(C18,1)="d",OR(E18>="0:00"*1,H18>"14:00"*1)),AND(LEFT(C18,1)="s",I18>="24:01"*1)),1,"") -> 1 | P18: =IF(AND(L18="",M18=""),IF(OR(SUMPRODUCT(N(ISNUMBER(FIND({"s";"d";"f"},C18))))>0,G18+J18<0,AND(G18>0,J18>0,I18>"20:30"*1),AND(I18<="20:30"*1,SUM(I18,R18)>="20:31"*1)),1,""),"") ->  | S18: 07:00:00 | T18: 0.2916666667 | U18: 7 | W18: 7
B19: 2018-07-16 | C19: 202-lae | E19: =IFERROR(VLOOKUP(C19,TR!$B$2:$F$633,2,0),"") -> 10:45:00 | F19: =IFERROR(VLOOKUP(C19,TR!$B$2:$F$633,3,0),"") -> 11:38:00 | G19: 00:53:00 | H19: =IFERROR(VLOOKUP(C19,TR!$B$2:$F$633,4,0),"") -> 17:28:00 | I19: =IFERROR(VLOOKUP(C19,TR!$B$2:$F$633,5,0),"") -> 21:38:00 | J19: 04:10:00 | M19: 1 | P19: =IF(AND(L19="",M19=""),IF(OR(SUMPRODUCT(N(ISNUMBER(FIND({"s";"d";"f"},C19))))>0,G19+J19<0,AND(G19>0,J19>0,I19>"20:30"*1),AND(I19<="20:30"*1,SUM(I19,R19)>="20:31"*1)),1,""),"") ->  | S19: 10:53:00 | T19: 0.2104166667 | U19: 5.05 | W19: 5.05
B20: 2018-07-17 | C20: 911-lae | E20: =IFERROR(VLOOKUP(C20,TR!$B$2:$F$633,2,0),"") -> 00:00:00 | F20: =IFERROR(VLOOKUP(C20,TR!$B$2:$F$633,3,0),"") -> 00:00:00 | G20: 00:00:00 | H20: =IFERROR(VLOOKUP(C20,TR!$B$2:$F$633,4,0),"") -> 17:20:00 | I20: =IFERROR(VLOOKUP(C20,TR!$B$2:$F$633,5,0),"") -> 23:51:00 | J20: 06:31:00 | K20: 1 | M20: 1 | P20: =IF(AND(L20="",M20=""),IF(OR(SUMPRODUCT(N(ISNUMBER(FIND({"s";"d";"f"},C20))))>0,G20+J20<0,AND(G20>0,J20>0,I20>"20:30"*1),AND(I20<="20:30"*1,SUM(I20,R20)>="20:31"*1)),1,""),"") ->  | S20: 06:31:00 | T20: 0.2715277778 | U20: 6.516666667 | W20: 6.516666667
B21: 2018-07-18 | C21: CC | E21: =IFERROR(VLOOKUP(C21,TR!$B$2:$F$633,2,0),"") -> 00:00:00 | F21: =IFERROR(VLOOKUP(C21,TR!$B$2:$F$633,3,0),"") -> 00:00:00 | G21: 00:00:00 | H21: =IFERROR(VLOOKUP(C21,TR!$B$2:$F$633,4,0),"") -> 00:00:00 | I21: =IFERROR(VLOOKUP(C21,TR!$B$2:$F$633,5,0),"") -> 00:00:00 | J21: 00:00:00 | N21: =IF(OR(AND(LEFT(C21,1)="d",OR(E21>="0:00"*1,H21>"14:00"*1)),AND(LEFT(C21,1)="s",I21>="24:01"*1)),1,"") ->  | P21: =IF(AND(L21="",M21=""),IF(OR(SUMPRODUCT(N(ISNUMBER(FIND({"s";"d";"f"},C21))))>0,G21+J21<0,AND(G21>0,J21>0,I21>"20:30"*1),AND(I21<="20:30"*1,SUM(I21,R21)>="20:31"*1)),1,""),"") ->  | T21: 0 | U21: 0 | W21: 0,00
B22: 2018-07-19 | C22: 201-lae | E22: =IFERROR(VLOOKUP(C22,TR!$B$2:$F$633,2,0),"") -> 09:13:00 | F22: =IFERROR(VLOOKUP(C22,TR!$B$2:$F$633,3,0),"") -> 11:58:00 | G22: 02:45:00 | H22: =IFERROR(VLOOKUP(C22,TR!$B$2:$F$633,4,0),"") -> 13:15:00 | I22: =IFERROR(VLOOKUP(C22,TR!$B$2:$F$633,5,0),"") -> 17:44:00 | J22: 04:29:00 | N22: =IF(OR(AND(LEFT(C22,1)="d",OR(E22>="0:00"*1,H22>"14:00"*1)),AND(LEFT(C22,1)="s",I22>="24:01"*1)),1,"") ->  | P22: =IF(AND(L22="",M22=""),IF(OR(SUMPRODUCT(N(ISNUMBER(FIND({"s";"d";"f"},C22))))>0,G22+J22<0,AND(G22>0,J22>0,I22>"20:30"*1),AND(I22<="20:30"*1,SUM(I22,R22)>="20:31"*1)),1,""),"") ->  | S22: 08:31:00 | T22: 0.3013888889 | U22: 7.233333333 | W22: 7.233333333
B23: 2018-07-20 | C23: v836-lae | E23: =IFERROR(VLOOKUP(C23,TR!$B$2:$F$633,2,0),"") -> 00:00:00 | F23: =IFERROR(VLOOKUP(C23,TR!$B$2:$F$633,3,0),"") -> 00:00:00 | G23: 00:00:00 | H23: =IFERROR(VLOOKUP(C23,TR!$B$2:$F$633,4,0),"") -> 12:35:00 | I23: =IFERROR(VLOOKUP(C23,TR!$B$2:$F$633,5,0),"") -> 19:57:00 | J23: 07:22:00 | P23: =IF(AND(L23="",M23=""),IF(OR(SUMPRODUCT(N(ISNUMBER(FIND({"s";"d";"f"},C23))))>0,G23+J23<0,AND(G23>0,J23>0,I23>"20:30"*1),AND(I23<="20:30"*1,SUM(I23,R23)>="20:31"*1)),1,""),"") ->  | S23: 07:22:00 | T23: 0.3069444444 | U23: 7.366666667 | W23: 7.366666667
B24: 2018-07-21 | C24: s915-lae | E24: =IFERROR(VLOOKUP(C24,TR!$B$2:$F$633,2,0),"") -> 00:00:00 | F24: =IFERROR(VLOOKUP(C24,TR!$B$2:$F$633,3,0),"") -> 00:00:00 | G24: 00:00:00 | H24: =IFERROR(VLOOKUP(C24,TR!$B$2:$F$633,4,0),"") -> 16:26:00 | I24: =IFERROR(VLOOKUP(C24,TR!$B$2:$F$633,5,0),"") -> 23:51:00 | J24: 07:25:00 | K24: 1 | M24: 1 | P24: =IF(AND(L24="",M24=""),IF(OR(SUMPRODUCT(N(ISNUMBER(FIND({"s";"d";"f"},C24))))>0,G24+J24<0,AND(G24>0,J24>0,I24>"20:30"*1),AND(I24<="20:30"*1,SUM(I24,R24)>="20:31"*1)),1,""),"") ->  | S24: 07:25:00 | T24: 0.3090277778 | U24: 7.416666667 | W24: 7.416666667
B25: 2018-07-22 | C25: CH | E25: =IFERROR(VLOOKUP(C25,TR!$B$2:$F$633,2,0),"") -> 00:00:00 | F25: =IFERROR(VLOOKUP(C25,TR!$B$2:$F$633,3,0),"") -> 00:00:00 | G25: 00:00:00 | H25: =IFERROR(VLOOKUP(C25,TR!$B$2:$F$633,4,0),"") -> 00:00:00 | I25: =IFERROR(VLOOKUP(C25,TR!$B$2:$F$633,5,0),"") -> 00:00:00 | J25: 00:00:00 | P25: =IF(AND(L25="",M25=""),IF(OR(SUMPRODUCT(N(ISNUMBER(FIND({"s";"d";"f"},C25))))>0,G25+J25<0,AND(G25>0,J25>0,I25>"20:30"*1),AND(I25<="20:30"*1,SUM(I25,R25)>="20:31"*1)),1,""),"") ->  | T25: 0 | U25: 0 | W25: 0,00
B26: 2018-07-23 | C26: 302-1e | E26: =IFERROR(VLOOKUP(C26,TR!$B$2:$F$633,2,0),"") -> 08:29:00 | F26: =IFERROR(VLOOKUP(C26,TR!$B$2:$F$633,3,0),"") -> 12:16:00 | G26: 03:47:00 | H26: =IFERROR(VLOOKUP(C26,TR!$B$2:$F$633,4,0),"") -> 13:20:00 | I26: =IFERROR(VLOOKUP(C26,TR!$B$2:$F$633,5,0),"") -> 16:33:00 | J26: 03:13:00 | P26: =IF(AND(L26="",M26=""),IF(OR(SUMPRODUCT(N(ISNUMBER(FIND({"s";"d";"f"},C26))))>0,G26+J26<0,AND(G26>0,J26>0,I26>"20:30"*1),AND(I26<="20:30"*1,SUM(I26,R26)>="20:31"*1)),1,""),"") ->  | S26: 08:04:00 | T26: 0.2916666667 | U26: 7 | W26: 7
B27: 2018-07-24 | C27: 301-ae | E27: =IFERROR(VLOOKUP(C27,TR!$B$2:$F$633,2,0),"") -> 05:35:00 | F27: =IFERROR(VLOOKUP(C27,TR!$B$2:$F$633,3,0),"") -> 08:24:00 | G27: 02:49:00 | H27: =IFERROR(VLOOKUP(C27,TR!$B$2:$F$633,4,0),"") -> 11:56:00 | I27: =IFERROR(VLOOKUP(C27,TR!$B$2:$F$633,5,0),"") -> 15:52:00 | J27: 03:56:00 | L27: 1 | P27: =IF(AND(L27="",M27=""),IF(OR(SUMPRODUCT(N(ISNUMBER(FIND({"s";"d";"f"},C27))))>0,G27+J27<0,AND(G27>0,J27>0,I27>"20:30"*1),AND(I27<="20:30"*1,SUM(I27,R27)>="20:31"*1)),1,""),"") ->  | S27: 10:17:00 | T27: 0.28125 | U27: 6.75 | W27: 6.75
B28: 2018-07-25 | C28: 736-lae | E28: =IFERROR(VLOOKUP(C28,TR!$B$2:$F$633,2,0),"") -> 03:35:00 | F28: =IFERROR(VLOOKUP(C28,TR!$B$2:$F$633,3,0),"") -> 10:51:00 | G28: 07:16:00 | H28: =IFERROR(VLOOKUP(C28,TR!$B$2:$F$633,4,0),"") -> 00:00:00 | I28: =IFERROR(VLOOKUP(C28,TR!$B$2:$F$633,5,0),"") -> 00:00:00 | J28: 00:00:00 | K28: 1 | O28: =IF(AND(I28>"24:00"*1,ISNUMBER(FIND("f",#REF!))),1,IF(AND(OR(ISNUMBER(FIND("FériéCC",C28)),ISNUMBER(FIND("FériéCH",C28)),ISNUMBER(FIND("f",C28)))),1,"")) ->  | P28: =IF(AND(L28="",M28=""),IF(OR(SUMPRODUCT(N(ISNUMBER(FIND({"s";"d";"f"},C28))))>0,G28+J28<0,AND(G28>0,J28>0,I28>"20:30"*1),AND(I28<="20:30"*1,SUM(I28,R28)>="20:31"*1)),1,""),"") ->  | S28: 07:16:00 | T28: 0.3027777778 | U28: 7.266666667 | W28: 7.266666667
B29: 2018-07-26 | C29: 730-18e | E29: =IFERROR(VLOOKUP(C29,TR!$B$2:$F$633,2,0),"") -> 05:01:00 | F29: =IFERROR(VLOOKUP(C29,TR!$B$2:$F$633,3,0),"") -> 12:49:00 | G29: 07:48:00 | H29: =IFERROR(VLOOKUP(C29,TR!$B$2:$F$633,4,0),"") -> 00:00:00 | I29: =IFERROR(VLOOKUP(C29,TR!$B$2:$F$633,5,0),"") -> 00:00:00 | J29: 00:00:00 | O29: =IF(AND(I29>"24:00"*1,ISNUMBER(FIND("f",#REF!))),1,IF(AND(OR(ISNUMBER(FIND("FériéCC",C29)),ISNUMBER(FIND("FériéCH",C29)),ISNUMBER(FIND("f",C29)))),1,"")) ->  | P29: =IF(AND(L29="",M29=""),IF(OR(SUMPRODUCT(N(ISNUMBER(FIND({"s";"d";"f"},C29))))>0,G29+J29<0,AND(G29>0,J29>0,I29>"20:30"*1),AND(I29<="20:30"*1,SUM(I29,R29)>="20:31"*1)),1,""),"") ->  | S29: 07:48:00 | T29: 0.325 | U29: 7.8 | W29: 7.8
B30: 2018-07-27 | C30: v301-ae | E30: =IFERROR(VLOOKUP(C30,TR!$B$2:$F$633,2,0),"") -> 05:35:00 | F30: =IFERROR(VLOOKUP(C30,TR!$B$2:$F$633,3,0),"") -> 08:24:00 | G30: 02:49:00 | H30: =IFERROR(VLOOKUP(C30,TR!$B$2:$F$633,4,0),"") -> 11:56:00 | I30: =IFERROR(VLOOKUP(C30,TR!$B$2:$F$633,5,0),"") -> 15:52:00 | J30: 03:56:00 | L30: 1 | O30: =IF(AND(I30>"24:00"*1,ISNUMBER(FIND("f",#REF!))),1,IF(AND(OR(ISNUMBER(FIND("FériéCC",C30)),ISNUMBER(FIND("FériéCH",C30)),ISNUMBER(FIND("f",C30)))),1,"")) ->  | P30: =IF(AND(L30="",M30=""),IF(OR(SUMPRODUCT(N(ISNUMBER(FIND({"s";"d";"f"},C30))))>0,G30+J30<0,AND(G30>0,J30>0,I30>"20:30"*1),AND(I30<="20:30"*1,SUM(I30,R30)>="20:31"*1)),1,""),"") ->  | S30: 10:17:00 | T30: 0.28125 | U30: 6.75 | W30: 6.75
B31: 2018-07-28 | C31: CC | E31: =IFERROR(VLOOKUP(C31,TR!$B$2:$F$633,2,0),"") -> 00:00:00 | F31: =IFERROR(VLOOKUP(C31,TR!$B$2:$F$633,3,0),"") -> 00:00:00 | G31: 00:00:00 | H31: =IFERROR(VLOOKUP(C31,TR!$B$2:$F$633,4,0),"") -> 00:00:00 | I31: =IFERROR(VLOOKUP(C31,TR!$B$2:$F$633,5,0),"") -> 00:00:00 | J31: 00:00:00 | P31: =IF(AND(L31="",M31=""),IF(OR(SUMPRODUCT(N(ISNUMBER(FIND({"s";"d";"f"},C31))))>0,G31+J31<0,AND(G31>0,J31>0,I31>"20:30"*1),AND(I31<="20:30"*1,SUM(I31,R31)>="20:31"*1)),1,""),"") ->  | T31: 0 | U31: 0 | W31: 0,00
B32: 2018-07-29 | C32: CH | E32: =IFERROR(VLOOKUP(C32,TR!$B$2:$F$633,2,0),"") -> 00:00:00 | F32: =IFERROR(VLOOKUP(C32,TR!$B$2:$F$633,3,0),"") -> 00:00:00 | G32: 00:00:00 | H32: =IFERROR(VLOOKUP(C32,TR!$B$2:$F$633,4,0),"") -> 00:00:00 | I32: =IFERROR(VLOOKUP(C32,TR!$B$2:$F$633,5,0),"") -> 00:00:00 | J32: 00:00:00 | P32: =IF(AND(L32="",M32=""),IF(OR(SUMPRODUCT(N(ISNUMBER(FIND({"s";"d";"f"},C32))))>0,G32+J32<0,AND(G32>0,J32>0,I32>"20:30"*1),AND(I32<="20:30"*1,SUM(I32,R32)>="20:31"*1)),1,""),"") ->  | T32: 0 | U32: 0 | W32: 0,00
B33: 2018-07-30 | C33: 801-rhe | E33: =IFERROR(VLOOKUP(C33,TR!$B$2:$F$633,2,0),"") -> 00:00:00 | F33: =IFERROR(VLOOKUP(C33,TR!$B$2:$F$633,3,0),"") -> 00:00:00 | G33: 00:00:00 | H33: =IFERROR(VLOOKUP(C33,TR!$B$2:$F$633,4,0),"") -> 12:57:00 | I33: =IFERROR(VLOOKUP(C33,TR!$B$2:$F$633,5,0),"") -> 20:36:00 | J33: 07:39:00 | P33: =IF(AND(L33="",M33=""),IF(OR(SUMPRODUCT(N(ISNUMBER(FIND({"s";"d";"f"},C33))))>0,G33+J33<0,AND(G33>0,J33>0,I33>"20:30"*1),AND(I33<="20:30"*1,SUM(I33,R33)>="20:31"*1)),1,""),"") ->  | S33: 07:39:00 | T33: 0.31875 | U33: 7.65 | W33: 7.65
B34: 2018-07-31 | C34: 802-be | E34: =IFERROR(VLOOKUP(C34,TR!$B$2:$F$633,2,0),"") -> 00:00:00 | F34: =IFERROR(VLOOKUP(C34,TR!$B$2:$F$633,3,0),"") -> 00:00:00 | G34: 00:00:00 | H34: =IFERROR(VLOOKUP(C34,TR!$B$2:$F$633,4,0),"") -> 12:14:00 | I34: =IFERROR(VLOOKUP(C34,TR!$B$2:$F$633,5,0),"") -> 19:47:00 | J34: 07:33:00 | L34: 1 | N34: =IF(AND(LEFT(C34,1)="d",AND(N33<>1)),1,IF(AND(LEFT(C34,1)="s",I34>="24:01"*1),1,IF(AND(I34<>"",I34<="23:59"*1,SUM(I34,R34)>="24:01"*1),1,""))) ->  | P34: =IF(AND(L34="",M34=""),IF(OR(SUMPRODUCT(N(ISNUMBER(FIND({"s";"d";"f"},C34))))>0,G34+J34<0,AND(G34>0,J34>0,I34>"20:30"*1),AND(I34<="20:30"*1,SUM(I34,R34)>="20:31"*1)),1,""),"") ->  | S34: 07:33:00 | T34: 0.3145833333 | U34: 7.55 | W34: 7.55
B36: Jours travaillés | C36: =(COUNTIF(Juin!C24:C34,"<>")+COUNTIF(Juillet!C4:C23,"<>"))-(COUNTIF(Juin!C24:C34,"CC*")+COUNTIF(Juillet!C4:C23,"CC*"))-(COUNTIF(Juin!C24:C34,"CH*")+COUNTIF(Juillet!C4:C23,"CH*"))-(COUNTIF(Juin!C24:C34,"RT*")+COUNTIF(Juillet!C4:C23,"RT*"))-(COUNTIF(Juin!C24:C34,"Férié*")+COUNTIF(Juillet!C4:C23,"Férié*"))-(COUNTIF(Juin!C24:C34,"Mal*")+COUNTIF(Juillet!C4:C23,"Mal*"))-(COUNTIF(Juin!C24:C34,"CP*")+COUNTIF(Juillet!C4:C23,"CP*")) -> 13 | I36: Du 21 au 20 | K36: =SUM(Juin!$K$24:$K$34,K4:K23) -> 2 | L36: =SUM(Juin!$L$24:$L$34,L4:L23) -> 6 | M36: =SUM(Juin!$M$24:$M$34,M4:M23) -> 2 | N36: =SUM(Juin!$N$24:$N$34,N4:N23) -> 1 | O36: =SUM(Juin!$O$24:$O$34,O4:O23) -> 0 | P36: =SUM(Juin!$P$24:$P$34,P4:P23) -> 0 | Q36: =SUM(Juin!$Q$24:$Q$34,Q4:Q23) -> 0 | R36: =SUM(Juin!$R$24:$R$34,R4:R23) -> 0 | T36: =SUM(Juin!T24:T34)+SUM(Juillet!T4:T23) -> 3.927777778 | U36: =SUM(U4:U34) -> 152.45 | V36: =SUM(V4:V34) -> 0
B37: CP | C37: =(COUNTIF(Juin!C24:C34,"CP")+COUNTIF(Juillet!C4:C23,"CP")) -> 7 | K37: =(I39*2)*K36 -> 35.4112 | L37: =Recap!H35*L36 -> 42.84 | M37: =Recap!H35*M36 -> 14.28 | N37: =(I39*5)*N36 -> 44.264 | O37: =(Recap!H33)*O36 -> 0 | P37: =7.5*P36 -> 0 | Q37: =(I39*1.5)*Q36 -> 0 | R37: =R36*24 -> 0
B38: CH | C38: =(COUNTIF(Juin!C24:C34,"CH")+COUNTIF(Juillet!C4:C23,"CH")) -> 3 | I38: VP | T38: Horaire mensuel | V38: 6.175 | W38: =V38*24 -> 148.2
B39: RT | C39: =(COUNTIF(Juin!C24:C34,"RT")+COUNTIF(Juillet!C4:C23,"RT")) -> 2 | I39: 8.8528
B40: CC | C40: =(COUNTIF(Juin!C24:C34,"CC")+COUNTIF(Juillet!C4:C23,"CC")) -> 5 | T40: Différence | V40: =IF(V38>T36,"-","")&TEXT(ABS(T36-V38),"[h]:mm") -> -53:56 | W40: =(T36-V38)*24 -> -53.93333333
B41: Férié | C41: =(COUNTIF(Juin!C24:C34,"Férié")+COUNTIF(Juillet!C4:C23,"Férié")) -> 0
B42: Férié CC-CH-RT | C42: =(COUNTIF(Juin!C24:C34,"FériéCC")+COUNTIF(Juillet!C4:C23,"FériéCC")+(COUNTIF(Juin!C24:C34,"FériéCH")+COUNTIF(Juillet!C4:C23,"FériéCH")+(COUNTIF(Juin!C24:C34,"FériéRT")+COUNTIF(Juillet!C4:C23,"FériéRT")))) -> 0 | R42: Heures réelles | T42: =SUM(T4:T34) -> 6.352083333
T43: =T42*24 -> 152.45 | W43: =(T42-V38)*24 -> 4.25
F45: NOTES

Sheet Aout
B1: AOUT
T2: TOTAL
B3: Date | C3: Services | D3: Obs. | E3: MATIN | G3: Temps | H3: APRES MIDI | J3: Temps | K3: Prime nuit | L3: PJ1 | M3: PJ2 | N3: Dimanche | O3: Férié | P3: ChècDej | Q3: PrimAmp | R3: H Supp | S3: Ampli | T3: Heures | U3: Centièmes | V3: Kéolis | W3: Écart
B4: 2018-08-01 | C4: RT | E4: =IFERROR(VLOOKUP(C4,TR!$B$2:$F$633,2,0),"") -> 00:00:00 | F4: =IFERROR(VLOOKUP(C4,TR!$B$2:$F$633,3,0),"") -> 00:00:00 | G4: =IF(ISERROR(F4-E4),0,F4-E4) -> 00:00:00 | H4: =IFERROR(VLOOKUP(C4,TR!$B$2:$F$633,4,0),"") -> 00:00:00 | I4: =IFERROR(VLOOKUP(C4,TR!$B$2:$F$633,5,0),"") -> 00:00:00 | J4: =IF(ISERROR(I4-H4),0,(I4-H4)) -> 00:00:00 | K4: =IF(COUNTA(E4:F4,H4:I4)=5,1,IF(AND(E4<"5:00"*1,E4>"2:00"*1),1,IF(AND(I4>="22:01"*1,I4<="26:01"*1),1,IF(AND(I4<="22:00"*1,SUM(I4,R4)>="22:01"*1),1,"")))) ->  | L4: =IF(AND(F4>="13:15"*1,H4<""),1,IF(AND(H4>="11:00"*1,H4<="12:15"*1),1,IF(AND(F4<="13:15"*1,SUM(F4,R4)>="13:15"*1),1,""))) ->  | M4: =IF(AND(I4>="19:30"*1,1,I4>"21:30"*1,C4<>""),1,IF(AND(I4<="21:30"*1,SUM(I4,R4)>="21:30"*1),1,"")) ->  | N4: =IF(AND(LEFT(C4,1)="d",AND(Juillet!N34<>1)),1,IF(AND(LEFT(C4,1)="s",I4>="24:01"*1),1,IF(AND(I4<>"",I4<="23:59"*1,SUM(I4,R4)>="24:01"*1),1,""))) ->  | O4: =IF(AND(I4>"24:00"*1,ISNUMBER(FIND("f",C5))),1,IF(AND(OR(ISNUMBER(FIND("FériéCC",C4)),ISNUMBER(FIND("FériéCH",C4)),ISNUMBER(FIND("f",C4)))),1,"")) ->  | P4: =IF(AND(L4="",M4=""),IF(OR(SUMPRODUCT(N(ISNUMBER(FIND({"s";"d";"f"},C4))))>0,G4+J4<0,AND(G4>0,J4>0,I4>"20:30"*1),AND(I4<="20:30"*1,SUM(I4,R4)>="20:31"*1)),1,""),"") ->  | Q4: =IF(OR(AND(G4>0,AND(J4=0)),OR(G4=0,AND(J4>0)),OR(G4+J4>0)),IF(S4="","",IF(R4+S4>="13:01"*1,1,""))) ->  | S4: =IF(G4=0,IF(J4=0,"",I4-H4),IF(J4=0,F4-E4,I4-E4)) ->  | T4: =IF(ISERROR((F4-E4)+(I4-H4)),0,(F4-E4)+(I4-H4)) -> 0 | U4: =T4*24 -> 0 | W4: =IF(U4-V4=0,"0,00",U4-V4) -> 0,00
B5: 2018-08-02 | C5: CC | E5: =IFERROR(VLOOKUP(C5,TR!$B$2:$F$633,2,0),"") -> 00:00:00 | F5: =IFERROR(VLOOKUP(C5,TR!$B$2:$F$633,3,0),"") -> 00:00:00 | G5: =IF(ISERROR(F5-E5),0,F5-E5) -> 00:00:00 | H5: =IFERROR(VLOOKUP(C5,TR!$B$2:$F$633,4,0),"") -> 00:00:00 | I5: =IFERROR(VLOOKUP(C5,TR!$B$2:$F$633,5,0),"") -> 00:00:00 | J5: =IF(ISERROR(I5-H5),0,(I5-H5)) -> 00:00:00 | N5: =IF(AND(LEFT(C5,1)="d",AND(N4<>1)),1,IF(AND(LEFT(C5,1)="s",I5>="24:01"*1),1,IF(AND(I5<>"",I5<="23:59"*1,SUM(I5,R5)>="24:01"*1),1,""))) ->  | O5: =IF(AND(I5>"24:00"*1,ISNUMBER(FIND("f",C6))),1,IF(AND(OR(ISNUMBER(FIND("FériéCC",C5)),ISNUMBER(FIND("FériéCH",C5)),ISNUMBER(FIND("f",C5)))),1,"")) ->  | P5: =IF(AND(L5="",M5=""),IF(OR(SUMPRODUCT(N(ISNUMBER(FIND({"s";"d";"f"},C5))))>0,G5+J5<0,AND(G5>0,J5>0,I5>"20:30"*1),AND(I5<="20:30"*1,SUM(I5,R5)>="20:31"*1)),1,""),"") ->  | Q5: =IF(OR(AND(G5>0,AND(J5=0)),OR(G5=0,AND(J5>0)),OR(G5+J5>0)),IF(S5="","",IF(R5+S5>="13:01"*1,1,""))) ->  | T5: 0 | U5: =T5*24 -> 0 | W5: =IF(U5-V5=0,"0,00",U5-V5) -> 0,00
B6: 2018-08-03 | C6: CH | E6: =IFERROR(VLOOKUP(C6,TR!$B$2:$F$633,2,0),"") -> 00:00:00 | F6: =IFERROR(VLOOKUP(C6,TR!$B$2:$F$633,3,0),"") -> 00:00:00 | G6: 00:00:00 | H6: =IFERROR(VLOOKUP(C6,TR!$B$2:$F$633,4,0),"") -> 00:00:00 | I6: =IFERROR(VLOOKUP(C6,TR!$B$2:$F$633,5,0),"") -> 00:00:00 | J6: 00:00:00 | P6: =IF(AND(L6="",M6=""),IF(OR(SUMPRODUCT(N(ISNUMBER(FIND({"s";"d";"f"},C6))))>0,G6+J6<0,AND(G6>0,J6>0,I6>"20:30"*1),AND(I6<="20:30"*1,SUM(I6,R6)>="20:31"*1)),1,""),"") ->  | T6: 0 | U6: =T6*24 -> 0 | W6: 0,00
B7: 2018-08-04 | C7: s101-1e | E7: =IFERROR(VLOOKUP(C7,TR!$B$2:$F$633,2,0),"") ->  | F7: =IFERROR(VLOOKUP(C7,TR!$B$2:$F$633,3,0),"") ->  | G7: 00:00:00 | H7: =IFERROR(VLOOKUP(C7,TR!$B$2:$F$633,4,0),"") ->  | I7: =IFERROR(VLOOKUP(C7,TR!$B$2:$F$633,5,0),"") ->  | J7: 00:00:00 | M7: 1 | N7: 1 | P7: =IF(AND(L7="",M7=""),IF(OR(SUMPRODUCT(N(ISNUMBER(FIND({"s";"d";"f"},C7))))>0,G7+J7<0,AND(G7>0,J7>0,I7>"20:30"*1),AND(I7<="20:30"*1,SUM(I7,R7)>="20:31"*1)),1,""),"") ->  | T7: 0 | U7: =T7*24 -> 0 | W7: 0,00
B8: 2018-08-05 | C8: d603-ae | E8: =IFERROR(VLOOKUP(C8,TR!$B$2:$F$633,2,0),"") -> 00:00:00 | F8: =IFERROR(VLOOKUP(C8,TR!$B$2:$F$633,3,0),"") -> 00:00:00 | G8: 00:00:00 | H8: =IFERROR(VLOOKUP(C8,TR!$B$2:$F$633,4,0),"") -> 12:18:00 | I8: =IFERROR(VLOOKUP(C8,TR!$B$2:$F$633,5,0),"") -> 19:31:00 | J8: 07:13:00 | P8: =IF(AND(L8="",M8=""),IF(OR(SUMPRODUCT(N(ISNUMBER(FIND({"s";"d";"f"},C8))))>0,G8+J8<0,AND(G8>0,J8>0,I8>"20:30"*1),AND(I8<="20:30"*1,SUM(I8,R8)>="20:31"*1)),1,""),"") -> 1 | S8: 07:13:00 | T8: 0.3006944444 | U8: 7.216666667 | W8: 7.216666667
B9: 2018-08-06 | C9: 827-12e | E9: =IFERROR(VLOOKUP(C9,TR!$B$2:$F$633,2,0),"") -> 00:00:00 | F9: =IFERROR(VLOOKUP(C9,TR!$B$2:$F$633,3,0),"") -> 00:00:00 | G9: 00:00:00 | H9: =IFERROR(VLOOKUP(C9,TR!$B$2:$F$633,4,0),"") -> 12:58:00 | I9: =IFERROR(VLOOKUP(C9,TR!$B$2:$F$633,5,0),"") -> 20:40:00 | J9: 07:42:00 | P9: =IF(AND(L9="",M9=""),IF(OR(SUMPRODUCT(N(ISNUMBER(FIND({"s";"d";"f"},C9))))>0,G9+J9<0,AND(G9>0,J9>0,I9>"20:30"*1),AND(I9<="20:30"*1,SUM(I9,R9)>="20:31"*1)),1,""),"") ->  | S9: 07:42:00 | T9: 0.3208333333 | U9: 7.7 | W9: 7.7
B10: 2018-08-07 | C10: CC | E10: =IFERROR(VLOOKUP(C10,TR!$B$2:$F$633,2,0),"") -> 00:00:00 | F10: =IFERROR(VLOOKUP(C10,TR!$B$2:$F$633,3,0),"") -> 00:00:00 | G10: 00:00:00 | H10: =IFERROR(VLOOKUP(C10,TR!$B$2:$F$633,4,0),"") -> 00:00:00 | I10: =IFERROR(VLOOKUP(C10,TR!$B$2:$F$633,5,0),"") -> 00:00:00 | J10: 00:00:00 | P10: =IF(AND(L10="",M10=""),IF(OR(SUMPRODUCT(N(ISNUMBER(FIND({"s";"d";"f"},C10))))>0,G10+J10<0,AND(G10>0,J10>0,I10>"20:30"*1),AND(I10<="20:30"*1,SUM(I10,R10)>="20:31"*1)),1,""),"") ->  | T10: 0 | U10: 0 | W10: 0,00
B11: 2018-08-08 | C11: 729-7e | E11: =IFERROR(VLOOKUP(C11,TR!$B$2:$F$633,2,0),"") ->  | F11: =IFERROR(VLOOKUP(C11,TR!$B$2:$F$633,3,0),"") ->  | G11: 00:00:00 | H11: =IFERROR(VLOOKUP(C11,TR!$B$2:$F$633,4,0),"") ->  | I11: =IFERROR(VLOOKUP(C11,TR!$B$2:$F$633,5,0),"") ->  | J11: 00:00:00 | M11: 1 | P11: =IF(AND(L11="",M11=""),IF(OR(SUMPRODUCT(N(ISNUMBER(FIND({"s";"d";"f"},C11))))>0,G11+J11<0,AND(G11>0,J11>0,I11>"20:30"*1),AND(I11<="20:30"*1,SUM(I11,R11)>="20:31"*1)),1,""),"") ->  | T11: 0 | U11: 0 | W11: 0,00
B12: 2018-08-09 | C12: CB | E12: =IFERROR(VLOOKUP(C12,TR!$B$2:$F$633,2,0),"") -> 08:00:00 | F12: =IFERROR(VLOOKUP(C12,TR!$B$2:$F$633,3,0),"") -> 12:00:00 | G12: 04:00:00 | H12: =IFERROR(VLOOKUP(C12,TR!$B$2:$F$633,4,0),"") -> 14:00:00 | I12: =IFERROR(VLOOKUP(C12,TR!$B$2:$F$633,5,0),"") -> 17:36:00 | J12: 03:36:00 | P12: =IF(AND(L12="",M12=""),IF(OR(SUMPRODUCT(N(ISNUMBER(FIND({"s";"d";"f"},C12))))>0,G12+J12<0,AND(G12>0,J12>0,I12>"20:30"*1),AND(I12<="20:30"*1,SUM(I12,R12)>="20:31"*1)),1,""),"") ->  | S12: 09:36:00 | T12: 0.3166666667 | U12: 7.6 | W12: 7.6
B13: 2018-08-10 | C13: v701-rhe | E13: =IFERROR(VLOOKUP(C13,TR!$B$2:$F$633,2,0),"") -> 00:00:00 | F13: =IFERROR(VLOOKUP(C13,TR!$B$2:$F$633,3,0),"") -> 00:00:00 | G13: 00:00:00 | H13: =IFERROR(VLOOKUP(C13,TR!$B$2:$F$633,4,0),"") -> 12:58:00 | I13: =IFERROR(VLOOKUP(C13,TR!$B$2:$F$633,5,0),"") -> 20:40:00 | J13: 07:42:00 | P13: =IF(AND(L13="",M13=""),IF(OR(SUMPRODUCT(N(ISNUMBER(FIND({"s";"d";"f"},C13))))>0,G13+J13<0,AND(G13>0,J13>0,I13>"20:30"*1),AND(I13<="20:30"*1,SUM(I13,R13)>="20:31"*1)),1,""),"") ->  | S13: 07:42:00 | T13: 0.3208333333 | U13: 7.7 | W13: 7.7
B14: 2018-08-11 | C14: s711-2e | E14: =IFERROR(VLOOKUP(C14,TR!$B$2:$F$633,2,0),"") -> 05:42:00 | F14: =IFERROR(VLOOKUP(C14,TR!$B$2:$F$633,3,0),"") -> 13:07:00 | G14: 07:25:00 | H14: =IFERROR(VLOOKUP(C14,TR!$B$2:$F$633,4,0),"") -> 00:00:00 | I14: =IFERROR(VLOOKUP(C14,TR!$B$2:$F$633,5,0),"") -> 00:00:00 | J14: 00:00:00 | P14: =IF(AND(L14="",M14=""),IF(OR(SUMPRODUCT(N(ISNUMBER(FIND({"s";"d";"f"},C14))))>0,G14+J14<0,AND(G14>0,J14>0,I14>"20:30"*1),AND(I14<="20:30"*1,SUM(I14,R14)>="20:31"*1)),1,""),"") -> 1 | S14: 07:25:00 | T14: 0.3090277778 | U14: 7.416666667 | W14: 7.416666667
B15: 2018-08-12 | C15: CH | E15: =IFERROR(VLOOKUP(C15,TR!$B$2:$F$633,2,0),"") -> 00:00:00 | F15: =IFERROR(VLOOKUP(C15,TR!$B$2:$F$633,3,0),"") -> 00:00:00 | G15: 00:00:00 | H15: =IFERROR(VLOOKUP(C15,TR!$B$2:$F$633,4,0),"") -> 00:00:00 | I15: =IFERROR(VLOOKUP(C15,TR!$B$2:$F$633,5,0),"") -> 00:00:00 | J15: 00:00:00 | P15: =IF(AND(L15="",M15=""),IF(OR(SUMPRODUCT(N(ISNUMBER(FIND({"s";"d";"f"},C15))))>0,G15+J15<0,AND(G15>0,J15>0,I15>"20:30"*1),AND(I15<="20:30"*1,SUM(I15,R15)>="20:31"*1)),1,""),"") ->  | T15: 0 | U15: 0 | W15: 0,00
B16: 2018-08-13 | C16: 20 RE | E16: =IFERROR(VLOOKUP(C16,TR!$B$2:$F$633,2,0),"") ->  | F16: =IFERROR(VLOOKUP(C16,TR!$B$2:$F$633,3,0),"") ->  | G16: 00:00:00 | H16: =IFERROR(VLOOKUP(C16,TR!$B$2:$F$633,4,0),"") ->  | I16: =IFERROR(VLOOKUP(C16,TR!$B$2:$F$633,5,0),"") ->  | J16: 00:00:00 | M16: 1 | P16: =IF(AND(L16="",M16=""),IF(OR(SUMPRODUCT(N(ISNUMBER(FIND({"s";"d";"f"},C16))))>0,G16+J16<0,AND(G16>0,J16>0,I16>"20:30"*1),AND(I16<="20:30"*1,SUM(I16,R16)>="20:31"*1)),1,""),"") ->  | T16: 0 | U16: 0 | W16: 0,00
B17: 2018-08-14 | C17: 20 RE | E17: =IFERROR(VLOOKUP(C17,TR!$B$2:$F$633,2,0),"") ->  | F17: =IFERROR(VLOOKUP(C17,TR!$B$2:$F$633,3,0),"") ->  | G17: 00:00:00 | H17: =IFERROR(VLOOKUP(C17,TR!$B$2:$F$633,4,0),"") ->  | I17: =IFERROR(VLOOKUP(C17,TR!$B$2:$F$633,5,0),"") ->  | J17: 00:00:00 | M17: 1 | P17: =IF(AND(L17="",M17=""),IF(OR(SUMPRODUCT(N(ISNUMBER(FIND({"s";"d";"f"},C17))))>0,G17+J17<0,AND(G17>0,J17>0,I17>"20:30"*1),AND(I17<="20:30"*1,SUM(I17,R17)>="20:31"*1)),1,""),"") ->  | T17: 0 | U17: 0 | W17: 0,00
B18: 2018-08-15 | C18: Férié | E18: =IFERROR(VLOOKUP(C18,TR!$B$2:$F$633,2,0),"") -> 00:00:00 | F18: =IFERROR(VLOOKUP(C18,TR!$B$2:$F$633,3,0),"") -> 00:00:00 | G18: 00:00:00 | H18: =IFERROR(VLOOKUP(C18,TR!$B$2:$F$633,4,0),"") -> 00:00:00 | I18: =IFERROR(VLOOKUP(C18,TR!$B$2:$F$633,5,0),"") -> 00:00:00 | J18: 00:00:00 | P18: =IF(AND(L18="",M18=""),IF(OR(SUMPRODUCT(N(ISNUMBER(FIND({"s";"d";"f"},C18))))>0,G18+J18<0,AND(G18>0,J18>0,I18>"20:30"*1),AND(I18<="20:30"*1,SUM(I18,R18)>="20:31"*1)),1,""),"") ->  | T18: 0 | U18: 0 | W18: 0,00
B19: 2018-08-16 | C19: 835-lae | E19: =IFERROR(VLOOKUP(C19,TR!$B$2:$F$633,2,0),"") -> 05:13:00 | F19: =IFERROR(VLOOKUP(C19,TR!$B$2:$F$633,3,0),"") -> 13:11:00 | G19: 07:58:00 | H19: =IFERROR(VLOOKUP(C19,TR!$B$2:$F$633,4,0),"") -> 00:00:00 | I19: =IFERROR(VLOOKUP(C19,TR!$B$2:$F$633,5,0),"") -> 00:00:00 | J19: 00:00:00 | P19: =IF(AND(L19="",M19=""),IF(OR(SUMPRODUCT(N(ISNUMBER(FIND({"s";"d";"f"},C19))))>0,G19+J19<0,AND(G19>0,J19>0,I19>"20:30"*1),AND(I19<="20:30"*1,SUM(I19,R19)>="20:31"*1)),1,""),"") ->  | S19: 07:58:00 | T19: 0.3319444444 | U19: 7.966666667 | W19: 7.966666667
B20: 2018-08-17 | C20: v834-lae | E20: =IFERROR(VLOOKUP(C20,TR!$B$2:$F$633,2,0),"") -> 00:00:00 | F20: =IFERROR(VLOOKUP(C20,TR!$B$2:$F$633,3,0),"") -> 00:00:00 | G20: 00:00:00 | H20: =IFERROR(VLOOKUP(C20,TR!$B$2:$F$633,4,0),"") -> 11:45:00 | I20: =IFERROR(VLOOKUP(C20,TR!$B$2:$F$633,5,0),"") -> 19:27:00 | J20: 07:42:00 | L20: 1 | P20: =IF(AND(L20="",M20=""),IF(OR(SUMPRODUCT(N(ISNUMBER(FIND({"s";"d";"f"},C20))))>0,G20+J20<0,AND(G20>0,J20>0,I20>"20:30"*1),AND(I20<="20:30"*1,SUM(I20,R20)>="20:31"*1)),1,""),"") ->  | S20: 07:42:00 | T20: 0.3208333333 | U20: 7.7 | W20: 7.7
B21: 2018-08-18 | C21: CC | E21: =IFERROR(VLOOKUP(C21,TR!$B$2:$F$633,2,0),"") -> 00:00:00 | F21: =IFERROR(VLOOKUP(C21,TR!$B$2:$F$633,3,0),"") -> 00:00:00 | G21: 00:00:00 | H21: =IFERROR(VLOOKUP(C21,TR!$B$2:$F$633,4,0),"") -> 00:00:00 | I21: =IFERROR(VLOOKUP(C21,TR!$B$2:$F$633,5,0),"") -> 00:00:00 | J21: 00:00:00 | P21: =IF(AND(L21="",M21=""),IF(OR(SUMPRODUCT(N(ISNUMBER(FIND({"s";"d";"f"},C21))))>0,G21+J21<0,AND(G21>0,J21>0,I21>"20:30"*1),AND(I21<="20:30"*1,SUM(I21,R21)>="20:31"*1)),1,""),"") ->  | T21: 0 | U21: 0 | W21: 0,00
B22: 2018-08-19 | C22: CH | E22: =IFERROR(VLOOKUP(C22,TR!$B$2:$F$633,2,0),"") -> 00:00:00 | F22: =IFERROR(VLOOKUP(C22,TR!$B$2:$F$633,3,0),"") -> 00:00:00 | G22: 00:00:00 | H22: =IFERROR(VLOOKUP(C22,TR!$B$2:$F$633,4,0),"") -> 00:00:00 | I22: =IFERROR(VLOOKUP(C22,TR!$B$2:$F$633,5,0),"") -> 00:00:00 | J22: 00:00:00 | P22: =IF(AND(L22="",M22=""),IF(OR(SUMPRODUCT(N(ISNUMBER(FIND({"s";"d";"f"},C22))))>0,G22+J22<0,AND(G22>0,J22>0,I22>"20:30"*1),AND(I22<="20:30"*1,SUM(I22,R22)>="20:31"*1)),1,""),"") ->  | T22: 0 | U22: 0 | W22: 0,00
B23: 2018-08-20 | C23: RT | E23: =IFERROR(VLOOKUP(C23,TR!$B$2:$F$633,2,0),"") -> 00:00:00 | F23: =IFERROR(VLOOKUP(C23,TR!$B$2:$F$633,3,0),"") -> 00:00:00 | G23: 00:00:00 | H23: =IFERROR(VLOOKUP(C23,TR!$B$2:$F$633,4,0),"") -> 00:00:00 | I23: =IFERROR(VLOOKUP(C23,TR!$B$2:$F$633,5,0),"") -> 00:00:00 | J23: 00:00:00 | P23: =IF(AND(L23="",M23=""),IF(OR(SUMPRODUCT(N(ISNUMBER(FIND({"s";"d";"f"},C23))))>0,G23+J23<0,AND(G23>0,J23>0,I23>"20:30"*1),AND(I23<="20:30"*1,SUM(I23,R23)>="20:31"*1)),1,""),"") ->  | T23: 0 | U23: 0 | W23: 0,00
B24: 2018-08-21 | C24: CC | E24: =IFERROR(VLOOKUP(C24,TR!$B$2:$F$633,2,0),"") -> 00:00:00 | F24: =IFERROR(VLOOKUP(C24,TR!$B$2:$F$633,3,0),"") -> 00:00:00 | G24: 00:00:00 | H24: =IFERROR(VLOOKUP(C24,TR!$B$2:$F$633,4,0),"") -> 00:00:00 | I24: =IFERROR(VLOOKUP(C24,TR!$B$2:$F$633,5,0),"") -> 00:00:00 | J24: 00:00:00 | P24: =IF(AND(L24="",M24=""),IF(OR(SUMPRODUCT(N(ISNUMBER(FIND({"s";"d";"f"},C24))))>0,G24+J24<0,AND(G24>0,J24>0,I24>"20:30"*1),AND(I24<="20:30"*1,SUM(I24,R24)>="20:31"*1)),1,""),"") ->  | T24: 0 | U24: 0 | W24: 0,00
B25: 2018-08-22 | C25: 10 RE | E25: =IFERROR(VLOOKUP(C25,TR!$B$2:$F$633,2,0),"") ->  | F25: =IFERROR(VLOOKUP(C25,TR!$B$2:$F$633,3,0),"") ->  | G25: 00:00:00 | H25: =IFERROR(VLOOKUP(C25,TR!$B$2:$F$633,4,0),"") ->  | I25: =IFERROR(VLOOKUP(C25,TR!$B$2:$F$633,5,0),"") ->  | J25: 00:00:00 | M25: 1 | P25: =IF(AND(L25="",M25=""),IF(OR(SUMPRODUCT(N(ISNUMBER(FIND({"s";"d";"f"},C25))))>0,G25+J25<0,AND(G25>0,J25>0,I25>"20:30"*1),AND(I25<="20:30"*1,SUM(I25,R25)>="20:31"*1)),1,""),"") ->  | T25: 0 | U25: 0 | W25: 0,00
B26: 2018-08-23 | C26: 739-lae | E26: =IFERROR(VLOOKUP(C26,TR!$B$2:$F$633,2,0),"") -> 05:13:00 | F26: =IFERROR(VLOOKUP(C26,TR!$B$2:$F$633,3,0),"") -> 13:11:00 | G26: 07:58:00 | H26: =IFERROR(VLOOKUP(C26,TR!$B$2:$F$633,4,0),"") -> 00:00:00 | I26: =IFERROR(VLOOKUP(C26,TR!$B$2:$F$633,5,0),"") -> 00:00:00 | J26: 00:00:00 | P26: =IF(AND(L26="",M26=""),IF(OR(SUMPRODUCT(N(ISNUMBER(FIND({"s";"d";"f"},C26))))>0,G26+J26<0,AND(G26>0,J26>0,I26>"20:30"*1),AND(I26<="20:30"*1,SUM(I26,R26)>="20:31"*1)),1,""),"") ->  | S26: 07:58:00 | T26: 0.3319444444 | U26: 7.966666667 | W26: 7.966666667
B27: 2018-08-24 | C27: 10 RE | E27: =IFERROR(VLOOKUP(C27,TR!$B$2:$F$633,2,0),"") ->  | F27: =IFERROR(VLOOKUP(C27,TR!$B$2:$F$633,3,0),"") ->  | G27: 00:00:00 | H27: =IFERROR(VLOOKUP(C27,TR!$B$2:$F$633,4,0),"") ->  | I27: =IFERROR(VLOOKUP(C27,TR!$B$2:$F$633,5,0),"") ->  | J27: 00:00:00 | M27: 1 | P27: =IF(AND(L27="",M27=""),IF(OR(SUMPRODUCT(N(ISNUMBER(FIND({"s";"d";"f"},C27))))>0,G27+J27<0,AND(G27>0,J27>0,I27>"20:30"*1),AND(I27<="20:30"*1,SUM(I27,R27)>="20:31"*1)),1,""),"") ->  | T27: 0 | U27: 0 | W27: 0,00
B28: 2018-08-25 | C28: s724-5e | E28: =IFERROR(VLOOKUP(C28,TR!$B$2:$F$633,2,0),"") -> 04:55:00 | F28: =IFERROR(VLOOKUP(C28,TR!$B$2:$F$633,3,0),"") -> 12:46:00 | G28: 07:51:00 | H28: =IFERROR(VLOOKUP(C28,TR!$B$2:$F$633,4,0),"") -> 00:00:00 | I28: =IFERROR(VLOOKUP(C28,TR!$B$2:$F$633,5,0),"") -> 00:00:00 | J28: 00:00:00 | K28: 1 | P28: =IF(AND(L28="",M28=""),IF(OR(SUMPRODUCT(N(ISNUMBER(FIND({"s";"d";"f"},C28))))>0,G28+J28<0,AND(G28>0,J28>0,I28>"20:30"*1),AND(I28<="20:30"*1,SUM(I28,R28)>="20:31"*1)),1,""),"") -> 1 | S28: 07:51:00 | T28: 0.3270833333 | U28: 7.85 | W28: 7.85
B29: 2018-08-26 | C29: CH | E29: =IFERROR(VLOOKUP(C29,TR!$B$2:$F$633,2,0),"") -> 00:00:00 | F29: =IFERROR(VLOOKUP(C29,TR!$B$2:$F$633,3,0),"") -> 00:00:00 | G29: 00:00:00 | H29: =IFERROR(VLOOKUP(C29,TR!$B$2:$F$633,4,0),"") -> 00:00:00 | I29: =IFERROR(VLOOKUP(C29,TR!$B$2:$F$633,5,0),"") -> 00:00:00 | J29: 00:00:00 | P29: =IF(AND(L29="",M29=""),IF(OR(SUMPRODUCT(N(ISNUMBER(FIND({"s";"d";"f"},C29))))>0,G29+J29<0,AND(G29>0,J29>0,I29>"20:30"*1),AND(I29<="20:30"*1,SUM(I29,R29)>="20:31"*1)),1,""),"") ->  | T29: 0 | U29: 0 | W29: 0,00
B30: 2018-08-27 | C30: CC | E30: =IFERROR(VLOOKUP(C30,TR!$B$2:$F$633,2,0),"") -> 00:00:00 | F30: =IFERROR(VLOOKUP(C30,TR!$B$2:$F$633,3,0),"") -> 00:00:00 | G30: 00:00:00 | H30: =IFERROR(VLOOKUP(C30,TR!$B$2:$F$633,4,0),"") -> 00:00:00 | I30: =IFERROR(VLOOKUP(C30,TR!$B$2:$F$633,5,0),"") -> 00:00:00 | J30: 00:00:00 | P30: =IF(AND(L30="",M30=""),IF(OR(SUMPRODUCT(N(ISNUMBER(FIND({"s";"d";"f"},C30))))>0,G30+J30<0,AND(G30>0,J30>0,I30>"20:30"*1),AND(I30<="20:30"*1,SUM(I30,R30)>="20:31"*1)),1,""),"") ->  | T30: 0 | U30: 0 | W30: 0,00
B31: 2018-08-28 | C31: 20 RE | E31: =IFERROR(VLOOKUP(C31,TR!$B$2:$F$633,2,0),"") ->  | F31: =IFERROR(VLOOKUP(C31,TR!$B$2:$F$633,3,0),"") ->  | G31: 00:00:00 | H31: =IFERROR(VLOOKUP(C31,TR!$B$2:$F$633,4,0),"") ->  | I31: =IFERROR(VLOOKUP(C31,TR!$B$2:$F$633,5,0),"") ->  | J31: 00:00:00 | M31: 1 | P31: =IF(AND(L31="",M31=""),IF(OR(SUMPRODUCT(N(ISNUMBER(FIND({"s";"d";"f"},C31))))>0,G31+J31<0,AND(G31>0,J31>0,I31>"20:30"*1),AND(I31<="20:30"*1,SUM(I31,R31)>="20:31"*1)),1,""),"") ->  | T31: 0 | U31: 0 | W31: 0,00
B32: 2018-08-29 | C32: 20 RE | E32: =IFERROR(VLOOKUP(C32,TR!$B$2:$F$633,2,0),"") ->  | F32: =IFERROR(VLOOKUP(C32,TR!$B$2:$F$633,3,0),"") ->  | G32: 00:00:00 | H32: =IFERROR(VLOOKUP(C32,TR!$B$2:$F$633,4,0),"") ->  | I32: =IFERROR(VLOOKUP(C32,TR!$B$2:$F$633,5,0),"") ->  | J32: 00:00:00 | M32: 1 | P32: =IF(AND(L32="",M32=""),IF(OR(SUMPRODUCT(N(ISNUMBER(FIND({"s";"d";"f"},C32))))>0,G32+J32<0,AND(G32>0,J32>0,I32>"20:30"*1),AND(I32<="20:30"*1,SUM(I32,R32)>="20:31"*1)),1,""),"") ->  | T32: 0 | U32: 0 | W32: 0,00
B33: 2018-08-30 | C33: 20 RE | E33: =IFERROR(VLOOKUP(C33,TR!$B$2:$F$633,2,0),"") ->  | F33: =IFERROR(VLOOKUP(C33,TR!$B$2:$F$633,3,0),"") ->  | G33: 00:00:00 | H33: =IFERROR(VLOOKUP(C33,TR!$B$2:$F$633,4,0),"") ->  | I33: =IFERROR(VLOOKUP(C33,TR!$B$2:$F$633,5,0),"") ->  | J33: 00:00:00 | M33: 1 | P33: =IF(AND(L33="",M33=""),IF(OR(SUMPRODUCT(N(ISNUMBER(FIND({"s";"d";"f"},C33))))>0,G33+J33<0,AND(G33>0,J33>0,I33>"20:30"*1),AND(I33<="20:30"*1,SUM(I33,R33)>="20:31"*1)),1,""),"") ->  | T33: 0 | U33: 0 | W33: 0,00
B34: 2018-08-31 | C34: v901-ae | E34: =IFERROR(VLOOKUP(C34,TR!$B$2:$F$633,2,0),"") -> 00:00:00 | F34: =IFERROR(VLOOKUP(C34,TR!$B$2:$F$633,3,0),"") -> 00:00:00 | H34: =IFERROR(VLOOKUP(C34,TR!$B$2:$F$633,4,0),"") -> 14:30:00 | I34: =IFERROR(VLOOKUP(C34,TR!$B$2:$F$633,5,0),"") -> 22:23:00 | K34: 1 | M34: 1 | P34: =IF(AND(L34="",M34=""),IF(OR(SUMPRODUCT(N(ISNUMBER(FIND({"s";"d";"f"},C34))))>0,G34+J34<0,AND(G34>0,J34>0,I34>"20:30"*1),AND(I34<="20:30"*1,SUM(I34,R34)>="20:31"*1)),1,""),"") ->  | T34: 0.3284722222 | U34: 7.883333333 | W34: 7.883333333
B36: Jours travaillés | C36: =(COUNTIF(Juillet!C24:C34,"<>")+COUNTIF(Aout!C4:C23,"<>"))-(COUNTIF(Juillet!C24:C34,"CC*")+COUNTIF(Aout!C4:C23,"CC*"))-(COUNTIF(Juillet!C24:C34,"CH*")+COUNTIF(Aout!C4:C23,"CH*"))-(COUNTIF(Juillet!C24:C34,"RT*")+COUNTIF(Aout!C4:C23,"RT*"))-(COUNTIF(Juillet!C24:C34,"Férié*")+COUNTIF(Aout!C4:C23,"Férié*"))-(COUNTIF(Juillet!C24:C34,"Mal*")+COUNTIF(Aout!C4:C23,"Mal*"))-(COUNTIF(Juillet!C24:C34,"CP*")+COUNTIF(Aout!C4:C23,"CP*")) -> 19 | I36: Du 21 au 20 | K36: =SUM(Juillet!$K$24:$K$34,K4:K23) -> 2 | L36: =SUM(Juillet!$L$24:$L$34,L4:L23) -> 4 | M36: =SUM(Juillet!$M$24:$M$34,M4:M23) -> 5 | N36: =SUM(Juillet!$N$24:$N$34,N4:N23) -> 1 | O36: =SUM(Juillet!$O$24:$O$34,O4:O23) -> 0 | P36: =SUM(Juillet!$P$24:$P$34,P4:P23) -> 2 | Q36: =SUM(Juillet!$Q$24:$Q$34,Q4:Q23) -> 0 | R36: =SUM(Juillet!$R$24:$R$34,R4:R23) -> 00:00:00 | T36: =SUM(Juillet!T24:T34)+SUM(Aout!T4:T23) -> 4.645138889 | U36: =SUM(U4:U34) -> 77 | V36: =SUM(V4:V34) -> 0
B37: CP | C37: =(COUNTIF(Juillet!C24:C34,"CP")+COUNTIF(Aout!C4:C23,"CP")) -> 0 | K37: =(I39*2)*K36 -> 35.4112 | L37: =Recap!H35*L36 -> 28.56 | M37: =Recap!H35*M36 -> 35.7 | N37: =(I39*5)*N36 -> 44.264 | O37: =(Recap!H33)*O36 -> 0 | P37: =7.5*P36 -> 15 | Q37: =(I39*1.5)*Q36 -> 0 | R37: =R36*24 -> 0
B38: CH | C38: =(COUNTIF(Juillet!C24:C34,"CH")+COUNTIF(Aout!C4:C23,"CH")) -> 5 | I38: VP | T38: Horaire mensuel | V38: 6.175 | W38: =V38*24 -> 148.2
B39: RT | C39: =(COUNTIF(Juillet!C24:C34,"RT")+COUNTIF(Aout!C4:C23,"RT")) -> 2 | I39: 8.8528
B40: CC | C40: =(COUNTIF(Juillet!C24:C34,"CC")+COUNTIF(Aout!C4:C23,"CC")) -> 4 | T40: Différence | V40: =IF(V38>T36,"-","")&TEXT(ABS(T36-V38),"[h]:mm") -> -36:43 | W40: =(T36-V38)*24 -> -36.71666667
B41: Férié | C41: =(COUNTIF(Juillet!C24:C34,"Férié")+COUNTIF(Aout!C4:C23,"Férié")) -> 1
B42: Férié CC-CH-RT | C42: =(COUNTIF(Juillet!C24:C34,"FériéCC")+COUNTIF(Aout!C4:C23,"FériéCC")+(COUNTIF(Juillet!C24:C34,"FériéCH")+COUNTIF(Aout!C4:C23,"FériéCH")+(COUNTIF(Juillet!C24:C34,"FériéRT")+COUNTIF(Aout!C4:C23,"FériéRT")))) -> 0 | R42: Heures réelles | T42: =SUM(T4:T34) -> 3.208333333
T43: =T42*24 -> 77 | W43: =(T42-V38)*24 -> -71.2
F45: NOTES

Sheet Septembre
B1: SEPTEMBRE
T2: TOTAL
B3: Date | C3: Services | D3: Obs. | E3: MATIN | G3: Temps | H3: APRES MIDI | J3: Temps | K3: Prime nuit | L3: PJ1 | M3: PJ2 | N3: Dimanche | O3: Férié | P3: ChècDej | Q3: PrimAmp | R3: H Supp | S3: Ampli | T3: Heures | U3: Centièmes | V3: Kéolis | W3: Écart
B4: 2018-09-01 | C4: s905-2 | E4: =IFERROR(VLOOKUP(C4,TR!$B$2:$F$633,2,0),"") -> 00:00:00 | F4: =IFERROR(VLOOKUP(C4,TR!$B$2:$F$633,3,0),"") -> 00:00:00 | G4: =IF(ISERROR(F4-E4),0,F4-E4) -> 00:00:00 | H4: =IFERROR(VLOOKUP(C4,TR!$B$2:$F$633,4,0),"") -> 14:55:00 | I4: =IFERROR(VLOOKUP(C4,TR!$B$2:$F$633,5,0),"") -> 22:43:00 | J4: =IF(ISERROR(I4-H4),0,(I4-H4)) -> 07:48:00 | K4: =IF(COUNTA(E4:F4,H4:I4)=5,1,IF(AND(E4<"5:00"*1,E4>"2:00"*1),1,IF(AND(I4>="22:01"*1,I4<="26:01"*1),1,IF(AND(I4<="22:00"*1,SUM(I4,R4)>="22:01"*1),1,"")))) -> 1 | L4: =IF(AND(F4>="13:15"*1,H4<""),1,IF(AND(H4>="11:00"*1,H4<="12:15"*1),1,IF(AND(F4<="13:15"*1,SUM(F4,R4)>="13:15"*1),1,""))) ->  | M4: =IF(AND(I4>="19:30"*1,1,I4>"21:30"*1,C4<>""),1,IF(AND(I4<="21:30"*1,SUM(I4,R4)>="21:30"*1),1,"")) -> 1 | N4: =IF(AND(LEFT(C4,1)="d",AND(Aout!N34<>1)),1,IF(AND(LEFT(C4,1)="s",I4>="24:01"*1),1,IF(AND(I4<>"",I4<="23:59"*1,SUM(I4,R4)>="24:01"*1),1,""))) ->  | O4: =IF(AND(I4>"24:00"*1,ISNUMBER(FIND("f",C5))),1,IF(AND(OR(ISNUMBER(FIND("FériéCC",C4)),ISNUMBER(FIND("FériéCH",C4)),ISNUMBER(FIND("f",C4)))),1,"")) ->  | P4: =IF(AND(L4="",M4=""),IF(OR(SUMPRODUCT(N(ISNUMBER(FIND({"s";"d";"f"},C4))))>0,G4+J4<0,AND(G4>0,J4>0,I4>"20:30"*1),AND(I4<="20:30"*1,SUM(I4,R4)>="20:31"*1)),1,""),"") ->  | Q4: =IF(OR(AND(G4>0,AND(J4=0)),OR(G4=0,AND(J4>0)),OR(G4+J4>0)),IF(R4="","",IF(#REF!+R4>="13:01"*1,1,""))) ->  | S4: =IF(G4=0,IF(J4=0,"",I4-H4),IF(J4=0,F4-E4,I4-E4)) -> 07:48:00 | T4: =IF(ISERROR((F4-E4)+(I4-H4)),0,(F4-E4)+(I4-H4)) -> 0.325 | U4: =T4*24 -> 7.8 | W4: =IF(U4-V4=0,"0,00",U4-V4) -> 7.8
B5: 2018-09-02 | C5: CH | E5: =IFERROR(VLOOKUP(C5,TR!$B$2:$F$633,2,0),"") -> 00:00:00 | F5: =IFERROR(VLOOKUP(C5,TR!$B$2:$F$633,3,0),"") -> 00:00:00 | G5: =IF(ISERROR(F5-E5),0,F5-E5) -> 00:00:00 | H5: =IFERROR(VLOOKUP(C5,TR!$B$2:$F$633,4,0),"") -> 00:00:00 | I5: =IFERROR(VLOOKUP(C5,TR!$B$2:$F$633,5,0),"") -> 00:00:00 | J5: =IF(ISERROR(I5-H5),0,(I5-H5)) -> 00:00:00 | N5: =IF(AND(LEFT(C5,1)="d",AND(N4<>1)),1,IF(AND(LEFT(C5,1)="s",I5>="24:01"*1),1,IF(AND(I5<>"",I5<="23:59"*1,SUM(I5,R5)>="24:01"*1),1,""))) ->  | O5: =IF(AND(I5>"24:00"*1,ISNUMBER(FIND("f",C6))),1,IF(AND(OR(ISNUMBER(FIND("FériéCC",C5)),ISNUMBER(FIND("FériéCH",C5)),ISNUMBER(FIND("f",C5)))),1,"")) ->  | P5: =IF(AND(L5="",M5=""),IF(OR(SUMPRODUCT(N(ISNUMBER(FIND({"s";"d";"f"},C5))))>0,G5+J5<0,AND(G5>0,J5>0,I5>"20:30"*1),AND(I5<="20:30"*1,SUM(I5,R5)>="20:31"*1)),1,""),"") ->  | Q5: =IF(OR(AND(G5>0,AND(J5=0)),OR(G5=0,AND(J5>0)),OR(G5+J5>0)),IF(R5="","",IF(#REF!+R5>="13:01"*1,1,""))) ->  | T5: 0 | U5: =T5*24 -> 0 | W5: =IF(U5-V5=0,"0,00",U5-V5) -> 0,00
B6: 2018-09-03 | C6: 735-3 | E6: =IFERROR(VLOOKUP(C6,TR!$B$2:$F$633,2,0),"") -> 06:47:00 | F6: =IFERROR(VLOOKUP(C6,TR!$B$2:$F$633,3,0),"") -> 13:52:00 | G6: 07:05:00 | H6: =IFERROR(VLOOKUP(C6,TR!$B$2:$F$633,4,0),"") -> 00:00:00 | I6: =IFERROR(VLOOKUP(C6,TR!$B$2:$F$633,5,0),"") -> 00:00:00 | J6: 00:00:00 | L6: 1 | P6: =IF(AND(L6="",M6=""),IF(OR(SUMPRODUCT(N(ISNUMBER(FIND({"s";"d";"f"},C6))))>0,G6+J6<0,AND(G6>0,J6>0,I6>"20:30"*1),AND(I6<="20:30"*1,SUM(I6,R6)>="20:31"*1)),1,""),"") ->  | Q6: =IF(OR(AND(G6>0,AND(J6=0)),OR(G6=0,AND(J6>0)),OR(G6+J6>0)),IF(R6="","",IF(#REF!+R6>="13:01"*1,1,""))) ->  | S6: 07:05:00 | T6: 0.2951388889 | U6: =T6*24 -> 7.083333333 | W6: 7.083333333
B7: 2018-09-04 | C7: 717-2 | E7: =IFERROR(VLOOKUP(C7,TR!$B$2:$F$633,2,0),"") -> 04:59:00 | F7: =IFERROR(VLOOKUP(C7,TR!$B$2:$F$633,3,0),"") -> 12:58:00 | G7: 07:59:00 | H7: =IFERROR(VLOOKUP(C7,TR!$B$2:$F$633,4,0),"") -> 00:00:00 | I7: =IFERROR(VLOOKUP(C7,TR!$B$2:$F$633,5,0),"") -> 00:00:00 | J7: 00:00:00 | K7: 1 | P7: =IF(AND(L7="",M7=""),IF(OR(SUMPRODUCT(N(ISNUMBER(FIND({"s";"d";"f"},C7))))>0,G7+J7<0,AND(G7>0,J7>0,I7>"20:30"*1),AND(I7<="20:30"*1,SUM(I7,R7)>="20:31"*1)),1,""),"") ->  | Q7: =IF(OR(AND(G7>0,AND(J7=0)),OR(G7=0,AND(J7>0)),OR(G7+J7>0)),IF(R7="","",IF(#REF!+R7>="13:01"*1,1,""))) ->  | S7: 07:59:00 | T7: 0.3326388889 | U7: =T7*24 -> 7.983333333 | W7: 7.983333333
B8: 2018-09-05 | C8: 723-2 | E8: =IFERROR(VLOOKUP(C8,TR!$B$2:$F$633,2,0),"") -> 06:28:00 | F8: =IFERROR(VLOOKUP(C8,TR!$B$2:$F$633,3,0),"") -> 14:04:00 | G8: 07:36:00 | H8: =IFERROR(VLOOKUP(C8,TR!$B$2:$F$633,4,0),"") -> 00:00:00 | I8: =IFERROR(VLOOKUP(C8,TR!$B$2:$F$633,5,0),"") -> 00:00:00 | J8: 00:00:00 | L8: 1 | P8: =IF(AND(L8="",M8=""),IF(OR(SUMPRODUCT(N(ISNUMBER(FIND({"s";"d";"f"},C8))))>0,G8+J8<0,AND(G8>0,J8>0,I8>"20:30"*1),AND(I8<="20:30"*1,SUM(I8,R8)>="20:31"*1)),1,""),"") ->  | Q8: =IF(OR(AND(G8>0,AND(J8=0)),OR(G8=0,AND(J8>0)),OR(G8+J8>0)),IF(R8="","",IF(#REF!+R8>="13:01"*1,1,""))) ->  | S8: 07:36:00 | T8: 0.3166666667 | U8: 7.6 | W8: 7.6
B9: 2018-09-06 | C9: GVE | E9: =IFERROR(VLOOKUP(C9,TR!$B$2:$F$633,2,0),"") ->  | F9: =IFERROR(VLOOKUP(C9,TR!$B$2:$F$633,3,0),"") ->  | G9: 00:00:00 | H9: =IFERROR(VLOOKUP(C9,TR!$B$2:$F$633,4,0),"") ->  | I9: =IFERROR(VLOOKUP(C9,TR!$B$2:$F$633,5,0),"") ->  | J9: 00:00:00 | M9: 1 | P9: =IF(AND(L9="",M9=""),IF(OR(SUMPRODUCT(N(ISNUMBER(FIND({"s";"d";"f"},C9))))>0,G9+J9<0,AND(G9>0,J9>0,I9>"20:30"*1),AND(I9<="20:30"*1,SUM(I9,R9)>="20:31"*1)),1,""),"") ->  | Q9: =IF(OR(AND(G9>0,AND(J9=0)),OR(G9=0,AND(J9>0)),OR(G9+J9>0)),IF(R9="","",IF(#REF!+R9>="13:01"*1,1,""))) ->  | T9: 0 | U9: 0 | W9: 0,00
B10: 2018-09-07 | C10: v709-b | E10: =IFERROR(VLOOKUP(C10,TR!$B$2:$F$633,2,0),"") -> 06:09:00 | F10: =IFERROR(VLOOKUP(C10,TR!$B$2:$F$633,3,0),"") -> 13:58:00 | G10: 07:49:00 | H10: =IFERROR(VLOOKUP(C10,TR!$B$2:$F$633,4,0),"") -> 00:00:00 | I10: =IFERROR(VLOOKUP(C10,TR!$B$2:$F$633,5,0),"") -> 00:00:00 | J10: 00:00:00 | L10: 1 | P10: =IF(AND(L10="",M10=""),IF(OR(SUMPRODUCT(N(ISNUMBER(FIND({"s";"d";"f"},C10))))>0,G10+J10<0,AND(G10>0,J10>0,I10>"20:30"*1),AND(I10<="20:30"*1,SUM(I10,R10)>="20:31"*1)),1,""),"") ->  | Q10: =IF(OR(AND(G10>0,AND(J10=0)),OR(G10=0,AND(J10>0)),OR(G10+J10>0)),IF(R10="","",IF(#REF!+R10>="13:01"*1,1,""))) ->  | S10: 07:49:00 | T10: 0.3256944444 | U10: 7.816666667 | W10: 7.816666667
B11: 2018-09-08 | C11: CC | E11: =IFERROR(VLOOKUP(C11,TR!$B$2:$F$633,2,0),"") -> 00:00:00 | F11: =IFERROR(VLOOKUP(C11,TR!$B$2:$F$633,3,0),"") -> 00:00:00 | G11: 00:00:00 | H11: =IFERROR(VLOOKUP(C11,TR!$B$2:$F$633,4,0),"") -> 00:00:00 | I11: =IFERROR(VLOOKUP(C11,TR!$B$2:$F$633,5,0),"") -> 00:00:00 | J11: 00:00:00 | P11: =IF(AND(L11="",M11=""),IF(OR(SUMPRODUCT(N(ISNUMBER(FIND({"s";"d";"f"},C11))))>0,G11+J11<0,AND(G11>0,J11>0,I11>"20:30"*1),AND(I11<="20:30"*1,SUM(I11,R11)>="20:31"*1)),1,""),"") ->  | Q11: =IF(OR(AND(G11>0,AND(J11=0)),OR(G11=0,AND(J11>0)),OR(G11+J11>0)),IF(R11="","",IF(#REF!+R11>="13:01"*1,1,""))) ->  | T11: 0 | U11: 0 | W11: 0,00
B12: 2018-09-09 | C12: CH | E12: =IFERROR(VLOOKUP(C12,TR!$B$2:$F$633,2,0),"") -> 00:00:00 | F12: =IFERROR(VLOOKUP(C12,TR!$B$2:$F$633,3,0),"") -> 00:00:00 | G12: 00:00:00 | H12: =IFERROR(VLOOKUP(C12,TR!$B$2:$F$633,4,0),"") -> 00:00:00 | I12: =IFERROR(VLOOKUP(C12,TR!$B$2:$F$633,5,0),"") -> 00:00:00 | J12: 00:00:00 | P12: =IF(AND(L12="",M12=""),IF(OR(SUMPRODUCT(N(ISNUMBER(FIND({"s";"d";"f"},C12))))>0,G12+J12<0,AND(G12>0,J12>0,I12>"20:30"*1),AND(I12<="20:30"*1,SUM(I12,R12)>="20:31"*1)),1,""),"") ->  | Q12: =IF(OR(AND(G12>0,AND(J12=0)),OR(G12=0,AND(J12>0)),OR(G12+J12>0)),IF(R12="","",IF(#REF!+R12>="13:01"*1,1,""))) ->  | T12: 0 | U12: 0 | W12: 0,00
B13: 2018-09-10 | C13: 713-1 | E13: =IFERROR(VLOOKUP(C13,TR!$B$2:$F$633,2,0),"") -> 06:33:00 | F13: =IFERROR(VLOOKUP(C13,TR!$B$2:$F$633,3,0),"") -> 13:47:00 | G13: 07:14:00 | H13: =IFERROR(VLOOKUP(C13,TR!$B$2:$F$633,4,0),"") -> 00:00:00 | I13: =IFERROR(VLOOKUP(C13,TR!$B$2:$F$633,5,0),"") -> 00:00:00 | J13: 00:00:00 | L13: 1 | P13: =IF(AND(L13="",M13=""),IF(OR(SUMPRODUCT(N(ISNUMBER(FIND({"s";"d";"f"},C13))))>0,G13+J13<0,AND(G13>0,J13>0,I13>"20:30"*1),AND(I13<="20:30"*1,SUM(I13,R13)>="20:31"*1)),1,""),"") ->  | Q13: =IF(OR(AND(G13>0,AND(J13=0)),OR(G13=0,AND(J13>0)),OR(G13+J13>0)),IF(R13="","",IF(#REF!+R13>="13:01"*1,1,""))) ->  | S13: 07:14:00 | T13: 0.3013888889 | U13: 7.233333333 | W13: 7.233333333
B14: 2018-09-11 | C14: 891-O | E14: =IFERROR(VLOOKUP(C14,TR!$B$2:$F$633,2,0),"") ->  | F14: =IFERROR(VLOOKUP(C14,TR!$B$2:$F$633,3,0),"") ->  | G14: 00:00:00 | H14: =IFERROR(VLOOKUP(C14,TR!$B$2:$F$633,4,0),"") ->  | I14: =IFERROR(VLOOKUP(C14,TR!$B$2:$F$633,5,0),"") ->  | J14: 00:00:00 | M14: 1 | P14: =IF(AND(L14="",M14=""),IF(OR(SUMPRODUCT(N(ISNUMBER(FIND({"s";"d";"f"},C14))))>0,G14+J14<0,AND(G14>0,J14>0,I14>"20:30"*1),AND(I14<="20:30"*1,SUM(I14,R14)>="20:31"*1)),1,""),"") ->  | Q14: =IF(OR(AND(G14>0,AND(J14=0)),OR(G14=0,AND(J14>0)),OR(G14+J14>0)),IF(R14="","",IF(#REF!+R14>="13:01"*1,1,""))) ->  | T14: 0 | U14: 0 | W14: 0,00
B15: 2018-09-12 | C15: 303-2 | E15: =IFERROR(VLOOKUP(C15,TR!$B$2:$F$633,2,0),"") ->  | F15: =IFERROR(VLOOKUP(C15,TR!$B$2:$F$633,3,0),"") ->  | G15: 00:00:00 | H15: =IFERROR(VLOOKUP(C15,TR!$B$2:$F$633,4,0),"") ->  | I15: =IFERROR(VLOOKUP(C15,TR!$B$2:$F$633,5,0),"") ->  | J15: 00:00:00 | M15: 1 | P15: =IF(AND(L15="",M15=""),IF(OR(SUMPRODUCT(N(ISNUMBER(FIND({"s";"d";"f"},C15))))>0,G15+J15<0,AND(G15>0,J15>0,I15>"20:30"*1),AND(I15<="20:30"*1,SUM(I15,R15)>="20:31"*1)),1,""),"") ->  | Q15: =IF(OR(AND(G15>0,AND(J15=0)),OR(G15=0,AND(J15>0)),OR(G15+J15>0)),IF(R15="","",IF(#REF!+R15>="13:01"*1,1,""))) ->  | T15: 0 | U15: 0 | W15: 0,00
B16: 2018-09-13 | C16: 702-a | E16: =IFERROR(VLOOKUP(C16,TR!$B$2:$F$633,2,0),"") ->  | F16: =IFERROR(VLOOKUP(C16,TR!$B$2:$F$633,3,0),"") ->  | G16: 00:00:00 | H16: =IFERROR(VLOOKUP(C16,TR!$B$2:$F$633,4,0),"") ->  | I16: =IFERROR(VLOOKUP(C16,TR!$B$2:$F$633,5,0),"") ->  | J16: 00:00:00 | M16: 1 | P16: =IF(AND(L16="",M16=""),IF(OR(SUMPRODUCT(N(ISNUMBER(FIND({"s";"d";"f"},C16))))>0,G16+J16<0,AND(G16>0,J16>0,I16>"20:30"*1),AND(I16<="20:30"*1,SUM(I16,R16)>="20:31"*1)),1,""),"") ->  | Q16: =IF(OR(AND(G16>0,AND(J16=0)),OR(G16=0,AND(J16>0)),OR(G16+J16>0)),IF(R16="","",IF(#REF!+R16>="13:01"*1,1,""))) ->  | T16: 0 | U16: 0 | W16: 0,00
B17: 2018-09-14 | C17: v310-3 | E17: =IFERROR(VLOOKUP(C17,TR!$B$2:$F$633,2,0),"") ->  | F17: =IFERROR(VLOOKUP(C17,TR!$B$2:$F$633,3,0),"") ->  | G17: 00:00:00 | H17: =IFERROR(VLOOKUP(C17,TR!$B$2:$F$633,4,0),"") ->  | I17: =IFERROR(VLOOKUP(C17,TR!$B$2:$F$633,5,0),"") ->  | J17: 00:00:00 | M17: 1 | P17: =IF(AND(L17="",M17=""),IF(OR(SUMPRODUCT(N(ISNUMBER(FIND({"s";"d";"f"},C17))))>0,G17+J17<0,AND(G17>0,J17>0,I17>"20:30"*1),AND(I17<="20:30"*1,SUM(I17,R17)>="20:31"*1)),1,""),"") ->  | Q17: =IF(OR(AND(G17>0,AND(J17=0)),OR(G17=0,AND(J17>0)),OR(G17+J17>0)),IF(R17="","",IF(#REF!+R17>="13:01"*1,1,""))) ->  | T17: 0 | U17: 0 | W17: 0,00
B18: 2018-09-15 | C18: s711-2 | E18: =IFERROR(VLOOKUP(C18,TR!$B$2:$F$633,2,0),"") ->  | F18: =IFERROR(VLOOKUP(C18,TR!$B$2:$F$633,3,0),"") ->  | G18: 00:00:00 | H18: =IFERROR(VLOOKUP(C18,TR!$B$2:$F$633,4,0),"") ->  | I18: =IFERROR(VLOOKUP(C18,TR!$B$2:$F$633,5,0),"") ->  | J18: 00:00:00 | M18: 1 | N18: 1 | P18: =IF(AND(L18="",M18=""),IF(OR(SUMPRODUCT(N(ISNUMBER(FIND({"s";"d";"f"},C18))))>0,G18+J18<0,AND(G18>0,J18>0,I18>"20:30"*1),AND(I18<="20:30"*1,SUM(I18,R18)>="20:31"*1)),1,""),"") ->  | Q18: =IF(OR(AND(G18>0,AND(J18=0)),OR(G18=0,AND(J18>0)),OR(G18+J18>0)),IF(R18="","",IF(#REF!+R18>="13:01"*1,1,""))) ->  | T18: 0 | U18: 0 | W18: 0,00
B19: 2018-09-16 | C19: CH | E19: =IFERROR(VLOOKUP(C19,TR!$B$2:$F$633,2,0),"") -> 00:00:00 | F19: =IFERROR(VLOOKUP(C19,TR!$B$2:$F$633,3,0),"") -> 00:00:00 | G19: 00:00:00 | H19: =IFERROR(VLOOKUP(C19,TR!$B$2:$F$633,4,0),"") -> 00:00:00 | I19: =IFERROR(VLOOKUP(C19,TR!$B$2:$F$633,5,0),"") -> 00:00:00 | J19: 00:00:00 | P19: =IF(AND(L19="",M19=""),IF(OR(SUMPRODUCT(N(ISNUMBER(FIND({"s";"d";"f"},C19))))>0,G19+J19<0,AND(G19>0,J19>0,I19>"20:30"*1),AND(I19<="20:30"*1,SUM(I19,R19)>="20:31"*1)),1,""),"") ->  | Q19: =IF(OR(AND(G19>0,AND(J19=0)),OR(G19=0,AND(J19>0)),OR(G19+J19>0)),IF(R19="","",IF(#REF!+R19>="13:01"*1,1,""))) ->  | T19: 0 | U19: 0 | W19: 0,00
B20: 2018-09-17 | C20: 822-2 | E20: =IFERROR(VLOOKUP(C20,TR!$B$2:$F$633,2,0),"") ->  | F20: =IFERROR(VLOOKUP(C20,TR!$B$2:$F$633,3,0),"") ->  | G20: 00:00:00 | H20: =IFERROR(VLOOKUP(C20,TR!$B$2:$F$633,4,0),"") ->  | I20: =IFERROR(VLOOKUP(C20,TR!$B$2:$F$633,5,0),"") ->  | J20: 00:00:00 | M20: 1 | P20: =IF(AND(L20="",M20=""),IF(OR(SUMPRODUCT(N(ISNUMBER(FIND({"s";"d";"f"},C20))))>0,G20+J20<0,AND(G20>0,J20>0,I20>"20:30"*1),AND(I20<="20:30"*1,SUM(I20,R20)>="20:31"*1)),1,""),"") ->  | T20: 0 | U20: 0 | W20: 0,00
B21: 2018-09-18 | C21: 809-a | E21: =IFERROR(VLOOKUP(C21,TR!$B$2:$F$633,2,0),"") -> 00:00:00 | F21: =IFERROR(VLOOKUP(C21,TR!$B$2:$F$633,3,0),"") -> 00:00:00 | G21: 00:00:00 | H21: =IFERROR(VLOOKUP(C21,TR!$B$2:$F$633,4,0),"") -> 13:12:00 | I21: =IFERROR(VLOOKUP(C21,TR!$B$2:$F$633,5,0),"") -> 21:07:00 | J21: 07:55:00 | P21: =IF(AND(L21="",M21=""),IF(OR(SUMPRODUCT(N(ISNUMBER(FIND({"s";"d";"f"},C21))))>0,G21+J21<0,AND(G21>0,J21>0,I21>"20:30"*1),AND(I21<="20:30"*1,SUM(I21,R21)>="20:31"*1)),1,""),"") ->  | Q21: =IF(OR(AND(G21>0,AND(J21=0)),OR(G21=0,AND(J21>0)),OR(G21+J21>0)),IF(R21="","",IF(#REF!+R21>="13:01"*1,1,""))) ->  | S21: 07:55:00 | T21: 0.3298611111 | U21: 7.916666667 | W21: 7.916666667
B22: 2018-09-19 | C22: 819-2 | E22: =IFERROR(VLOOKUP(C22,TR!$B$2:$F$633,2,0),"") ->  | F22: =IFERROR(VLOOKUP(C22,TR!$B$2:$F$633,3,0),"") ->  | G22: 00:00:00 | H22: =IFERROR(VLOOKUP(C22,TR!$B$2:$F$633,4,0),"") ->  | I22: =IFERROR(VLOOKUP(C22,TR!$B$2:$F$633,5,0),"") ->  | J22: 00:00:00 | M22: 1 | P22: =IF(AND(L22="",M22=""),IF(OR(SUMPRODUCT(N(ISNUMBER(FIND({"s";"d";"f"},C22))))>0,G22+J22<0,AND(G22>0,J22>0,I22>"20:30"*1),AND(I22<="20:30"*1,SUM(I22,R22)>="20:31"*1)),1,""),"") ->  | Q22: =IF(OR(AND(G22>0,AND(J22=0)),OR(G22=0,AND(J22>0)),OR(G22+J22>0)),IF(R22="","",IF(#REF!+R22>="13:01"*1,1,""))) ->  | T22: 0 | U22: 0 | W22: 0,00
B23: 2018-09-20 | C23: 903-b | E23: =IFERROR(VLOOKUP(C23,TR!$B$2:$F$633,2,0),"") ->  | F23: =IFERROR(VLOOKUP(C23,TR!$B$2:$F$633,3,0),"") ->  | G23: 00:00:00 | H23: =IFERROR(VLOOKUP(C23,TR!$B$2:$F$633,4,0),"") ->  | I23: =IFERROR(VLOOKUP(C23,TR!$B$2:$F$633,5,0),"") ->  | J23: 00:00:00 | M23: 1 | P23: =IF(AND(L23="",M23=""),IF(OR(SUMPRODUCT(N(ISNUMBER(FIND({"s";"d";"f"},C23))))>0,G23+J23<0,AND(G23>0,J23>0,I23>"20:30"*1),AND(I23<="20:30"*1,SUM(I23,R23)>="20:31"*1)),1,""),"") ->  | Q23: =IF(OR(AND(G23>0,AND(J23=0)),OR(G23=0,AND(J23>0)),OR(G23+J23>0)),IF(R23="","",IF(#REF!+R23>="13:01"*1,1,""))) ->  | T23: 0 | U23: 0 | W23: 0,00
B24: 2018-09-21 | C24: v908-2 | E24: =IFERROR(VLOOKUP(C24,TR!$B$2:$F$633,2,0),"") ->  | F24: =IFERROR(VLOOKUP(C24,TR!$B$2:$F$633,3,0),"") ->  | G24: 00:00:00 | H24: =IFERROR(VLOOKUP(C24,TR!$B$2:$F$633,4,0),"") ->  | I24: =IFERROR(VLOOKUP(C24,TR!$B$2:$F$633,5,0),"") ->  | J24: 00:00:00 | M24: 1 | P24: =IF(AND(L24="",M24=""),IF(OR(SUMPRODUCT(N(ISNUMBER(FIND({"s";"d";"f"},C24))))>0,G24+J24<0,AND(G24>0,J24>0,I24>"20:30"*1),AND(I24<="20:30"*1,SUM(I24,R24)>="20:31"*1)),1,""),"") ->  | Q24: =IF(OR(AND(G24>0,AND(J24=0)),OR(G24=0,AND(J24>0)),OR(G24+J24>0)),IF(R24="","",IF(#REF!+R24>="13:01"*1,1,""))) ->  | T24: 0 | U24: 0 | W24: 0,00
B25: 2018-09-22 | C25: CC | E25: =IFERROR(VLOOKUP(C25,TR!$B$2:$F$633,2,0),"") -> 00:00:00 | F25: =IFERROR(VLOOKUP(C25,TR!$B$2:$F$633,3,0),"") -> 00:00:00 | G25: 00:00:00 | H25: =IFERROR(VLOOKUP(C25,TR!$B$2:$F$633,4,0),"") -> 00:00:00 | I25: =IFERROR(VLOOKUP(C25,TR!$B$2:$F$633,5,0),"") -> 00:00:00 | J25: 00:00:00 | P25: =IF(AND(L25="",M25=""),IF(OR(SUMPRODUCT(N(ISNUMBER(FIND({"s";"d";"f"},C25))))>0,G25+J25<0,AND(G25>0,J25>0,I25>"20:30"*1),AND(I25<="20:30"*1,SUM(I25,R25)>="20:31"*1)),1,""),"") ->  | Q25: =IF(OR(AND(G25>0,AND(J25=0)),OR(G25=0,AND(J25>0)),OR(G25+J25>0)),IF(R25="","",IF(#REF!+R25>="13:01"*1,1,""))) ->  | T25: 0 | U25: 0 | W25: 0,00
B26: 2018-09-23 | C26: CH | E26: =IFERROR(VLOOKUP(C26,TR!$B$2:$F$633,2,0),"") -> 00:00:00 | F26: =IFERROR(VLOOKUP(C26,TR!$B$2:$F$633,3,0),"") -> 00:00:00 | G26: 00:00:00 | H26: =IFERROR(VLOOKUP(C26,TR!$B$2:$F$633,4,0),"") -> 00:00:00 | I26: =IFERROR(VLOOKUP(C26,TR!$B$2:$F$633,5,0),"") -> 00:00:00 | J26: 00:00:00 | P26: =IF(AND(L26="",M26=""),IF(OR(SUMPRODUCT(N(ISNUMBER(FIND({"s";"d";"f"},C26))))>0,G26+J26<0,AND(G26>0,J26>0,I26>"20:30"*1),AND(I26<="20:30"*1,SUM(I26,R26)>="20:31"*1)),1,""),"") ->  | Q26: =IF(OR(AND(G26>0,AND(J26=0)),OR(G26=0,AND(J26>0)),OR(G26+J26>0)),IF(R26="","",IF(#REF!+R26>="13:01"*1,1,""))) ->  | T26: 0 | U26: 0 | W26: 0,00
B27: 2018-09-24 | C27: 722-2 | E27: =IFERROR(VLOOKUP(C27,TR!$B$2:$F$633,2,0),"") ->  | F27: =IFERROR(VLOOKUP(C27,TR!$B$2:$F$633,3,0),"") ->  | G27: 00:00:00 | H27: =IFERROR(VLOOKUP(C27,TR!$B$2:$F$633,4,0),"") ->  | I27: =IFERROR(VLOOKUP(C27,TR!$B$2:$F$633,5,0),"") ->  | J27: 00:00:00 | M27: 1 | P27: =IF(AND(L27="",M27=""),IF(OR(SUMPRODUCT(N(ISNUMBER(FIND({"s";"d";"f"},C27))))>0,G27+J27<0,AND(G27>0,J27>0,I27>"20:30"*1),AND(I27<="20:30"*1,SUM(I27,R27)>="20:31"*1)),1,""),"") ->  | Q27: =IF(OR(AND(G27>0,AND(J27=0)),OR(G27=0,AND(J27>0)),OR(G27+J27>0)),IF(R27="","",IF(#REF!+R27>="13:01"*1,1,""))) ->  | T27: 0 | U27: 0 | W27: 0,00
B28: 2018-09-25 | C28: 724-2 | E28: =IFERROR(VLOOKUP(C28,TR!$B$2:$F$633,2,0),"") ->  | F28: =IFERROR(VLOOKUP(C28,TR!$B$2:$F$633,3,0),"") ->  | G28: 00:00:00 | H28: =IFERROR(VLOOKUP(C28,TR!$B$2:$F$633,4,0),"") ->  | I28: =IFERROR(VLOOKUP(C28,TR!$B$2:$F$633,5,0),"") ->  | J28: 00:00:00 | M28: 1 | P28: =IF(AND(L28="",M28=""),IF(OR(SUMPRODUCT(N(ISNUMBER(FIND({"s";"d";"f"},C28))))>0,G28+J28<0,AND(G28>0,J28>0,I28>"20:30"*1),AND(I28<="20:30"*1,SUM(I28,R28)>="20:31"*1)),1,""),"") ->  | Q28: =IF(OR(AND(G28>0,AND(J28=0)),OR(G28=0,AND(J28>0)),OR(G28+J28>0)),IF(R28="","",IF(#REF!+R28>="13:01"*1,1,""))) ->  | T28: 0 | U28: 0 | W28: 0,00
B29: 2018-09-26 | C29: 722-2 | E29: =IFERROR(VLOOKUP(C29,TR!$B$2:$F$633,2,0),"") ->  | F29: =IFERROR(VLOOKUP(C29,TR!$B$2:$F$633,3,0),"") ->  | G29: 00:00:00 | H29: =IFERROR(VLOOKUP(C29,TR!$B$2:$F$633,4,0),"") ->  | I29: =IFERROR(VLOOKUP(C29,TR!$B$2:$F$633,5,0),"") ->  | J29: 00:00:00 | M29: 1 | P29: =IF(AND(L29="",M29=""),IF(OR(SUMPRODUCT(N(ISNUMBER(FIND({"s";"d";"f"},C29))))>0,G29+J29<0,AND(G29>0,J29>0,I29>"20:30"*1),AND(I29<="20:30"*1,SUM(I29,R29)>="20:31"*1)),1,""),"") ->  | Q29: =IF(OR(AND(G29>0,AND(J29=0)),OR(G29=0,AND(J29>0)),OR(G29+J29>0)),IF(R29="","",IF(#REF!+R29>="13:01"*1,1,""))) ->  | T29: 0 | U29: 0 | W29: 0,00
B30: 2018-09-27 | C30: 715-a | E30: =IFERROR(VLOOKUP(C30,TR!$B$2:$F$633,2,0),"") ->  | F30: =IFERROR(VLOOKUP(C30,TR!$B$2:$F$633,3,0),"") ->  | G30: 00:00:00 | H30: =IFERROR(VLOOKUP(C30,TR!$B$2:$F$633,4,0),"") ->  | I30: =IFERROR(VLOOKUP(C30,TR!$B$2:$F$633,5,0),"") ->  | J30: 00:00:00 | M30: 1 | P30: =IF(AND(L30="",M30=""),IF(OR(SUMPRODUCT(N(ISNUMBER(FIND({"s";"d";"f"},C30))))>0,G30+J30<0,AND(G30>0,J30>0,I30>"20:30"*1),AND(I30<="20:30"*1,SUM(I30,R30)>="20:31"*1)),1,""),"") ->  | Q30: =IF(OR(AND(G30>0,AND(J30=0)),OR(G30=0,AND(J30>0)),OR(G30+J30>0)),IF(R30="","",IF(#REF!+R30>="13:01"*1,1,""))) ->  | T30: 0 | U30: 0 | W30: 0,00
B31: 2018-09-28 | C31: v707-b | E31: =IFERROR(VLOOKUP(C31,TR!$B$2:$F$633,2,0),"") ->  | F31: =IFERROR(VLOOKUP(C31,TR!$B$2:$F$633,3,0),"") ->  | G31: 00:00:00 | H31: =IFERROR(VLOOKUP(C31,TR!$B$2:$F$633,4,0),"") ->  | I31: =IFERROR(VLOOKUP(C31,TR!$B$2:$F$633,5,0),"") ->  | J31: 00:00:00 | M31: 1 | P31: =IF(AND(L31="",M31=""),IF(OR(SUMPRODUCT(N(ISNUMBER(FIND({"s";"d";"f"},C31))))>0,G31+J31<0,AND(G31>0,J31>0,I31>"20:30"*1),AND(I31<="20:30"*1,SUM(I31,R31)>="20:31"*1)),1,""),"") ->  | Q31: =IF(OR(AND(G31>0,AND(J31=0)),OR(G31=0,AND(J31>0)),OR(G31+J31>0)),IF(R31="","",IF(#REF!+R31>="13:01"*1,1,""))) ->  | T31: 0 | U31: 0 | W31: 0,00
B32: 2018-09-29 | C32: CC | E32: =IFERROR(VLOOKUP(C32,TR!$B$2:$F$633,2,0),"") -> 00:00:00 | F32: =IFERROR(VLOOKUP(C32,TR!$B$2:$F$633,3,0),"") -> 00:00:00 | G32: 00:00:00 | H32: =IFERROR(VLOOKUP(C32,TR!$B$2:$F$633,4,0),"") -> 00:00:00 | I32: =IFERROR(VLOOKUP(C32,TR!$B$2:$F$633,5,0),"") -> 00:00:00 | J32: 00:00:00 | P32: =IF(AND(L32="",M32=""),IF(OR(SUMPRODUCT(N(ISNUMBER(FIND({"s";"d";"f"},C32))))>0,G32+J32<0,AND(G32>0,J32>0,I32>"20:30"*1),AND(I32<="20:30"*1,SUM(I32,R32)>="20:31"*1)),1,""),"") ->  | Q32: =IF(OR(AND(G32>0,AND(J32=0)),OR(G32=0,AND(J32>0)),OR(G32+J32>0)),IF(R32="","",IF(#REF!+R32>="13:01"*1,1,""))) ->  | T32: 0 | U32: 0 | W32: 0,00
B33: 2018-09-30 | C33: CH | E33: =IFERROR(VLOOKUP(C33,TR!$B$2:$F$633,2,0),"") -> 00:00:00 | F33: =IFERROR(VLOOKUP(C33,TR!$B$2:$F$633,3,0),"") -> 00:00:00 | G33: 00:00:00 | H33: =IFERROR(VLOOKUP(C33,TR!$B$2:$F$633,4,0),"") -> 00:00:00 | I33: =IFERROR(VLOOKUP(C33,TR!$B$2:$F$633,5,0),"") -> 00:00:00 | J33: 00:00:00 | P33: =IF(AND(L33="",M33=""),IF(OR(SUMPRODUCT(N(ISNUMBER(FIND({"s";"d";"f"},C33))))>0,G33+J33<0,AND(G33>0,J33>0,I33>"20:30"*1),AND(I33<="20:30"*1,SUM(I33,R33)>="20:31"*1)),1,""),"") ->  | Q33: =IF(OR(AND(G33>0,AND(J33=0)),OR(G33=0,AND(J33>0)),OR(G33+J33>0)),IF(R33="","",IF(#REF!+R33>="13:01"*1,1,""))) ->  | T33: 0 | U33: 0 | W33: 0,00
E34: =IFERROR(VLOOKUP(C34,TR!$B$2:$F$633,2,0),"") ->  | F34: =IFERROR(VLOOKUP(C34,TR!$B$2:$F$633,3,0),"") ->  | H34: =IFERROR(VLOOKUP(C34,TR!$B$2:$F$633,4,0),"") ->  | I34: =IFERROR(VLOOKUP(C34,TR!$B$2:$F$633,5,0),"") ->  | P34: =IF(AND(L34="",M34=""),IF(OR(SUMPRODUCT(N(ISNUMBER(FIND({"s";"d";"f"},C34))))>0,G34+J34<0,AND(G34>0,J34>0,I34>"20:30"*1),AND(I34<="20:30"*1,SUM(I34,R34)>="20:31"*1)),1,""),"") ->  | Q34: =IF(OR(AND(G34>0,AND(J34=0)),OR(G34=0,AND(J34>0)),OR(G34+J34>0)),IF(R34="","",IF(#REF!+R34>="13:01"*1,1,""))) ->  | T34: 0 | U34: 0 | W34: 0,00
B36: Jours travaillés | C36: =(COUNTIF(Aout!C24:C34,"<>")+COUNTIF(Septembre!C4:C23,"<>"))-(COUNTIF(Aout!C24:C34,"CC*")+COUNTIF(Septembre!C4:C23,"CC*"))-(COUNTIF(Aout!C24:C34,"CH*")+COUNTIF(Septembre!C4:C23,"CH*"))-(COUNTIF(Aout!C24:C34,"RT*")+COUNTIF(Septembre!C4:C23,"RT*"))-(COUNTIF(Aout!C24:C34,"Férié*")+COUNTIF(Septembre!C4:C23,"Férié*"))-(COUNTIF(Aout!C24:C34,"Mal*")+COUNTIF(Septembre!C4:C23,"Mal*"))-(COUNTIF(Aout!C24:C34,"CP*")+COUNTIF(Septembre!C4:C23,"CP*")) -> 24 | I36: Du 21 au 20 | K36: =SUM(Aout!$K$24:$K$34,K4:K23) -> 4 | L36: =SUM(Aout!$L$24:$L$34,L4:L23) -> 4 | M36: =SUM(Aout!$M$24:$M$34,M4:M23) -> 16 | N36: =SUM(Aout!$N$24:$N$34,N4:N23) -> 1 | O36: =SUM(Aout!$O$24:$O$34,O4:O23) -> 0 | P36: =SUM(Aout!$P$24:$P$34,P4:P23) -> 1 | Q36: =SUM(Aout!$Q$24:$Q$34,Q4:Q23) -> 0 | R36: =SUM(Aout!$R$24:$R$34,R4:R23) -> 00:00:00 | T36: =SUM(Aout!T24:T34)+SUM(Septembre!T4:T23) -> 3.213888889 | U36: =SUM(U4:U34) -> 53.43333333 | V36: =SUM(V4:V34) -> 0
B37: CP | C37: =(COUNTIF(Aout!C24:C34,"CP")+COUNTIF(Septembre!C4:C23,"CP")) -> 0 | K37: =(I39*2)*K36 -> 70.8224 | L37: =Recap!H35*L36 -> 28.56 | M37: =Recap!H35*M36 -> 114.24 | N37: =(I39*5)*N36 -> 44.264 | O37: =(Recap!H33)*O36 -> 0 | P37: =7.5*P36 -> 7.5 | Q37: =(I39*1.5)*Q36 -> 0 | R37: =R36*24 -> 0
B38: CH | C38: =(COUNTIF(Aout!C24:C34,"CH")+COUNTIF(Septembre!C4:C23,"CH")) -> 4 | I38: VP | T38: Horaire mensuel | V38: 6.175 | W38: =V38*24 -> 148.2
B39: RT | C39: =(COUNTIF(Aout!C24:C34,"RT")+COUNTIF(Septembre!C4:C23,"RT")) -> 0 | I39: 8.8528
B40: CC | C40: =(COUNTIF(Aout!C24:C34,"CC")+COUNTIF(Septembre!C4:C23,"CC")) -> 3 | T40: Différence | V40: =IF(V38>T36,"-","")&TEXT(ABS(T36-V38),"[h]:mm") -> -71:04 | W40: =(T36-V38)*24 -> -71.06666667
B41: Férié | C41: =(COUNTIF(Aout!C24:C34,"Férié")+COUNTIF(Septembre!C4:C23,"Férié")) -> 0
B42: Férié CC-CH-RT | C42: =(COUNTIF(Aout!C24:C34,"FériéCC")+COUNTIF(Septembre!C4:C23,"FériéCC")+(COUNTIF(Aout!C24:C34,"FériéCH")+COUNTIF(Septembre!C4:C23,"FériéCH")+(COUNTIF(Aout!C24:C34,"FériéRT")+COUNTIF(Septembre!C4:C23,"FériéRT")))) -> 0 | R42: Heures réelles | T42: =SUM(T4:T34) -> 2.226388889
T43: =T42*24 -> 53.43333333 | W43: =(T42-V38)*24 -> -94.76666667
F45: NOTES

Sheet Octobre
B1: OCTOBRE
T2: TOTAL
B3: Date | C3: Services | D3: Obs. | E3: MATIN | G3: Temps | H3: APRES MIDI | J3: Temps | K3: Prime nuit | L3: PJ1 | M3: PJ2 | N3: Dimanche | O3: Férié | P3: ChècDej | Q3: PrimAmp | R3: H Supp | S3: Ampli | T3: Heures | U3: Centièmes | V3: Kéolis | W3: Écart
B4: 2018-10-01 | E4: =IFERROR(VLOOKUP(C4,TR!$B$2:$F$633,2,0),"") ->  | F4: =IFERROR(VLOOKUP(C4,TR!$B$2:$F$633,3,0),"") ->  | G4: =IF(ISERROR(F4-E4),0,F4-E4) -> 00:00:00 | H4: =IFERROR(VLOOKUP(C4,TR!$B$2:$F$633,4,0),"") ->  | I4: =IFERROR(VLOOKUP(C4,TR!$B$2:$F$633,5,0),"") ->  | J4: =IF(ISERROR(I4-H4),0,(I4-H4)) -> 00:00:00 | K4: =IF(COUNTA(E4:F4,H4:I4)=5,1,IF(AND(E4<"5:00"*1,E4>"2:00"*1),1,IF(AND(I4>="22:01"*1,I4<="26:01"*1),1,IF(AND(I4<="22:00"*1,SUM(I4,R4)>="22:01"*1),1,"")))) ->  | L4: =IF(AND(F4>="13:15"*1,H4<""),1,IF(AND(H4>="11:00"*1,H4<="12:15"*1),1,IF(AND(F4<="13:15"*1,SUM(F4,R4)>="13:15"*1),1,""))) ->  | M4: =IF(AND(I4>="19:30"*1,1,I4>"21:30"*1,C4<>""),1,IF(AND(I4<="21:30"*1,SUM(I4,R4)>="21:30"*1),1,"")) ->  | N4: =IF(AND(LEFT(C4,1)="d",AND(Septembre!N33<>1)),1,IF(AND(LEFT(C4,1)="s",I4>="24:01"*1),1,IF(AND(I4<>"",I4<="23:59"*1,SUM(I4,R4)>="24:01"*1),1,""))) ->  | O4: =IF(AND(I4>"24:00"*1,ISNUMBER(FIND("f",C5))),1,IF(AND(OR(ISNUMBER(FIND("FériéCC",C4)),ISNUMBER(FIND("FériéCH",C4)),ISNUMBER(FIND("f",C4)))),1,"")) ->  | P4: =IF(AND(L4="",M4=""),IF(OR(SUMPRODUCT(N(ISNUMBER(FIND({"s";"d";"f"},C4))))>0,G4+J4<0,AND(G4>0,J4>0,I4>"20:30"*1),AND(I4<="20:30"*1,SUM(I4,R4)>="20:31"*1)),1,""),"") ->  | Q4: =IF(OR(AND(G4>0,AND(J4=0)),OR(G4=0,AND(J4>0)),OR(G4+J4>0)),IF(S4="","",IF(R4+S4>="13:01"*1,1,""))) ->  | S4: =IF(G4=0,IF(J4=0,"",I4-H4),IF(J4=0,F4-E4,I4-E4)) ->  | T4: =IF(ISERROR((F4-E4)+(I4-H4)),0,(F4-E4)+(I4-H4)) -> 0 | U4: =T4*24 -> 0 | W4: =IF(U4-V4=0,"0,00",U4-V4) -> 0,00
B5: 2018-10-02 | E5: =IFERROR(VLOOKUP(C5,TR!$B$2:$F$633,2,0),"") ->  | F5: =IFERROR(VLOOKUP(C5,TR!$B$2:$F$633,3,0),"") ->  | G5: =IF(ISERROR(F5-E5),0,F5-E5) -> 00:00:00 | H5: =IFERROR(VLOOKUP(C5,TR!$B$2:$F$633,4,0),"") ->  | I5: =IFERROR(VLOOKUP(C5,TR!$B$2:$F$633,5,0),"") ->  | J5: =IF(ISERROR(I5-H5),0,(I5-H5)) -> 00:00:00 | L5: =IF(AND(F5>="13:15"*1,H5<""),1,IF(AND(H5>="11:00"*1,H5<="12:15"*1),1,IF(AND(F5<="13:15"*1,SUM(F5,R5)>="13:15"*1),1,""))) ->  | N5: =IF(AND(LEFT(C5,1)="d",AND(N4<>1)),1,IF(AND(LEFT(C5,1)="s",I5>="24:01"*1),1,IF(AND(I5<>"",I5<="23:59"*1,SUM(I5,R5)>="24:01"*1),1,""))) ->  | O5: =IF(AND(I5>"24:00"*1,ISNUMBER(FIND("f",C6))),1,IF(AND(OR(ISNUMBER(FIND("FériéCC",C5)),ISNUMBER(FIND("FériéCH",C5)),ISNUMBER(FIND("f",C5)))),1,"")) ->  | P5: =IF(AND(L5="",M5=""),IF(OR(SUMPRODUCT(N(ISNUMBER(FIND({"s";"d";"f"},C5))))>0,G5+J5<0,AND(G5>0,J5>0,I5>"20:30"*1),AND(I5<="20:30"*1,SUM(I5,R5)>="20:31"*1)),1,""),"") ->  | Q5: =IF(OR(AND(G5>0,AND(J5=0)),OR(G5=0,AND(J5>0)),OR(G5+J5>0)),IF(S5="","",IF(R5+S5>="13:01"*1,1,""))) ->  | T5: 0 | U5: =T5*24 -> 0 | W5: =IF(U5-V5=0,"0,00",U5-V5) -> 0,00
B6: 2018-10-03 | E6: =IFERROR(VLOOKUP(C6,TR!$B$2:$F$633,2,0),"") ->  | F6: =IFERROR(VLOOKUP(C6,TR!$B$2:$F$633,3,0),"") ->  | G6: 00:00:00 | H6: =IFERROR(VLOOKUP(C6,TR!$B$2:$F$633,4,0),"") ->  | I6: =IFERROR(VLOOKUP(C6,TR!$B$2:$F$633,5,0),"") ->  | J6: 00:00:00 | P6: =IF(AND(L6="",M6=""),IF(OR(SUMPRODUCT(N(ISNUMBER(FIND({"s";"d";"f"},C6))))>0,G6+J6<0,AND(G6>0,J6>0,I6>"20:30"*1),AND(I6<="20:30"*1,SUM(I6,R6)>="20:31"*1)),1,""),"") ->  | T6: 0 | U6: =T6*24 -> 0 | W6: 0,00
B7: 2018-10-04 | E7: =IFERROR(VLOOKUP(C7,TR!$B$2:$F$633,2,0),"") ->  | F7: =IFERROR(VLOOKUP(C7,TR!$B$2:$F$633,3,0),"") ->  | G7: 00:00:00 | H7: =IFERROR(VLOOKUP(C7,TR!$B$2:$F$633,4,0),"") ->  | I7: =IFERROR(VLOOKUP(C7,TR!$B$2:$F$633,5,0),"") ->  | J7: 00:00:00 | P7: =IF(AND(L7="",M7=""),IF(OR(SUMPRODUCT(N(ISNUMBER(FIND({"s";"d";"f"},C7))))>0,G7+J7<0,AND(G7>0,J7>0,I7>"20:30"*1),AND(I7<="20:30"*1,SUM(I7,R7)>="20:31"*1)),1,""),"") ->  | T7: 0 | U7: =T7*24 -> 0 | W7: 0,00
B8: 2018-10-05 | E8: =IFERROR(VLOOKUP(C8,TR!$B$2:$F$633,2,0),"") ->  | F8: =IFERROR(VLOOKUP(C8,TR!$B$2:$F$633,3,0),"") ->  | G8: 00:00:00 | H8: =IFERROR(VLOOKUP(C8,TR!$B$2:$F$633,4,0),"") ->  | I8: =IFERROR(VLOOKUP(C8,TR!$B$2:$F$633,5,0),"") ->  | J8: 00:00:00 | P8: =IF(AND(L8="",M8=""),IF(OR(SUMPRODUCT(N(ISNUMBER(FIND({"s";"d";"f"},C8))))>0,G8+J8<0,AND(G8>0,J8>0,I8>"20:30"*1),AND(I8<="20:30"*1,SUM(I8,R8)>="20:31"*1)),1,""),"") ->  | T8: 0 | U8: 0 | W8: 0,00
B9: 2018-10-06 | E9: =IFERROR(VLOOKUP(C9,TR!$B$2:$F$633,2,0),"") ->  | F9: =IFERROR(VLOOKUP(C9,TR!$B$2:$F$633,3,0),"") ->  | G9: 00:00:00 | H9: =IFERROR(VLOOKUP(C9,TR!$B$2:$F$633,4,0),"") ->  | I9: =IFERROR(VLOOKUP(C9,TR!$B$2:$F$633,5,0),"") ->  | J9: 00:00:00 | P9: =IF(AND(L9="",M9=""),IF(OR(SUMPRODUCT(N(ISNUMBER(FIND({"s";"d";"f"},C9))))>0,G9+J9<0,AND(G9>0,J9>0,I9>"20:30"*1),AND(I9<="20:30"*1,SUM(I9,R9)>="20:31"*1)),1,""),"") ->  | T9: 0 | U9: 0 | W9: 0,00
B10: 2018-10-07 | E10: =IFERROR(VLOOKUP(C10,TR!$B$2:$F$633,2,0),"") ->  | F10: =IFERROR(VLOOKUP(C10,TR!$B$2:$F$633,3,0),"") ->  | G10: 00:00:00 | H10: =IFERROR(VLOOKUP(C10,TR!$B$2:$F$633,4,0),"") ->  | I10: =IFERROR(VLOOKUP(C10,TR!$B$2:$F$633,5,0),"") ->  | J10: 00:00:00 | P10: =IF(AND(L10="",M10=""),IF(OR(SUMPRODUCT(N(ISNUMBER(FIND({"s";"d";"f"},C10))))>0,G10+J10<0,AND(G10>0,J10>0,I10>"20:30"*1),AND(I10<="20:30"*1,SUM(I10,R10)>="20:31"*1)),1,""),"") ->  | T10: 0 | U10: 0 | W10: 0,00
B11: 2018-10-08 | E11: =IFERROR(VLOOKUP(C11,TR!$B$2:$F$633,2,0),"") ->  | F11: =IFERROR(VLOOKUP(C11,TR!$B$2:$F$633,3,0),"") ->  | G11: 00:00:00 | H11: =IFERROR(VLOOKUP(C11,TR!$B$2:$F$633,4,0),"") ->  | I11: =IFERROR(VLOOKUP(C11,TR!$B$2:$F$633,5,0),"") ->  | J11: 00:00:00 | P11: =IF(AND(L11="",M11=""),IF(OR(SUMPRODUCT(N(ISNUMBER(FIND({"s";"d";"f"},C11))))>0,G11+J11<0,AND(G11>0,J11>0,I11>"20:30"*1),AND(I11<="20:30"*1,SUM(I11,R11)>="20:31"*1)),1,""),"") ->  | T11: 0 | U11: 0 | W11: 0,00
B12: 2018-10-09 | E12: =IFERROR(VLOOKUP(C12,TR!$B$2:$F$633,2,0),"") ->  | F12: =IFERROR(VLOOKUP(C12,TR!$B$2:$F$633,3,0),"") ->  | G12: 00:00:00 | H12: =IFERROR(VLOOKUP(C12,TR!$B$2:$F$633,4,0),"") ->  | I12: =IFERROR(VLOOKUP(C12,TR!$B$2:$F$633,5,0),"") ->  | J12: 00:00:00 | P12: =IF(AND(L12="",M12=""),IF(OR(SUMPRODUCT(N(ISNUMBER(FIND({"s";"d";"f"},C12))))>0,G12+J12<0,AND(G12>0,J12>0,I12>"20:30"*1),AND(I12<="20:30"*1,SUM(I12,R12)>="20:31"*1)),1,""),"") ->  | T12: 0 | U12: 0 | W12: 0,00
B13: 2018-10-10 | E13: =IFERROR(VLOOKUP(C13,TR!$B$2:$F$633,2,0),"") ->  | F13: =IFERROR(VLOOKUP(C13,TR!$B$2:$F$633,3,0),"") ->  | G13: 00:00:00 | H13: =IFERROR(VLOOKUP(C13,TR!$B$2:$F$633,4,0),"") ->  | I13: =IFERROR(VLOOKUP(C13,TR!$B$2:$F$633,5,0),"") ->  | J13: 00:00:00 | P13: =IF(AND(L13="",M13=""),IF(OR(SUMPRODUCT(N(ISNUMBER(FIND({"s";"d";"f"},C13))))>0,G13+J13<0,AND(G13>0,J13>0,I13>"20:30"*1),AND(I13<="20:30"*1,SUM(I13,R13)>="20:31"*1)),1,""),"") ->  | T13: 0 | U13: 0 | W13: 0,00
B14: 2018-10-11 | E14: =IFERROR(VLOOKUP(C14,TR!$B$2:$F$633,2,0),"") ->  | F14: =IFERROR(VLOOKUP(C14,TR!$B$2:$F$633,3,0),"") ->  | G14: 00:00:00 | H14: =IFERROR(VLOOKUP(C14,TR!$B$2:$F$633,4,0),"") ->  | I14: =IFERROR(VLOOKUP(C14,TR!$B$2:$F$633,5,0),"") ->  | J14: 00:00:00 | P14: =IF(AND(L14="",M14=""),IF(OR(SUMPRODUCT(N(ISNUMBER(FIND({"s";"d";"f"},C14))))>0,G14+J14<0,AND(G14>0,J14>0,I14>"20:30"*1),AND(I14<="20:30"*1,SUM(I14,R14)>="20:31"*1)),1,""),"") ->  | T14: 0 | U14: 0 | W14: 0,00
B15: 2018-10-12 | E15: =IFERROR(VLOOKUP(C15,TR!$B$2:$F$633,2,0),"") ->  | F15: =IFERROR(VLOOKUP(C15,TR!$B$2:$F$633,3,0),"") ->  | G15: 00:00:00 | H15: =IFERROR(VLOOKUP(C15,TR!$B$2:$F$633,4,0),"") ->  | I15: =IFERROR(VLOOKUP(C15,TR!$B$2:$F$633,5,0),"") ->  | J15: 00:00:00 | P15: =IF(AND(L15="",M15=""),IF(OR(SUMPRODUCT(N(ISNUMBER(FIND({"s";"d";"f"},C15))))>0,G15+J15<0,AND(G15>0,J15>0,I15>"20:30"*1),AND(I15<="20:30"*1,SUM(I15,R15)>="20:31"*1)),1,""),"") ->  | T15: 0 | U15: 0 | W15: 0,00
B16: 2018-10-13 | E16: =IFERROR(VLOOKUP(C16,TR!$B$2:$F$633,2,0),"") ->  | F16: =IFERROR(VLOOKUP(C16,TR!$B$2:$F$633,3,0),"") ->  | G16: 00:00:00 | H16: =IFERROR(VLOOKUP(C16,TR!$B$2:$F$633,4,0),"") ->  | I16: =IFERROR(VLOOKUP(C16,TR!$B$2:$F$633,5,0),"") ->  | J16: 00:00:00 | P16: =IF(AND(L16="",M16=""),IF(OR(SUMPRODUCT(N(ISNUMBER(FIND({"s";"d";"f"},C16))))>0,G16+J16<0,AND(G16>0,J16>0,I16>"20:30"*1),AND(I16<="20:30"*1,SUM(I16,R16)>="20:31"*1)),1,""),"") ->  | T16: 0 | U16: 0 | W16: 0,00
B17: 2018-10-14 | E17: =IFERROR(VLOOKUP(C17,TR!$B$2:$F$633,2,0),"") ->  | F17: =IFERROR(VLOOKUP(C17,TR!$B$2:$F$633,3,0),"") ->  | G17: 00:00:00 | H17: =IFERROR(VLOOKUP(C17,TR!$B$2:$F$633,4,0),"") ->  | I17: =IFERROR(VLOOKUP(C17,TR!$B$2:$F$633,5,0),"") ->  | J17: 00:00:00 | P17: =IF(AND(L17="",M17=""),IF(OR(SUMPRODUCT(N(ISNUMBER(FIND({"s";"d";"f"},C17))))>0,G17+J17<0,AND(G17>0,J17>0,I17>"20:30"*1),AND(I17<="20:30"*1,SUM(I17,R17)>="20:31"*1)),1,""),"") ->  | T17: 0 | U17: 0 | W17: 0,00
B18: 2018-10-15 | E18: =IFERROR(VLOOKUP(C18,TR!$B$2:$F$633,2,0),"") ->  | F18: =IFERROR(VLOOKUP(C18,TR!$B$2:$F$633,3,0),"") ->  | G18: 00:00:00 | H18: =IFERROR(VLOOKUP(C18,TR!$B$2:$F$633,4,0),"") ->  | I18: =IFERROR(VLOOKUP(C18,TR!$B$2:$F$633,5,0),"") ->  | J18: 00:00:00 | P18: =IF(AND(L18="",M18=""),IF(OR(SUMPRODUCT(N(ISNUMBER(FIND({"s";"d";"f"},C18))))>0,G18+J18<0,AND(G18>0,J18>0,I18>"20:30"*1),AND(I18<="20:30"*1,SUM(I18,R18)>="20:31"*1)),1,""),"") ->  | T18: 0 | U18: 0 | W18: 0,00
B19: 2018-10-16 | E19: =IFERROR(VLOOKUP(C19,TR!$B$2:$F$633,2,0),"") ->  | F19: =IFERROR(VLOOKUP(C19,TR!$B$2:$F$633,3,0),"") ->  | G19: 00:00:00 | H19: =IFERROR(VLOOKUP(C19,TR!$B$2:$F$633,4,0),"") ->  | I19: =IFERROR(VLOOKUP(C19,TR!$B$2:$F$633,5,0),"") ->  | J19: 00:00:00 | P19: =IF(AND(L19="",M19=""),IF(OR(SUMPRODUCT(N(ISNUMBER(FIND({"s";"d";"f"},C19))))>0,G19+J19<0,AND(G19>0,J19>0,I19>"20:30"*1),AND(I19<="20:30"*1,SUM(I19,R19)>="20:31"*1)),1,""),"") ->  | T19: 0 | U19: 0 | W19: 0,00
B20: 2018-10-17 | E20: =IFERROR(VLOOKUP(C20,TR!$B$2:$F$633,2,0),"") ->  | F20: =IFERROR(VLOOKUP(C20,TR!$B$2:$F$633,3,0),"") ->  | G20: 00:00:00 | H20: =IFERROR(VLOOKUP(C20,TR!$B$2:$F$633,4,0),"") ->  | I20: =IFERROR(VLOOKUP(C20,TR!$B$2:$F$633,5,0),"") ->  | J20: 00:00:00 | P20: =IF(AND(L20="",M20=""),IF(OR(SUMPRODUCT(N(ISNUMBER(FIND({"s";"d";"f"},C20))))>0,G20+J20<0,AND(G20>0,J20>0,I20>"20:30"*1),AND(I20<="20:30"*1,SUM(I20,R20)>="20:31"*1)),1,""),"") ->  | T20: 0 | U20: 0 | W20: 0,00
B21: 2018-10-18 | E21: =IFERROR(VLOOKUP(C21,TR!$B$2:$F$633,2,0),"") ->  | F21: =IFERROR(VLOOKUP(C21,TR!$B$2:$F$633,3,0),"") ->  | G21: 00:00:00 | H21: =IFERROR(VLOOKUP(C21,TR!$B$2:$F$633,4,0),"") ->  | I21: =IFERROR(VLOOKUP(C21,TR!$B$2:$F$633,5,0),"") ->  | J21: 00:00:00 | P21: =IF(AND(L21="",M21=""),IF(OR(SUMPRODUCT(N(ISNUMBER(FIND({"s";"d";"f"},C21))))>0,G21+J21<0,AND(G21>0,J21>0,I21>"20:30"*1),AND(I21<="20:30"*1,SUM(I21,R21)>="20:31"*1)),1,""),"") ->  | T21: 0 | U21: 0 | W21: 0,00
B22: 2018-10-19 | E22: =IFERROR(VLOOKUP(C22,TR!$B$2:$F$633,2,0),"") ->  | F22: =IFERROR(VLOOKUP(C22,TR!$B$2:$F$633,3,0),"") ->  | G22: 00:00:00 | H22: =IFERROR(VLOOKUP(C22,TR!$B$2:$F$633,4,0),"") ->  | I22: =IFERROR(VLOOKUP(C22,TR!$B$2:$F$633,5,0),"") ->  | J22: 00:00:00 | P22: =IF(AND(L22="",M22=""),IF(OR(SUMPRODUCT(N(ISNUMBER(FIND({"s";"d";"f"},C22))))>0,G22+J22<0,AND(G22>0,J22>0,I22>"20:30"*1),AND(I22<="20:30"*1,SUM(I22,R22)>="20:31"*1)),1,""),"") ->  | T22: 0 | U22: 0 | W22: 0,00
B23: 2018-10-20 | E23: =IFERROR(VLOOKUP(C23,TR!$B$2:$F$633,2,0),"") ->  | F23: =IFERROR(VLOOKUP(C23,TR!$B$2:$F$633,3,0),"") ->  | G23: 00:00:00 | H23: =IFERROR(VLOOKUP(C23,TR!$B$2:$F$633,4,0),"") ->  | I23: =IFERROR(VLOOKUP(C23,TR!$B$2:$F$633,5,0),"") ->  | J23: 00:00:00 | P23: =IF(AND(L23="",M23=""),IF(OR(SUMPRODUCT(N(ISNUMBER(FIND({"s";"d";"f"},C23))))>0,G23+J23<0,AND(G23>0,J23>0,I23>"20:30"*1),AND(I23<="20:30"*1,SUM(I23,R23)>="20:31"*1)),1,""),"") ->  | T23: 0 | U23: 0 | W23: 0,00
B24: 2018-10-21 | E24: =IFERROR(VLOOKUP(C24,TR!$B$2:$F$633,2,0),"") ->  | F24: =IFERROR(VLOOKUP(C24,TR!$B$2:$F$633,3,0),"") ->  | G24: 00:00:00 | H24: =IFERROR(VLOOKUP(C24,TR!$B$2:$F$633,4,0),"") ->  | I24: =IFERROR(VLOOKUP(C24,TR!$B$2:$F$633,5,0),"") ->  | J24: 00:00:00 | P24: =IF(AND(L24="",M24=""),IF(OR(SUMPRODUCT(N(ISNUMBER(FIND({"s";"d";"f"},C24))))>0,G24+J24<0,AND(G24>0,J24>0,I24>"20:30"*1),AND(I24<="20:30"*1,SUM(I24,R24)>="20:31"*1)),1,""),"") ->  | T24: 0 | U24: 0 | W24: 0,00
B25: 2018-10-22 | E25: =IFERROR(VLOOKUP(C25,TR!$B$2:$F$633,2,0),"") ->  | F25: =IFERROR(VLOOKUP(C25,TR!$B$2:$F$633,3,0),"") ->  | G25: 00:00:00 | H25: =IFERROR(VLOOKUP(C25,TR!$B$2:$F$633,4,0),"") ->  | I25: =IFERROR(VLOOKUP(C25,TR!$B$2:$F$633,5,0),"") ->  | J25: 00:00:00 | P25: =IF(AND(L25="",M25=""),IF(OR(SUMPRODUCT(N(ISNUMBER(FIND({"s";"d";"f"},C25))))>0,G25+J25<0,AND(G25>0,J25>0,I25>"20:30"*1),AND(I25<="20:30"*1,SUM(I25,R25)>="20:31"*1)),1,""),"") ->  | T25: 0 | U25: 0 | W25: 0,00
B26: 2018-10-23 | E26: =IFERROR(VLOOKUP(C26,TR!$B$2:$F$633,2,0),"") ->  | F26: =IFERROR(VLOOKUP(C26,TR!$B$2:$F$633,3,0),"") ->  | G26: 00:00:00 | H26: =IFERROR(VLOOKUP(C26,TR!$B$2:$F$633,4,0),"") ->  | I26: =IFERROR(VLOOKUP(C26,TR!$B$2:$F$633,5,0),"") ->  | J26: 00:00:00 | P26: =IF(AND(L26="",M26=""),IF(OR(SUMPRODUCT(N(ISNUMBER(FIND({"s";"d";"f"},C26))))>0,G26+J26<0,AND(G26>0,J26>0,I26>"20:30"*1),AND(I26<="20:30"*1,SUM(I26,R26)>="20:31"*1)),1,""),"") ->  | T26: 0 | U26: 0 | W26: 0,00
B27: 2018-10-24 | E27: =IFERROR(VLOOKUP(C27,TR!$B$2:$F$633,2,0),"") ->  | F27: =IFERROR(VLOOKUP(C27,TR!$B$2:$F$633,3,0),"") ->  | G27: 00:00:00 | H27: =IFERROR(VLOOKUP(C27,TR!$B$2:$F$633,4,0),"") ->  | I27: =IFERROR(VLOOKUP(C27,TR!$B$2:$F$633,5,0),"") ->  | J27: 00:00:00 | P27: =IF(AND(L27="",M27=""),IF(OR(SUMPRODUCT(N(ISNUMBER(FIND({"s";"d";"f"},C27))))>0,G27+J27<0,AND(G27>0,J27>0,I27>"20:30"*1),AND(I27<="20:30"*1,SUM(I27,R27)>="20:31"*1)),1,""),"") ->  | T27: 0 | U27: 0 | W27: 0,00
B28: 2018-10-25 | E28: =IFERROR(VLOOKUP(C28,TR!$B$2:$F$633,2,0),"") ->  | F28: =IFERROR(VLOOKUP(C28,TR!$B$2:$F$633,3,0),"") ->  | G28: 00:00:00 | H28: =IFERROR(VLOOKUP(C28,TR!$B$2:$F$633,4,0),"") ->  | I28: =IFERROR(VLOOKUP(C28,TR!$B$2:$F$633,5,0),"") ->  | J28: 00:00:00 | P28: =IF(AND(L28="",M28=""),IF(OR(SUMPRODUCT(N(ISNUMBER(FIND({"s";"d";"f"},C28))))>0,G28+J28<0,AND(G28>0,J28>0,I28>"20:30"*1),AND(I28<="20:30"*1,SUM(I28,R28)>="20:31"*1)),1,""),"") ->  | T28: 0 | U28: 0 | W28: 0,00
B29: 2018-10-26 | E29: =IFERROR(VLOOKUP(C29,TR!$B$2:$F$633,2,0),"") ->  | F29: =IFERROR(VLOOKUP(C29,TR!$B$2:$F$633,3,0),"") ->  | G29: 00:00:00 | H29: =IFERROR(VLOOKUP(C29,TR!$B$2:$F$633,4,0),"") ->  | I29: =IFERROR(VLOOKUP(C29,TR!$B$2:$F$633,5,0),"") ->  | J29: 00:00:00 | P29: =IF(AND(L29="",M29=""),IF(OR(SUMPRODUCT(N(ISNUMBER(FIND({"s";"d";"f"},C29))))>0,G29+J29<0,AND(G29>0,J29>0,I29>"20:30"*1),AND(I29<="20:30"*1,SUM(I29,R29)>="20:31"*1)),1,""),"") ->  | T29: 0 | U29: 0 | W29: 0,00
B30: 2018-10-27 | E30: =IFERROR(VLOOKUP(C30,TR!$B$2:$F$633,2,0),"") ->  | F30: =IFERROR(VLOOKUP(C30,TR!$B$2:$F$633,3,0),"") ->  | G30: 00:00:00 | H30: =IFERROR(VLOOKUP(C30,TR!$B$2:$F$633,4,0),"") ->  | I30: =IFERROR(VLOOKUP(C30,TR!$B$2:$F$633,5,0),"") ->  | J30: 00:00:00 | P30: =IF(AND(L30="",M30=""),IF(OR(SUMPRODUCT(N(ISNUMBER(FIND({"s";"d";"f"},C30))))>0,G30+J30<0,AND(G30>0,J30>0,I30>"20:30"*1),AND(I30<="20:30"*1,SUM(I30,R30)>="20:31"*1)),1,""),"") ->  | T30: 0 | U30: 0 | W30: 0,00
B31: 2018-10-28 | E31: =IFERROR(VLOOKUP(C31,TR!$B$2:$F$633,2,0),"") ->  | F31: =IFERROR(VLOOKUP(C31,TR!$B$2:$F$633,3,0),"") ->  | G31: 00:00:00 | H31: =IFERROR(VLOOKUP(C31,TR!$B$2:$F$633,4,0),"") ->  | I31: =IFERROR(VLOOKUP(C31,TR!$B$2:$F$633,5,0),"") ->  | J31: 00:00:00 | P31: =IF(AND(L31="",M31=""),IF(OR(SUMPRODUCT(N(ISNUMBER(FIND({"s";"d";"f"},C31))))>0,G31+J31<0,AND(G31>0,J31>0,I31>"20:30"*1),AND(I31<="20:30"*1,SUM(I31,R31)>="20:31"*1)),1,""),"") ->  | T31: 0 | U31: 0 | W31: 0,00
B32: 2018-10-29 | E32: =IFERROR(VLOOKUP(C32,TR!$B$2:$F$633,2,0),"") ->  | F32: =IFERROR(VLOOKUP(C32,TR!$B$2:$F$633,3,0),"") ->  | G32: 00:00:00 | H32: =IFERROR(VLOOKUP(C32,TR!$B$2:$F$633,4,0),"") ->  | I32: =IFERROR(VLOOKUP(C32,TR!$B$2:$F$633,5,0),"") ->  | J32: 00:00:00 | P32: =IF(AND(L32="",M32=""),IF(OR(SUMPRODUCT(N(ISNUMBER(FIND({"s";"d";"f"},C32))))>0,G32+J32<0,AND(G32>0,J32>0,I32>"20:30"*1),AND(I32<="20:30"*1,SUM(I32,R32)>="20:31"*1)),1,""),"") ->  | T32: 0 | U32: 0 | W32: 0,00
B33: 2018-10-30 | E33: =IFERROR(VLOOKUP(C33,TR!$B$2:$F$633,2,0),"") ->  | F33: =IFERROR(VLOOKUP(C33,TR!$B$2:$F$633,3,0),"") ->  | G33: 00:00:00 | H33: =IFERROR(VLOOKUP(C33,TR!$B$2:$F$633,4,0),"") ->  | I33: =IFERROR(VLOOKUP(C33,TR!$B$2:$F$633,5,0),"") ->  | J33: 00:00:00 | P33: =IF(AND(L33="",M33=""),IF(OR(SUMPRODUCT(N(ISNUMBER(FIND({"s";"d";"f"},C33))))>0,G33+J33<0,AND(G33>0,J33>0,I33>"20:30"*1),AND(I33<="20:30"*1,SUM(I33,R33)>="20:31"*1)),1,""),"") ->  | T33: 0 | U33: 0 | W33: 0,00
B34: 2018-10-31 | E34: =IFERROR(VLOOKUP(C34,TR!$B$2:$F$633,2,0),"") ->  | F34: =IFERROR(VLOOKUP(C34,TR!$B$2:$F$633,3,0),"") ->  | G34: 00:00:00 | H34: =IFERROR(VLOOKUP(C34,TR!$B$2:$F$633,4,0),"") ->  | I34: =IFERROR(VLOOKUP(C34,TR!$B$2:$F$633,5,0),"") ->  | J34: 00:00:00 | P34: =IF(AND(L34="",M34=""),IF(OR(SUMPRODUCT(N(ISNUMBER(FIND({"s";"d";"f"},C34))))>0,G34+J34<0,AND(G34>0,J34>0,I34>"20:30"*1),AND(I34<="20:30"*1,SUM(I34,R34)>="20:31"*1)),1,""),"") ->  | T34: 0 | U34: 0 | W34: 0,00
B36: Jours travaillés | C36: =(COUNTIF(Septembre!C24:C34,"<>")+COUNTIF(Octobre!C4:C23,"<>"))-(COUNTIF(Septembre!C24:C34,"CC*")+COUNTIF(Octobre!C4:C23,"CC*"))-(COUNTIF(Septembre!C24:C34,"CH*")+COUNTIF(Octobre!C4:C23,"CH*"))-(COUNTIF(Septembre!C24:C34,"RT*")+COUNTIF(Octobre!C4:C23,"RT*"))-(COUNTIF(Septembre!C24:C34,"Férié*")+COUNTIF(Octobre!C4:C23,"Férié*"))-(COUNTIF(Septembre!C24:C34,"Mal*")+COUNTIF(Octobre!C4:C23,"Mal*"))-(COUNTIF(Septembre!C24:C34,"CP*")+COUNTIF(Octobre!C4:C23,"CP*")) -> 6 | I36: Du 21 au 20 | K36: =SUM(Septembre!$K$24:$K$34,K4:K23) -> 0 | L36: =SUM(Septembre!$L$24:$L$34,L4:L23) -> 0 | M36: =SUM(Septembre!$M$24:$M$34,M4:M23) -> 6 | N36: =SUM(Septembre!$N$24:$N$34,N4:N23) -> 0 | O36: =SUM(Septembre!$O$24:$O$34,O4:O23) -> 0 | P36: =SUM(Septembre!$P$24:$P$34,P4:P23) -> 0 | Q36: =SUM(Septembre!$Q$24:$Q$34,Q4:Q23) -> 0 | R36: =SUM(Septembre!$R$24:$R$34,R4:R23) -> 0 | T36: =SUM(Septembre!T24:T34)+SUM(Octobre!T4:T23) -> 0 | U36: =SUM(U4:U34) -> 0 | V36: =SUM(V4:V34) -> 0
B37: CP | C37: =(COUNTIF(Septembre!C24:C34,"CP")+COUNTIF(Octobre!C4:C23,"CP")) -> 0 | K37: =(I39*2)*K36 -> 0 | L37: =Recap!H35*L36 -> 0 | M37: =Recap!H35*M36 -> 42.84 | N37: =(L39*5)*N36 -> 0 | O37: =(Recap!H33)*O36 -> 0 | P37: =7.5*P36 -> 0 | Q37: =(I39*1.5)*Q36 -> 0 | R37: =R36*24 -> 0
B38: CH | C38: =(COUNTIF(Septembre!C24:C34,"CH")+COUNTIF(Octobre!C4:C23,"CH")) -> 2 | I38: VP | T38: Horaire mensuel | V38: 6.175 | W38: =V38*24 -> 148.2
B39: RT | C39: =(COUNTIF(Septembre!C24:C34,"RT")+COUNTIF(Octobre!C4:C23,"RT")) -> 0 | I39: 8.8528
B40: CC | C40: =(COUNTIF(Septembre!C24:C34,"CC")+COUNTIF(Octobre!C4:C23,"CC")) -> 2 | T40: Différence | V40: =IF(V38>T36,"-","")&TEXT(ABS(T36-V38),"[h]:mm") -> -148:12 | W40: =(T36-V38)*24 -> -148.2
B41: Férié | C41: =(COUNTIF(Septembre!C24:C34,"Férié")+COUNTIF(Octobre!C4:C23,"Férié")) -> 0
B42: Férié CC-CH-RT | C42: =(COUNTIF(Septembre!C24:C34,"FériéCC")+COUNTIF(Octobre!C4:C23,"FériéCC")+(COUNTIF(Septembre!C24:C34,"FériéCH")+COUNTIF(Octobre!C4:C23,"FériéCH")+(COUNTIF(Septembre!C24:C34,"FériéRT")+COUNTIF(Octobre!C4:C23,"FériéRT")))) -> 0 | R42: Heures réelles | T42: =SUM(T4:T34) -> 0
T43: =T42*24 -> 0 | W43: =(T42-V38)*24 -> -148.2
F45: NOTES

Sheet Novembre
B1: NOVEMBRE
T2: TOTAL
B3: Date | C3: Services | D3: Obs. | E3: MATIN | G3: Temps | H3: APRES MIDI | J3: Temps | K3: Prime nuit | L3: PJ1 | M3: PJ2 | N3: Dimanche | O3: Férié | P3: ChècDej | Q3: PrimAmp | R3: H Supp | S3: Ampli | T3: Heures | U3: Centièmes | V3: Kéolis | W3: Écart
B4: 2018-11-01 | E4: =IFERROR(VLOOKUP(C4,TR!$B$2:$F$633,2,0),"") ->  | F4: =IFERROR(VLOOKUP(C4,TR!$B$2:$F$633,3,0),"") ->  | G4: =IF(ISERROR(F4-E4),0,F4-E4) -> 00:00:00 | H4: =IFERROR(VLOOKUP(C4,TR!$B$2:$F$633,4,0),"") ->  | I4: =IFERROR(VLOOKUP(C4,TR!$B$2:$F$633,5,0),"") ->  | J4: =IF(ISERROR(I4-H4),0,(I4-H4)) -> 00:00:00 | K4: =IF(COUNTA(E4:F4,H4:I4)=5,1,IF(AND(E4<"5:00"*1,E4>"2:00"*1),1,IF(AND(I4>="22:01"*1,I4<="26:01"*1),1,IF(AND(I4<="22:00"*1,SUM(I4,R4)>="22:01"*1),1,"")))) ->  | L4: =IF(AND(F4>="13:15"*1,H4<""),1,IF(AND(H4>="11:00"*1,H4<="12:15"*1),1,IF(AND(F4<="13:15"*1,SUM(F4,R4)>="13:15"*1),1,""))) ->  | M4: =IF(AND(I4>="19:30"*1,1,I4>"21:30"*1,C4<>""),1,IF(AND(I4<="21:30"*1,SUM(I4,R4)>="21:30"*1),1,"")) ->  | N4: =IF(AND(LEFT(C4,1)="d",AND(Octobre!N34<>1)),1,IF(AND(LEFT(C4,1)="s",I4>="24:01"*1),1,IF(AND(I4<>"",I4<="23:59"*1,SUM(I4,R4)>="24:01"*1),1,""))) ->  | O4: =IF(AND(I4>"24:00"*1,ISNUMBER(FIND("f",C5))),1,IF(AND(OR(ISNUMBER(FIND("FériéCC",C4)),ISNUMBER(FIND("FériéCH",C4)),ISNUMBER(FIND("f",C4)))),1,"")) ->  | P4: =IF(AND(L4="",M4=""),IF(OR(SUMPRODUCT(N(ISNUMBER(FIND({"s";"d";"f"},C4))))>0,G4+J4<0,AND(G4>0,J4>0,I4>"20:30"*1),AND(I4<="20:30"*1,SUM(I4,R4)>="20:31"*1)),1,""),"") ->  | Q4: =IF(OR(AND(G4>0,AND(J4=0)),OR(G4=0,AND(J4>0)),OR(G4+J4>0)),IF(R4="","",IF(#REF!+R4>="13:01"*1,1,""))) ->  | S4: =IF(G4=0,IF(J4=0,"",I4-H4),IF(J4=0,F4-E4,I4-E4)) ->  | T4: =IF(ISERROR((F4-E4)+(I4-H4)),0,(F4-E4)+(I4-H4)) -> 0 | U4: =T4*24 -> 0 | W4: =IF(U4-V4=0,"0,00",U4-V4) -> 0,00
B5: 2018-11-02 | E5: =IFERROR(VLOOKUP(C5,TR!$B$2:$F$633,2,0),"") ->  | F5: =IFERROR(VLOOKUP(C5,TR!$B$2:$F$633,3,0),"") ->  | G5: =IF(ISERROR(F5-E5),0,F5-E5) -> 00:00:00 | H5: =IFERROR(VLOOKUP(C5,TR!$B$2:$F$633,4,0),"") ->  | I5: =IFERROR(VLOOKUP(C5,TR!$B$2:$F$633,5,0),"") ->  | J5: =IF(ISERROR(I5-H5),0,(I5-H5)) -> 00:00:00 | N5: =IF(AND(LEFT(C5,1)="d",AND(N4<>1)),1,IF(AND(LEFT(C5,1)="s",I5>="24:01"*1),1,IF(AND(I5<>"",I5<="23:59"*1,SUM(I5,R5)>="24:01"*1),1,""))) ->  | O5: =IF(AND(I5>"24:00"*1,ISNUMBER(FIND("f",C6))),1,IF(AND(OR(ISNUMBER(FIND("FériéCC",C5)),ISNUMBER(FIND("FériéCH",C5)),ISNUMBER(FIND("f",C5)))),1,"")) ->  | P5: =IF(AND(L5="",M5=""),IF(OR(SUMPRODUCT(N(ISNUMBER(FIND({"s";"d";"f"},C5))))>0,G5+J5<0,AND(G5>0,J5>0,I5>"20:30"*1),AND(I5<="20:30"*1,SUM(I5,R5)>="20:31"*1)),1,""),"") ->  | Q5: =IF(OR(AND(G5>0,AND(J5=0)),OR(G5=0,AND(J5>0)),OR(G5+J5>0)),IF(R5="","",IF(#REF!+R5>="13:01"*1,1,""))) ->  | T5: 0 | U5: =T5*24 -> 0 | W5: =IF(U5-V5=0,"0,00",U5-V5) -> 0,00
B6: 2018-11-03 | E6: =IFERROR(VLOOKUP(C6,TR!$B$2:$F$633,2,0),"") ->  | F6: =IFERROR(VLOOKUP(C6,TR!$B$2:$F$633,3,0),"") ->  | G6: 00:00:00 | H6: =IFERROR(VLOOKUP(C6,TR!$B$2:$F$633,4,0),"") ->  | I6: =IFERROR(VLOOKUP(C6,TR!$B$2:$F$633,5,0),"") ->  | J6: 00:00:00 | P6: =IF(AND(L6="",M6=""),IF(OR(SUMPRODUCT(N(ISNUMBER(FIND({"s";"d";"f"},C6))))>0,G6+J6<0,AND(G6>0,J6>0,I6>"20:30"*1),AND(I6<="20:30"*1,SUM(I6,R6)>="20:31"*1)),1,""),"") ->  | Q6: =IF(OR(AND(G6>0,AND(J6=0)),OR(G6=0,AND(J6>0)),OR(G6+J6>0)),IF(R6="","",IF(#REF!+R6>="13:01"*1,1,""))) ->  | T6: 0 | U6: =T6*24 -> 0 | W6: 0,00
B7: 2018-11-04 | E7: =IFERROR(VLOOKUP(C7,TR!$B$2:$F$633,2,0),"") ->  | F7: =IFERROR(VLOOKUP(C7,TR!$B$2:$F$633,3,0),"") ->  | G7: 00:00:00 | H7: =IFERROR(VLOOKUP(C7,TR!$B$2:$F$633,4,0),"") ->  | I7: =IFERROR(VLOOKUP(C7,TR!$B$2:$F$633,5,0),"") ->  | J7: 00:00:00 | P7: =IF(AND(L7="",M7=""),IF(OR(SUMPRODUCT(N(ISNUMBER(FIND({"s";"d";"f"},C7))))>0,G7+J7<0,AND(G7>0,J7>0,I7>"20:30"*1),AND(I7<="20:30"*1,SUM(I7,R7)>="20:31"*1)),1,""),"") ->  | Q7: =IF(OR(AND(G7>0,AND(J7=0)),OR(G7=0,AND(J7>0)),OR(G7+J7>0)),IF(R7="","",IF(#REF!+R7>="13:01"*1,1,""))) ->  | T7: 0 | U7: =T7*24 -> 0 | W7: 0,00
B8: 2018-11-05 | E8: =IFERROR(VLOOKUP(C8,TR!$B$2:$F$633,2,0),"") ->  | F8: =IFERROR(VLOOKUP(C8,TR!$B$2:$F$633,3,0),"") ->  | G8: 00:00:00 | H8: =IFERROR(VLOOKUP(C8,TR!$B$2:$F$633,4,0),"") ->  | I8: =IFERROR(VLOOKUP(C8,TR!$B$2:$F$633,5,0),"") ->  | J8: 00:00:00 | P8: =IF(AND(L8="",M8=""),IF(OR(SUMPRODUCT(N(ISNUMBER(FIND({"s";"d";"f"},C8))))>0,G8+J8<0,AND(G8>0,J8>0,I8>"20:30"*1),AND(I8<="20:30"*1,SUM(I8,R8)>="20:31"*1)),1,""),"") ->  | Q8: =IF(OR(AND(G8>0,AND(J8=0)),OR(G8=0,AND(J8>0)),OR(G8+J8>0)),IF(R8="","",IF(#REF!+R8>="13:01"*1,1,""))) ->  | T8: 0 | U8: 0 | W8: 0,00
B9: 2018-11-06 | E9: =IFERROR(VLOOKUP(C9,TR!$B$2:$F$633,2,0),"") ->  | F9: =IFERROR(VLOOKUP(C9,TR!$B$2:$F$633,3,0),"") ->  | G9: 00:00:00 | H9: =IFERROR(VLOOKUP(C9,TR!$B$2:$F$633,4,0),"") ->  | I9: =IFERROR(VLOOKUP(C9,TR!$B$2:$F$633,5,0),"") ->  | J9: 00:00:00 | P9: =IF(AND(L9="",M9=""),IF(OR(SUMPRODUCT(N(ISNUMBER(FIND({"s";"d";"f"},C9))))>0,G9+J9<0,AND(G9>0,J9>0,I9>"20:30"*1),AND(I9<="20:30"*1,SUM(I9,R9)>="20:31"*1)),1,""),"") ->  | Q9: =IF(OR(AND(G9>0,AND(J9=0)),OR(G9=0,AND(J9>0)),OR(G9+J9>0)),IF(R9="","",IF(#REF!+R9>="13:01"*1,1,""))) ->  | T9: 0 | U9: 0 | W9: 0,00
B10: 2018-11-07 | E10: =IFERROR(VLOOKUP(C10,TR!$B$2:$F$633,2,0),"") ->  | F10: =IFERROR(VLOOKUP(C10,TR!$B$2:$F$633,3,0),"") ->  | G10: 00:00:00 | H10: =IFERROR(VLOOKUP(C10,TR!$B$2:$F$633,4,0),"") ->  | I10: =IFERROR(VLOOKUP(C10,TR!$B$2:$F$633,5,0),"") ->  | J10: 00:00:00 | P10: =IF(AND(L10="",M10=""),IF(OR(SUMPRODUCT(N(ISNUMBER(FIND({"s";"d";"f"},C10))))>0,G10+J10<0,AND(G10>0,J10>0,I10>"20:30"*1),AND(I10<="20:30"*1,SUM(I10,R10)>="20:31"*1)),1,""),"") ->  | Q10: =IF(OR(AND(G10>0,AND(J10=0)),OR(G10=0,AND(J10>0)),OR(G10+J10>0)),IF(R10="","",IF(#REF!+R10>="13:01"*1,1,""))) ->  | T10: 0 | U10: 0 | W10: 0,00
B11: 2018-11-08 | E11: =IFERROR(VLOOKUP(C11,TR!$B$2:$F$633,2,0),"") ->  | F11: =IFERROR(VLOOKUP(C11,TR!$B$2:$F$633,3,0),"") ->  | G11: 00:00:00 | H11: =IFERROR(VLOOKUP(C11,TR!$B$2:$F$633,4,0),"") ->  | I11: =IFERROR(VLOOKUP(C11,TR!$B$2:$F$633,5,0),"") ->  | J11: 00:00:00 | P11: =IF(AND(L11="",M11=""),IF(OR(SUMPRODUCT(N(ISNUMBER(FIND({"s";"d";"f"},C11))))>0,G11+J11<0,AND(G11>0,J11>0,I11>"20:30"*1),AND(I11<="20:30"*1,SUM(I11,R11)>="20:31"*1)),1,""),"") ->  | Q11: =IF(OR(AND(G11>0,AND(J11=0)),OR(G11=0,AND(J11>0)),OR(G11+J11>0)),IF(R11="","",IF(#REF!+R11>="13:01"*1,1,""))) ->  | T11: 0 | U11: 0 | W11: 0,00
B12: 2018-11-09 | E12: =IFERROR(VLOOKUP(C12,TR!$B$2:$F$633,2,0),"") ->  | F12: =IFERROR(VLOOKUP(C12,TR!$B$2:$F$633,3,0),"") ->  | G12: 00:00:00 | H12: =IFERROR(VLOOKUP(C12,TR!$B$2:$F$633,4,0),"") ->  | I12: =IFERROR(VLOOKUP(C12,TR!$B$2:$F$633,5,0),"") ->  | J12: 00:00:00 | P12: =IF(AND(L12="",M12=""),IF(OR(SUMPRODUCT(N(ISNUMBER(FIND({"s";"d";"f"},C12))))>0,G12+J12<0,AND(G12>0,J12>0,I12>"20:30"*1),AND(I12<="20:30"*1,SUM(I12,R12)>="20:31"*1)),1,""),"") ->  | Q12: =IF(OR(AND(G12>0,AND(J12=0)),OR(G12=0,AND(J12>0)),OR(G12+J12>0)),IF(R12="","",IF(#REF!+R12>="13:01"*1,1,""))) ->  | T12: 0 | U12: 0 | W12: 0,00
B13: 2018-11-10 | E13: =IFERROR(VLOOKUP(C13,TR!$B$2:$F$633,2,0),"") ->  | F13: =IFERROR(VLOOKUP(C13,TR!$B$2:$F$633,3,0),"") ->  | G13: 00:00:00 | H13: =IFERROR(VLOOKUP(C13,TR!$B$2:$F$633,4,0),"") ->  | I13: =IFERROR(VLOOKUP(C13,TR!$B$2:$F$633,5,0),"") ->  | J13: 00:00:00 | P13: =IF(AND(L13="",M13=""),IF(OR(SUMPRODUCT(N(ISNUMBER(FIND({"s";"d";"f"},C13))))>0,G13+J13<0,AND(G13>0,J13>0,I13>"20:30"*1),AND(I13<="20:30"*1,SUM(I13,R13)>="20:31"*1)),1,""),"") ->  | Q13: =IF(OR(AND(G13>0,AND(J13=0)),OR(G13=0,AND(J13>0)),OR(G13+J13>0)),IF(R13="","",IF(#REF!+R13>="13:01"*1,1,""))) ->  | T13: 0 | U13: 0 | W13: 0,00
B14: 2018-11-11 | E14: =IFERROR(VLOOKUP(C14,TR!$B$2:$F$633,2,0),"") ->  | F14: =IFERROR(VLOOKUP(C14,TR!$B$2:$F$633,3,0),"") ->  | G14: 00:00:00 | H14: =IFERROR(VLOOKUP(C14,TR!$B$2:$F$633,4,0),"") ->  | I14: =IFERROR(VLOOKUP(C14,TR!$B$2:$F$633,5,0),"") ->  | J14: 00:00:00 | P14: =IF(AND(L14="",M14=""),IF(OR(SUMPRODUCT(N(ISNUMBER(FIND({"s";"d";"f"},C14))))>0,G14+J14<0,AND(G14>0,J14>0,I14>"20:30"*1),AND(I14<="20:30"*1,SUM(I14,R14)>="20:31"*1)),1,""),"") ->  | Q14: =IF(OR(AND(G14>0,AND(J14=0)),OR(G14=0,AND(J14>0)),OR(G14+J14>0)),IF(R14="","",IF(#REF!+R14>="13:01"*1,1,""))) ->  | T14: 0 | U14: 0 | W14: 0,00
B15: 2018-11-12 | E15: =IFERROR(VLOOKUP(C15,TR!$B$2:$F$633,2,0),"") ->  | F15: =IFERROR(VLOOKUP(C15,TR!$B$2:$F$633,3,0),"") ->  | G15: 00:00:00 | H15: =IFERROR(VLOOKUP(C15,TR!$B$2:$F$633,4,0),"") ->  | I15: =IFERROR(VLOOKUP(C15,TR!$B$2:$F$633,5,0),"") ->  | J15: 00:00:00 | P15: =IF(AND(L15="",M15=""),IF(OR(SUMPRODUCT(N(ISNUMBER(FIND({"s";"d";"f"},C15))))>0,G15+J15<0,AND(G15>0,J15>0,I15>"20:30"*1),AND(I15<="20:30"*1,SUM(I15,R15)>="20:31"*1)),1,""),"") ->  | Q15: =IF(OR(AND(G15>0,AND(J15=0)),OR(G15=0,AND(J15>0)),OR(G15+J15>0)),IF(R15="","",IF(#REF!+R15>="13:01"*1,1,""))) ->  | T15: 0 | U15: 0 | W15: 0,00
B16: 2018-11-13 | E16: =IFERROR(VLOOKUP(C16,TR!$B$2:$F$633,2,0),"") ->  | F16: =IFERROR(VLOOKUP(C16,TR!$B$2:$F$633,3,0),"") ->  | G16: 00:00:00 | H16: =IFERROR(VLOOKUP(C16,TR!$B$2:$F$633,4,0),"") ->  | I16: =IFERROR(VLOOKUP(C16,TR!$B$2:$F$633,5,0),"") ->  | J16: 00:00:00 | P16: =IF(AND(L16="",M16=""),IF(OR(SUMPRODUCT(N(ISNUMBER(FIND({"s";"d";"f"},C16))))>0,G16+J16<0,AND(G16>0,J16>0,I16>"20:30"*1),AND(I16<="20:30"*1,SUM(I16,R16)>="20:31"*1)),1,""),"") ->  | Q16: =IF(OR(AND(G16>0,AND(J16=0)),OR(G16=0,AND(J16>0)),OR(G16+J16>0)),IF(R16="","",IF(#REF!+R16>="13:01"*1,1,""))) ->  | T16: 0 | U16: 0 | W16: 0,00
B17: 2018-11-14 | E17: =IFERROR(VLOOKUP(C17,TR!$B$2:$F$633,2,0),"") ->  | F17: =IFERROR(VLOOKUP(C17,TR!$B$2:$F$633,3,0),"") ->  | G17: 00:00:00 | H17: =IFERROR(VLOOKUP(C17,TR!$B$2:$F$633,4,0),"") ->  | I17: =IFERROR(VLOOKUP(C17,TR!$B$2:$F$633,5,0),"") ->  | J17: 00:00:00 | P17: =IF(AND(L17="",M17=""),IF(OR(SUMPRODUCT(N(ISNUMBER(FIND({"s";"d";"f"},C17))))>0,G17+J17<0,AND(G17>0,J17>0,I17>"20:30"*1),AND(I17<="20:30"*1,SUM(I17,R17)>="20:31"*1)),1,""),"") ->  | Q17: =IF(OR(AND(G17>0,AND(J17=0)),OR(G17=0,AND(J17>0)),OR(G17+J17>0)),IF(R17="","",IF(#REF!+R17>="13:01"*1,1,""))) ->  | T17: 0 | U17: 0 | W17: 0,00
B18: 2018-11-15 | E18: =IFERROR(VLOOKUP(C18,TR!$B$2:$F$633,2,0),"") ->  | F18: =IFERROR(VLOOKUP(C18,TR!$B$2:$F$633,3,0),"") ->  | G18: 00:00:00 | H18: =IFERROR(VLOOKUP(C18,TR!$B$2:$F$633,4,0),"") ->  | I18: =IFERROR(VLOOKUP(C18,TR!$B$2:$F$633,5,0),"") ->  | J18: 00:00:00 | P18: =IF(AND(L18="",M18=""),IF(OR(SUMPRODUCT(N(ISNUMBER(FIND({"s";"d";"f"},C18))))>0,G18+J18<0,AND(G18>0,J18>0,I18>"20:30"*1),AND(I18<="20:30"*1,SUM(I18,R18)>="20:31"*1)),1,""),"") ->  | T18: 0 | U18: 0 | W18: 0,00
B19: 2018-11-16 | E19: =IFERROR(VLOOKUP(C19,TR!$B$2:$F$633,2,0),"") ->  | F19: =IFERROR(VLOOKUP(C19,TR!$B$2:$F$633,3,0),"") ->  | G19: 00:00:00 | H19: =IFERROR(VLOOKUP(C19,TR!$B$2:$F$633,4,0),"") ->  | I19: =IFERROR(VLOOKUP(C19,TR!$B$2:$F$633,5,0),"") ->  | J19: 00:00:00 | P19: =IF(AND(L19="",M19=""),IF(OR(SUMPRODUCT(N(ISNUMBER(FIND({"s";"d";"f"},C19))))>0,G19+J19<0,AND(G19>0,J19>0,I19>"20:30"*1),AND(I19<="20:30"*1,SUM(I19,R19)>="20:31"*1)),1,""),"") ->  | Q19: =IF(OR(AND(G19>0,AND(J19=0)),OR(G19=0,AND(J19>0)),OR(G19+J19>0)),IF(R19="","",IF(#REF!+R19>="13:01"*1,1,""))) ->  | T19: 0 | U19: 0 | W19: 0,00
B20: 2018-11-17 | E20: =IFERROR(VLOOKUP(C20,TR!$B$2:$F$633,2,0),"") ->  | F20: =IFERROR(VLOOKUP(C20,TR!$B$2:$F$633,3,0),"") ->  | G20: 00:00:00 | H20: =IFERROR(VLOOKUP(C20,TR!$B$2:$F$633,4,0),"") ->  | I20: =IFERROR(VLOOKUP(C20,TR!$B$2:$F$633,5,0),"") ->  | J20: 00:00:00 | P20: =IF(AND(L20="",M20=""),IF(OR(SUMPRODUCT(N(ISNUMBER(FIND({"s";"d";"f"},C20))))>0,G20+J20<0,AND(G20>0,J20>0,I20>"20:30"*1),AND(I20<="20:30"*1,SUM(I20,R20)>="20:31"*1)),1,""),"") ->  | Q20: =IF(OR(AND(G20>0,AND(J20=0)),OR(G20=0,AND(J20>0)),OR(G20+J20>0)),IF(R20="","",IF(#REF!+R20>="13:01"*1,1,""))) ->  | T20: 0 | U20: 0 | W20: 0,00
B21: 2018-11-18 | E21: =IFERROR(VLOOKUP(C21,TR!$B$2:$F$633,2,0),"") ->  | F21: =IFERROR(VLOOKUP(C21,TR!$B$2:$F$633,3,0),"") ->  | G21: 00:00:00 | H21: =IFERROR(VLOOKUP(C21,TR!$B$2:$F$633,4,0),"") ->  | I21: =IFERROR(VLOOKUP(C21,TR!$B$2:$F$633,5,0),"") ->  | J21: 00:00:00 | P21: =IF(AND(L21="",M21=""),IF(OR(SUMPRODUCT(N(ISNUMBER(FIND({"s";"d";"f"},C21))))>0,G21+J21<0,AND(G21>0,J21>0,I21>"20:30"*1),AND(I21<="20:30"*1,SUM(I21,R21)>="20:31"*1)),1,""),"") ->  | Q21: =IF(OR(AND(G21>0,AND(J21=0)),OR(G21=0,AND(J21>0)),OR(G21+J21>0)),IF(R21="","",IF(#REF!+R21>="13:01"*1,1,""))) ->  | T21: 0 | U21: 0 | W21: 0,00
B22: 2018-11-19 | E22: =IFERROR(VLOOKUP(C22,TR!$B$2:$F$633,2,0),"") ->  | F22: =IFERROR(VLOOKUP(C22,TR!$B$2:$F$633,3,0),"") ->  | G22: 00:00:00 | H22: =IFERROR(VLOOKUP(C22,TR!$B$2:$F$633,4,0),"") ->  | I22: =IFERROR(VLOOKUP(C22,TR!$B$2:$F$633,5,0),"") ->  | J22: 00:00:00 | P22: =IF(AND(L22="",M22=""),IF(OR(SUMPRODUCT(N(ISNUMBER(FIND({"s";"d";"f"},C22))))>0,G22+J22<0,AND(G22>0,J22>0,I22>"20:30"*1),AND(I22<="20:30"*1,SUM(I22,R22)>="20:31"*1)),1,""),"") ->  | Q22: =IF(OR(AND(G22>0,AND(J22=0)),OR(G22=0,AND(J22>0)),OR(G22+J22>0)),IF(R22="","",IF(#REF!+R22>="13:01"*1,1,""))) ->  | T22: 0 | U22: 0 | W22: 0,00
B23: 2018-11-20 | E23: =IFERROR(VLOOKUP(C23,TR!$B$2:$F$633,2,0),"") ->  | F23: =IFERROR(VLOOKUP(C23,TR!$B$2:$F$633,3,0),"") ->  | G23: 00:00:00 | H23: =IFERROR(VLOOKUP(C23,TR!$B$2:$F$633,4,0),"") ->  | I23: =IFERROR(VLOOKUP(C23,TR!$B$2:$F$633,5,0),"") ->  | J23: 00:00:00 | P23: =IF(AND(L23="",M23=""),IF(OR(SUMPRODUCT(N(ISNUMBER(FIND({"s";"d";"f"},C23))))>0,G23+J23<0,AND(G23>0,J23>0,I23>"20:30"*1),AND(I23<="20:30"*1,SUM(I23,R23)>="20:31"*1)),1,""),"") ->  | Q23: =IF(OR(AND(G23>0,AND(J23=0)),OR(G23=0,AND(J23>0)),OR(G23+J23>0)),IF(R23="","",IF(#REF!+R23>="13:01"*1,1,""))) ->  | T23: 0 | U23: 0 | W23: 0,00
B24: 2018-11-21 | E24: =IFERROR(VLOOKUP(C24,TR!$B$2:$F$633,2,0),"") ->  | F24: =IFERROR(VLOOKUP(C24,TR!$B$2:$F$633,3,0),"") ->  | G24: 00:00:00 | H24: =IFERROR(VLOOKUP(C24,TR!$B$2:$F$633,4,0),"") ->  | I24: =IFERROR(VLOOKUP(C24,TR!$B$2:$F$633,5,0),"") ->  | J24: 00:00:00 | P24: =IF(AND(L24="",M24=""),IF(OR(SUMPRODUCT(N(ISNUMBER(FIND({"s";"d";"f"},C24))))>0,G24+J24<0,AND(G24>0,J24>0,I24>"20:30"*1),AND(I24<="20:30"*1,SUM(I24,R24)>="20:31"*1)),1,""),"") ->  | Q24: =IF(OR(AND(G24>0,AND(J24=0)),OR(G24=0,AND(J24>0)),OR(G24+J24>0)),IF(R24="","",IF(#REF!+R24>="13:01"*1,1,""))) ->  | T24: 0 | U24: 0 | W24: 0,00
B25: 2018-11-22 | E25: =IFERROR(VLOOKUP(C25,TR!$B$2:$F$633,2,0),"") ->  | F25: =IFERROR(VLOOKUP(C25,TR!$B$2:$F$633,3,0),"") ->  | G25: 00:00:00 | H25: =IFERROR(VLOOKUP(C25,TR!$B$2:$F$633,4,0),"") ->  | I25: =IFERROR(VLOOKUP(C25,TR!$B$2:$F$633,5,0),"") ->  | J25: 00:00:00 | P25: =IF(AND(L25="",M25=""),IF(OR(SUMPRODUCT(N(ISNUMBER(FIND({"s";"d";"f"},C25))))>0,G25+J25<0,AND(G25>0,J25>0,I25>"20:30"*1),AND(I25<="20:30"*1,SUM(I25,R25)>="20:31"*1)),1,""),"") ->  | Q25: =IF(OR(AND(G25>0,AND(J25=0)),OR(G25=0,AND(J25>0)),OR(G25+J25>0)),IF(R25="","",IF(#REF!+R25>="13:01"*1,1,""))) ->  | T25: 0 | U25: 0 | W25: 0,00
B26: 2018-11-23 | E26: =IFERROR(VLOOKUP(C26,TR!$B$2:$F$633,2,0),"") ->  | F26: =IFERROR(VLOOKUP(C26,TR!$B$2:$F$633,3,0),"") ->  | G26: 00:00:00 | H26: =IFERROR(VLOOKUP(C26,TR!$B$2:$F$633,4,0),"") ->  | I26: =IFERROR(VLOOKUP(C26,TR!$B$2:$F$633,5,0),"") ->  | J26: 00:00:00 | P26: =IF(AND(L26="",M26=""),IF(OR(SUMPRODUCT(N(ISNUMBER(FIND({"s";"d";"f"},C26))))>0,G26+J26<0,AND(G26>0,J26>0,I26>"20:30"*1),AND(I26<="20:30"*1,SUM(I26,R26)>="20:31"*1)),1,""),"") ->  | Q26: =IF(OR(AND(G26>0,AND(J26=0)),OR(G26=0,AND(J26>0)),OR(G26+J26>0)),IF(R26="","",IF(#REF!+R26>="13:01"*1,1,""))) ->  | T26: 0 | U26: 0 | W26: 0,00
B27: 2018-11-24 | E27: =IFERROR(VLOOKUP(C27,TR!$B$2:$F$633,2,0),"") ->  | F27: =IFERROR(VLOOKUP(C27,TR!$B$2:$F$633,3,0),"") ->  | G27: 00:00:00 | H27: =IFERROR(VLOOKUP(C27,TR!$B$2:$F$633,4,0),"") ->  | I27: =IFERROR(VLOOKUP(C27,TR!$B$2:$F$633,5,0),"") ->  | J27: 00:00:00 | P27: =IF(AND(L27="",M27=""),IF(OR(SUMPRODUCT(N(ISNUMBER(FIND({"s";"d";"f"},C27))))>0,G27+J27<0,AND(G27>0,J27>0,I27>"20:30"*1),AND(I27<="20:30"*1,SUM(I27,R27)>="20:31"*1)),1,""),"") ->  | Q27: =IF(OR(AND(G27>0,AND(J27=0)),OR(G27=0,AND(J27>0)),OR(G27+J27>0)),IF(R27="","",IF(#REF!+R27>="13:01"*1,1,""))) ->  | T27: 0 | U27: 0 | W27: 0,00
B28: 2018-11-25 | E28: =IFERROR(VLOOKUP(C28,TR!$B$2:$F$633,2,0),"") ->  | F28: =IFERROR(VLOOKUP(C28,TR!$B$2:$F$633,3,0),"") ->  | G28: 00:00:00 | H28: =IFERROR(VLOOKUP(C28,TR!$B$2:$F$633,4,0),"") ->  | I28: =IFERROR(VLOOKUP(C28,TR!$B$2:$F$633,5,0),"") ->  | J28: 00:00:00 | P28: =IF(AND(L28="",M28=""),IF(OR(SUMPRODUCT(N(ISNUMBER(FIND({"s";"d";"f"},C28))))>0,G28+J28<0,AND(G28>0,J28>0,I28>"20:30"*1),AND(I28<="20:30"*1,SUM(I28,R28)>="20:31"*1)),1,""),"") ->  | Q28: =IF(OR(AND(G28>0,AND(J28=0)),OR(G28=0,AND(J28>0)),OR(G28+J28>0)),IF(R28="","",IF(#REF!+R28>="13:01"*1,1,""))) ->  | T28: 0 | U28: 0 | W28: 0,00
B29: 2018-11-26 | E29: =IFERROR(VLOOKUP(C29,TR!$B$2:$F$633,2,0),"") ->  | F29: =IFERROR(VLOOKUP(C29,TR!$B$2:$F$633,3,0),"") ->  | G29: 00:00:00 | H29: =IFERROR(VLOOKUP(C29,TR!$B$2:$F$633,4,0),"") ->  | I29: =IFERROR(VLOOKUP(C29,TR!$B$2:$F$633,5,0),"") ->  | J29: 00:00:00 | P29: =IF(AND(L29="",M29=""),IF(OR(SUMPRODUCT(N(ISNUMBER(FIND({"s";"d";"f"},C29))))>0,G29+J29<0,AND(G29>0,J29>0,I29>"20:30"*1),AND(I29<="20:30"*1,SUM(I29,R29)>="20:31"*1)),1,""),"") ->  | Q29: =IF(OR(AND(G29>0,AND(J29=0)),OR(G29=0,AND(J29>0)),OR(G29+J29>0)),IF(R29="","",IF(#REF!+R29>="13:01"*1,1,""))) ->  | T29: 0 | U29: 0 | W29: 0,00
B30: 2018-11-27 | E30: =IFERROR(VLOOKUP(C30,TR!$B$2:$F$633,2,0),"") ->  | F30: =IFERROR(VLOOKUP(C30,TR!$B$2:$F$633,3,0),"") ->  | G30: 00:00:00 | H30: =IFERROR(VLOOKUP(C30,TR!$B$2:$F$633,4,0),"") ->  | I30: =IFERROR(VLOOKUP(C30,TR!$B$2:$F$633,5,0),"") ->  | J30: 00:00:00 | P30: =IF(AND(L30="",M30=""),IF(OR(SUMPRODUCT(N(ISNUMBER(FIND({"s";"d";"f"},C30))))>0,G30+J30<0,AND(G30>0,J30>0,I30>"20:30"*1),AND(I30<="20:30"*1,SUM(I30,R30)>="20:31"*1)),1,""),"") ->  | Q30: =IF(OR(AND(G30>0,AND(J30=0)),OR(G30=0,AND(J30>0)),OR(G30+J30>0)),IF(R30="","",IF(#REF!+R30>="13:01"*1,1,""))) ->  | T30: 0 | U30: 0 | W30: 0,00
B31: 2018-11-28 | E31: =IFERROR(VLOOKUP(C31,TR!$B$2:$F$633,2,0),"") ->  | F31: =IFERROR(VLOOKUP(C31,TR!$B$2:$F$633,3,0),"") ->  | G31: 00:00:00 | H31: =IFERROR(VLOOKUP(C31,TR!$B$2:$F$633,4,0),"") ->  | I31: =IFERROR(VLOOKUP(C31,TR!$B$2:$F$633,5,0),"") ->  | J31: 00:00:00 | P31: =IF(AND(L31="",M31=""),IF(OR(SUMPRODUCT(N(ISNUMBER(FIND({"s";"d";"f"},C31))))>0,G31+J31<0,AND(G31>0,J31>0,I31>"20:30"*1),AND(I31<="20:30"*1,SUM(I31,R31)>="20:31"*1)),1,""),"") ->  | Q31: =IF(OR(AND(G31>0,AND(J31=0)),OR(G31=0,AND(J31>0)),OR(G31+J31>0)),IF(R31="","",IF(#REF!+R31>="13:01"*1,1,""))) ->  | T31: 0 | U31: 0 | W31: 0,00
B32: 2018-11-29 | E32: =IFERROR(VLOOKUP(C32,TR!$B$2:$F$633,2,0),"") ->  | F32: =IFERROR(VLOOKUP(C32,TR!$B$2:$F$633,3,0),"") ->  | G32: 00:00:00 | H32: =IFERROR(VLOOKUP(C32,TR!$B$2:$F$633,4,0),"") ->  | I32: =IFERROR(VLOOKUP(C32,TR!$B$2:$F$633,5,0),"") ->  | J32: 00:00:00 | P32: =IF(AND(L32="",M32=""),IF(OR(SUMPRODUCT(N(ISNUMBER(FIND({"s";"d";"f"},C32))))>0,G32+J32<0,AND(G32>0,J32>0,I32>"20:30"*1),AND(I32<="20:30"*1,SUM(I32,R32)>="20:31"*1)),1,""),"") ->  | Q32: =IF(OR(AND(G32>0,AND(J32=0)),OR(G32=0,AND(J32>0)),OR(G32+J32>0)),IF(R32="","",IF(#REF!+R32>="13:01"*1,1,""))) ->  | T32: 0 | U32: 0 | W32: 0,00
B33: 2018-11-30 | E33: =IFERROR(VLOOKUP(C33,TR!$B$2:$F$633,2,0),"") ->  | F33: =IFERROR(VLOOKUP(C33,TR!$B$2:$F$633,3,0),"") ->  | G33: 00:00:00 | H33: =IFERROR(VLOOKUP(C33,TR!$B$2:$F$633,4,0),"") ->  | I33: =IFERROR(VLOOKUP(C33,TR!$B$2:$F$633,5,0),"") ->  | J33: 00:00:00 | P33: =IF(AND(L33="",M33=""),IF(OR(SUMPRODUCT(N(ISNUMBER(FIND({"s";"d";"f"},C33))))>0,G33+J33<0,AND(G33>0,J33>0,I33>"20:30"*1),AND(I33<="20:30"*1,SUM(I33,R33)>="20:31"*1)),1,""),"") ->  | Q33: =IF(OR(AND(G33>0,AND(J33=0)),OR(G33=0,AND(J33>0)),OR(G33+J33>0)),IF(R33="","",IF(#REF!+R33>="13:01"*1,1,""))) ->  | T33: 0 | U33: 0 | W33: 0,00
E34: =IFERROR(VLOOKUP(C34,TR!$B$2:$F$633,2,0),"") ->  | F34: =IFERROR(VLOOKUP(C34,TR!$B$2:$F$633,3,0),"") ->  | H34: =IFERROR(VLOOKUP(C34,TR!$B$2:$F$633,4,0),"") ->  | I34: =IFERROR(VLOOKUP(C34,TR!$B$2:$F$633,5,0),"") ->  | O34: =IF(AND(LEFT(C34,1)="f",AND(O33<>1)),1,IF(OR(ISNUMBER(FIND("FériéCC",C34)),ISNUMBER(FIND("FériéCH",C34)),ISNUMBER(FIND("f",C34))),1,"")) ->  | P34: =IF(AND(L34="",M34=""),IF(OR(SUMPRODUCT(N(ISNUMBER(FIND({"s";"d";"f"},C34))))>0,G34+J34<0,AND(G34>0,J34>0,I34>"20:30"*1),AND(I34<="20:30"*1,SUM(I34,R34)>="20:31"*1)),1,""),"") ->  | Q34: =IF(OR(AND(G34>0,AND(J34=0)),OR(G34=0,AND(J34>0)),OR(G34+J34>0)),IF(R34="","",IF(#REF!+R34>="13:01"*1,1,""))) ->  | T34: 0 | U34: 0 | W34: 0,00
B36: Jours travaillés | C36: =(COUNTIF(Octobre!C24:C34,"<>")+COUNTIF(Novembre!C4:C23,"<>"))-(COUNTIF(Octobre!C24:C34,"CC*")+COUNTIF(Novembre!C4:C23,"CC*"))-(COUNTIF(Octobre!C24:C34,"CH*")+COUNTIF(Novembre!C4:C23,"CH*"))-(COUNTIF(Octobre!C24:C34,"RT*")+COUNTIF(Novembre!C4:C23,"RT*"))-(COUNTIF(Octobre!C24:C34,"Férié*")+COUNTIF(Novembre!C4:C23,"Férié*"))-(COUNTIF(Octobre!C24:C34,"Mal*")+COUNTIF(Novembre!C4:C23,"Mal*"))-(COUNTIF(Octobre!C24:C34,"CP*")+COUNTIF(Novembre!C4:C23,"CP*")) -> 0 | I36: Du 21 au 20 | K36: =SUM(Octobre!$K$24:$K$34,K4:K23) -> 0 | L36: =SUM(Octobre!$L$24:$L$34,L4:L23) -> 0 | M36: =SUM(Octobre!$M$24:$M$34,M4:M23) -> 0 | N36: =SUM(Octobre!$N$24:$N$34,N4:N23) -> 0 | O36: =SUM(Octobre!$O$24:$O$34,O4:O23) -> 0 | P36: =SUM(Octobre!$P$24:$P$34,P4:P23) -> 0 | Q36: =SUM(Octobre!$Q$24:$Q$34,Q4:Q23) -> 0 | R36: =SUM(Octobre!$R$24:$R$34,R4:R23) -> 0 | T36: =SUM(Octobre!T24:T34)+SUM(Novembre!T4:T23) -> 0 | U36: =SUM(U4:U34) -> 0 | V36: =SUM(V4:V34) -> 0
B37: CP | C37: =(COUNTIF(Octobre!C24:C34,"CP")+COUNTIF(Novembre!C4:C23,"CP")) -> 0 | K37: =(I39*2)*K36 -> 0 | L37: =Recap!H35*L36 -> 0 | M37: =Recap!H35*M36 -> 0 | N37: =(I39*5)*N36 -> 0 | O37: =(Recap!H33)*O36 -> 0 | P37: =7.5*P36 -> 0 | Q37: =(I39*1.5)*Q36 -> 0 | R37: =R36*24 -> 0
B38: CH | C38: =(COUNTIF(Octobre!C24:C34,"CH")+COUNTIF(Novembre!C4:C23,"CH")) -> 0 | I38: VP | T38: Horaire mensuel | V38: 6.175 | W38: =V38*24 -> 148.2
B39: RT | C39: =(COUNTIF(Octobre!C24:C34,"RT")+COUNTIF(Novembre!C4:C23,"RT")) -> 0 | I39: 8.8528
B40: CC | C40: =(COUNTIF(Octobre!C24:C34,"CC")+COUNTIF(Novembre!C4:C23,"CC")) -> 0 | T40: Différence | V40: =IF(V38>T36,"-","")&TEXT(ABS(T36-V38),"[h]:mm") -> -148:12 | W40: =(T36-V38)*24 -> -148.2
B41: Férié | C41: =(COUNTIF(Octobre!C24:C34,"Férié")+COUNTIF(Novembre!C4:C23,"Férié")) -> 0
B42: Férié CC-CH-RT | C42: =(COUNTIF(Octobre!C24:C34,"FériéCC")+COUNTIF(Novembre!C4:C23,"FériéCC")+(COUNTIF(Octobre!C24:C34,"FériéCH")+COUNTIF(Novembre!C4:C23,"FériéCH")+(COUNTIF(Octobre!C24:C34,"FériéRT")+COUNTIF(Novembre!C4:C23,"FériéRT")))) -> 0 | R42: Heures réelles | T42: =SUM(T4:T34) -> 0
T43: =T42*24 -> 0 | W43: =(T42-V38)*24 -> -148.2
F45: NOTES

Sheet Décembre
B1: DÉCEMBRE
T2: TOTAL
B3: Date | C3: Services | D3: Obs. | E3: MATIN | G3: Temps | H3: APRES MIDI | J3: Temps | K3: Prime nuit | L3: PJ1 | M3: PJ2 | N3: Dimanche | O3: Férié | P3: ChècDej | Q3: PrimAmp | R3: H Supp | S3: Ampli | T3: Heures | U3: Centièmes | V3: Kéolis | W3: Écart
B4: 2018-12-01 | E4: =IFERROR(VLOOKUP(C4,TR!$B$2:$F$633,2,0),"") ->  | F4: =IFERROR(VLOOKUP(C4,TR!$B$2:$F$633,3,0),"") ->  | G4: =IF(ISERROR(F4-E4),0,F4-E4) -> 00:00:00 | H4: =IFERROR(VLOOKUP(C4,TR!$B$2:$F$633,4,0),"") ->  | I4: =IFERROR(VLOOKUP(C4,TR!$B$2:$F$633,5,0),"") ->  | J4: =IF(ISERROR(I4-H4),0,(I4-H4)) -> 00:00:00 | K4: =IF(COUNTA(E4:F4,H4:I4)=5,1,IF(AND(E4<"5:00"*1,E4>"2:00"*1),1,IF(AND(I4>="22:01"*1,I4<="26:01"*1),1,IF(AND(I4<="22:00"*1,SUM(I4,R4)>="22:01"*1),1,"")))) ->  | L4: =IF(AND(F4>="13:15"*1,H4<""),1,IF(AND(H4>="11:00"*1,H4<="12:15"*1),1,IF(AND(F4<="13:15"*1,SUM(F4,R4)>="13:15"*1),1,""))) ->  | M4: =IF(AND(I4>="19:30"*1,1,I4>"21:30"*1,C4<>""),1,IF(AND(I4<="21:30"*1,SUM(I4,R4)>="21:30"*1),1,"")) ->  | N4: =IF(AND(LEFT(C4,1)="d",AND(Novembre!N33<>1)),1,IF(AND(LEFT(C4,1)="s",I4>="24:01"*1),1,IF(AND(I4<>"",I4<="23:59"*1,SUM(I4,R4)>="24:01"*1),1,""))) ->  | O4: =IF(AND(I4>"24:00"*1,ISNUMBER(FIND("f",C5))),1,IF(AND(OR(ISNUMBER(FIND("FériéCC",C4)),ISNUMBER(FIND("FériéCH",C4)),ISNUMBER(FIND("f",C4)))),1,"")) ->  | P4: =IF(AND(L4="",M4=""),IF(OR(SUMPRODUCT(N(ISNUMBER(FIND({"s";"d";"f"},C4))))>0,G4+J4<0,AND(G4>0,J4>0,I4>"20:30"*1),AND(I4<="20:30"*1,SUM(I4,R4)>="20:31"*1)),1,""),"") ->  | Q4: =IF(OR(AND(G4>0,AND(J4=0)),OR(G4=0,AND(J4>0)),OR(G4+J4>0)),IF(S4="","",IF(R4+S4>="13:01"*1,1,""))) ->  | S4: =IF(G4=0,IF(J4=0,"",I4-H4),IF(J4=0,F4-E4,I4-E4)) ->  | T4: =IF(ISERROR((F4-E4)+(I4-H4)),0,(F4-E4)+(I4-H4)) -> 0 | U4: =T4*24 -> 0 | W4: =IF(U4-V4=0,"0,00",U4-V4) -> 0,00
B5: 2018-12-02 | E5: =IFERROR(VLOOKUP(C5,TR!$B$2:$F$633,2,0),"") ->  | F5: =IFERROR(VLOOKUP(C5,TR!$B$2:$F$633,3,0),"") ->  | G5: =IF(ISERROR(F5-E5),0,F5-E5) -> 00:00:00 | H5: =IFERROR(VLOOKUP(C5,TR!$B$2:$F$633,4,0),"") ->  | I5: =IFERROR(VLOOKUP(C5,TR!$B$2:$F$633,5,0),"") ->  | J5: =IF(ISERROR(I5-H5),0,(I5-H5)) -> 00:00:00 | N5: =IF(AND(LEFT(C5,1)="d",AND(N4<>1)),1,IF(AND(LEFT(C5,1)="s",I5>="24:01"*1),1,IF(AND(I5<>"",I5<="23:59"*1,SUM(I5,R5)>="24:01"*1),1,""))) ->  | O5: =IF(AND(I5>"24:00"*1,ISNUMBER(FIND("f",C6))),1,IF(AND(OR(ISNUMBER(FIND("FériéCC",C5)),ISNUMBER(FIND("FériéCH",C5)),ISNUMBER(FIND("f",C5)))),1,"")) ->  | P5: =IF(AND(L5="",M5=""),IF(OR(SUMPRODUCT(N(ISNUMBER(FIND({"s";"d";"f"},C5))))>0,G5+J5<0,AND(G5>0,J5>0,I5>"20:30"*1),AND(I5<="20:30"*1,SUM(I5,R5)>="20:31"*1)),1,""),"") ->  | Q5: =IF(OR(AND(G5>0,AND(J5=0)),OR(G5=0,AND(J5>0)),OR(G5+J5>0)),IF(S5="","",IF(R5+S5>="13:01"*1,1,""))) ->  | T5: 0 | U5: =T5*24 -> 0 | W5: =IF(U5-V5=0,"0,00",U5-V5) -> 0,00
B6: 2018-12-03 | E6: =IFERROR(VLOOKUP(C6,TR!$B$2:$F$633,2,0),"") ->  | F6: =IFERROR(VLOOKUP(C6,TR!$B$2:$F$633,3,0),"") ->  | G6: 00:00:00 | H6: =IFERROR(VLOOKUP(C6,TR!$B$2:$F$633,4,0),"") ->  | I6: =IFERROR(VLOOKUP(C6,TR!$B$2:$F$633,5,0),"") ->  | J6: 00:00:00 | P6: =IF(AND(L6="",M6=""),IF(OR(SUMPRODUCT(N(ISNUMBER(FIND({"s";"d";"f"},C6))))>0,G6+J6<0,AND(G6>0,J6>0,I6>"20:30"*1),AND(I6<="20:30"*1,SUM(I6,R6)>="20:31"*1)),1,""),"") ->  | T6: 0 | U6: =T6*24 -> 0 | W6: 0,00
B7: 2018-12-04 | E7: =IFERROR(VLOOKUP(C7,TR!$B$2:$F$633,2,0),"") ->  | F7: =IFERROR(VLOOKUP(C7,TR!$B$2:$F$633,3,0),"") ->  | G7: 00:00:00 | H7: =IFERROR(VLOOKUP(C7,TR!$B$2:$F$633,4,0),"") ->  | I7: =IFERROR(VLOOKUP(C7,TR!$B$2:$F$633,5,0),"") ->  | J7: 00:00:00 | P7: =IF(AND(L7="",M7=""),IF(OR(SUMPRODUCT(N(ISNUMBER(FIND({"s";"d";"f"},C7))))>0,G7+J7<0,AND(G7>0,J7>0,I7>"20:30"*1),AND(I7<="20:30"*1,SUM(I7,R7)>="20:31"*1)),1,""),"") ->  | T7: 0 | U7: =T7*24 -> 0 | W7: 0,00
B8: 2018-12-05 | E8: =IFERROR(VLOOKUP(C8,TR!$B$2:$F$633,2,0),"") ->  | F8: =IFERROR(VLOOKUP(C8,TR!$B$2:$F$633,3,0),"") ->  | G8: 00:00:00 | H8: =IFERROR(VLOOKUP(C8,TR!$B$2:$F$633,4,0),"") ->  | I8: =IFERROR(VLOOKUP(C8,TR!$B$2:$F$633,5,0),"") ->  | J8: 00:00:00 | P8: =IF(AND(L8="",M8=""),IF(OR(SUMPRODUCT(N(ISNUMBER(FIND({"s";"d";"f"},C8))))>0,G8+J8<0,AND(G8>0,J8>0,I8>"20:30"*1),AND(I8<="20:30"*1,SUM(I8,R8)>="20:31"*1)),1,""),"") ->  | T8: 0 | U8: 0 | W8: 0,00
B9: 2018-12-06 | E9: =IFERROR(VLOOKUP(C9,TR!$B$2:$F$633,2,0),"") ->  | F9: =IFERROR(VLOOKUP(C9,TR!$B$2:$F$633,3,0),"") ->  | G9: 00:00:00 | H9: =IFERROR(VLOOKUP(C9,TR!$B$2:$F$633,4,0),"") ->  | I9: =IFERROR(VLOOKUP(C9,TR!$B$2:$F$633,5,0),"") ->  | J9: 00:00:00 | P9: =IF(AND(L9="",M9=""),IF(OR(SUMPRODUCT(N(ISNUMBER(FIND({"s";"d";"f"},C9))))>0,G9+J9<0,AND(G9>0,J9>0,I9>"20:30"*1),AND(I9<="20:30"*1,SUM(I9,R9)>="20:31"*1)),1,""),"") ->  | T9: 0 | U9: 0 | W9: 0,00
B10: 2018-12-07 | E10: =IFERROR(VLOOKUP(C10,TR!$B$2:$F$633,2,0),"") ->  | F10: =IFERROR(VLOOKUP(C10,TR!$B$2:$F$633,3,0),"") ->  | G10: 00:00:00 | H10: =IFERROR(VLOOKUP(C10,TR!$B$2:$F$633,4,0),"") ->  | I10: =IFERROR(VLOOKUP(C10,TR!$B$2:$F$633,5,0),"") ->  | J10: 00:00:00 | P10: =IF(AND(L10="",M10=""),IF(OR(SUMPRODUCT(N(ISNUMBER(FIND({"s";"d";"f"},C10))))>0,G10+J10<0,AND(G10>0,J10>0,I10>"20:30"*1),AND(I10<="20:30"*1,SUM(I10,R10)>="20:31"*1)),1,""),"") ->  | T10: 0 | U10: 0 | W10: 0,00
B11: 2018-12-08 | E11: =IFERROR(VLOOKUP(C11,TR!$B$2:$F$633,2,0),"") ->  | F11: =IFERROR(VLOOKUP(C11,TR!$B$2:$F$633,3,0),"") ->  | G11: 00:00:00 | H11: =IFERROR(VLOOKUP(C11,TR!$B$2:$F$633,4,0),"") ->  | I11: =IFERROR(VLOOKUP(C11,TR!$B$2:$F$633,5,0),"") ->  | J11: 00:00:00 | P11: =IF(AND(L11="",M11=""),IF(OR(SUMPRODUCT(N(ISNUMBER(FIND({"s";"d";"f"},C11))))>0,G11+J11<0,AND(G11>0,J11>0,I11>"20:30"*1),AND(I11<="20:30"*1,SUM(I11,R11)>="20:31"*1)),1,""),"") ->  | T11: 0 | U11: 0 | W11: 0,00
B12: 2018-12-09 | E12: =IFERROR(VLOOKUP(C12,TR!$B$2:$F$633,2,0),"") ->  | F12: =IFERROR(VLOOKUP(C12,TR!$B$2:$F$633,3,0),"") ->  | G12: 00:00:00 | H12: =IFERROR(VLOOKUP(C12,TR!$B$2:$F$633,4,0),"") ->  | I12: =IFERROR(VLOOKUP(C12,TR!$B$2:$F$633,5,0),"") ->  | J12: 00:00:00 | P12: =IF(AND(L12="",M12=""),IF(OR(SUMPRODUCT(N(ISNUMBER(FIND({"s";"d";"f"},C12))))>0,G12+J12<0,AND(G12>0,J12>0,I12>"20:30"*1),AND(I12<="20:30"*1,SUM(I12,R12)>="20:31"*1)),1,""),"") ->  | T12: 0 | U12: 0 | W12: 0,00
B13: 2018-12-10 | E13: =IFERROR(VLOOKUP(C13,TR!$B$2:$F$633,2,0),"") ->  | F13: =IFERROR(VLOOKUP(C13,TR!$B$2:$F$633,3,0),"") ->  | G13: 00:00:00 | H13: =IFERROR(VLOOKUP(C13,TR!$B$2:$F$633,4,0),"") ->  | I13: =IFERROR(VLOOKUP(C13,TR!$B$2:$F$633,5,0),"") ->  | J13: 00:00:00 | P13: =IF(AND(L13="",M13=""),IF(OR(SUMPRODUCT(N(ISNUMBER(FIND({"s";"d";"f"},C13))))>0,G13+J13<0,AND(G13>0,J13>0,I13>"20:30"*1),AND(I13<="20:30"*1,SUM(I13,R13)>="20:31"*1)),1,""),"") ->  | T13: 0 | U13: 0 | W13: 0,00
B14: 2018-12-11 | E14: =IFERROR(VLOOKUP(C14,TR!$B$2:$F$633,2,0),"") ->  | F14: =IFERROR(VLOOKUP(C14,TR!$B$2:$F$633,3,0),"") ->  | G14: 00:00:00 | H14: =IFERROR(VLOOKUP(C14,TR!$B$2:$F$633,4,0),"") ->  | I14: =IFERROR(VLOOKUP(C14,TR!$B$2:$F$633,5,0),"") ->  | J14: 00:00:00 | P14: =IF(AND(L14="",M14=""),IF(OR(SUMPRODUCT(N(ISNUMBER(FIND({"s";"d";"f"},C14))))>0,G14+J14<0,AND(G14>0,J14>0,I14>"20:30"*1),AND(I14<="20:30"*1,SUM(I14,R14)>="20:31"*1)),1,""),"") ->  | T14: 0 | U14: 0 | W14: 0,00
B15: 2018-12-12 | E15: =IFERROR(VLOOKUP(C15,TR!$B$2:$F$633,2,0),"") ->  | F15: =IFERROR(VLOOKUP(C15,TR!$B$2:$F$633,3,0),"") ->  | G15: 00:00:00 | H15: =IFERROR(VLOOKUP(C15,TR!$B$2:$F$633,4,0),"") ->  | I15: =IFERROR(VLOOKUP(C15,TR!$B$2:$F$633,5,0),"") ->  | J15: 00:00:00 | P15: =IF(AND(L15="",M15=""),IF(OR(SUMPRODUCT(N(ISNUMBER(FIND({"s";"d";"f"},C15))))>0,G15+J15<0,AND(G15>0,J15>0,I15>"20:30"*1),AND(I15<="20:30"*1,SUM(I15,R15)>="20:31"*1)),1,""),"") ->  | T15: 0 | U15: 0 | W15: 0,00
B16: 2018-12-13 | E16: =IFERROR(VLOOKUP(C16,TR!$B$2:$F$633,2,0),"") ->  | F16: =IFERROR(VLOOKUP(C16,TR!$B$2:$F$633,3,0),"") ->  | G16: 00:00:00 | H16: =IFERROR(VLOOKUP(C16,TR!$B$2:$F$633,4,0),"") ->  | I16: =IFERROR(VLOOKUP(C16,TR!$B$2:$F$633,5,0),"") ->  | J16: 00:00:00 | P16: =IF(AND(L16="",M16=""),IF(OR(SUMPRODUCT(N(ISNUMBER(FIND({"s";"d";"f"},C16))))>0,G16+J16<0,AND(G16>0,J16>0,I16>"20:30"*1),AND(I16<="20:30"*1,SUM(I16,R16)>="20:31"*1)),1,""),"") ->  | T16: 0 | U16: 0 | W16: 0,00
B17: 2018-12-14 | E17: =IFERROR(VLOOKUP(C17,TR!$B$2:$F$633,2,0),"") ->  | F17: =IFERROR(VLOOKUP(C17,TR!$B$2:$F$633,3,0),"") ->  | G17: 00:00:00 | H17: =IFERROR(VLOOKUP(C17,TR!$B$2:$F$633,4,0),"") ->  | I17: =IFERROR(VLOOKUP(C17,TR!$B$2:$F$633,5,0),"") ->  | J17: 00:00:00 | P17: =IF(AND(L17="",M17=""),IF(OR(SUMPRODUCT(N(ISNUMBER(FIND({"s";"d";"f"},C17))))>0,G17+J17<0,AND(G17>0,J17>0,I17>"20:30"*1),AND(I17<="20:30"*1,SUM(I17,R17)>="20:31"*1)),1,""),"") ->  | T17: 0 | U17: 0 | W17: 0,00
B18: 2018-12-15 | E18: =IFERROR(VLOOKUP(C18,TR!$B$2:$F$633,2,0),"") ->  | F18: =IFERROR(VLOOKUP(C18,TR!$B$2:$F$633,3,0),"") ->  | G18: 00:00:00 | H18: =IFERROR(VLOOKUP(C18,TR!$B$2:$F$633,4,0),"") ->  | I18: =IFERROR(VLOOKUP(C18,TR!$B$2:$F$633,5,0),"") ->  | J18: 00:00:00 | P18: =IF(AND(L18="",M18=""),IF(OR(SUMPRODUCT(N(ISNUMBER(FIND({"s";"d";"f"},C18))))>0,G18+J18<0,AND(G18>0,J18>0,I18>"20:30"*1),AND(I18<="20:30"*1,SUM(I18,R18)>="20:31"*1)),1,""),"") ->  | T18: 0 | U18: 0 | W18: 0,00
B19: 2018-12-16 | E19: =IFERROR(VLOOKUP(C19,TR!$B$2:$F$633,2,0),"") ->  | F19: =IFERROR(VLOOKUP(C19,TR!$B$2:$F$633,3,0),"") ->  | G19: 00:00:00 | H19: =IFERROR(VLOOKUP(C19,TR!$B$2:$F$633,4,0),"") ->  | I19: =IFERROR(VLOOKUP(C19,TR!$B$2:$F$633,5,0),"") ->  | J19: 00:00:00 | P19: =IF(AND(L19="",M19=""),IF(OR(SUMPRODUCT(N(ISNUMBER(FIND({"s";"d";"f"},C19))))>0,G19+J19<0,AND(G19>0,J19>0,I19>"20:30"*1),AND(I19<="20:30"*1,SUM(I19,R19)>="20:31"*1)),1,""),"") ->  | T19: 0 | U19: 0 | W19: 0,00
B20: 2018-12-17 | E20: =IFERROR(VLOOKUP(C20,TR!$B$2:$F$633,2,0),"") ->  | F20: =IFERROR(VLOOKUP(C20,TR!$B$2:$F$633,3,0),"") ->  | G20: 00:00:00 | H20: =IFERROR(VLOOKUP(C20,TR!$B$2:$F$633,4,0),"") ->  | I20: =IFERROR(VLOOKUP(C20,TR!$B$2:$F$633,5,0),"") ->  | J20: 00:00:00 | P20: =IF(AND(L20="",M20=""),IF(OR(SUMPRODUCT(N(ISNUMBER(FIND({"s";"d";"f"},C20))))>0,G20+J20<0,AND(G20>0,J20>0,I20>"20:30"*1),AND(I20<="20:30"*1,SUM(I20,R20)>="20:31"*1)),1,""),"") ->  | T20: 0 | U20: 0 | W20: 0,00
B21: 2018-12-18 | E21: =IFERROR(VLOOKUP(C21,TR!$B$2:$F$633,2,0),"") ->  | F21: =IFERROR(VLOOKUP(C21,TR!$B$2:$F$633,3,0),"") ->  | G21: 00:00:00 | H21: =IFERROR(VLOOKUP(C21,TR!$B$2:$F$633,4,0),"") ->  | I21: =IFERROR(VLOOKUP(C21,TR!$B$2:$F$633,5,0),"") ->  | J21: 00:00:00 | P21: =IF(AND(L21="",M21=""),IF(OR(SUMPRODUCT(N(ISNUMBER(FIND({"s";"d";"f"},C21))))>0,G21+J21<0,AND(G21>0,J21>0,I21>"20:30"*1),AND(I21<="20:30"*1,SUM(I21,R21)>="20:31"*1)),1,""),"") ->  | T21: 0 | U21: 0 | W21: 0,00
B22: 2018-12-19 | E22: =IFERROR(VLOOKUP(C22,TR!$B$2:$F$633,2,0),"") ->  | F22: =IFERROR(VLOOKUP(C22,TR!$B$2:$F$633,3,0),"") ->  | G22: 00:00:00 | H22: =IFERROR(VLOOKUP(C22,TR!$B$2:$F$633,4,0),"") ->  | I22: =IFERROR(VLOOKUP(C22,TR!$B$2:$F$633,5,0),"") ->  | J22: 00:00:00 | P22: =IF(AND(L22="",M22=""),IF(OR(SUMPRODUCT(N(ISNUMBER(FIND({"s";"d";"f"},C22))))>0,G22+J22<0,AND(G22>0,J22>0,I22>"20:30"*1),AND(I22<="20:30"*1,SUM(I22,R22)>="20:31"*1)),1,""),"") ->  | T22: 0 | U22: 0 | W22: 0,00
B23: 2018-12-20 | E23: =IFERROR(VLOOKUP(C23,TR!$B$2:$F$633,2,0),"") ->  | F23: =IFERROR(VLOOKUP(C23,TR!$B$2:$F$633,3,0),"") ->  | G23: 00:00:00 | H23: =IFERROR(VLOOKUP(C23,TR!$B$2:$F$633,4,0),"") ->  | I23: =IFERROR(VLOOKUP(C23,TR!$B$2:$F$633,5,0),"") ->  | J23: 00:00:00 | P23: =IF(AND(L23="",M23=""),IF(OR(SUMPRODUCT(N(ISNUMBER(FIND({"s";"d";"f"},C23))))>0,G23+J23<0,AND(G23>0,J23>0,I23>"20:30"*1),AND(I23<="20:30"*1,SUM(I23,R23)>="20:31"*1)),1,""),"") ->  | T23: 0 | U23: 0 | W23: 0,00
B24: 2018-12-21 | E24: =IFERROR(VLOOKUP(C24,TR!$B$2:$F$633,2,0),"") ->  | F24: =IFERROR(VLOOKUP(C24,TR!$B$2:$F$633,3,0),"") ->  | G24: 00:00:00 | H24: =IFERROR(VLOOKUP(C24,TR!$B$2:$F$633,4,0),"") ->  | I24: =IFERROR(VLOOKUP(C24,TR!$B$2:$F$633,5,0),"") ->  | J24: 00:00:00 | P24: =IF(AND(L24="",M24=""),IF(OR(SUMPRODUCT(N(ISNUMBER(FIND({"s";"d";"f"},C24))))>0,G24+J24<0,AND(G24>0,J24>0,I24>"20:30"*1),AND(I24<="20:30"*1,SUM(I24,R24)>="20:31"*1)),1,""),"") ->  | T24: 0 | U24: 0 | W24: 0,00
B25: 2018-12-22 | E25: =IFERROR(VLOOKUP(C25,TR!$B$2:$F$633,2,0),"") ->  | F25: =IFERROR(VLOOKUP(C25,TR!$B$2:$F$633,3,0),"") ->  | G25: 00:00:00 | H25: =IFERROR(VLOOKUP(C25,TR!$B$2:$F$633,4,0),"") ->  | I25: =IFERROR(VLOOKUP(C25,TR!$B$2:$F$633,5,0),"") ->  | J25: 00:00:00 | P25: =IF(AND(L25="",M25=""),IF(OR(SUMPRODUCT(N(ISNUMBER(FIND({"s";"d";"f"},C25))))>0,G25+J25<0,AND(G25>0,J25>0,I25>"20:30"*1),AND(I25<="20:30"*1,SUM(I25,R25)>="20:31"*1)),1,""),"") ->  | T25: 0 | U25: 0 | W25: 0,00
B26: 2018-12-23 | E26: =IFERROR(VLOOKUP(C26,TR!$B$2:$F$633,2,0),"") ->  | F26: =IFERROR(VLOOKUP(C26,TR!$B$2:$F$633,3,0),"") ->  | G26: 00:00:00 | H26: =IFERROR(VLOOKUP(C26,TR!$B$2:$F$633,4,0),"") ->  | I26: =IFERROR(VLOOKUP(C26,TR!$B$2:$F$633,5,0),"") ->  | J26: 00:00:00 | P26: =IF(AND(L26="",M26=""),IF(OR(SUMPRODUCT(N(ISNUMBER(FIND({"s";"d";"f"},C26))))>0,G26+J26<0,AND(G26>0,J26>0,I26>"20:30"*1),AND(I26<="20:30"*1,SUM(I26,R26)>="20:31"*1)),1,""),"") ->  | T26: 0 | U26: 0 | W26: 0,00
B27: 2018-12-24 | E27: =IFERROR(VLOOKUP(C27,TR!$B$2:$F$633,2,0),"") ->  | F27: =IFERROR(VLOOKUP(C27,TR!$B$2:$F$633,3,0),"") ->  | G27: 00:00:00 | H27: =IFERROR(VLOOKUP(C27,TR!$B$2:$F$633,4,0),"") ->  | I27: =IFERROR(VLOOKUP(C27,TR!$B$2:$F$633,5,0),"") ->  | J27: 00:00:00 | P27: =IF(AND(L27="",M27=""),IF(OR(SUMPRODUCT(N(ISNUMBER(FIND({"s";"d";"f"},C27))))>0,G27+J27<0,AND(G27>0,J27>0,I27>"20:30"*1),AND(I27<="20:30"*1,SUM(I27,R27)>="20:31"*1)),1,""),"") ->  | T27: 0 | U27: 0 | W27: 0,00
B28: 2018-12-25 | E28: =IFERROR(VLOOKUP(C28,TR!$B$2:$F$633,2,0),"") ->  | F28: =IFERROR(VLOOKUP(C28,TR!$B$2:$F$633,3,0),"") ->  | G28: 00:00:00 | H28: =IFERROR(VLOOKUP(C28,TR!$B$2:$F$633,4,0),"") ->  | I28: =IFERROR(VLOOKUP(C28,TR!$B$2:$F$633,5,0),"") ->  | J28: 00:00:00 | P28: =IF(AND(L28="",M28=""),IF(OR(SUMPRODUCT(N(ISNUMBER(FIND({"s";"d";"f"},C28))))>0,G28+J28<0,AND(G28>0,J28>0,I28>"20:30"*1),AND(I28<="20:30"*1,SUM(I28,R28)>="20:31"*1)),1,""),"") ->  | T28: 0 | U28: 0 | W28: 0,00
B29: 2018-12-26 | E29: =IFERROR(VLOOKUP(C29,TR!$B$2:$F$633,2,0),"") ->  | F29: =IFERROR(VLOOKUP(C29,TR!$B$2:$F$633,3,0),"") ->  | G29: 00:00:00 | H29: =IFERROR(VLOOKUP(C29,TR!$B$2:$F$633,4,0),"") ->  | I29: =IFERROR(VLOOKUP(C29,TR!$B$2:$F$633,5,0),"") ->  | J29: 00:00:00 | P29: =IF(AND(L29="",M29=""),IF(OR(SUMPRODUCT(N(ISNUMBER(FIND({"s";"d";"f"},C29))))>0,G29+J29<0,AND(G29>0,J29>0,I29>"20:30"*1),AND(I29<="20:30"*1,SUM(I29,R29)>="20:31"*1)),1,""),"") ->  | T29: 0 | U29: 0 | W29: 0,00
B30: 2018-12-27 | E30: =IFERROR(VLOOKUP(C30,TR!$B$2:$F$633,2,0),"") ->  | F30: =IFERROR(VLOOKUP(C30,TR!$B$2:$F$633,3,0),"") ->  | G30: 00:00:00 | H30: =IFERROR(VLOOKUP(C30,TR!$B$2:$F$633,4,0),"") ->  | I30: =IFERROR(VLOOKUP(C30,TR!$B$2:$F$633,5,0),"") ->  | J30: 00:00:00 | P30: =IF(AND(L30="",M30=""),IF(OR(SUMPRODUCT(N(ISNUMBER(FIND({"s";"d";"f"},C30))))>0,G30+J30<0,AND(G30>0,J30>0,I30>"20:30"*1),AND(I30<="20:30"*1,SUM(I30,R30)>="20:31"*1)),1,""),"") ->  | T30: 0 | U30: 0 | W30: 0,00
B31: 2018-12-28 | E31: =IFERROR(VLOOKUP(C31,TR!$B$2:$F$633,2,0),"") ->  | F31: =IFERROR(VLOOKUP(C31,TR!$B$2:$F$633,3,0),"") ->  | G31: 00:00:00 | H31: =IFERROR(VLOOKUP(C31,TR!$B$2:$F$633,4,0),"") ->  | I31: =IFERROR(VLOOKUP(C31,TR!$B$2:$F$633,5,0),"") ->  | J31: 00:00:00 | P31: =IF(AND(L31="",M31=""),IF(OR(SUMPRODUCT(N(ISNUMBER(FIND({"s";"d";"f"},C31))))>0,G31+J31<0,AND(G31>0,J31>0,I31>"20:30"*1),AND(I31<="20:30"*1,SUM(I31,R31)>="20:31"*1)),1,""),"") ->  | T31: 0 | U31: 0 | W31: 0,00
B32: 2018-12-29 | E32: =IFERROR(VLOOKUP(C32,TR!$B$2:$F$633,2,0),"") ->  | F32: =IFERROR(VLOOKUP(C32,TR!$B$2:$F$633,3,0),"") ->  | G32: 00:00:00 | H32: =IFERROR(VLOOKUP(C32,TR!$B$2:$F$633,4,0),"") ->  | I32: =IFERROR(VLOOKUP(C32,TR!$B$2:$F$633,5,0),"") ->  | J32: 00:00:00 | P32: =IF(AND(L32="",M32=""),IF(OR(SUMPRODUCT(N(ISNUMBER(FIND({"s";"d";"f"},C32))))>0,G32+J32<0,AND(G32>0,J32>0,I32>"20:30"*1),AND(I32<="20:30"*1,SUM(I32,R32)>="20:31"*1)),1,""),"") ->  | T32: 0 | U32: 0 | W32: 0,00
B33: 2018-12-30 | E33: =IFERROR(VLOOKUP(C33,TR!$B$2:$F$633,2,0),"") ->  | F33: =IFERROR(VLOOKUP(C33,TR!$B$2:$F$633,3,0),"") ->  | G33: 00:00:00 | H33: =IFERROR(VLOOKUP(C33,TR!$B$2:$F$633,4,0),"") ->  | I33: =IFERROR(VLOOKUP(C33,TR!$B$2:$F$633,5,0),"") ->  | J33: 00:00:00 | P33: =IF(AND(L33="",M33=""),IF(OR(SUMPRODUCT(N(ISNUMBER(FIND({"s";"d";"f"},C33))))>0,G33+J33<0,AND(G33>0,J33>0,I33>"20:30"*1),AND(I33<="20:30"*1,SUM(I33,R33)>="20:31"*1)),1,""),"") ->  | T33: 0 | U33: 0 | W33: 0,00
B34: 2018-12-31 | E34: =IFERROR(VLOOKUP(C34,TR!$B$2:$F$633,2,0),"") ->  | F34: =IFERROR(VLOOKUP(C34,TR!$B$2:$F$633,3,0),"") ->  | G34: 00:00:00 | H34: =IFERROR(VLOOKUP(C34,TR!$B$2:$F$633,4,0),"") ->  | I34: =IFERROR(VLOOKUP(C34,TR!$B$2:$F$633,5,0),"") ->  | J34: 00:00:00 | O34: =IF(AND(LEFT(C34,1)="f",AND(O33<>1)),1,IF(OR(ISNUMBER(FIND("FériéCC",C34)),ISNUMBER(FIND("FériéCH",C34)),ISNUMBER(FIND("f",C34))),1,"")) ->  | P34: =IF(AND(L34="",M34=""),IF(OR(SUMPRODUCT(N(ISNUMBER(FIND({"s";"d";"f"},C34))))>0,G34+J34<0,AND(G34>0,J34>0,I34>"20:30"*1),AND(I34<="20:30"*1,SUM(I34,R34)>="20:31"*1)),1,""),"") ->  | T34: 0 | U34: 0 | W34: 0,00
B36: Jours travaillés | C36: =(COUNTIF(Novembre!C24:C34,"<>")+COUNTIF(Décembre!C4:C23,"<>"))-(COUNTIF(Novembre!C24:C34,"CC*")+COUNTIF(Décembre!C4:C23,"CC*"))-(COUNTIF(Novembre!C24:C34,"CH*")+COUNTIF(Décembre!C4:C23,"CH*"))-(COUNTIF(Novembre!C24:C34,"RT*")+COUNTIF(Décembre!C4:C23,"RT*"))-(COUNTIF(Novembre!C24:C34,"Férié*")+COUNTIF(Décembre!C4:C23,"Férié*"))-(COUNTIF(Novembre!C24:C34,"Mal*")+COUNTIF(Décembre!C4:C23,"Mal*"))-(COUNTIF(Novembre!C24:C34,"CP*")+COUNTIF(Décembre!C4:C23,"CP*")) -> 0 | I36: Du 21 au 20 | K36: =SUM(Novembre!$K$24:$K$34,K4:K23) -> 0 | L36: =SUM(Novembre!$L$24:$L$34,L4:L23) -> 0 | M36: =SUM(Novembre!$M$24:$M$34,M4:M23) -> 0 | N36: =SUM(Novembre!$N$24:$N$34,N4:N23) -> 0 | O36: =SUM(Novembre!$O$24:$O$34,O4:O23) -> 0 | P36: =SUM(Novembre!$P$24:$P$34,P4:P23) -> 0 | Q36: =SUM(Novembre!$Q$24:$Q$34,Q4:Q23) -> 0 | R36: =SUM(Novembre!$R$24:$R$34,R4:R23) -> 0 | T36: =SUM(Novembre!T24:T34)+SUM(Décembre!T4:T23) -> 0 | U36: =SUM(U4:U34) -> 0 | V36: =SUM(V4:V34) -> 0
B37: CP | C37: =(COUNTIF(Novembre!C24:C34,"CP")+COUNTIF(Décembre!C4:C23,"CP")) -> 0 | K37: =(I39*2)*K36 -> 0 | L37: =Recap!H35*L36 -> 0 | M37: =Recap!H35*M36 -> 0 | N37: =(I39*5)*N36 -> 0 | O37: =(Recap!H33)*O36 -> 0 | P37: =7.5*P36 -> 0 | Q37: =(I39*1.5)*Q36 -> 0 | R37: =R36*24 -> 0
B38: CH | C38: =(COUNTIF(Novembre!C24:C34,"CH")+COUNTIF(Décembre!C4:C23,"CH")) -> 0 | I38: VP | T38: Horaire mensuel | V38: 6.175 | W38: =V38*24 -> 148.2
B39: RT | C39: =(COUNTIF(Novembre!C24:C34,"RT")+COUNTIF(Décembre!C4:C23,"RT")) -> 0 | I39: 8.8528
B40: CC | C40: =(COUNTIF(Novembre!C24:C34,"CC")+COUNTIF(Décembre!C4:C23,"CC")) -> 0 | T40: Différence | V40: =IF(V38>T36,"-","")&TEXT(ABS(T36-V38),"[h]:mm") -> -148:12 | W40: =(T36-V38)*24 -> -148.2
B41: Férié | C41: =(COUNTIF(Novembre!C24:C34,"Férié")+COUNTIF(Décembre!C4:C23,"Férié")) -> 0
B42: Férié CC-CH-RT | C42: =(COUNTIF(Novembre!C24:C34,"FériéCC")+COUNTIF(Décembre!C4:C23,"FériéCC")+(COUNTIF(Novembre!C24:C34,"FériéCH")+COUNTIF(Décembre!C4:C23,"FériéCH")+(COUNTIF(Novembre!C24:C34,"FériéRT")+COUNTIF(Décembre!C4:C23,"FériéRT")))) -> 0 | R42: Heures réelles | T42: =SUM(T4:T34) -> 0
T43: =T42*24 -> 0 | W43: =(T42-V38)*24 -> -148.2
B44: RESTE DECEMBRE
B45: Jours travaillés | C45: =COUNTIF(C24:C34,"<>")-(COUNTIF(C24:C34,"CH*")+COUNTIF(C24:C34,"RT*")+COUNTIF(C24:C34,"CC*")+COUNTIF(C24:C34,"Férié*")+COUNTIF(C24:C34,"CP*")) -> 0 | F45: NOTES
B46: CP | C46: =COUNTIF(C24:C34,"CP") -> 0
B47: CH | C47: =COUNTIF(C24:C34,"CH") -> 0
B48: RT | C48: =COUNTIF(C24:C34,"RT") -> 0
B49: CC | C49: =COUNTIF(C24:C34,"CC") -> 0
B50: Férié | C50: =COUNTIF(C24:C34,"Férié") -> 0
B51: Férié CC-CH | C51: =COUNTIF(C24:C34,"FériéCC")+COUNTIF(C24:C34,"FériéCH")+COUNTIF(C24:C34,"FériéRT") -> 0

Sheet Recap
B1: DU 21 au 20
C3: HEURES | E3: CENTIÈMES | G3: MOYENNE | H3: Jours travaillés | I3: CP | J3: CH | K3: RT | L3: CC | M3: Férié | N3: Férié CC-CH-RT | O3: Si H.Sup payées
B4: JANVIER | C4: =Janvier!T36 -> 4.039583333 | E4: =C4*24 -> 96.95 | G4: =IFERROR(C4/H4,"") -> 0.3107371795 | H4: =Janvier!C36 -> 13 | I4: =Janvier!C37 -> 0 | J4: =Janvier!C38 -> 2 | K4: =Janvier!C39 -> 1 | L4: =Janvier!C40 -> 4 | M4: =Janvier!C41 -> 0 | N4: =Janvier!C42 -> 0 | O4: =IF(Janvier!W43<0,"",Janvier!W43*D35) -> 
B5: FÉVRIER | C5: =Février!T36 -> 3.759027778 | E5: 90.21666667 | G5: =IFERROR(C5/H5,"") -> 0.3132523148 | H5: =Février!C36 -> 12 | I5: =Février!C37 -> 5 | J5: =Février!C38 -> 5 | K5: =Février!C39 -> 2 | L5: =Février!C40 -> 5 | M5: =Février!C41 -> 0 | N5: =Février!C42 -> 0 | O5: =IF(Février!W43<0,"",Février!W43*D35) -> 
B6: MARS | C6: =Mars!T36 -> 3.954861111 | E6: 94.91666667 | G6: 0.3042200855 | H6: =Mars!C36 -> 13 | I6: =Mars!C37 -> 2 | J6: =Mars!C38 -> 4 | K6: =Mars!C39 -> 1 | L6: =Mars!C40 -> 5 | M6: =Mars!C41 -> 0 | N6: =Mars!C42 -> 0 | O6: =IF(Mars!W43<0,"",Mars!W43*D35) -> 
B7: AVRIL | C7: =Avril!T36 -> 4.472916667 | E7: 107.35 | G7: 0.2631127451 | H7: =Avril!C36 -> 17 | I7: =Avril!C37 -> 4 | J7: =Avril!C38 -> 6 | K7: =Avril!C39 -> 0 | L7: =Avril!C40 -> 4 | M7: =Avril!C41 -> 0 | N7: =Avril!C42 -> 0 | O7: =IF(Avril!W43<0,"",Avril!W43*D35) -> 
B8: MAI | C8: =Mai!T36 -> 5.509027778 | E8: 132.2166667 | G8: 0.3060570988 | H8: =Mai!C36 -> 18 | I8: =Mai!C37 -> 0 | J8: =Mai!C38 -> 3 | K8: =Mai!C39 -> 1 | L8: =Mai!C40 -> 5 | M8: =Mai!C41 -> 1 | N8: =Mai!C42 -> 2 | O8: =IF(Mai!W43<0,"",Mai!W43*D35) -> 
B9: JUIN | C9: =Juin!T36 -> 5.142361111 | E9: 123.4166667 | G9: 0.3213975694 | H9: =Juin!C36 -> 16 | I9: =Juin!C37 -> 3 | J9: =Juin!C38 -> 4 | K9: =Juin!C39 -> 1 | L9: =Juin!C40 -> 4 | M9: =Juin!C41 -> 1 | N9: =Juin!C42 -> 0 | O9: =IF(Juin!W43<0,"",Juin!W43*D35) -> 
B10: JUILLET | C10: =Juillet!T36 -> 3.927777778 | E10: 94.26666667 | G10: 0.3021367521 | H10: =Juillet!C36 -> 13 | I10: =Juillet!C37 -> 7 | J10: =Juillet!C38 -> 3 | K10: =Juillet!C39 -> 2 | L10: =Juillet!C40 -> 5 | M10: =Juillet!C41 -> 0 | N10: =Juillet!C42 -> 0 | O10: =IF(Juillet!W43<0,"",Juillet!W43*D35) -> 58.77101889
B11: AOUT | C11: =Aout!T36 -> 4.645138889 | E11: 111.4833333 | G11: 0.2444809942 | H11: =Aout!C36 -> 19 | I11: =Aout!C37 -> 0 | J11: =Aout!C38 -> 5 | K11: =Aout!C39 -> 2 | L11: =Aout!C40 -> 4 | M11: =Aout!C41 -> 1 | N11: =Aout!C42 -> 0 | O11: =IF(Aout!W43<0,"",Aout!W43*D35) -> 
B12: SEPTEMBRE | C12: =Septembre!T36 -> 3.213888889 | E12: 77.13333333 | G12: 0.133912037 | H12: =Septembre!C36 -> 24 | I12: =Septembre!C37 -> 0 | J12: =Septembre!C38 -> 4 | K12: =Septembre!C39 -> 0 | L12: =Septembre!C40 -> 3 | M12: =Septembre!C41 -> 0 | N12: =Septembre!C42 -> 0 | O12: =IF(Septembre!W43<0,"",Septembre!W43*D35) -> 
B13: OCTOBRE | C13: =Octobre!T36 -> 0 | E13: 0 | G13: 0 | H13: =Octobre!C36 -> 6 | I13: =Octobre!C37 -> 0 | J13: =Octobre!C38 -> 2 | K13: =Octobre!C39 -> 0 | L13: =Octobre!C40 -> 2 | M13: =Octobre!C41 -> 0 | N13: =Octobre!C42 -> 0 | O13: =IF(Octobre!W43<0,"",Octobre!W43*D35) -> 
B14: NOVEMBRE | C14: =Novembre!T36 -> 0 | E14: 0 | H14: =Novembre!C36 -> 0 | I14: =Novembre!C37 -> 0 | J14: =Novembre!C38 -> 0 | K14: =Novembre!C39 -> 0 | L14: =Novembre!C40 -> 0 | M14: =Novembre!C41 -> 0 | N14: =Novembre!C42 -> 0 | O14: =IF(Novembre!W43<0,"",Novembre!W43*D35) -> 
B15: DÉCEMBRE | C15: =Décembre!T36 -> 0 | E15: 0 | H15: =Décembre!C36 -> 0 | I15: =Décembre!C37 -> 0 | J15: =Décembre!C38 -> 0 | K15: =Décembre!C39 -> 0 | L15: =Décembre!C40 -> 0 | M15: =Décembre!C41 -> 0 | N15: =Décembre!C42 -> 0 | O15: =IF(Décembre!W43<0,"",Décembre!W43*D35) -> 
B16: TOTAL | C16: =SUM(C4:D15) -> 38.66458333 | E16: =SUM(E4:F15) -> 927.95 | G16: =SUM(G4:G15)/12 -> 0.2082755647 | H16: =SUM(H4:H15) -> 151 | I16: 21 | J16: 38 | K16: 10 | L16: 41 | M16: 3 | N16: =SUM(N4:N15) -> 2 | O16: =SUM(O4:O15) -> 58.77101889
B19: RTT acquis | D19: 22.5 | F19: CP acquis | H19: 25 | J19: Jours dus
B20: RTT pris | D20: =K16 -> 10 | F20: CP pris | H20: =I16 -> 21
B22: Valorisation RTT | D22: =(D19-D20-0.92)*7.6 -> 88.008 | F22: Valorisation CP | H22: =(H20-H19)*7.6 -> -30.4 | J22: Valorisation J.dus | L22: =(L19)*7.6 -> 0
B26: Fériés sur CC CH RT | D26: =N16 -> 2 | J26: Temps de travail | L26: =E16 -> 927.95
J27: Horaire de base | L27: =D34 -> 148.2
J28: Horaire de référence | L28: 1556
B29: Valorisation CC CH | D29: =D26*7.6 -> 15.2 | J29: Solde | L29: =L26-L28 -> -628.05
B32: Salaire de base | D32: 208
B33: Prime d'ancienneté | D33: 1841.38 | G33: PJ Férié | H33: =(D32+D33)/20 -> 102.469
B34: Horaire de base | D34: 148.2
B35: Taux horaire | D35: =IFERROR((D32+D33)/D34,"") -> 13.82847503 | G35: PJ 1 et 2 | H35: 7.14
